Workbook

Sheet PORTADA
D2: DEPARTAMENTO DE CUNDINAMARCA
D3: SECRETARIA DE PLANEACION
M15: CONSULTAS
M17: OBJETIVO
M18: PROGRAMAS
M19: ENTIDADES
M20: M. PRODUCTO
M21: M. RESULTADO
E26: EJECUCIÓN ACUMULADA FÍSICA E INVERSIÓN DEL PLAN DE DESARROLLO
E43: El avance del Plan esta en Porcentaje
E44: La Inversión esta en Millones de Pesos
J206: DESARROLLO INTEGRAL DEL SER HUMANO | K206: 49.50452
J207: SOSTENIBILIDAD Y RURALIDAD | K207: 16.572
J208: COMPETITIVIDAD, INNOVACIÓN, MOVILIDAD Y REGIÓN | K208: 15.16664
J209: FORTALECIMIENTO INSTITUCIONAL PARA GENERAR VALOR DE LO PÚBLICO | K209: 18.76164
J210: PLAN DE DESARROLLO MUNICIPAL | K210: =SUM(K206:K209) -> 100.0048

Sheet Objetivos
B1: MUNICIPIO DE ANAPOIMA - CUNDINAMARCA
B2: SECRETARIA DE PLANEACIÓN
F5: =IF(C5=X6,Y6,IF(C5=X8,Y8,IF(C5=X9,Y9,IF(C5=X10,Y10,"PLAN DE DESARROLLO")))) -> PLAN DE DESARROLLO
X6: OBJ_1 | Y6: DESARROLLO INTEGRAL DEL SER HUMANO
B8: COMPORTAMIENTO DE LOS OBJETIVOS | S8: Volver | X8: OBJ_2 | Y8: SOSTENIBILIDAD Y RURALIDAD
X9: OBJ_3 | Y9: COMPETITIVIDAD, INNOVACIÓN, MOVILIDAD Y REGIÓN
X10: OBJ_4 | Y10: FORTALECIMIENTO INSTITUCIONAL PARA GENERAR VALOR DE LO PÚBLICO
C11: =+B19 -> 1-DESARROLLO INTEGRAL DEL SER HUMANO | D11: =+E27 -> 0.9366698961 | X11: PDD | AC11: PDD
C12: =+B35 -> 2-SOSTENIBILIDAD Y RURALIDAD | D12: =+E43 -> 0.9448860852
C13: =+B51 -> 3-COMPETITIVIDAD, INNOVACION, MOVILIDAD Y REGION | D13: =+E59 -> 0.960403066
C14: =+B67 -> 4-FORTALECIMIENTO INSTITUCIONAL PARA GENERAR VALOR DE LO PUBLICO | D14: =+E75 -> 0.9422499033
C16: =+A83 -> PDD | D16: =+E91 -> 0.9426776199 | F16: 2012 - 2015
B18: Fuente: SPC, calculo dirección seguimiento y evaluación septiembte de 2015. | L18: Fuente: Sec. Hacienda, calculo dirección Dinanciera SPC septiembte de 2015.
B19: =VLOOKUP($X$6,Datos_Prog!$B$6:$Z$11,2,FALSE) -> 1-DESARROLLO INTEGRAL DEL SER HUMANO
G21: EJECUCIÓN FÍSICA | N21: EJECUCIÓN FINANCIERA (En Millones $)
B22: AÑO | C22: Programado | D22: Ejecutado | E22: % Ejecutado | F22: Ejec. Mlls de $ | O22: $ Programados Cuatrienio
B23: 2012 | C23: =VLOOKUP($X$6,Datos_Prog!$B$6:$Z$10,5,FALSE) -> 8.357622781 | D23: =VLOOKUP($X$6,Datos_Prog!$B$6:$Z$10,6,FALSE) -> 7.099184461 | E23: =IFERROR(+IF((D23/C23)<1, (D23/C23), 100%)," ") -> 0.8494262838 | F23: =VLOOKUP($X$6,Datos_Prog!$B$6:$Z$10,14,FALSE) -> 785788.8232 | O23: $ Ejecutados Cuatrienio
B24: 2013 | C24: =VLOOKUP($X$6,Datos_Prog!$B$6:$Z$10,7,FALSE) -> 13.09423756 | D24: =VLOOKUP($X$6,Datos_Prog!$B$6:$Z$10,8,FALSE) -> 11.78192812 | E24: =IFERROR(+IF((D24/C24)<1, (D24/C24), 100%)," ") -> 0.8997796221 | F24: =VLOOKUP($X$6,Datos_Prog!$B$6:$Z$10,15,FALSE) -> 753178.1612
B25: 2014 | C25: =VLOOKUP($X$6,Datos_Prog!$B$6:$Z$10,9,FALSE) -> 14.07163588 | D25: =VLOOKUP($X$6,Datos_Prog!$B$6:$Z$10,10,FALSE) -> 12.63329135 | E25: =IFERROR(+IF((D25/C25)<1, (D25/C25), 100%)," ") -> 0.8977841275 | F25: =VLOOKUP($X$6,Datos_Prog!$B$6:$Z$10,16,FALSE) -> 862171.6698
B26: 2015 | C26: =VLOOKUP($X$6,Datos_Prog!$B$6:$Z$10,11,FALSE) -> 13.98102377 | D26: =VLOOKUP($X$6,Datos_Prog!$B$6:$Z$10,12,FALSE) -> 10.89106356 | E26: =IFERROR(+IF((D26/C26)<1, (D26/C26), 100%)," ") -> 0.7789889881 | F26: =VLOOKUP($X$6,Datos_Prog!$B$6:$Z$10,17,FALSE) -> 660652.781
B27: CUATRIENIO | C27: =SUM(C23:C26) -> 49.50452 | D27: =VLOOKUP($X$6,Datos_Prog!$B$6:$Z$10,13,FALSE) -> 46.36939361 | E27: =IFERROR(+IF((D27/C27)<1, (D27/C27), 100%)," ") -> 0.9366698961 | F27: =SUM(F23:F26) -> 3061791.435
B28: LOGROS RELEVANTES
B29: =VLOOKUP($X$6,Datos_Prog!$B$6:$Z$10,19,FALSE) -> SE REDUJO LA TASA DE MORTALIDAD INFANTIL DE NIÑ@S DE 0 A 1 AÑOS POR 1.000 NACIDOS VIVOS, PASANDO DE 10.8 EN EL 2013 A 9.60 EN EL AÑO 2014, LOGRANDO MANTENERSE POR DEBAJO DEL COMPORTAMIENTO NACIONAL (LA MEDIA NACIONAL SE ENCUENTRA EN 11.8).
B30: =VLOOKUP($X$6,Datos_Prog!$B$6:$Z$10,20,FALSE) -> SE DIMINUYERON LOS CASOS DE HEPATITIS A EN MENORES DE 1 AÑO, DE 121 CASOS QUE SE PRESENTARON EN EL AÑO 2013 A 27 CASOS EN EL AÑO 2014; CON LA ESTRATEGIA DEL PLAN AMPLIADO DE INMUNIZACIÓN (PAI – PLUS) - VACUNACIÓN CONTRA HEPATITIS A Y VARICELA, Y LA AMPLIACIÓN DE DOSIS DE 11.989 EN EL AÑO 2014, 4.410 DOSIS MÁS QUE EN EL 2013
B31: =VLOOKUP($X$6,Datos_Prog!$B$6:$Z$10,21,FALSE) -> SE PUSO EN MARCHA EL FUNCIONAMIENTO DEL CENTRO DE INNOVACIÓN EDUCATIVA REGIONAL - CIER- EN EL PALACIO DE SAN FRANCISCO, CON LA FORMACIÓN DE 475 DOCENTES EN EL MARCO DEL PROGRAMA “FORMACIÓN EN USO Y DESARROLLO DE CONTENIDOS EDUCATIVOS DIGITALES”; 9 DOCENTES CERTIFICADOS MASTER TEACHERS.
B32: =VLOOKUP($X$6,Datos_Prog!$B$6:$Z$10,22,FALSE) -> CUNDINAMARCA OCUPA EL PRIMER LUGAR A NIVEL NACIONAL EN LOS RESULTADOS DE LAS PRUEBAS SABER 11°; LO CUAL PERMITIÓ QUE SE SELECCIONARAN 922 ESTUDIANTES PARA PARTICIPAR EN EL PROGRAMA “10.000 BECAS PARA LA EDUCACIÓN SUPERIOR” DEL NIVEL NACIONAL.
B33: =VLOOKUP($X$6,Datos_Prog!$B$6:$Z$10,23,FALSE) -> RECONOCIMIENTO DEL MINISTERIO DE SALUD Y PROTECCIÓN SOCIAL COMO UNO DE LOS 10 PRIMEROS DEPARTAMENTOS EN EL CUMPLIMIENTO DE COBERTURA DE VACUNACIÓN ÚTIL EN TODOS LOS BIOLÓGICOS LLEGANDO AL 96% DE ACUERDO AL DANE EN PLAN AMPLIADO DE INMUNIZACIONES - PAI PLUS.
B35: =VLOOKUP($X$8,Datos_Prog!$B$6:$Z$11,2,FALSE) -> 2-SOSTENIBILIDAD Y RURALIDAD
G37: EJECUCIÓN FÍSICA | N37: EJECUCIÓN FINANCIERA (En Millones $)
B38: AÑO | C38: Programado | D38: Ejecutado | E38: % Ejecutado | F38: Ejec. Mlls de $
B39: 2012 | C39: =VLOOKUP($X$8,Datos_Prog!$B$6:$Z$10,5,FALSE) -> 1.809593108 | D39: =VLOOKUP($X$8,Datos_Prog!$B$6:$Z$10,6,FALSE) -> 1.730035478 | E39: =IFERROR(+IF((D39/C39)<1, (D39/C39), 100%)," ") -> 0.9560356251 | F39: =VLOOKUP($X$8,Datos_Prog!$B$6:$Z$10,14,FALSE) -> 23137.93048
B40: 2013 | C40: =VLOOKUP($X$8,Datos_Prog!$B$6:$Z$10,7,FALSE) -> 4.430176273 | D40: =VLOOKUP($X$8,Datos_Prog!$B$6:$Z$10,8,FALSE) -> 4.002973773 | E40: =IFERROR(+IF((D40/C40)<1, (D40/C40), 100%)," ") -> 0.9035698641 | F40: =VLOOKUP($X$8,Datos_Prog!$B$6:$Z$10,15,FALSE) -> 36381.89518
B41: 2014 | C41: =VLOOKUP($X$8,Datos_Prog!$B$6:$Z$10,9,FALSE) -> 4.792619447 | D41: =VLOOKUP($X$8,Datos_Prog!$B$6:$Z$10,10,FALSE) -> 3.7315391 | E41: =IFERROR(+IF((D41/C41)<1, (D41/C41), 100%)," ") -> 0.7786011683 | F41: =VLOOKUP($X$8,Datos_Prog!$B$6:$Z$10,16,FALSE) -> 38730.21508
B42: 2015 | C42: =VLOOKUP($X$8,Datos_Prog!$B$6:$Z$10,11,FALSE) -> 5.539611172 | D42: =VLOOKUP($X$8,Datos_Prog!$B$6:$Z$10,12,FALSE) -> 3.737986817 | E42: =IFERROR(+IF((D42/C42)<1, (D42/C42), 100%)," ") -> 0.6747742217 | F42: =VLOOKUP($X$8,Datos_Prog!$B$6:$Z$10,17,FALSE) -> 62386.48501
B43: CUATRIENIO | C43: =SUM(C39:C42) -> 16.572 | D43: =VLOOKUP($X$8,Datos_Prog!$B$6:$Z$10,13,FALSE) -> 15.6586522 | E43: =IFERROR(+IF((D43/C43)<1, (D43/C43), 100%)," ") -> 0.9448860852 | F43: =SUM(F39:F42) -> 160636.5257
B44: LOGROS ALCANZADOS
B45: =VLOOKUP($X$8,Datos_Prog!$B$6:$Z$10,19,FALSE) -> SE CONTRIBUYÓ CON LA SOSTENIBILIDAD Y ABASTECIMIENTO DEL RECURSO HÍDRICO A LOS CUNDINAMARQUESES MEDIANTE: A) EL INCREMENTO DE HECTÁREAS DE ECOSISTEMAS ESTRATÉGICOS PARA LA CONSERVACIÓN DE AGUA, LOGRANDO CON ELLO ADQUIRIR EN LO QUE VA CORRIDO DEL CUATRIENIO 6.552 HECTÁREAS DE CONSERVACIÓN. B) IMPLEMENTANDO EL MECANISMO DE PAGO POR SERVICIOS AMBIENTALES COMO ESTRATEGIA DE RECONOCIMIENTO QUE PROMUEVE EN LOS PROPIETARIOS PARTICULARES LA CONSERVACIÓN Y RECUPERACIÓN DE ÁREAS DE IMPORTANCIA ESTRATÉGICA PARA LA PRESERVACIÓN DE LOS RECURSOS HÍDRICOS. C) PROTECCIÓN Y RECUPERACIÓN DE ECOSISTEMAS LENTICOS, CONSIDERADOS ESTRATÉGICOS PARA EL EQUILIBRIO ECOLÓGICO DE LA REGIÓN POR SU CAPACIDAD DE REGULACIÓN HÍDRICA.
B46: =VLOOKUP($X$8,Datos_Prog!$B$6:$Z$10,20,FALSE) -> INCREMENTO DE LA COBERTURA DE ACUEDUCTO, CONECTANDO 155.339 NUEVOS HABITANTES DEL SECTOR URBANO Y RURAL A ESTE SERVICIO, DE LOS CUALES 54.443 FUERON EN 2014. ADICIONALMENTE, A TRAVÉS DE LA OPTIMIZACIÓN DE LOS SISTEMAS DE ACUEDUCTO, SE LOGRÓ LA REDUCCIÓN DE PÉRDIDAS, MEJORANDO LA CONTINUIDAD Y PRESIÓN EN LA PRESTACIÓN DEL SERVICIO, LO CUAL BENEFICIA A LA COMUNIDAD Y CONTRIBUYE CON EL USO EFICIENTE DEL RECURSO NATURAL.
B47: =VLOOKUP($X$8,Datos_Prog!$B$6:$Z$10,21,FALSE) -> SE INCREMENTO LA COBERTURA EN ALCANTARILLADO CON 62.646 HABITANTES NUEVOS CON ESTE SERVICIO DE LOS CUALES 29.679 SE ENTREGARON EN 2014. EN CUANTO AL TRATAMIENTO DE AGUAS SERVIDAS SE AVANZÓ EN LOS DISEÑOS Y CONSTRUCCIÓN DE LA INFRAESTRUCTURA NECESARIA PARA EL TRATAMIENTO DE LAS AGUAS RESIDUALES URBANAS Y RURALES, INTEGRANDO RECURSOS DEL DEPARTAMENTO CON LAS CORPORACIONES AUTÓNOMAS REGIONALES (CAR- CORPOGUAVIO).
B48: =VLOOKUP($X$8,Datos_Prog!$B$6:$Z$10,22,FALSE) -> SE ASUMIÓ LAS COMPETENCIAS ASIGNADAS EN LO REFERENTE A LA ADMINISTRACIÓN DE LOS RECURSOS DEL SISTEMA GENERAL DE PARTICIPACIONES – AGUA POTABLE Y SANEAMIENTO BÁSICO (SGP-APSB) PARA GARANTIZAR LA PRESTACIÓN DE LOS SERVICIOS DE AGUA POTABLE Y SANEAMIENTO BÁSICO DE LOS MUNICIPIOS DESCERTIFICADOS POR LA SUPERINTENDENCIA DE SERVICIOS PÚBLICOS DOMICILIARIOS - SSPD.
B49: =VLOOKUP($X$8,Datos_Prog!$B$6:$Z$10,23,FALSE) -> APOYO A 55 MUNICIPIOS EN EL PGAT (PLAN SECRETARÍA DE PLANEACIÓN, SEDE ADMINISTRATIVA. CALLE 26 51-53. TORRE CENTRAL PISO 5. BOGOTÁ, D.C. TEL. (1) 749 1652 - 749 1675 -749 1676 WWW.CUNDINAMARCA.GOV.CO GENERAL DE ASISTENCIA TÉCNICA AGROPECUARIA), EL FORTALECIMIENTO A LAS 116 UMATAS Y/O EPSAGROS CON LA DOTACIÓN DE EQUIPOS Y MOTOCICLETAS
B51: =VLOOKUP($X$9,Datos_Prog!$B$6:$Z$11,2,FALSE) -> 3-COMPETITIVIDAD, INNOVACION, MOVILIDAD Y REGION
G53: EJECUCIÓN FÍSICA | N53: EJECUCIÓN FINANCIERA (En Millones $)
B54: AÑO | C54: Programado | D54: Ejecutado | E54: % Ejecutado | F54: $_Prog
B55: 2012 | C55: =VLOOKUP($X$9,Datos_Prog!$B$6:$Z$10,5,FALSE) -> 2.253562283 | D55: =VLOOKUP($X$9,Datos_Prog!$B$6:$Z$10,6,FALSE) -> 1.750502063 | E55: =IFERROR(+IF((D55/C55)<1, (D55/C55), 100%)," ") -> 0.7767711041 | F55: =VLOOKUP($X$9,Datos_Prog!$B$6:$Z$10,14,FALSE) -> 199260.1251
B56: 2013 | C56: =VLOOKUP($X$9,Datos_Prog!$B$6:$Z$10,7,FALSE) -> 4.444771017 | D56: =VLOOKUP($X$9,Datos_Prog!$B$6:$Z$10,8,FALSE) -> 3.99000904 | E56: =IFERROR(+IF((D56/C56)<1, (D56/C56), 100%)," ") -> 0.8976860732 | F56: =VLOOKUP($X$9,Datos_Prog!$B$6:$Z$10,15,FALSE) -> 237108.3674
B57: 2014 | C57: =VLOOKUP($X$9,Datos_Prog!$B$6:$Z$10,9,FALSE) -> 4.343401967 | D57: =VLOOKUP($X$9,Datos_Prog!$B$6:$Z$10,10,FALSE) -> 3.32863068 | E57: =IFERROR(+IF((D57/C57)<1, (D57/C57), 100%)," ") -> 0.7663648692 | F57: =VLOOKUP($X$9,Datos_Prog!$B$6:$Z$10,16,FALSE) -> 233381.8821
B58: 2015 | C58: =VLOOKUP($X$9,Datos_Prog!$B$6:$Z$10,11,FALSE) -> 4.124904732 | D58: =VLOOKUP($X$9,Datos_Prog!$B$6:$Z$10,12,FALSE) -> 3.411118536 | E58: =IFERROR(+IF((D58/C58)<1, (D58/C58), 100%)," ") -> 0.8269569256 | F58: =VLOOKUP($X$9,Datos_Prog!$B$6:$Z$10,17,FALSE) -> 198156.3468
B59: CUATRIENIO | C59: =SUM(C55:C58) -> 15.16664 | D59: =VLOOKUP($X$9,Datos_Prog!$B$6:$Z$10,13,FALSE) -> 14.56608756 | E59: =IFERROR(+IF((D59/C59)<1, (D59/C59), 100%)," ") -> 0.960403066 | F59: =SUM(F55:F58) -> 867906.7214
B60: LOGROS ALCANZADOS
B61: =VLOOKUP($X$9,Datos_Prog!$B$6:$Z$10,19,FALSE) -> SE CONSTITUYÓ LA REGIÓN ADMINISTRATIVA Y DE PLANEACIÓN ESPECIAL – RAPE – ENTRE BOGOTÁ DISTRITO CAPITAL Y LOS DEPARTAMENTOS DE CUNDINAMARCA, BOYACÁ, META Y TOLIMA.
B62: =VLOOKUP($X$9,Datos_Prog!$B$6:$Z$10,20,FALSE) -> DISEÑO Y CREACIÓN DE LA MARCA “CUNDINAMARCA, EL DORADO LA LEYENDA VIVA”
B63: =VLOOKUP($X$9,Datos_Prog!$B$6:$Z$10,21,FALSE) -> APOYO EN LA CREACIÓN Y FORTALECIMIENTO EMPRESARIAL DE MÁS DE 300 UNIDADES PRODUCTIVAS Y SOSTENIMIENTO A LAS REDES EMPRESARIALES EXISTENTES
B64: =VLOOKUP($X$9,Datos_Prog!$B$6:$Z$10,22,FALSE) -> GRACIAS A LA GESTIÓN DEL DEPARTAMENTO LA NACIÓN A TRAVÉS DE LA ANI, ADJUDICÓ DOS PROYECTOS DE CONCESIÓN DE CUARTA GENERACIÓN, DE GRAN IMPORTANCIA PARA EL FORTALECIMIENTO DE LA INFRAESTRUCTURA VIAL DE CUNDINAMARCA Y PARA EL DESARROLLO REGIONAL Y LA ECONOMÍA NACIONAL, VÍA GIRARDOT – CAMBAO – PUERTO BOGOTÁ – HONDA – PUERTO SALGAR, CON UN COSTO DEL ORDEN DE $1.7 BILLONES Y LA PERIMETRAL DE ORIENTE, QUE COMPROMETE LAS VÍAS CÁQUEZA – UBAQUE – CHOACHÍ – LA CALERA - GUASCA, SALITRE – SOPO, CUATRO ESQUINAS – GUATAVITA – SESQUILÉ – LA PLAYA, CON UNA INVERSIÓN DEL ORDEN DE $1.07 BILLONES.
B65: =VLOOKUP($X$9,Datos_Prog!$B$6:$Z$10,23,FALSE) -> MÁS DE 500 LÍDERES CUNDINAMARQUESES GRADUADOS EN INNOVACIÓN, 22 BECAS OTORGADAS PARA FORMACIÓN DE ALTO NIVEL, TRES CONSEJOS REGIONALES DE CTEI CONFORMADOS, 1400 PARTICIPANTES EN LA SEMANA DE LA CTEI Y 15 PROYECTOS INNOVADORES GESTIONADOS CON RECURSOS DEL SISTEMA GENERAL DE REGALÍAS (SGR) DE LOS CUALES 10 ESTÁN EN EJECUCIÓN SON LA APUESTA DE LA ADMINISTRACIÓN DEPARTAMENTAL POR POSICIONAR LA APROPIACIÓN SOCIAL DEL CONOCIMIENTO EN EL TERRITORIO.
B67: =VLOOKUP($X$10,Datos_Prog!$B$6:$Z$11,2,FALSE) -> 4-FORTALECIMIENTO INSTITUCIONAL PARA GENERAR VALOR DE LO PUBLICO
G69: EJECUCIÓN FÍSICA | N69: EJECUCIÓN FINANCIERA (En Millones $)
B70: AÑO | C70: Programado | D70: Ejecutado | E70: % Ejecutado | F70: $_Prog
B71: 2012 | C71: =VLOOKUP($X$10,Datos_Prog!$B$6:$Z$10,5,FALSE) -> 2.659365643 | D71: =VLOOKUP($X$10,Datos_Prog!$B$6:$Z$10,6,FALSE) -> 2.229836777 | E71: =IFERROR(+IF((D71/C71)<1, (D71/C71), 100%)," ") -> 0.8384844643 | F71: =VLOOKUP($X$10,Datos_Prog!$B$6:$Z$10,14,FALSE) -> 309242.3582
B72: 2013 | C72: =VLOOKUP($X$10,Datos_Prog!$B$6:$Z$10,7,FALSE) -> 5.637765706 | D72: =VLOOKUP($X$10,Datos_Prog!$B$6:$Z$10,8,FALSE) -> 4.463362163 | E72: =IFERROR(+IF((D72/C72)<1, (D72/C72), 100%)," ") -> 0.791689899 | F72: =VLOOKUP($X$10,Datos_Prog!$B$6:$Z$10,15,FALSE) -> 346760.9319
B73: 2014 | C73: =VLOOKUP($X$10,Datos_Prog!$B$6:$Z$10,9,FALSE) -> 5.196185304 | D73: =VLOOKUP($X$10,Datos_Prog!$B$6:$Z$10,10,FALSE) -> 4.181761217 | E73: =IFERROR(+IF((D73/C73)<1, (D73/C73), 100%)," ") -> 0.8047752289 | F73: =VLOOKUP($X$10,Datos_Prog!$B$6:$Z$10,16,FALSE) -> 365478.1284
B74: 2015 | C74: =VLOOKUP($X$10,Datos_Prog!$B$6:$Z$10,11,FALSE) -> 5.268323347 | D74: =VLOOKUP($X$10,Datos_Prog!$B$6:$Z$10,12,FALSE) -> 3.815783067 | E74: =IFERROR(+IF((D74/C74)<1, (D74/C74), 100%)," ") -> 0.7242879404 | F74: =VLOOKUP($X$10,Datos_Prog!$B$6:$Z$10,17,FALSE) -> 238432.7278
B75: CUATRIENIO | C75: =SUM(C71:C74) -> 18.76164 | D75: =VLOOKUP($X$10,Datos_Prog!$B$6:$Z$10,13,FALSE) -> 17.67815348 | E75: =IFERROR(+IF((D75/C75)<1, (D75/C75), 100%)," ") -> 0.9422499033 | F75: =SUM(F71:F74) -> 1259914.146
B76: LOGROS ALCANZADOS
B77: =VLOOKUP($X$10,Datos_Prog!$B$6:$Z$10,19,FALSE) -> CUNDINAMARCA ES UN TERRITORIO MÁS SEGURO POR LA DISMINUCIÓN SIGNIFICATIVA DEL 26% DE LOS DELITOS.
B78: =VLOOKUP($X$10,Datos_Prog!$B$6:$Z$10,20,FALSE) -> CUNDINAMARCA FUE CERTIFICADA BAJO LA NORMA INTERNACIONAL ISO 9001:2008 REGISTRO NUMERO SC-CER303297, LA NORMA NACIONAL NTCGP 1000:2009 REGISTRO NÚMERO GP-CER 303299 Y EL SELLO INTERNACIONAL IQNET CO-SC-CER303297.
B79: =VLOOKUP($X$10,Datos_Prog!$B$6:$Z$10,21,FALSE) -> EL DEPARTAMENTO DE CUNDINAMARCA MANTUVO SU CALIFICACIÓN DE RIESGOS DE LA DEUDA PÚBLICA AA+, GARANTIZANDO LA ESTABILIDAD TRIBUTARIA Y LA SOSTENIBILIDAD FISCAL EN EL LARGO PLAZO.
B80: =VLOOKUP($X$10,Datos_Prog!$B$6:$Z$10,22,FALSE) -> CUNDINAMARCA SE CONSOLIDA COMO UNA ENTIDAD FINANCIERAMENTE SOSTENIBLE OCUPO EL 1ER PUESTO DE DESEMPEÑO FISCAL SEGÚN RANKING PUBLICADO EN EL 2014 POR PARTE DEL DNP.
B81: =VLOOKUP($X$10,Datos_Prog!$B$6:$Z$10,23,FALSE) -> “PREMIO INGENIO COLOMBIA 2014” EN LA CATEGORÍA GOBIERNO”, ORGANIZADO POR LA FEDERACIÓN COLOMBIANA DE LA INDUSTRIA DE SOFTWARE Y SERVICIOS ASOCIADOS –FEDESOFT-, POR LA INICIATIVA DE LA HISTORIA CLÍNICA ELECTRÓNICA UNIFICADA (HCEU) RECONOCIDA COMO LA MEJOR INICIATIVA COLOMBIANA EN INNOVACIÓN DE SOFTWARE CON EXCELENTES RESULTADOS Y ALTO IMPACTO.
A83: =VLOOKUP($X$11,Datos_Prog!$B$6:$Z$11,2,FALSE) -> PDD
G85: EJECUCIÓN FÍSICA | N85: EJECUCIÓN FINANCIERA (En Millones $)
B86: AÑO | C86: Programado | D86: Ejecutado | E86: % Ejecutado | F86: $_Prog
B87: 2012 | C87: =VLOOKUP($X$11,Datos_Prog!$B$6:$Z$11,5,FALSE) -> 15.08014382 | D87: =VLOOKUP($X$11,Datos_Prog!$B$6:$Z$11,6,FALSE) -> 12.80955878 | E87: =IFERROR(+IF((D87/C87)<1, (D87/C87), 100%)," ") -> 0.8494321364 | F87: =VLOOKUP($X$11,Datos_Prog!$B$6:$Z$11,14,FALSE) -> 1317429.237
B88: 2013 | C88: =VLOOKUP($X$11,Datos_Prog!$B$6:$Z$11,7,FALSE) -> 27.60695056 | D88: =VLOOKUP($X$11,Datos_Prog!$B$6:$Z$11,8,FALSE) -> 24.2382731 | E88: =IFERROR(+IF((D88/C88)<1, (D88/C88), 100%)," ") -> 0.8779771982 | F88: =VLOOKUP($X$11,Datos_Prog!$B$6:$Z$11,15,FALSE) -> 1373429.356
B89: 2014 | C89: =VLOOKUP($X$11,Datos_Prog!$B$6:$Z$11,9,FALSE) -> 28.4038426 | D89: =VLOOKUP($X$11,Datos_Prog!$B$6:$Z$11,10,FALSE) -> 23.87522234 | E89: =IFERROR(+IF((D89/C89)<1, (D89/C89), 100%)," ") -> 0.8405631124 | F89: =VLOOKUP($X$11,Datos_Prog!$B$6:$Z$11,16,FALSE) -> 1499761.895
B90: 2015 | C90: =VLOOKUP($X$11,Datos_Prog!$B$6:$Z$11,11,FALSE) -> 28.91386302 | D90: =VLOOKUP($X$11,Datos_Prog!$B$6:$Z$11,12,FALSE) -> 21.85595198 | E90: =IFERROR(+IF((D90/C90)<1, (D90/C90), 100%)," ") -> 0.7558987176 | F90: =VLOOKUP($X$11,Datos_Prog!$B$6:$Z$11,17,FALSE) -> 1159628.341
B91: CUATRIENIO | C91: =SUM(C87:C90) -> 100.0048 | D91: =VLOOKUP($X$11,Datos_Prog!$B$6:$Z$11,13,FALSE) -> 94.27228684 | E91: =IFERROR(+IF((D91/C91)<1, (D91/C91), 100%)," ") -> 0.9426776199 | F91: =SUM(F87:F90) -> 5350248.829
B92: LOGROS ALCANZADOS
B95: 2012 | C95: =+C87 -> 15.08014382 | D95: =+D87/$C$98 -> 0.1280894395 | E95: =+D95 -> 0.1280894395 | G95: =+F87 -> 1317429.237
B96: 2013 | C96: =+C95+C88 -> 42.68709437 | D96: =+D88/$C$98 -> 0.2423710972 | E96: =+E95+D96 -> 0.3704605367 | G96: =+G95+F88 -> 2690858.593
B97: 2014 | C97: =+C96+C89 -> 71.09093698 | D97: =+D89/$C$98 -> 0.2387407639 | E97: =+E96+D97 -> 0.6092013006 | G97: =+G96+F89 -> 4190620.488
B98: 2015 | C98: =+C97+C90 -> 100.0048 | D98: =+D90/$C$98 -> 0.2185490295 | E98: =+D91/100 -> 0.9427228684 | G98: =+G97+F90 -> 5350248.829

Sheet Programas
B1: DEPARTAMENTO DE CUNDINAMARCA
B2: SECRETARIA DE PLANEACIÓN
D5: =IF(E5=W16,V16,IF(E5=W17,V17,IF(E5=W18,V18,IF(E5=W19,V19,"PLAN DE DESARROLLO")))) -> OBJ_1 | E5: 1-DESARROLLO INTEGRAL DEL SER HUMANO
C8: Programa: | E8: 1.9. MUJERES LIDERES Y LIBRES DE VIOLENCIA | S8: Volver
B10: OBJETIVO DEL PROGRAMA | D10: =VLOOKUP($E$8,Datos_Prog!$B$23:$AP$56,2,FALSE) -> CONTRIBUIR AL PLENO DESARROLLO DE POTENCIALIDADES, CAPACIDADES Y EMPODERAMIENTO DE LAS MUJERES EN CUNDINAMARCA, PARA EL GOCE EFECTIVO DE SUS DERECHOS, EN UNA RELACIÓN DE GÉNERO EQUITATIVA, JUSTA E INCLUYENTE.
B11: METAS DE RESULTADO | D11: =VLOOKUP($E$8,Datos_Prog!$B$23:$AP$56,3,FALSE) -> 247 | E11: =VLOOKUP($E$8,Datos_Prog!$B$23:$AP$56,4,FALSE) -> 0 | F11: =VLOOKUP($E$8,Datos_Prog!$B$23:$AP$56,5,FALSE) -> 0 | G11: =VLOOKUP($E$8,Datos_Prog!$B$23:$AP$56,6,FALSE) -> 0 | H11: =VLOOKUP($E$8,Datos_Prog!$B$23:$AP$56,7,FALSE) -> 0 | I11: =VLOOKUP($E$8,Datos_Prog!$B$23:$AP$56,8,FALSE) -> 0 | J11: =VLOOKUP($E$8,Datos_Prog!$B$23:$AP$56,9,FALSE) -> 0 | K11: =VLOOKUP($E$8,Datos_Prog!$B$23:$AP$56,10,FALSE) -> 0 | L11: =VLOOKUP($E$8,Datos_Prog!$B$23:$AP$56,11,FALSE) -> 0 | M11: =VLOOKUP($E$8,Datos_Prog!$B$23:$AP$56,12,FALSE) -> 0
B12: ENTIDAD LÍDER | D12: =VLOOKUP($E$8,Datos_Prog!$B$23:$AP$56,14,FALSE) -> SECRETARIA DE DESARROLLO SOCIAL
B13: Entidades Cooperantes | D13: =VLOOKUP($E$8,Datos_Prog!$B$23:$AP$56,15,FALSE) -> INSTITUTO DE ACCION COMUNAL | G13: =VLOOKUP($E$8,Datos_Prog!$B$23:$AP$56,16,FALSE) -> 0 | J13: =VLOOKUP($E$8,Datos_Prog!$B$23:$AP$56,17,FALSE) -> 0 | M13: =VLOOKUP($E$8,Datos_Prog!$B$23:$AP$56,18,FALSE) -> 0 | P13: =VLOOKUP($E$8,Datos_Prog!$B$23:$AP$56,19,FALSE) -> 0
D14: =VLOOKUP($E$8,Datos_Prog!$B$23:$AP$56,20,FALSE) -> 0 | G14: =VLOOKUP($E$8,Datos_Prog!$B$23:$AP$56,21,FALSE) -> 0 | J14: =VLOOKUP($E$8,Datos_Prog!$B$23:$AP$56,22,FALSE) -> 0 | M14: =VLOOKUP($E$8,Datos_Prog!$B$23:$AP$56,23,FALSE) -> 0 | P14: =VLOOKUP($E$8,Datos_Prog!$B$23:$AP$56,24,FALSE) -> 0
D15: =VLOOKUP($E$8,Datos_Prog!$B$23:$AP$56,25,FALSE) -> 0 | G15: =VLOOKUP($E$8,Datos_Prog!$B$23:$AP$56,26,FALSE) -> 0
V16: OBJ_1 | W16: 1-DESARROLLO INTEGRAL DEL SER HUMANO
V17: OBJ_2 | W17: 2-SOSTENIBILIDAD Y RURALIDAD
B18: INFORMACIÓN DE LA EJECUCIÓN FÍSICA | V18: OBJ_3 | W18: 3-COMPETITIVIDAD, INNOVACION, MOVILIDAD Y REGION
B19: Programa: | C19: =VLOOKUP($E$8,Datos_Prog!$B$23:$AP$56,1,FALSE) -> 1.9. MUJERES LIDERES Y LIBRES DE VIOLENCIA | J19: % Ejecución Física Anual | O19: Inversión anual en Millones de $ | V19: OBJ_4 | W19: 4-FORTALECIMIENTO INSTITUCIONAL PARA GENERAR VALOR DE LO PUBLICO
B20: AÑO | C20: Programado | D20: Prog. Acumulado | E20: Ejecutado | F20: Ejec. Acumulado | G20: % Ejecutado | H20: Ejec. Mlls de $
B21: 2012 | C21: =VLOOKUP($E$8,Datos_Prog!$B$23:$AP$56,28,FALSE) -> 0.3992068966 | D21: =+C21 -> 0.3992068966 | E21: =VLOOKUP($E$8,Datos_Prog!$B$23:$AP$56,29,FALSE) -> 0.2928103448 | F21: =+E21 -> 0.2928103448 | G21: =IFERROR(+IF((E21/C21)<1, (E21/C21), 100%)," ") -> 0.7334801762 | H21: =VLOOKUP($E$8,Datos_Prog!$B$23:$BB$56,50,FALSE) -> 719.0205
B22: 2013 | C22: =VLOOKUP($E$8,Datos_Prog!$B$23:$AP$56,30,FALSE) -> 0.3436724138 | D22: =+D21+C22 -> 0.7428793103 | E22: =VLOOKUP($E$8,Datos_Prog!$B$23:$AP$56,31,FALSE) -> 0.3215624138 | F22: =+F21+E22 -> 0.6143727586 | G22: =IFERROR(+IF((E22/C22)<1, (E22/C22), 100%)," ") -> 0.9356654794 | H22: =VLOOKUP($E$8,Datos_Prog!$B$23:$BB$56,51,FALSE) -> 691.8619
B23: 2014 | C23: =VLOOKUP($E$8,Datos_Prog!$B$23:$AP$56,32,FALSE) -> 0.3353491379 | D23: =+D22+C23 -> 1.078228448 | E23: =VLOOKUP($E$8,Datos_Prog!$B$23:$AP$56,33,FALSE) -> 0.2205091379 | F23: =+F22+E23 -> 0.8348818966 | G23: =IFERROR(+IF((E23/C23)<1, (E23/C23), 100%)," ") -> 0.6575509312 | H23: =VLOOKUP($E$8,Datos_Prog!$B$23:$BB$56,52,FALSE) -> 912.904744
B24: 2015 | C24: =VLOOKUP($E$8,Datos_Prog!$B$23:$AP$56,34,FALSE) -> 0.4157715517 | D24: =+D23+C24 -> 1.494 | E24: =VLOOKUP($E$8,Datos_Prog!$B$23:$AP$56,35,FALSE) -> 0.3951465517 | F24: =+F23+E24 -> 1.230028448 | G24: =IFERROR(+IF((E24/C24)<1, (E24/C24), 100%)," ") -> 0.9503934314 | H24: =VLOOKUP($E$8,Datos_Prog!$B$23:$BB$56,53,FALSE) -> 265.92
B25: CUATRIENIO | C25: =SUM(C21:C24) -> 1.494 | E25: =VLOOKUP($E$8,Datos_Prog!$B$23:$AP$56,36,FALSE) -> 1.494 | G25: =IFERROR(+IF((E25/C25)<1, (E25/C25), 100%)," ") -> 1 | H25: =SUM(H21:H24) -> 2589.707144
M27: Fuente: Sec. Hacienda, calculo dirección Dinanciera SPC septiembte de 2015.
B28: LOGROS ALCANZADOS
B29: =UPPER(IFERROR(VLOOKUP($E$8,Datos_Prog!$B$23:$BB$56,39,FALSE),"")) -> 59 ORGANIZACIONES DE MUJERES CON EMPRENDIMIENTOS PARTICIPARON EN LA FERIA DE LAS COLONIAS.
B30: =UPPER(IFERROR(VLOOKUP($E$8,Datos_Prog!$B$23:$BB$56,40,FALSE),"")) -> 1.066 MUJERES FORMADAS PARA EL TRABAJO EN MANUALIDADES Y BELLEZA.
B31: =UPPER(IFERROR(VLOOKUP($E$8,Datos_Prog!$B$23:$BB$56,41,FALSE),"")) -> 5.517 MUJERES DE 2.970 ORGANIZACIONES PARTICIPARON EN ENCUENTROS, EVENTOS Y JORNADAS DE CAPACITACIÓN, QUE PROMUEVEN EL LIDERAZGO Y LA PARTICIPACIÓN
B32: =UPPER(IFERROR(VLOOKUP($E$8,Datos_Prog!$B$23:$BB$56,42,FALSE),"")) -> SE CREARON 63 CONSEJOS CONSULTIVOS DE MUJER EN EL MARCO DE LA POLÍTICA DE MUJER.
B33: =UPPER(IFERROR(VLOOKUP($E$8,Datos_Prog!$B$23:$BB$56,43,FALSE),"")) -> SE INSTITUCIONALIZÓ LA CAMPAÑA “RUTA DE ATENCIÓN A NIÑAS Y MUJERES VÍCTIMAS DE VIOLENCIA” EN LOS 116 MUNICIPIOS MEDIANTE ACUERDO DE VOLUNTADES EN EL MARCO DE CUMPLIMIENTO DE LA LEY 1257 DE 2008. NO VIOLENCIA CONTRA LA MUJER.
B34: =UPPER(IFERROR(VLOOKUP($E$8,Datos_Prog!$B$23:$BB$56,44,FALSE),"")) -> SE CONFORMÓ Y PUSO EN MARCHA DEL COMITÉ DEPARTAMENTAL DE SEGUIMIENTO A LA LEY 1257 .NO VIOLENCIA CONTRA LA MUJER.
B35: =UPPER(IFERROR(VLOOKUP($E$8,Datos_Prog!$B$23:$BB$56,45,FALSE),"")) -> 
B36: =UPPER(IFERROR(VLOOKUP($E$8,Datos_Prog!$B$23:$BB$56,46,FALSE),"")) -> 
B37: =UPPER(IFERROR(VLOOKUP($E$8,Datos_Prog!$B$23:$BB$56,47,FALSE),"")) -> 
B38: =UPPER(IFERROR(VLOOKUP($E$8,Datos_Prog!$B$23:$BB$56,48,FALSE),"")) -> 

Sheet Entidades
B1: DEPARTAMENTO DE CUNDINAMARCA
B2: SECRETARIA DE PLANEACIÓN
C8: Entidad: | E8: SECRETARIA DE PLANEACION | Q8: Volver
B11: INFORMACIÓN DE LA EJECUCIÓN FÍSICA
B12: AÑO | C12: Programado | D12: Prog. Acumulado | E12: Ejecutado | F12: Ejec. Acumulado | G12: % Ejecutado | O12: $ Programados Cuatrienio
B13: 2012 | C13: =VLOOKUP($E$8,Datos_Prog!$B$117:$L$145,3,FALSE) -> 0.9000845238 | D13: =+C13 -> 0.9000845238 | E13: =VLOOKUP($E$8,Datos_Prog!$B$117:$L$145,4,FALSE) -> 0.7527630952 | F13: =+E13 -> 0.7527630952 | G13: =IFERROR(+IF((E13/C13)<1, (E13/C13), 100%)," ") -> 0.8363248954
B14: 2013 | C14: =VLOOKUP($E$8,Datos_Prog!$B$117:$L$145,5,FALSE) -> 1.086344048 | D14: =+D13+C14 -> 1.986428571 | E14: =VLOOKUP($E$8,Datos_Prog!$B$117:$L$145,6,FALSE) -> 0.8867440476 | F14: =+F13+E14 -> 1.639507143 | G14: =IFERROR(+IF((E14/C14)<1, (E14/C14), 100%)," ") -> 0.8162644694
B15: 2014 | C15: =VLOOKUP($E$8,Datos_Prog!$B$117:$L$145,7,FALSE) -> 1.088577381 | D15: =+D14+C15 -> 3.075005952 | E15: =VLOOKUP($E$8,Datos_Prog!$B$117:$L$145,8,FALSE) -> 0.8433565476 | F15: =+F14+E15 -> 2.48286369 | G15: =IFERROR(+IF((E15/C15)<1, (E15/C15), 100%)," ") -> 0.7747327497
B16: 2015 | C16: =VLOOKUP($E$8,Datos_Prog!$B$117:$L$145,9,FALSE) -> 1.487994048 | D16: =+D15+C16 -> 4.563 | E16: =VLOOKUP($E$8,Datos_Prog!$B$117:$L$145,10,FALSE) -> 0.87625 | F16: =+F15+E16 -> 3.35911369 | G16: =IFERROR(+IF((E16/C16)<1, (E16/C16), 100%)," ") -> 0.5888800438
B17: CUATRIENIO | C17: =SUM(C13:C16) -> 4.563 | E17: =VLOOKUP($E$8,Datos_Prog!$B$117:$L$145,11,FALSE) -> 3.952164286 | G17: =IFERROR(+IF((E17/C17)<1, (E17/C17), 100%)," ") -> 0.86613287
H18: =IFERROR(+IF((#REF!/#REF!)<1, (#REF!/#REF!), 100%)," ") -> 
A19: SEMAFORIZACIÓN DE METAS
B20: =VLOOKUP($E$8,Datos_Prog!$B$117:$M$145,12,FALSE) -> PLANEACION.
B21: Ejecución >= 90% | D21: =COUNTIF($P$31:$P$106,">=90%") -> 17
B22: Ejecución >= 60% y < 90% | D22: =COUNTIFS(P31:P106,"<90%",P31:P106,">=60%") -> 6
B23: Ejecución < 60% | D23: =COUNTIF($P$31:$P$106,"<60%") -> 2
B24: TOTAL DE METAS | D24: =SUM(D21:D23) -> 25
B28: EJECUCIÓN DE METAS
B30: No. META | C30: NOMBRE | N30: % EJEC.
B31: =HLOOKUP($B$20,Datos_Producto!$I$559:$AI$635,2,FALSE) -> 328 | C31: =IFERROR(VLOOKUP(B31,Datos_Producto!$E$4:$EE$541,6,FALSE)," ") -> APOYAR TÉCNICA Y FINANCIERAMENTE LA REVISIÓN DE 25 PLANES DE ORDENAMIENTO TERRITORIAL DURANTE EL CUATRIENIO. | N31: =IFERROR(VLOOKUP(B31,Datos_Producto!$E$4:$EE$541,13,FALSE), " ") -> 0.25 | O31: =IFERROR(VLOOKUP(B31,Datos_Producto!$E$4:$EE$541,115,FALSE)," ") -> 0.25 | P31: =IFERROR((+O31/N31), " ") -> 1
B32: =HLOOKUP($B$20,Datos_Producto!$I$559:$AI$635,3,FALSE) -> 329 | C32: =IFERROR(VLOOKUP(B32,Datos_Producto!$E$4:$EE$541,6,FALSE)," ") -> APOYAR AL 50% DE LAS ENTIDADES TERRITORIALES DEL DEPARTAMENTO , CON HERRAMIENTAS QUE PERMITAN LA ADECUADA TOMA DE DECISIONES EN EL ORDENAMIENTO DE SU TERRITORIO, TALES COMO CARTOGRAFÍA, FOTOGRAFÍAS ESPACIALES, CLASIFICACIÓN DEL SUELO, INDICADORES BÁSICOS | N32: =IFERROR(VLOOKUP(B32,Datos_Producto!$E$4:$EE$541,13,FALSE), " ") -> 0.165 | O32: =IFERROR(VLOOKUP(B32,Datos_Producto!$E$4:$EE$541,115,FALSE)," ") -> 0.165 | P32: =IFERROR((+O32/N32), " ") -> 1
B33: =HLOOKUP($B$20,Datos_Producto!$I$559:$AI$635,4,FALSE) -> 331 | C33: =IFERROR(VLOOKUP(B33,Datos_Producto!$E$4:$EE$541,6,FALSE)," ") -> FORTALECER LA GESTIÓN PARA EL DESARROLLO TERRITORIAL CON 4 INSTRUMENTOS DE GESTIÓN DEL SUELO. DURANTE EL PERIODO DE GOBIERNO | N33: =IFERROR(VLOOKUP(B33,Datos_Producto!$E$4:$EE$541,13,FALSE), " ") -> 0.165 | O33: =IFERROR(VLOOKUP(B33,Datos_Producto!$E$4:$EE$541,115,FALSE)," ") -> 0 | P33: 0
B34: =HLOOKUP($B$20,Datos_Producto!$I$559:$AI$635,5,FALSE) -> 332 | C34: =IFERROR(VLOOKUP(B34,Datos_Producto!$E$4:$EE$541,6,FALSE)," ") -> FORMULAR LOS LINEAMIENTOS Y ORIENTACIONES PARA EL ORDENAMIENTO DEL TERRITORIO DEL DEPARTAMENTO DE CUNDINAMARCA Y SU INCORPORACIÓN EN LOS POT, EN EL CUATRIENIO. | N34: =IFERROR(VLOOKUP(B34,Datos_Producto!$E$4:$EE$541,13,FALSE), " ") -> 0.33 | O34: =IFERROR(VLOOKUP(B34,Datos_Producto!$E$4:$EE$541,115,FALSE)," ") -> 0.198 | P34: 0.6
B35: =HLOOKUP($B$20,Datos_Producto!$I$559:$AI$635,6,FALSE) -> 538 | C35: =IFERROR(VLOOKUP(B35,Datos_Producto!$E$4:$EE$541,6,FALSE)," ") -> ESTRATEGIAS IEC DURANTE LOS 4 AÑOS VINCULAN A LOS ACTORES EN LA GESTIÓN, PARA EL DESEMPEÑO DE ROLES, CORRESPONSABILIDAD INSTITUCIONAL Y CIVIL PARA EL CUMPLIMIENTO DE LOS OBJETIVOS Y RESULTADOS | N35: =IFERROR(VLOOKUP(B35,Datos_Producto!$E$4:$EE$541,13,FALSE), " ") -> 0.089 | O35: =IFERROR(VLOOKUP(B35,Datos_Producto!$E$4:$EE$541,115,FALSE)," ") -> 0.07565 | P35: 0.85
B36: =HLOOKUP($B$20,Datos_Producto!$I$559:$AI$635,7,FALSE) -> 542 | C36: =IFERROR(VLOOKUP(B36,Datos_Producto!$E$4:$EE$541,6,FALSE)," ") -> CONSOLIDAR POR LO MENOS 4 ESPACIOS Y MECANISMOS DE GESTIÓN DE ORDEN INTERNACIONAL, NACIONAL, REGIONAL O LOCAL CON ALIANZAS INSTITUCIONALES Y PÚBLICO PRIVADAS. | N36: =IFERROR(VLOOKUP(B36,Datos_Producto!$E$4:$EE$541,13,FALSE), " ") -> 0.165 | O36: =IFERROR(VLOOKUP(B36,Datos_Producto!$E$4:$EE$541,115,FALSE)," ") -> 0.12375 | P36: 0.75
B37: =HLOOKUP($B$20,Datos_Producto!$I$559:$AI$635,8,FALSE) -> 543 | C37: =IFERROR(VLOOKUP(B37,Datos_Producto!$E$4:$EE$541,6,FALSE)," ") -> FORMAR A 6000 FUNCIONARIOS MUNICIPALES Y SOCIEDAD CIVIL EN DESTREZAS Y HABILIDADES PARA LA GESTIÓN INTEGRAL DURANTE EL PERÍODO DE GOBIERNO. | N37: =IFERROR(VLOOKUP(B37,Datos_Producto!$E$4:$EE$541,13,FALSE), " ") -> 0.25 | O37: =IFERROR(VLOOKUP(B37,Datos_Producto!$E$4:$EE$541,115,FALSE)," ") -> 0.25 | P37: 1
B38: =HLOOKUP($B$20,Datos_Producto!$I$559:$AI$635,9,FALSE) -> 544 | C38: =IFERROR(VLOOKUP(B38,Datos_Producto!$E$4:$EE$541,6,FALSE)," ") -> IMPLEMENTAR EN 40 MUNICIPIOS PRÁCTICAS DE BUEN GOBIERNO EN EL CUATRIENIO | N38: =IFERROR(VLOOKUP(B38,Datos_Producto!$E$4:$EE$541,13,FALSE), " ") -> 0.25 | O38: =IFERROR(VLOOKUP(B38,Datos_Producto!$E$4:$EE$541,115,FALSE)," ") -> 0.25 | P38: 1
B39: =HLOOKUP($B$20,Datos_Producto!$I$559:$AI$635,10,FALSE) -> 545 | C39: =IFERROR(VLOOKUP(B39,Datos_Producto!$E$4:$EE$541,6,FALSE)," ") -> INCREMENTAR EN UN 50% EL NÚMERO DE USUARIOS DE LA RED DE CONOCIMIENTO DURANTE EL CUATRIENIO. | N39: =IFERROR(VLOOKUP(B39,Datos_Producto!$E$4:$EE$541,13,FALSE), " ") -> 0.25 | O39: =IFERROR(VLOOKUP(B39,Datos_Producto!$E$4:$EE$541,115,FALSE)," ") -> 0.2088 | P39: 0.8352
B40: =HLOOKUP($B$20,Datos_Producto!$I$559:$AI$635,11,FALSE) -> 547 | C40: =IFERROR(VLOOKUP(B40,Datos_Producto!$E$4:$EE$541,6,FALSE)," ") -> CONTRIBUIR AL FORTALECIMIENTO DE LAS FINANZAS MUNICIPALES CON 5 ACTUALIZACIONES CATASTRALES. | N40: =IFERROR(VLOOKUP(B40,Datos_Producto!$E$4:$EE$541,13,FALSE), " ") -> 0.165 | O40: =IFERROR(VLOOKUP(B40,Datos_Producto!$E$4:$EE$541,115,FALSE)," ") -> 0.165 | P40: 1
B41: =HLOOKUP($B$20,Datos_Producto!$I$559:$AI$635,12,FALSE) -> 548 | C41: =IFERROR(VLOOKUP(B41,Datos_Producto!$E$4:$EE$541,6,FALSE)," ") -> FORTALECER LA CAPACIDAD INSTITUCIONAL CON LA IMPLEMENTACIÓN 4 UNIDADES DE APOYO A LA GESTIÓN TERRITORIAL | N41: =IFERROR(VLOOKUP(B41,Datos_Producto!$E$4:$EE$541,13,FALSE), " ") -> 0.25 | O41: =IFERROR(VLOOKUP(B41,Datos_Producto!$E$4:$EE$541,115,FALSE)," ") -> 0.25 | P41: 1
B42: =HLOOKUP($B$20,Datos_Producto!$I$559:$AI$635,13,FALSE) -> 549 | C42: =IFERROR(VLOOKUP(B42,Datos_Producto!$E$4:$EE$541,6,FALSE)," ") -> ACERCAMIENTO DE LA OFERTA INSTITUCIONAL PARA EL EMPODERAMIENTO Y LA GESTIÓN CON 4 FERIAS INSTITUCIONALES DURANTE EL PERIODO DE GOBIERNO | N42: =IFERROR(VLOOKUP(B42,Datos_Producto!$E$4:$EE$541,13,FALSE), " ") -> 0.165 | O42: =IFERROR(VLOOKUP(B42,Datos_Producto!$E$4:$EE$541,115,FALSE)," ") -> 0.165 | P42: 1
B43: =HLOOKUP($B$20,Datos_Producto!$I$559:$AI$635,14,FALSE) -> 550 | C43: =IFERROR(VLOOKUP(B43,Datos_Producto!$E$4:$EE$541,6,FALSE)," ") -> FORTALECER 12 MUNICIPIOS EN GESTIÓN INTEGRAL A TRAVÉS DE PROCESOS DE COOPERACIÓN HORIZONTAL DURANTE DEL PERÍODO DE GOBIERNO | N43: =IFERROR(VLOOKUP(B43,Datos_Producto!$E$4:$EE$541,13,FALSE), " ") -> 0.165 | O43: =IFERROR(VLOOKUP(B43,Datos_Producto!$E$4:$EE$541,115,FALSE)," ") -> 0.04125 | P43: 0.25
B44: =HLOOKUP($B$20,Datos_Producto!$I$559:$AI$635,15,FALSE) -> 552 | C44: =IFERROR(VLOOKUP(B44,Datos_Producto!$E$4:$EE$541,6,FALSE)," ") -> FORTALECER EN EL CUATRIENIO AL CONSEJO TERRITORIAL DE PLANEACIÓN. | N44: =IFERROR(VLOOKUP(B44,Datos_Producto!$E$4:$EE$541,13,FALSE), " ") -> 0.089 | O44: =IFERROR(VLOOKUP(B44,Datos_Producto!$E$4:$EE$541,115,FALSE)," ") -> 0.089 | P44: 1
B45: =HLOOKUP($B$20,Datos_Producto!$I$559:$AI$635,16,FALSE) -> 593 | C45: =IFERROR(VLOOKUP(B45,Datos_Producto!$E$4:$EE$541,6,FALSE)," ") -> FORTALECER EL SISTEMA DE INFORMACIÓN GEOGRÁFICA REGIONAL (SIG R) COMO PLATAFORMA TECNOLÓGICA CORPORATIVA CON VARIABLES DE INFORMACIÓN DE ENTIDADES DEL NIVEL CENTRAL, DESCONCENTRADO Y MUNICIPAL. | N45: =IFERROR(VLOOKUP(B45,Datos_Producto!$E$4:$EE$541,13,FALSE), " ") -> 0.165 | O45: =IFERROR(VLOOKUP(B45,Datos_Producto!$E$4:$EE$541,115,FALSE)," ") -> 0.165 | P45: 1
B46: =HLOOKUP($B$20,Datos_Producto!$I$559:$AI$635,17,FALSE) -> 594 | C46: =IFERROR(VLOOKUP(B46,Datos_Producto!$E$4:$EE$541,6,FALSE)," ") -> GENERAR INDICADORES E INFORMACIÓN GEOGRÁFICA Y ESTADÍSTICA A NIVEL DEPARTAMENTAL Y MUNICIPAL, A TRAVÉS DE PUBLICACIONES ANÁLOGAS Y/O DIGITALES COMO MATERIAL DE SOPORTE PARA LA TOMA DE DECISIONES EN LOS PROCESOS DE PLANIFICACIÓN Y ORDENAMIENTO DEL TERRITOR | N46: =IFERROR(VLOOKUP(B46,Datos_Producto!$E$4:$EE$541,13,FALSE), " ") -> 0.165 | O46: =IFERROR(VLOOKUP(B46,Datos_Producto!$E$4:$EE$541,115,FALSE)," ") -> 0.165 | P46: 1
B47: =HLOOKUP($B$20,Datos_Producto!$I$559:$AI$635,18,FALSE) -> 599 | C47: =IFERROR(VLOOKUP(B47,Datos_Producto!$E$4:$EE$541,6,FALSE)," ") -> DEFINIR LOS LINEAMIENTOS Y/O ESTÁNDARES PARA LA CAPTURA Y ALMACENAMIENTO DE INFORMACIÓN | N47: =IFERROR(VLOOKUP(B47,Datos_Producto!$E$4:$EE$541,13,FALSE), " ") -> 0.165 | O47: =IFERROR(VLOOKUP(B47,Datos_Producto!$E$4:$EE$541,115,FALSE)," ") -> 0.165 | P47: 1
B48: =HLOOKUP($B$20,Datos_Producto!$I$559:$AI$635,19,FALSE) -> 601 | C48: =IFERROR(VLOOKUP(B48,Datos_Producto!$E$4:$EE$541,6,FALSE)," ") -> GENERAR EN 100% MUNICIPIOS Y ENTIDADES DEPARTAMENTALES EN EL CUATRIENIO MAYORES CAPACIDADES DE S Y E | N48: =IFERROR(VLOOKUP(B48,Datos_Producto!$E$4:$EE$541,13,FALSE), " ") -> 0.165 | O48: =IFERROR(VLOOKUP(B48,Datos_Producto!$E$4:$EE$541,115,FALSE)," ") -> 0.165 | P48: 1
B49: =HLOOKUP($B$20,Datos_Producto!$I$559:$AI$635,20,FALSE) -> 602 | C49: =IFERROR(VLOOKUP(B49,Datos_Producto!$E$4:$EE$541,6,FALSE)," ") -> EJECUTAR 8 PLANES DE MEJORAMIENTO EN EL CUATRIENIO POR PREVIO S Y E | N49: =IFERROR(VLOOKUP(B49,Datos_Producto!$E$4:$EE$541,13,FALSE), " ") -> 0.165 | O49: =IFERROR(VLOOKUP(B49,Datos_Producto!$E$4:$EE$541,115,FALSE)," ") -> 0.12375 | P49: 0.75
B50: =HLOOKUP($B$20,Datos_Producto!$I$559:$AI$635,21,FALSE) -> 603 | C50: =IFERROR(VLOOKUP(B50,Datos_Producto!$E$4:$EE$541,6,FALSE)," ") -> IMPLEMENTAR UNA RUTA METODOLÓGICA ANUAL DE RENDICIÓN DE CUENTAS PARA SOMETER EL AVANCE DE LA GESTIÓN TRIMESTRALMENTE , AL DEBATE, ARGUMENTACIÓN Y APORTE DEL CONSEJO DE GOBIERNO PARA EL MEJORAMIENTO DE LOS RESULTADOS DE LA GESTIÓN | N50: =IFERROR(VLOOKUP(B50,Datos_Producto!$E$4:$EE$541,13,FALSE), " ") -> 0.165 | O50: =IFERROR(VLOOKUP(B50,Datos_Producto!$E$4:$EE$541,115,FALSE)," ") -> 0.1532142857 | P50: 0.9285714286
B51: =HLOOKUP($B$20,Datos_Producto!$I$559:$AI$635,22,FALSE) -> 604 | C51: =IFERROR(VLOOKUP(B51,Datos_Producto!$E$4:$EE$541,6,FALSE)," ") -> IMPLEMENTAR UNA RUTA METODOLÓGICA ANUAL DE RENDICIÓN DE CUENTAS PARA SOMETER EL AVANCE DE LA GESTIÓN SEMESTRAL, AL DEBATE, ARGUMENTACIÓN Y APORTE DE ASAMBLEA DEPARTAMENTAL, CIUDADANÍA Y CONSEJO DE PLANEACIÓN DEPARTAMENTAL PARA EL MEJORAMIENTO DE LOS RESUL | N51: =IFERROR(VLOOKUP(B51,Datos_Producto!$E$4:$EE$541,13,FALSE), " ") -> 0.165 | O51: =IFERROR(VLOOKUP(B51,Datos_Producto!$E$4:$EE$541,115,FALSE)," ") -> 0.165 | P51: 1
B52: =HLOOKUP($B$20,Datos_Producto!$I$559:$AI$635,23,FALSE) -> 605 | C52: =IFERROR(VLOOKUP(B52,Datos_Producto!$E$4:$EE$541,6,FALSE)," ") -> IMPLEMENTAR UNA RUTA METODOLÓGICA ANUAL DE RENDICIÓN DE CUENTAS PARA SOMETER EL AVANCE DE LA GESTIÓN ANUAL, INFANCIA Y ADOLESCENCIA EN EL ACCESO A DERECHOS, AL DEBATE, ARGUMENTACIÓN Y APORTE DE CONSEJO DE POLÍTICA SOCIAL, ASAMBLEA, CIUDADANÍA Y MUNICIPIO | N52: =IFERROR(VLOOKUP(B52,Datos_Producto!$E$4:$EE$541,13,FALSE), " ") -> 0.165 | O52: =IFERROR(VLOOKUP(B52,Datos_Producto!$E$4:$EE$541,115,FALSE)," ") -> 0.165 | P52: 1
B53: =HLOOKUP($B$20,Datos_Producto!$I$559:$AI$635,24,FALSE) -> 606 | C53: =IFERROR(VLOOKUP(B53,Datos_Producto!$E$4:$EE$541,6,FALSE)," ") -> REALIZAR 8 PUBLICACIONES EN EL CUATRIENIO PARA DIVULGAR MEJORES PRÁCTICAS DE S Y E. | N53: =IFERROR(VLOOKUP(B53,Datos_Producto!$E$4:$EE$541,13,FALSE), " ") -> 0.165 | O53: =IFERROR(VLOOKUP(B53,Datos_Producto!$E$4:$EE$541,115,FALSE)," ") -> 0.165 | P53: 1
B54: =HLOOKUP($B$20,Datos_Producto!$I$559:$AI$635,25,FALSE) -> 607 | C54: =IFERROR(VLOOKUP(B54,Datos_Producto!$E$4:$EE$541,6,FALSE)," ") -> REALIZAR 4 EVALUACIONES EXTERNAS DE RESULTADOS DE LA GESTIÓN. | N54: =IFERROR(VLOOKUP(B54,Datos_Producto!$E$4:$EE$541,13,FALSE), " ") -> 0.165 | O54: =IFERROR(VLOOKUP(B54,Datos_Producto!$E$4:$EE$541,115,FALSE)," ") -> 0.12375 | P54: 0.75
B55: =HLOOKUP($B$20,Datos_Producto!$I$559:$AI$635,26,FALSE) -> 608 | C55: =IFERROR(VLOOKUP(B55,Datos_Producto!$E$4:$EE$541,6,FALSE)," ") -> REALIZAR POR LO MENOS 8 ENCUESTAS EN EL CUATRIENIO DE PERCEPCIÓN CIUDADANA SOBRE GESTIÓN PÚBLICA | N55: =IFERROR(VLOOKUP(B55,Datos_Producto!$E$4:$EE$541,13,FALSE), " ") -> 0.165 | O55: =IFERROR(VLOOKUP(B55,Datos_Producto!$E$4:$EE$541,115,FALSE)," ") -> 0.165 | P55: 1
B56: =HLOOKUP($B$20,Datos_Producto!$I$559:$AI$635,27,FALSE) -> 0 | C56: =IFERROR(VLOOKUP(B56,Datos_Producto!$E$4:$EE$541,6,FALSE)," ") ->  | N56: =IFERROR(VLOOKUP(B56,Datos_Producto!$E$4:$EE$541,13,FALSE), " ") ->  | O56: =IFERROR(VLOOKUP(B56,Datos_Producto!$E$4:$EE$541,115,FALSE)," ") -> 
B57: =HLOOKUP($B$20,Datos_Producto!$I$559:$AI$635,28,FALSE) -> 0 | C57: =IFERROR(VLOOKUP(B57,Datos_Producto!$E$4:$EE$541,6,FALSE)," ") ->  | N57: =IFERROR(VLOOKUP(B57,Datos_Producto!$E$4:$EE$541,13,FALSE), " ") ->  | O57: =IFERROR(VLOOKUP(B57,Datos_Producto!$E$4:$EE$541,115,FALSE)," ") -> 
B58: =HLOOKUP($B$20,Datos_Producto!$I$559:$AI$635,29,FALSE) -> 0 | C58: =IFERROR(VLOOKUP(B58,Datos_Producto!$E$4:$EE$541,6,FALSE)," ") ->  | N58: =IFERROR(VLOOKUP(B58,Datos_Producto!$E$4:$EE$541,13,FALSE), " ") ->  | O58: =IFERROR(VLOOKUP(B58,Datos_Producto!$E$4:$EE$541,115,FALSE)," ") -> 
B59: =HLOOKUP($B$20,Datos_Producto!$I$559:$AI$635,30,FALSE) -> 0 | C59: =IFERROR(VLOOKUP(B59,Datos_Producto!$E$4:$EE$541,6,FALSE)," ") ->  | N59: =IFERROR(VLOOKUP(B59,Datos_Producto!$E$4:$EE$541,13,FALSE), " ") ->  | O59: =IFERROR(VLOOKUP(B59,Datos_Producto!$E$4:$EE$541,115,FALSE)," ") -> 
B60: =HLOOKUP($B$20,Datos_Producto!$I$559:$AI$635,31,FALSE) -> 0 | C60: =IFERROR(VLOOKUP(B60,Datos_Producto!$E$4:$EE$541,6,FALSE)," ") ->  | N60: =IFERROR(VLOOKUP(B60,Datos_Producto!$E$4:$EE$541,13,FALSE), " ") ->  | O60: =IFERROR(VLOOKUP(B60,Datos_Producto!$E$4:$EE$541,115,FALSE)," ") -> 
B61: =HLOOKUP($B$20,Datos_Producto!$I$559:$AI$635,32,FALSE) -> 0 | C61: =IFERROR(VLOOKUP(B61,Datos_Producto!$E$4:$EE$541,6,FALSE)," ") ->  | N61: =IFERROR(VLOOKUP(B61,Datos_Producto!$E$4:$EE$541,13,FALSE), " ") ->  | O61: =IFERROR(VLOOKUP(B61,Datos_Producto!$E$4:$EE$541,115,FALSE)," ") -> 
B62: =HLOOKUP($B$20,Datos_Producto!$I$559:$AI$635,33,FALSE) -> 0 | C62: =IFERROR(VLOOKUP(B62,Datos_Producto!$E$4:$EE$541,6,FALSE)," ") ->  | N62: =IFERROR(VLOOKUP(B62,Datos_Producto!$E$4:$EE$541,13,FALSE), " ") ->  | O62: =IFERROR(VLOOKUP(B62,Datos_Producto!$E$4:$EE$541,115,FALSE)," ") -> 
B63: =HLOOKUP($B$20,Datos_Producto!$I$559:$AI$635,34,FALSE) -> 0 | C63: =IFERROR(VLOOKUP(B63,Datos_Producto!$E$4:$EE$541,6,FALSE)," ") ->  | N63: =IFERROR(VLOOKUP(B63,Datos_Producto!$E$4:$EE$541,13,FALSE), " ") ->  | O63: =IFERROR(VLOOKUP(B63,Datos_Producto!$E$4:$EE$541,115,FALSE)," ") -> 
B64: =HLOOKUP($B$20,Datos_Producto!$I$559:$AI$635,35,FALSE) -> 0 | C64: =IFERROR(VLOOKUP(B64,Datos_Producto!$E$4:$EE$541,6,FALSE)," ") ->  | N64: =IFERROR(VLOOKUP(B64,Datos_Producto!$E$4:$EE$541,13,FALSE), " ") ->  | O64: =IFERROR(VLOOKUP(B64,Datos_Producto!$E$4:$EE$541,115,FALSE)," ") -> 
B65: =HLOOKUP($B$20,Datos_Producto!$I$559:$AI$635,36,FALSE) -> 0 | C65: =IFERROR(VLOOKUP(B65,Datos_Producto!$E$4:$EE$541,6,FALSE)," ") ->  | N65: =IFERROR(VLOOKUP(B65,Datos_Producto!$E$4:$EE$541,13,FALSE), " ") ->  | O65: =IFERROR(VLOOKUP(B65,Datos_Producto!$E$4:$EE$541,115,FALSE)," ") -> 
B66: =HLOOKUP($B$20,Datos_Producto!$I$559:$AI$635,37,FALSE) -> 0 | C66: =IFERROR(VLOOKUP(B66,Datos_Producto!$E$4:$EE$541,6,FALSE)," ") ->  | N66: =IFERROR(VLOOKUP(B66,Datos_Producto!$E$4:$EE$541,13,FALSE), " ") ->  | O66: =IFERROR(VLOOKUP(B66,Datos_Producto!$E$4:$EE$541,115,FALSE)," ") -> 
B67: =HLOOKUP($B$20,Datos_Producto!$I$559:$AI$635,38,FALSE) -> 0 | C67: =IFERROR(VLOOKUP(B67,Datos_Producto!$E$4:$EE$541,6,FALSE)," ") ->  | N67: =IFERROR(VLOOKUP(B67,Datos_Producto!$E$4:$EE$541,13,FALSE), " ") ->  | O67: =IFERROR(VLOOKUP(B67,Datos_Producto!$E$4:$EE$541,115,FALSE)," ") -> 
B68: =HLOOKUP($B$20,Datos_Producto!$I$559:$AI$635,39,FALSE) -> 0 | C68: =IFERROR(VLOOKUP(B68,Datos_Producto!$E$4:$EE$541,6,FALSE)," ") ->  | N68: =IFERROR(VLOOKUP(B68,Datos_Producto!$E$4:$EE$541,13,FALSE), " ") ->  | O68: =IFERROR(VLOOKUP(B68,Datos_Producto!$E$4:$EE$541,115,FALSE)," ") -> 
B69: =HLOOKUP($B$20,Datos_Producto!$I$559:$AI$635,40,FALSE) -> 0 | C69: =IFERROR(VLOOKUP(B69,Datos_Producto!$E$4:$EE$541,6,FALSE)," ") ->  | N69: =IFERROR(VLOOKUP(B69,Datos_Producto!$E$4:$EE$541,13,FALSE), " ") ->  | O69: =IFERROR(VLOOKUP(B69,Datos_Producto!$E$4:$EE$541,115,FALSE)," ") -> 
B70: =HLOOKUP($B$20,Datos_Producto!$I$559:$AI$635,41,FALSE) -> 0 | C70: =IFERROR(VLOOKUP(B70,Datos_Producto!$E$4:$EE$541,6,FALSE)," ") ->  | N70: =IFERROR(VLOOKUP(B70,Datos_Producto!$E$4:$EE$541,13,FALSE), " ") ->  | O70: =IFERROR(VLOOKUP(B70,Datos_Producto!$E$4:$EE$541,115,FALSE)," ") -> 
B71: =HLOOKUP($B$20,Datos_Producto!$I$559:$AI$635,42,FALSE) -> 0 | C71: =IFERROR(VLOOKUP(B71,Datos_Producto!$E$4:$EE$541,6,FALSE)," ") ->  | N71: =IFERROR(VLOOKUP(B71,Datos_Producto!$E$4:$EE$541,13,FALSE), " ") ->  | O71: =IFERROR(VLOOKUP(B71,Datos_Producto!$E$4:$EE$541,115,FALSE)," ") -> 
B72: =HLOOKUP($B$20,Datos_Producto!$I$559:$AI$635,43,FALSE) -> 0 | C72: =IFERROR(VLOOKUP(B72,Datos_Producto!$E$4:$EE$541,6,FALSE)," ") ->  | N72: =IFERROR(VLOOKUP(B72,Datos_Producto!$E$4:$EE$541,13,FALSE), " ") ->  | O72: =IFERROR(VLOOKUP(B72,Datos_Producto!$E$4:$EE$541,115,FALSE)," ") -> 
B73: =HLOOKUP($B$20,Datos_Producto!$I$559:$AI$635,44,FALSE) -> 0 | C73: =IFERROR(VLOOKUP(B73,Datos_Producto!$E$4:$EE$541,6,FALSE)," ") ->  | N73: =IFERROR(VLOOKUP(B73,Datos_Producto!$E$4:$EE$541,13,FALSE), " ") ->  | O73: =IFERROR(VLOOKUP(B73,Datos_Producto!$E$4:$EE$541,115,FALSE)," ") -> 
B74: =HLOOKUP($B$20,Datos_Producto!$I$559:$AI$635,45,FALSE) -> 0 | C74: =IFERROR(VLOOKUP(B74,Datos_Producto!$E$4:$EE$541,6,FALSE)," ") ->  | N74: =IFERROR(VLOOKUP(B74,Datos_Producto!$E$4:$EE$541,13,FALSE), " ") ->  | O74: =IFERROR(VLOOKUP(B74,Datos_Producto!$E$4:$EE$541,115,FALSE)," ") -> 
B75: =HLOOKUP($B$20,Datos_Producto!$I$559:$AI$635,46,FALSE) -> 0 | C75: =IFERROR(VLOOKUP(B75,Datos_Producto!$E$4:$EE$541,6,FALSE)," ") ->  | N75: =IFERROR(VLOOKUP(B75,Datos_Producto!$E$4:$EE$541,13,FALSE), " ") ->  | O75: =IFERROR(VLOOKUP(B75,Datos_Producto!$E$4:$EE$541,115,FALSE)," ") -> 
B76: =HLOOKUP($B$20,Datos_Producto!$I$559:$AI$635,47,FALSE) -> 0 | C76: =IFERROR(VLOOKUP(B76,Datos_Producto!$E$4:$EE$541,6,FALSE)," ") ->  | N76: =IFERROR(VLOOKUP(B76,Datos_Producto!$E$4:$EE$541,13,FALSE), " ") ->  | O76: =IFERROR(VLOOKUP(B76,Datos_Producto!$E$4:$EE$541,115,FALSE)," ") -> 
B77: =HLOOKUP($B$20,Datos_Producto!$I$559:$AI$635,48,FALSE) -> 0 | C77: =IFERROR(VLOOKUP(B77,Datos_Producto!$E$4:$EE$541,6,FALSE)," ") ->  | N77: =IFERROR(VLOOKUP(B77,Datos_Producto!$E$4:$EE$541,13,FALSE), " ") ->  | O77: =IFERROR(VLOOKUP(B77,Datos_Producto!$E$4:$EE$541,115,FALSE)," ") -> 
B78: =HLOOKUP($B$20,Datos_Producto!$I$559:$AI$635,49,FALSE) -> 0 | C78: =IFERROR(VLOOKUP(B78,Datos_Producto!$E$4:$EE$541,6,FALSE)," ") ->  | N78: =IFERROR(VLOOKUP(B78,Datos_Producto!$E$4:$EE$541,13,FALSE), " ") ->  | O78: =IFERROR(VLOOKUP(B78,Datos_Producto!$E$4:$EE$541,115,FALSE)," ") -> 
B79: =HLOOKUP($B$20,Datos_Producto!$I$559:$AI$635,50,FALSE) -> 0 | C79: =IFERROR(VLOOKUP(B79,Datos_Producto!$E$4:$EE$541,6,FALSE)," ") ->  | N79: =IFERROR(VLOOKUP(B79,Datos_Producto!$E$4:$EE$541,13,FALSE), " ") ->  | O79: =IFERROR(VLOOKUP(B79,Datos_Producto!$E$4:$EE$541,115,FALSE)," ") -> 
B80: =HLOOKUP($B$20,Datos_Producto!$I$559:$AI$635,51,FALSE) -> 0 | C80: =IFERROR(VLOOKUP(B80,Datos_Producto!$E$4:$EE$541,6,FALSE)," ") ->  | N80: =IFERROR(VLOOKUP(B80,Datos_Producto!$E$4:$EE$541,13,FALSE), " ") ->  | O80: =IFERROR(VLOOKUP(B80,Datos_Producto!$E$4:$EE$541,115,FALSE)," ") -> 
B81: =HLOOKUP($B$20,Datos_Producto!$I$559:$AI$635,52,FALSE) -> 0 | C81: =IFERROR(VLOOKUP(B81,Datos_Producto!$E$4:$EE$541,6,FALSE)," ") ->  | N81: =IFERROR(VLOOKUP(B81,Datos_Producto!$E$4:$EE$541,13,FALSE), " ") ->  | O81: =IFERROR(VLOOKUP(B81,Datos_Producto!$E$4:$EE$541,115,FALSE)," ") -> 
B82: =HLOOKUP($B$20,Datos_Producto!$I$559:$AI$635,53,FALSE) -> 0 | C82: =IFERROR(VLOOKUP(B82,Datos_Producto!$E$4:$EE$541,6,FALSE)," ") ->  | N82: =IFERROR(VLOOKUP(B82,Datos_Producto!$E$4:$EE$541,13,FALSE), " ") ->  | O82: =IFERROR(VLOOKUP(B82,Datos_Producto!$E$4:$EE$541,115,FALSE)," ") -> 
B83: =HLOOKUP($B$20,Datos_Producto!$I$559:$AI$635,54,FALSE) -> 0 | C83: =IFERROR(VLOOKUP(B83,Datos_Producto!$E$4:$EE$541,6,FALSE)," ") ->  | N83: =IFERROR(VLOOKUP(B83,Datos_Producto!$E$4:$EE$541,13,FALSE), " ") ->  | O83: =IFERROR(VLOOKUP(B83,Datos_Producto!$E$4:$EE$541,115,FALSE)," ") -> 
B84: =HLOOKUP($B$20,Datos_Producto!$I$559:$AI$635,55,FALSE) -> 0 | C84: =IFERROR(VLOOKUP(B84,Datos_Producto!$E$4:$EE$541,6,FALSE)," ") ->  | N84: =IFERROR(VLOOKUP(B84,Datos_Producto!$E$4:$EE$541,13,FALSE), " ") ->  | O84: =IFERROR(VLOOKUP(B84,Datos_Producto!$E$4:$EE$541,115,FALSE)," ") -> 
B85: =HLOOKUP($B$20,Datos_Producto!$I$559:$AI$635,56,FALSE) -> 0 | C85: =IFERROR(VLOOKUP(B85,Datos_Producto!$E$4:$EE$541,6,FALSE)," ") ->  | N85: =IFERROR(VLOOKUP(B85,Datos_Producto!$E$4:$EE$541,13,FALSE), " ") ->  | O85: =IFERROR(VLOOKUP(B85,Datos_Producto!$E$4:$EE$541,115,FALSE)," ") -> 
B86: =HLOOKUP($B$20,Datos_Producto!$I$559:$AI$635,57,FALSE) -> 0 | C86: =IFERROR(VLOOKUP(B86,Datos_Producto!$E$4:$EE$541,6,FALSE)," ") ->  | N86: =IFERROR(VLOOKUP(B86,Datos_Producto!$E$4:$EE$541,13,FALSE), " ") ->  | O86: =IFERROR(VLOOKUP(B86,Datos_Producto!$E$4:$EE$541,115,FALSE)," ") -> 
B87: =HLOOKUP($B$20,Datos_Producto!$I$559:$AI$635,58,FALSE) -> 0 | C87: =IFERROR(VLOOKUP(B87,Datos_Producto!$E$4:$EE$541,6,FALSE)," ") ->  | N87: =IFERROR(VLOOKUP(B87,Datos_Producto!$E$4:$EE$541,13,FALSE), " ") ->  | O87: =IFERROR(VLOOKUP(B87,Datos_Producto!$E$4:$EE$541,115,FALSE)," ") -> 
B88: =HLOOKUP($B$20,Datos_Producto!$I$559:$AI$635,59,FALSE) -> 0 | C88: =IFERROR(VLOOKUP(B88,Datos_Producto!$E$4:$EE$541,6,FALSE)," ") ->  | N88: =IFERROR(VLOOKUP(B88,Datos_Producto!$E$4:$EE$541,13,FALSE), " ") ->  | O88: =IFERROR(VLOOKUP(B88,Datos_Producto!$E$4:$EE$541,115,FALSE)," ") -> 
B89: =HLOOKUP($B$20,Datos_Producto!$I$559:$AI$635,60,FALSE) -> 0 | C89: =IFERROR(VLOOKUP(B89,Datos_Producto!$E$4:$EE$541,6,FALSE)," ") ->  | N89: =IFERROR(VLOOKUP(B89,Datos_Producto!$E$4:$EE$541,13,FALSE), " ") ->  | O89: =IFERROR(VLOOKUP(B89,Datos_Producto!$E$4:$EE$541,115,FALSE)," ") -> 
B90: =HLOOKUP($B$20,Datos_Producto!$I$559:$AI$635,61,FALSE) -> 0 | C90: =IFERROR(VLOOKUP(B90,Datos_Producto!$E$4:$EE$541,6,FALSE)," ") ->  | N90: =IFERROR(VLOOKUP(B90,Datos_Producto!$E$4:$EE$541,13,FALSE), " ") ->  | O90: =IFERROR(VLOOKUP(B90,Datos_Producto!$E$4:$EE$541,115,FALSE)," ") -> 
B91: =HLOOKUP($B$20,Datos_Producto!$I$559:$AI$635,62,FALSE) -> 0 | C91: =IFERROR(VLOOKUP(B91,Datos_Producto!$E$4:$EE$541,6,FALSE)," ") ->  | N91: =IFERROR(VLOOKUP(B91,Datos_Producto!$E$4:$EE$541,13,FALSE), " ") ->  | O91: =IFERROR(VLOOKUP(B91,Datos_Producto!$E$4:$EE$541,115,FALSE)," ") -> 
B92: =HLOOKUP($B$20,Datos_Producto!$I$559:$AI$635,63,FALSE) -> 0 | C92: =IFERROR(VLOOKUP(B92,Datos_Producto!$E$4:$EE$541,6,FALSE)," ") ->  | N92: =IFERROR(VLOOKUP(B92,Datos_Producto!$E$4:$EE$541,13,FALSE), " ") ->  | O92: =IFERROR(VLOOKUP(B92,Datos_Producto!$E$4:$EE$541,115,FALSE)," ") -> 
B93: =HLOOKUP($B$20,Datos_Producto!$I$559:$AI$635,64,FALSE) -> 0 | C93: =IFERROR(VLOOKUP(B93,Datos_Producto!$E$4:$EE$541,6,FALSE)," ") ->  | N93: =IFERROR(VLOOKUP(B93,Datos_Producto!$E$4:$EE$541,13,FALSE), " ") ->  | O93: =IFERROR(VLOOKUP(B93,Datos_Producto!$E$4:$EE$541,115,FALSE)," ") -> 
B94: =HLOOKUP($B$20,Datos_Producto!$I$559:$AI$635,65,FALSE) -> 0 | C94: =IFERROR(VLOOKUP(B94,Datos_Producto!$E$4:$EE$541,6,FALSE)," ") ->  | N94: =IFERROR(VLOOKUP(B94,Datos_Producto!$E$4:$EE$541,13,FALSE), " ") ->  | O94: =IFERROR(VLOOKUP(B94,Datos_Producto!$E$4:$EE$541,115,FALSE)," ") -> 
B95: =HLOOKUP($B$20,Datos_Producto!$I$559:$AI$635,66,FALSE) -> 0 | C95: =IFERROR(VLOOKUP(B95,Datos_Producto!$E$4:$EE$541,6,FALSE)," ") ->  | N95: =IFERROR(VLOOKUP(B95,Datos_Producto!$E$4:$EE$541,13,FALSE), " ") ->  | O95: =IFERROR(VLOOKUP(B95,Datos_Producto!$E$4:$EE$541,115,FALSE)," ") -> 
B96: =HLOOKUP($B$20,Datos_Producto!$I$559:$AI$635,67,FALSE) -> 0 | C96: =IFERROR(VLOOKUP(B96,Datos_Producto!$E$4:$EE$541,6,FALSE)," ") ->  | N96: =IFERROR(VLOOKUP(B96,Datos_Producto!$E$4:$EE$541,13,FALSE), " ") ->  | O96: =IFERROR(VLOOKUP(B96,Datos_Producto!$E$4:$EE$541,115,FALSE)," ") ->  | P96: =IFERROR((+O96/N96), " ") -> 
B97: =HLOOKUP($B$20,Datos_Producto!$I$559:$AI$635,68,FALSE) -> 0 | C97: =IFERROR(VLOOKUP(B97,Datos_Producto!$E$4:$EE$541,6,FALSE)," ") ->  | N97: =IFERROR(VLOOKUP(B97,Datos_Producto!$E$4:$EE$541,13,FALSE), " ") ->  | O97: =IFERROR(VLOOKUP(B97,Datos_Producto!$E$4:$EE$541,115,FALSE)," ") -> 
B98: =HLOOKUP($B$20,Datos_Producto!$I$559:$AI$635,69,FALSE) -> 0 | C98: =IFERROR(VLOOKUP(B98,Datos_Producto!$E$4:$EE$541,6,FALSE)," ") ->  | N98: =IFERROR(VLOOKUP(B98,Datos_Producto!$E$4:$EE$541,13,FALSE), " ") ->  | O98: =IFERROR(VLOOKUP(B98,Datos_Producto!$E$4:$EE$541,115,FALSE)," ") -> 
B99: =HLOOKUP($B$20,Datos_Producto!$I$559:$AI$635,70,FALSE) -> 0 | C99: =IFERROR(VLOOKUP(B99,Datos_Producto!$E$4:$EE$541,6,FALSE)," ") ->  | N99: =IFERROR(VLOOKUP(B99,Datos_Producto!$E$4:$EE$541,13,FALSE), " ") ->  | O99: =IFERROR(VLOOKUP(B99,Datos_Producto!$E$4:$EE$541,115,FALSE)," ") -> 
B100: =HLOOKUP($B$20,Datos_Producto!$I$559:$AI$635,71,FALSE) -> 0 | C100: =IFERROR(VLOOKUP(B100,Datos_Producto!$E$4:$EE$541,6,FALSE)," ") ->  | N100: =IFERROR(VLOOKUP(B100,Datos_Producto!$E$4:$EE$541,13,FALSE), " ") ->  | O100: =IFERROR(VLOOKUP(B100,Datos_Producto!$E$4:$EE$541,115,FALSE)," ") -> 
B101: =HLOOKUP($B$20,Datos_Producto!$I$559:$AI$635,72,FALSE) -> 0 | C101: =IFERROR(VLOOKUP(B101,Datos_Producto!$E$4:$EE$541,6,FALSE)," ") ->  | N101: =IFERROR(VLOOKUP(B101,Datos_Producto!$E$4:$EE$541,13,FALSE), " ") ->  | O101: =IFERROR(VLOOKUP(B101,Datos_Producto!$E$4:$EE$541,115,FALSE)," ") -> 
B102: =HLOOKUP($B$20,Datos_Producto!$I$559:$AI$635,73,FALSE) -> 0 | C102: =IFERROR(VLOOKUP(B102,Datos_Producto!$E$4:$EE$541,6,FALSE)," ") ->  | N102: =IFERROR(VLOOKUP(B102,Datos_Producto!$E$4:$EE$541,13,FALSE), " ") ->  | O102: =IFERROR(VLOOKUP(B102,Datos_Producto!$E$4:$EE$541,115,FALSE)," ") -> 
B103: =HLOOKUP($B$20,Datos_Producto!$I$559:$AI$635,74,FALSE) -> 0 | C103: =IFERROR(VLOOKUP(B103,Datos_Producto!$E$4:$EE$541,6,FALSE)," ") ->  | N103: =IFERROR(VLOOKUP(B103,Datos_Producto!$E$4:$EE$541,13,FALSE), " ") ->  | O103: =IFERROR(VLOOKUP(B103,Datos_Producto!$E$4:$EE$541,115,FALSE)," ") -> 
B104: =HLOOKUP($B$20,Datos_Producto!$I$559:$AI$635,75,FALSE) -> 0 | C104: =IFERROR(VLOOKUP(B104,Datos_Producto!$E$4:$EE$541,6,FALSE)," ") ->  | N104: =IFERROR(VLOOKUP(B104,Datos_Producto!$E$4:$EE$541,13,FALSE), " ") ->  | O104: =IFERROR(VLOOKUP(B104,Datos_Producto!$E$4:$EE$541,115,FALSE)," ") -> 
B105: =HLOOKUP($B$20,Datos_Producto!$I$559:$AI$635,76,FALSE) -> 0 | C105: =IFERROR(VLOOKUP(B105,Datos_Producto!$E$4:$EE$541,6,FALSE)," ") ->  | N105: =IFERROR(VLOOKUP(B105,Datos_Producto!$E$4:$EE$541,13,FALSE), " ") ->  | O105: =IFERROR(VLOOKUP(B105,Datos_Producto!$E$4:$EE$541,115,FALSE)," ") -> 
B106: =HLOOKUP($B$20,Datos_Producto!$I$559:$AI$635,77,FALSE) -> 0 | C106: =IFERROR(VLOOKUP(B106,Datos_Producto!$E$4:$EE$541,6,FALSE)," ") ->  | N106: =IFERROR(VLOOKUP(B106,Datos_Producto!$E$4:$EE$541,13,FALSE), " ") ->  | O106: =IFERROR(VLOOKUP(B106,Datos_Producto!$E$4:$EE$541,115,FALSE)," ") -> 

Sheet Datos_Prog (hidden)
B2: OBJETIVOS
B5: 1 | C5: 2 | D5: 3 | E5: 4 | F5: 5 | G5: 6 | H5: 7 | I5: 8 | J5: 9 | K5: 10 | L5: 11 | M5: 12 | N5: 13 | O5: 14 | P5: 15 | Q5: 16 | R5: 17 | S5: 18 | T5: 19 | U5: 20 | V5: 21 | W5: 22 | X5: 23 | Y5: 24 | Z5: 25 | AA5: 26 | AB5: 27 | AC5: 28 | AD5: 29 | AE5: 30 | AF5: 31 | AG5: 32 | AH5: 33 | AI5: 34 | AJ5: 35 | AK5: 36 | AL5: 37 | AM5: 38 | AN5: 39 | AO5: 40 | AP5: 41 | AQ5: 42 | AR5: 43 | AS5: 44 | AT5: 45 | AU5: 46 | AV5: 47 | AW5: 48 | AX5: 49 | AY5: 50 | AZ5: 51 | BA5: 52 | BB5: 53 | BC5: 54 | BD5: 55 | BE5: 56 | BF5: 57 | BG5: 58 | BH5: 59 | BI5: 60 | BJ5: 61 | BK5: 62 | BL5: 63 | BM5: 64 | BN5: 65 | BO5: 66 | BP5: 67 | BQ5: 68 | BR5: 69 | BS5: 70 | BT5: 71 | BU5: 72 | BV5: 73 | BW5: 74 | BX5: 75 | BY5: 76 | BZ5: 77 | CA5: 78 | CB5: 79 | CC5: 80 | CD5: 81 | CE5: 82 | CF5: 83 | CG5: 84 | CH5: 85 | CI5: 86 | CJ5: 87 | CK5: 88 | CL5: 89 | CM5: 90 | CN5: 91 | CO5: 92 | CP5: 93 | CQ5: 94 | CR5: 95 | CS5: 96 | CT5: 97 | CU5: 98 | CV5: 99 | CW5: 100 | CX5: 101 | CY5: 102 | CZ5: 103 | DA5: 104 | DB5: 105 | DC5: 106 | DD5: 107 | DE5: 108 | DF5: 109 | DG5: 110 | DH5: 111 | DI5: 112
A6: 1 | B6: OBJETIVO | C6: NOMBRE | D6: OBJETIVO2 | E6: PONDERADOR META PRODUCTO CUATRIENIO (%) | F6: PONDERADOR META PRODUCTO 2012 (%) | G6: AVANCE PONDERADO 2012 | H6: PONDERADOR META PRODUCTO 2013 (%) | I6: AVANCE PONDERADO 2013 | J6: PONDERADOR META PRODUCTO 2014 (%) | K6: AVANCE PONDERADO 2014 | L6: PONDERADOR META PRODUCTO 2015 (%) | M6: AVANCE PONDERADO 2015 | N6: AVANCE PONDERADO DEL CUATRENIO | O6: Inv. 2012 | P6: Inv. 2013 | Q6: Inv. 2014 | R6: Inv. 2015 | S6: Inv. TOTAL | T6: LOGRO1 | U6: LOGRO2 | V6: LOGRO3 | W6: LOGRO4 | X6: LOGRO5
A7: 2 | B7: OBJ_1 | C7: 1-DESARROLLO INTEGRAL DEL SER HUMANO | D7: MEJORAR CONDICIONES Y OPORTUNIDADES DE VIDA, COHESIÓN SOCIO CULTURAL Y EQUIDAD PARA EL DESARROLLO INTEGRAL DEL SER HUMANO Y DE SUS TERRITORIOS. | E7: 49.50452 | F7: 8.357622781 | G7: 7.099184461 | H7: 13.09423756 | I7: 11.78192812 | J7: 14.07163588 | K7: 12.63329135 | L7: 13.98102377 | M7: 10.89106356 | N7: 46.36939361 | O7: 785788.8232 | P7: 753178.1612 | Q7: 862171.6698 | R7: 660652.781 | S7: =+O7+P7+Q7+R7 -> 3061791.435 | T7: SE REDUJO LA TASA DE MORTALIDAD INFANTIL DE NIÑ@S DE 0 A 1 AÑOS POR 1.000 NACIDOS VIVOS, PASANDO DE 10.8 EN EL 2013 A 9.60 EN EL AÑO 2014, LOGRANDO MANTENERSE POR DEBAJO DEL COMPORTAMIENTO NACIONAL (LA MEDIA NACIONAL SE ENCUENTRA EN 11.8). | U7: SE DIMINUYERON LOS CASOS DE HEPATITIS A EN MENORES DE 1 AÑO, DE 121 CASOS QUE SE PRESENTARON EN EL AÑO 2013 A 27 CASOS EN EL AÑO 2014; CON LA ESTRATEGIA DEL PLAN AMPLIADO DE INMUNIZACIÓN (PAI – PLUS) - VACUNACIÓN CONTRA HEPATITIS A Y VARICELA, Y LA AMPLIACIÓN DE DOSIS DE 11.989 EN EL AÑO 2014, 4.410 DOSIS MÁS QUE EN EL 2013 | V7: SE PUSO EN MARCHA EL FUNCIONAMIENTO DEL CENTRO DE INNOVACIÓN EDUCATIVA REGIONAL - CIER- EN EL PALACIO DE SAN FRANCISCO, CON LA FORMACIÓN DE 475 DOCENTES EN EL MARCO DEL PROGRAMA “FORMACIÓN EN USO Y DESARROLLO DE CONTENIDOS EDUCATIVOS DIGITALES”; 9 DOCENTES CERTIFICADOS MASTER TEACHERS. | W7: CUNDINAMARCA OCUPA EL PRIMER LUGAR A NIVEL NACIONAL EN LOS RESULTADOS DE LAS PRUEBAS SABER 11°; LO CUAL PERMITIÓ QUE SE SELECCIONARAN 922 ESTUDIANTES PARA PARTICIPAR EN EL PROGRAMA “10.000 BECAS PARA LA EDUCACIÓN SUPERIOR” DEL NIVEL NACIONAL. | X7: RECONOCIMIENTO DEL MINISTERIO DE SALUD Y PROTECCIÓN SOCIAL COMO UNO DE LOS 10 PRIMEROS DEPARTAMENTOS EN EL CUMPLIMIENTO DE COBERTURA DE VACUNACIÓN ÚTIL EN TODOS LOS BIOLÓGICOS LLEGANDO AL 96% DE ACUERDO AL DANE EN PLAN AMPLIADO DE INMUNIZACIONES - PAI PLUS.
A8: 3 | B8: OBJ_2 | C8: 2-SOSTENIBILIDAD Y RURALIDAD | D8: RESTABLECER LA RELACIÓN ARMÓNICA DEL SER HUMANO CON EL AMBIENTE Y SU ENTORNO. | E8: 16.572 | F8: 1.809593108 | G8: 1.730035478 | H8: 4.430176273 | I8: 4.002973773 | J8: 4.792619447 | K8: 3.7315391 | L8: 5.539611172 | M8: 3.737986817 | N8: 15.6586522 | O8: 23137.93048 | P8: 36381.89518 | Q8: 38730.21508 | R8: 62386.48501 | S8: =+O8+P8+Q8+R8 -> 160636.5257 | T8: SE CONTRIBUYÓ CON LA SOSTENIBILIDAD Y ABASTECIMIENTO DEL RECURSO HÍDRICO A LOS CUNDINAMARQUESES MEDIANTE: A) EL INCREMENTO DE HECTÁREAS DE ECOSISTEMAS ESTRATÉGICOS PARA LA CONSERVACIÓN DE AGUA, LOGRANDO CON ELLO ADQUIRIR EN LO QUE VA CORRIDO DEL CUATRIENIO 6.552 HECTÁREAS DE CONSERVACIÓN. B) IMPLEMENTANDO EL MECANISMO DE PAGO POR SERVICIOS AMBIENTALES COMO ESTRATEGIA DE RECONOCIMIENTO QUE PROMUEVE EN LOS PROPIETARIOS PARTICULARES LA CONSERVACIÓN Y RECUPERACIÓN DE ÁREAS DE IMPORTANCIA ESTRATÉGICA PARA LA PRESERVACIÓN DE LOS RECURSOS HÍDRICOS. C) PROTECCIÓN Y RECUPERACIÓN DE ECOSISTEMAS LENTICOS, CONSIDERADOS ESTRATÉGICOS PARA EL EQUILIBRIO ECOLÓGICO DE LA REGIÓN POR SU CAPACIDAD DE REGULACIÓN HÍDRICA. | U8: INCREMENTO DE LA COBERTURA DE ACUEDUCTO, CONECTANDO 155.339 NUEVOS HABITANTES DEL SECTOR URBANO Y RURAL A ESTE SERVICIO, DE LOS CUALES 54.443 FUERON EN 2014. ADICIONALMENTE, A TRAVÉS DE LA OPTIMIZACIÓN DE LOS SISTEMAS DE ACUEDUCTO, SE LOGRÓ LA REDUCCIÓN DE PÉRDIDAS, MEJORANDO LA CONTINUIDAD Y PRESIÓN EN LA PRESTACIÓN DEL SERVICIO, LO CUAL BENEFICIA A LA COMUNIDAD Y CONTRIBUYE CON EL USO EFICIENTE DEL RECURSO NATURAL. | V8: SE INCREMENTO LA COBERTURA EN ALCANTARILLADO CON 62.646 HABITANTES NUEVOS CON ESTE SERVICIO DE LOS CUALES 29.679 SE ENTREGARON EN 2014. EN CUANTO AL TRATAMIENTO DE AGUAS SERVIDAS SE AVANZÓ EN LOS DISEÑOS Y CONSTRUCCIÓN DE LA INFRAESTRUCTURA NECESARIA PARA EL TRATAMIENTO DE LAS AGUAS RESIDUALES URBANAS Y RURALES, INTEGRANDO RECURSOS DEL DEPARTAMENTO CON LAS CORPORACIONES AUTÓNOMAS REGIONALES (CAR- CORPOGUAVIO). | W8: SE ASUMIÓ LAS COMPETENCIAS ASIGNADAS EN LO REFERENTE A LA ADMINISTRACIÓN DE LOS RECURSOS DEL SISTEMA GENERAL DE PARTICIPACIONES – AGUA POTABLE Y SANEAMIENTO BÁSICO (SGP-APSB) PARA GARANTIZAR LA PRESTACIÓN DE LOS SERVICIOS DE AGUA POTABLE Y SANEAMIENTO BÁSICO DE LOS MUNICIPIOS DESCERTIFICADOS POR LA SUPERINTENDENCIA DE SERVICIOS PÚBLICOS DOMICILIARIOS - SSPD. | X8: APOYO A 55 MUNICIPIOS EN EL PGAT (PLAN SECRETARÍA DE PLANEACIÓN, SEDE ADMINISTRATIVA. CALLE 26 51-53. TORRE CENTRAL PISO 5. BOGOTÁ, D.C. TEL. (1) 749 1652 - 749 1675 -749 1676 WWW.CUNDINAMARCA.GOV.CO GENERAL DE ASISTENCIA TÉCNICA AGROPECUARIA), EL FORTALECIMIENTO A LAS 116 UMATAS Y/O EPSAGROS CON LA DOTACIÓN DE EQUIPOS Y MOTOCICLETAS
A9: 4 | B9: OBJ_3 | C9: 3-COMPETITIVIDAD, INNOVACION, MOVILIDAD Y REGION | D9: SER COMPETITIVOS Y SUSTENTABLES A PARTIR DE POTENCIALIDADES, ARTICULACIÓN REGIONAL, GESTIÓN DEL CONOCIMIENTO, INNOVACIÓN PRODUCTIVA Y SOCIAL | E9: 15.16664 | F9: 2.253562283 | G9: 1.750502063 | H9: 4.444771017 | I9: 3.99000904 | J9: 4.343401967 | K9: 3.32863068 | L9: 4.124904732 | M9: 3.411118536 | N9: 14.56608756 | O9: 199260.1251 | P9: 237108.3674 | Q9: 233381.8821 | R9: 198156.3468 | S9: =+O9+P9+Q9+R9 -> 867906.7214 | T9: SE CONSTITUYÓ LA REGIÓN ADMINISTRATIVA Y DE PLANEACIÓN ESPECIAL – RAPE – ENTRE BOGOTÁ DISTRITO CAPITAL Y LOS DEPARTAMENTOS DE CUNDINAMARCA, BOYACÁ, META Y TOLIMA. | U9: DISEÑO Y CREACIÓN DE LA MARCA “CUNDINAMARCA, EL DORADO LA LEYENDA VIVA” | V9: APOYO EN LA CREACIÓN Y FORTALECIMIENTO EMPRESARIAL DE MÁS DE 300 UNIDADES PRODUCTIVAS Y SOSTENIMIENTO A LAS REDES EMPRESARIALES EXISTENTES | W9: GRACIAS A LA GESTIÓN DEL DEPARTAMENTO LA NACIÓN A TRAVÉS DE LA ANI, ADJUDICÓ DOS PROYECTOS DE CONCESIÓN DE CUARTA GENERACIÓN, DE GRAN IMPORTANCIA PARA EL FORTALECIMIENTO DE LA INFRAESTRUCTURA VIAL DE CUNDINAMARCA Y PARA EL DESARROLLO REGIONAL Y LA ECONOMÍA NACIONAL, VÍA GIRARDOT – CAMBAO – PUERTO BOGOTÁ – HONDA – PUERTO SALGAR, CON UN COSTO DEL ORDEN DE $1.7 BILLONES Y LA PERIMETRAL DE ORIENTE, QUE COMPROMETE LAS VÍAS CÁQUEZA – UBAQUE – CHOACHÍ – LA CALERA - GUASCA, SALITRE – SOPO, CUATRO ESQUINAS – GUATAVITA – SESQUILÉ – LA PLAYA, CON UNA INVERSIÓN DEL ORDEN DE $1.07 BILLONES. | X9: MÁS DE 500 LÍDERES CUNDINAMARQUESES GRADUADOS EN INNOVACIÓN, 22 BECAS OTORGADAS PARA FORMACIÓN DE ALTO NIVEL, TRES CONSEJOS REGIONALES DE CTEI CONFORMADOS, 1400 PARTICIPANTES EN LA SEMANA DE LA CTEI Y 15 PROYECTOS INNOVADORES GESTIONADOS CON RECURSOS DEL SISTEMA GENERAL DE REGALÍAS (SGR) DE LOS CUALES 10 ESTÁN EN EJECUCIÓN SON LA APUESTA DE LA ADMINISTRACIÓN DEPARTAMENTAL POR POSICIONAR LA APROPIACIÓN SOCIAL DEL CONOCIMIENTO EN EL TERRITORIO.
A10: 5 | B10: OBJ_4 | C10: 4-FORTALECIMIENTO INSTITUCIONAL PARA GENERAR VALOR DE LO PUBLICO | D10: GARANTIZAR CON BUEN GOBIERNO Y TRANSPARENCIA, GERENCIA EFECTIVA POR RESULTADOS DEL DESARROLLO, SEGURIDAD, CONVIVENCIA, PARTICIPACIÓN REAL, CORRESPONSABILIDAD DE LA SOCIEDAD CIVIL Y FORTALECIMIENTO DE LA IDENTIDAD CUNDINAMARQUESA. | E10: 18.76164 | F10: 2.659365643 | G10: 2.229836777 | H10: 5.637765706 | I10: 4.463362163 | J10: 5.196185304 | K10: 4.181761217 | L10: 5.268323347 | M10: 3.815783067 | N10: 17.67815348 | O10: 309242.3582 | P10: 346760.9319 | Q10: 365478.1284 | R10: 238432.7278 | S10: =+O10+P10+Q10+R10 -> 1259914.146 | T10: CUNDINAMARCA ES UN TERRITORIO MÁS SEGURO POR LA DISMINUCIÓN SIGNIFICATIVA DEL 26% DE LOS DELITOS. | U10: CUNDINAMARCA FUE CERTIFICADA BAJO LA NORMA INTERNACIONAL ISO 9001:2008 REGISTRO NUMERO SC-CER303297, LA NORMA NACIONAL NTCGP 1000:2009 REGISTRO NÚMERO GP-CER 303299 Y EL SELLO INTERNACIONAL IQNET CO-SC-CER303297. | V10: EL DEPARTAMENTO DE CUNDINAMARCA MANTUVO SU CALIFICACIÓN DE RIESGOS DE LA DEUDA PÚBLICA AA+, GARANTIZANDO LA ESTABILIDAD TRIBUTARIA Y LA SOSTENIBILIDAD FISCAL EN EL LARGO PLAZO. | W10: CUNDINAMARCA SE CONSOLIDA COMO UNA ENTIDAD FINANCIERAMENTE SOSTENIBLE OCUPO EL 1ER PUESTO DE DESEMPEÑO FISCAL SEGÚN RANKING PUBLICADO EN EL 2014 POR PARTE DEL DNP. | X10: “PREMIO INGENIO COLOMBIA 2014” EN LA CATEGORÍA GOBIERNO”, ORGANIZADO POR LA FEDERACIÓN COLOMBIANA DE LA INDUSTRIA DE SOFTWARE Y SERVICIOS ASOCIADOS –FEDESOFT-, POR LA INICIATIVA DE LA HISTORIA CLÍNICA ELECTRÓNICA UNIFICADA (HCEU) RECONOCIDA COMO LA MEJOR INICIATIVA COLOMBIANA EN INNOVACIÓN DE SOFTWARE CON EXCELENTES RESULTADOS Y ALTO IMPACTO.
B11: PDD | C11: PDD | E11: 100.0048 | F11: 15.08014382 | G11: 12.80955878 | H11: 27.60695056 | I11: 24.2382731 | J11: 28.4038426 | K11: 23.87522234 | L11: 28.91386302 | M11: 21.85595198 | N11: 94.27228684 | O11: =SUM(O7:O10) -> 1317429.237 | P11: =SUM(P7:P10) -> 1373429.356 | Q11: =SUM(Q7:Q10) -> 1499761.895 | R11: =SUM(R7:R10) -> 1159628.341 | S11: =+O11+P11+Q11+R11 -> 5350248.829
B17: PROGRAMAS
A18: 21
B22: 1 | C22: 2 | D22: 3 | E22: 4 | F22: 5 | G22: 6 | H22: 7 | I22: 8 | J22: 9 | K22: 10 | L22: 11 | M22: 12 | N22: 13 | O22: 14 | P22: 15 | Q22: 16 | R22: 17 | S22: 18 | T22: 19 | U22: 20 | V22: 21 | W22: 22 | X22: 23 | Y22: 24 | Z22: 25 | AA22: 26 | AB22: 27 | AC22: 28 | AD22: 29 | AE22: 30 | AF22: 31 | AG22: 32 | AH22: 33 | AI22: 34 | AJ22: 35 | AK22: 36 | AL22: 37 | AM22: 38 | AN22: 39 | AO22: 40 | AP22: 41 | AQ22: 42 | AR22: 43 | AS22: 44 | AT22: 45 | AU22: 46 | AV22: 47 | AW22: 48 | AX22: 49 | AY22: 50 | AZ22: 51 | BA22: 52 | BB22: 53
B23: PROGRAMAS | C23: OBJETIVO_1 | D23: META1 | E23: META2 | F23: META3 | G23: META4 | H23: META5 | I23: META6 | J23: META7 | K23: META8 | L23: META9 | M23: META10 | N23: META11 | O23: ENTIDAD LIDER | P23: ENTIDAD 1 | Q23: ENTIDAD 2 | R23: ENTIDAD 3 | S23: ENTIDAD 4 | T23: ENTIDAD 5 | U23: ENTIDAD 6 | V23: ENTIDAD 7 | W23: ENTIDAD 8 | X23: ENTIDAD 9 | Y23: ENTIDAD 10 | Z23: ENTIDAD 11 | AA23: ENTIDAD 12 | AB23: PONDERADOR META DE PRODUCTO CUATRIENIO (%) | AC23: PONDERADOR META DE PRODUCTO 2012 (%) | AD23: AVANCE PONDERADO 2012 | AE23: PONDERADOR META DE PRODUCTO 2013 (%) | AF23: AVANCE PONDERADO 2013 | AG23: PONDERADOR META DE PRODUCTO 2014 (%) | AH23: AVANCE PONDERADO 2014 | AI23: PONDERADOR META DE PRODUCTO 2015 (%) | AJ23: AVANCE PONDERADO 2015 | AK23: AVANCE PONDERADO DEL CUATRENIO | AN23: 1. LOGRO ALCANZADO | AO23: 2. LOGRO ALCANZADO | AP23: 3. LOGRO ALCANZADO | AQ23: 4. LOGRO ALCANZADO | AR23: 5. LOGRO ALCANZADO | AS23: 6. LOGRO ALCANZADO | AT23: 7. LOGRO ALCANZADO | AU23: 8. LOGRO ALCANZADO | AV23: 9. LOGRO ALCANZADO | AW23: 10. LOGRO ALCANZADO | AY23: Inv. 2012 | AZ23: Inv. 2013 | BA23: Inv. 2014 | BB23: Inv. 2015
B24: 1.1. INICIO PAREJO DE LA VIDA | C24: GARANTIZAR A Y LAS NIÑAS Y LOS NIÑOS MENORES DE 6 AÑOS, LAS BASES ESENCIALES DEL DESARROLLO INTEGRAL PARA QUE SE DESEMPEÑEN CON ÉXITO A LO LARGO DE SU VIDA A PARTIR DE CONDICIONES EQUITATIVAS FAMILIARES, SOCIALES, EDUCATIVAS, CIUDADANAS, CULTURALES, DE PROTECCIÓN Y DE SALUD. | D24: 1 | E24: 2 | F24: 3 | G24: 4 | H24: 5 | I24: 6 | J24: 7 | K24: 8 | L24: 9 | M24: 10 | O24: SECRETARIA DE SALUD | P24: INDEPORTES | Q24: SECRETARIA DE DESARROLLO SOCIAL | R24: SECRETARIA DE EDUCACION | S24: SECRETARIA DE GOBIERNO | T24: INSTITUTO DE CULTURA Y TURISMO | AB24: 3.394 | AC24: 0.5620211111 | AD24: 0.4682088506 | AE24: 1.040910347 | AF24: 0.9347992125 | AG24: 0.9181344794 | AH24: 0.6558669794 | AI24: 0.8729340627 | AJ24: 0.5832733127 | AK24: 2.829571835 | AN24: Se mantuvo en 2 casos las muertes por homicidio en niñas y niños entre los 0 y 5 años, en los años 2013 y 2014 . | AO24: Durante el 2014, se disminuyo en 6 casos las muertes por homicidio en niñas y niños entre los 0 y 5 años en relación con el año 2013 donde se presentaron 6 casos | AP24: Durante 2014, se disminuyó la tasa de mortalidad de niñ@s de 0 a 5 años por 1.000 nacidos vivos, pasando de 12.7 a 10.2, lo cual evidencia que Cundinamarca se encuentra por debajo de la media nacional (12.8) | AQ24: Frente a la tasa de desnutrición aguda se observa un aumento, pasando de 5.1% en el año 2013 a 5.3% en el año 2014. | AR24: Se fomentó habilidades y destrezas con actividades lúdicas, deportivas y recreativas a través de la vinculación de 35.523 niñas y niños de o a 5 años durante el año 2014, lo que representa un cubrimiento del del 30.49%, superior al estimado para cada año que corresponde al 15% (17.472). | AS24: Se desarrolló el programa “ALTO AHÍ, PRIMERO YO, Y DIGO NO” para prevenir el abuso sexual infantil en 67 municipios con la participación de 1.616 familias y 2.160 niños y niñas, posicionando al personaje “SUPERGOBIERNITO”. | AT24: Se implementó y certificó el Segundo Banco de Leche Humana en la Empresa Social del Estado - ESE Hospital San Rafael de Facatativá, a través de los cuales se mejoran las condiciones de nutrición de los niñ@s menores de 5 años y la promoción de la lactancia materna. | AU24: Se creó la ruta de atención integral para el Inicio Parejo de la Vida en las Institución prestadora de salud - IPS de 20 municipios priorizados con el apoyo Ministerio de Salud y de Protección Social. | AV24: 134 bibliotecas públicas fueron dotadas con programas y material bibliográfico dirigido a la primera infancia en alianza con el Ministerio de Cultura. | AW24: Se mejoró las condiciones nutricionales cubriendo el 35% de las necesidades calóricas del valor calórico total diario a 6.500 niños y niñas menores de 5 años ya 2.600 madres gestantes a través de la entrega de 100.000 paquetes de complementación nutricional, acompañado de charlas familiares en nutrición y hábitos de vida saludable. | AY24: 5490.931839 | AZ24: 8255.324807 | BA24: 8651.097531 | BB24: 5747.395654
B25: 1.2. ALIANZA POR LA INFANCIA | C25: LOGRAR QUE LAS NIÑAS Y LOS NIÑOS ENTRE 6 Y 11 AÑOS ADQUIERAN Y DESARROLLEN HABILIDADES Y COMPETENCIAS COGNITIVAS, SOCIALES, CULTURALES, DEPORTIVAS Y CIUDADANAS, BAJO AMBIENTES SALUDABLES QUE GARANTICEN AFECTO, DIVERSIÓN, JUEGO, PARTICIPACIÓN, PROTECCIÓN Y RESPETO A LA INTEGRIDAD DE LA VIDA Y LA DIFERENCIA. | D25: 33 | E25: 34 | F25: 35 | G25: 36 | H25: 37 | I25: 38 | J25: 39 | K25: 40 | O25: SECRETARIA DE EDUCACION | P25: INSTITUTO DE CULTURA Y TURISMO | Q25: INDEPORTES | R25: INSTITUTO DE ACCION COMUNAL | S25: SECRETARIA DE DESARROLLO SOCIAL | T25: BENEFICENCIA | U25: SECRETARIA DE GOBIERNO | V25: SECRETARIA DE SALUD | AB25: 5.661 | AC25: 1.167653452 | AD25: 0.9806649609 | AE25: 1.423609076 | AF25: 1.294810369 | AG25: 1.476216694 | AH25: 1.396204408 | AI25: 1.593520778 | AJ25: 1.471105599 | AK25: 5.389366464 | AN25: Durante el 2014, se presentaron 2 casos de muertes de niños y niñas de 6 a 11 años, lo cual evidencia un aumento, partiendo de que en el año 2013 no se presento ningun caso. | AO25: En el año 2014, se presento 1 muerte por homicido en accidentes de tránsito en niñ@s de 6 a 11 años, lo cual implica una reducción del 83.35%, con relación a los 6 casos presentados en el año 2013. | AP25: Durante el año 2014, se alcanzó una cobertura bruta en transición del 90.4%, equivalente a 19.487 niñ@s, lo cual evidencia un aumento progresivo importante en la cobertura durante la presente administración, superando la meta proyectada en el plan de desarrollo. | AQ25: En el año 2014, se mantuvo la cobertura bruta de básica primaria sobre el 100%, alcanzando un 100 %,con lo cual se da cumplimiento a la meta en esta vigencia.(La cobertura bruta se mide con el total de la población estudiantil sobre la población de 5 a 17 años). | AR25: Para el año 2014 la tasa de deserción escolar fue del 2.4, manteníendose la misma tasa del año 2013, lo cual es muy importante por que representa una reducción mayor a la esperada en el cuatrienio. | AS25: Se fomentó en los niñ@s de 6 a 11 años, las habilidades y destrezas a través de la vinculación de 64.727 niñ@s a diferentes actividades deportivas, recreativas y artísticas durante el año 2014, lo que representa un cumplimiento de la meta para esta vigencia del 79%. | AT25: Se adoptó el Plan Decenal de Educación del Departamento de Cundinamarca 2013–2022 “Por un territorio educado, pacífico e innovador”, mediante Ordenanza No 248 de 2014. | AU25: Se certificaron los servicios prestados en Los Centros de Protección de la beneficencia de Cundinamarca en, NTCGP1000, ISO 9001 SC – CER250232 e IQNET por el ICONTEC. | AV25: 90 bibliotecas públicas del Departamento con un acompañamiento de tutores y 30 bibliotecas públicas con acompañamiento de promotores implementaron el material bibliotecario dirigido a los niños y niñas de 6-11 años. | AW25: Se Certificarón de 3 “Escuelas Calidad de Vida”, estas son: Institución Educativa Rural Departamental Andes - Sede Laurel Alto - Municipio de San Bernardo; Institución Educativa Departamental Las Margaritas - Sede Quebrada Honda - Municipio de Cogua; y Institución Educativa Departamental San Juan de Ríoseco. | AY25: 408608.0929 | AZ25: 455392.5227 | BA25: 506421.9064 | BB25: 383430.4661
B26: 1.3. VIVE Y CRECE ADOLESCENCIA | C26: GARANTIZAR EN LOS ADOLESCENTES, COMPETENCIAS ACADÉMICAS, CULTURALES, PRODUCTIVOS, HERRAMIENTAS QUE ESTRUCTUREN SU PROYECTO DE VIDA, PROMOVIENDO EL LIDERAZGO, CONVIVENCIA FAMILIAR Y CIUDADANA, PARTICIPANDO EN GRUPOS DE INTERÉS, COMPROMETIDOS CON LOS VALORES Y PRINCIPIOS, EL CUIDADO DEL MEDIO AMBIENTE, CON RESPETO POR EL GÉNERO Y POR CADA UNO, EN ESPACIOS DIGNOS Y SALUDABLES. | D26: 72 | E26: 73 | F26: 74 | G26: 75 | H26: 76 | I26: 77 | J26: 78 | K26: 79 | O26: SECRETARIA DE EDUCACION | P26: INSTITUTO DE CULTURA Y TURISMO | Q26: INDEPORTES | R26: INSTITUTO DE ACCION COMUNAL | S26: SECRETARIA DE DESARROLLO SOCIAL | T26: SECRETARIA DE GOBIERNO | U26: SECRETARIA DE SALUD | V26: BENEFICENCIA | AB26: 7.22 | AC26: 1.400876966 | AD26: 1.187860913 | AE26: 2.322736975 | AF26: 2.143481975 | AG26: 1.787357419 | AH26: 1.605709114 | AI26: 1.709028641 | AJ26: 1.29392775 | AK26: 6.997623561 | AN26: Se redujo 13% (4 casos) las muertes por homicidios en adolescentes para el año 2014 en relación con los 30 casos reportados para el 2013. | AO26: Quebramos la tendencia de incremento de muertes por accidentes de tránsito en adolescentes pasando de 24 muertes en el año 2013 a 2 muertes en el año 2014. | AP26: Se aumentó la cobertura bruta en educación media vocacional pasando de 79% en el año 2013 a 80% en el año 2014 superando el valor esperado para el cuatrienio. | AQ26: Se vincularon en actividades deportivas, recreativas y culturales a 111.397 adolescentes correspondientes al 97%s, superando la meta programada para el año. | AR26: 33.986 estudiantes se beneficiarón con complemento nutricional y mejoramiento de la calidad del servicio a través de la dotación con menaje para los restaurantes escolares. | AS26: 97.821 estudiantes adolescentes de las Instituciones educativas participaron en los Juegos Intercolegiados – Supérate, logrando en la fase zonal nacional posicionar al departamento en el primer lugar; en la fase final nacional ocupar la séptima posición; y en la fase internacional participar en los “Juegos Suramericanos Escolares” con la participación de 24 adolescentes en las disciplinas de Futbol Sala Femenino, Voleibol Femenino, Ajedrez y Atletismo. | AT26: Se beneficiaron a 45.626 estudiantes que demandaron el servicio de transporte escolar y con subsidio de alojamiento se beneficiaron a 89 estudiantes de 6 municipios. | AU26: Se sensibilizó a 13.024 adolescentes de 61 municipios con acciones de salud sexual y reproductiva, prevención y cesación del consumo de Tabaco, a través de los “Servicios Amigables de Salud para Adolescentes”. | AV26: Se consolidó a nivel del departamento con 3.500 usuarios el Observatorio Pedagógico y las Redes Sociales Educativas con nuevos sitios y temáticas en inglés, ciencias sociales, convivencia, plan decenal y ciencias naturales. | AW26: Se conformaron en 249 Instituciones educativas gobiernos escolares. | AY26: 18621.1938 | AZ26: 20013.82145 | BA26: 28578.11895 | BB26: 20597.46674
B27: 1.4. JOVENES CONSTRUCTORES DE PAZ | C27: GENERAR CAPACIDADES EN LAS Y LOS JÓVENES PARA ESTRUCTURAR SUS PROYECTOS DE VIDA BASADOS EN LA RESPONSABILIDAD, AUTONOMÍA, ESTILOS DE VIDA SALUDABLE, IDENTIDAD ESTRUCTURADA EN VALORES SOCIALES Y LIDERAZGO, LA PARTICIPACIÓN Y CONVIVENCIA CIUDADANA Y CON COMPETENCIAS ACADÉMICAS QUE LE PERMITAN CONTINUAR SU CADENA DE FORMACIÓN EN LA EDUCACIÓN SUPERIOR. | D27: 115 | E27: 116 | F27: 117 | G27: 118 | H27: 119 | O27: SECRETARIA DE DESARROLLO SOCIAL | P27: INDEPORTES | Q27: INSTITUTO DE ACCION COMUNAL | R27: SECRETARIA DE AMBIENTE | S27: SECRETARIA DE EDUCACION | T27: SECRETARIA DE GOBIERNO | U27: SECRETARIA DE SALUD | V27: INSTITUTO DE CULTURA Y TURISMO | AB27: 6.7004 | AC27: 0.9469171182 | AD27: 0.8475219664 | AE27: 1.637712995 | AF27: 1.54465435 | AG27: 2.119118939 | AH27: 1.893342432 | AI27: 1.996650947 | AJ27: 1.515236494 | AK27: 6.314997464 | AN27: Se redujo en 47.7% las muertes por homicidios en jóvenes en el año 2014, pasando de 136 casos en el 2013 a 71 casos en el año 2014, superando la meta establecida para el cuatrienio. | AO27: Se redujo en 57.4% los homicidios por accidentes de tránsito en jóvenes, pasando de 101 casos en el 2013 a 43 casos en el 2014, superando la meta establecida para el cuatrienio. | AP27: Se logró vincular al 3.5% (7.893) de jovenes en actividades deportivas y recreativas durante el año 2014, alcanzando solo el 10% de lo programado para el cuatrienio. | AQ27: Se logró aumentar la presencia de jóvenes constructores de paz en 12 provincias del departamento | AR27: Se implementó la Estrategia de Prevención y Promoción de consumo responsable de alcohol, Pactos por la vida, Saber beber saber Vivir, en los municipios de Madrid, Facatativá, Mosquera, Girardot, Ubate y Pacho. | AS27: Se aumentó la matricula en educación superior 1.545 cupos aumento matrícula en educación superior través de la regionalización de la Educación superior en Cundinamarca. | AT27: Se implementó formación virtual profesional en los CERES, con el apoyo del Politécnico Gran Colombiano, la Fundación del Área Andina, el Instituto Tolimense de Formación Técnica Profesional (ITFIP) y la Universidad Antonio Nariño. | AU27: Se realizó el Encuentro Departamental de Política Pública de Juventud y los Encuentros Provinciales de Juventud, orientados a fortalecer el liderazgo juvenil, socializar el Estatuto de Ciudadanía Juvenil, capacitar en Plataforma de Juventud y en Política Publica de Juventud. | AV27: Red de Comunicación y Movilización Juvenil conformada con jóvenes de emisoras comunitarias, emisoras estudiantiles, programas de t.v. de 9 municipios y 5 provincias así mismo se apoyaron 3 emisoras juveniles de los municipios de Soacha, Girardot y Mosquera. | AW27: 4 iniciativas juveniles participaron en proceso de fortalecimiento y educación ambiental en los predios de reserva hídrica: Granada (Laguna Verde), Choachí (Flupice - Educacion ambiental), Pacho (Wayoque), Zipaquira (Red de Paramo Guerrero), Silvania y Tibacuy (Corjoacun). | AY27: 8974.811383 | AZ27: 5813.765665 | BA27: 32366.83975 | BB27: 6243.336663
B28: 1.5. ADULTAS Y ADULTOS CON EQUIDAD | C28: CONTRIBUIR AL DESARROLLO INTEGRAL DE LAS Y LOS ADULTOS EN SU DIVERSIDAD, A PARTIR DE LA ESTABILIDAD ECONÓMICA, BIENESTAR, SALUD INTEGRAL, CALIDAD DE VIDA, ARRAIGO Y PERTENENCIA AL LUGAR QUE HABITAN. | D28: 158 | E28: 159 | F28: 160 | O28: SECRETARIA DE DESARROLLO SOCIAL | P28: INDEPORTES | Q28: INSTITUTO DE ACCION COMUNAL | R28: INSTITUTO DE CULTURA Y TURISMO | S28: SECRETARIA DE EDUCACION | T28: SECRETARIA DE GOBIERNO | U28: SECRETARIA DE SALUD | AB28: 2.832 | AC28: 0.4649391795 | AD28: 0.4388508174 | AE28: 0.8986477695 | AF28: 0.8763977695 | AG28: 0.7452720041 | AH28: 0.6734820674 | AI28: 0.7231410468 | AJ28: 0.5585078866 | AK28: 2.655391556 | AN28: Se redujo en 49% (295 casos) las muertes por homicidios en adultos pasando de 599 muertes en el año 2013 a 304 muertes en el año 2014, superando la meta establecida para el cuatrienio. | AO28: Se redujo en 80.17% (182 casos) las muertes por accidentes de tránsito, pasando de 227 muertes en el año 2013 a 45 muertes en el año 2014, superando la meta establecida para el cuatrienio. | AP28: Se logró vincular al 12.20%(16.917) de adultosy adultas en actividades deportivas y recreativas durante el año 2014, disminuyendo la participación en comparación con el año 2013. | AQ28: Se implementó en el 100% de los municipios priorizados el Plan Municipal de Cáncer con la atención de 39.977 casos. | AR28: Se implementó la estrategia de entornos laborales saludables, identificando 715 unidades de trabajo informal donde se sensibilizaron a 239 adultos trabajadores previniendo accidentes, enfermedades y mortalidad de orígen laboral a través de la inspección de riesgos y entrega de plan de mejoramiento. | AS28: Se benefició a 1.095 adultos con el modelo de educación para adultos CRECER | AT28: Se atendieron a 30.809 adultos a través del programa de Hábitos y Estilos de Vida Saludable. | AU28: Se realizó el “Tercer Encuentro Departamental de Bibliotecas Públicas de Cundinamarca” con la participación de 115 bibliotecólogos con el objeto de fortalecer procesos. | AV28: 2.257 dignatarias y dignatarios comunales formados en temas de reforma estatutaria, legislación comunal, control, inspección y vigilancia. | AW28: Se realizaron los zonales y Departamental de músicas tradicionales campesinas, urbanas y populares de Cundinamarca con la participación de 1.935 músicos. | AY28: 3826.736355 | AZ28: 1791.093729 | BA28: 3268.942758 | BB28: 2499.432625
B29: 1.6. VEJEZ DIVINO TESORO | C29: CONTRIBUIR AL BIENESTAR Y DIGNIDAD HUMANA DE LOS Y LAS ADULTAS MAYORES EN SU DIVERSIDAD, CON PARTICIPACIÓN ACTIVA, COHESIÓN SOCIAL, RECONOCIMIENTO DE SUS HABILIDADES, DESTREZAS Y ATENCIÓN A SUS NECESIDADES BÁSICAS. | D29: 177 | E29: 178 | F29: 179 | O29: SECRETARIA DE DESARROLLO SOCIAL | P29: INSTITUTO DE CULTURA Y TURISMO | Q29: INDEPORTES | R29: BENEFICENCIA | S29: SECRETARIA DE SALUD | AB29: 3.29064 | AC29: 0.4850404937 | AD29: 0.4437904937 | AE29: 0.6546550985 | AF29: 0.6448284318 | AG29: 1.001616018 | AH29: 0.9323468417 | AI29: 1.14932839 | AJ29: 1.050770354 | AK29: 3.109637845 | AN29: Se redujo en un 56.9% las muertes por homicidios en adultos mayores, pasando de 86 muertes en el año 2013 a 37 muertes en el año 2014, logrando superar la meta del cuatrienio. | AO29: Se redujo en 80% las muertes por accidentes de tránsito en adultos mayores, pasando de 86 muertes en el 2013 a 17 muertes en el 2014 | AP29: Se logró vincular a 9.26% (13.715) de adultos mayores en actividades recreativas,deportivas y artisticas superando la meta establecida para el cuatrienio. | AQ29: 400 adultos mayores con seguridad alimentaria a través de la entrega de una ración caliente "Desayuno, Almuerzo o Comida" en 16 municipios | AR29: Se crearón los Bancos de Saberes de los municipios de Cota – Girardot – Tibirita – Soacha - San Juan de Rioseco – Ubaque como Modelos piloto a replicar. | AS29: 62.100 adultos mayores de 47 municipios participan en la implementación del Programa Integral de Hábitos y Estilos de Vida Saludable priorizando temas como la actividad física, nutricional, salud mental, salud laboral, salud sexual y salud bucal. | AT29: Levantamiento de línea de base de necesidades y caracterización de centros día, centros de protección y grupos de adultos mayores en el marco de la formulación de la Política de Envejecimiento y Vejez en 10 provincias. | AU29: Programa Hábitos y Estilos de Vida Saludables posicionado a nivel nacional entre los diez (10) mejores del país por la organización estratégica y técnica. | AV29: Se logró la vacunación de 13.223 adultos mayores contra neumococo y 55.414 adultos mayores contra influenza en los 116 municipios. | AW29: Nueva fuente de financiación para los programas de prevención y promoción de los Centro de Bienestar del Anciano y Centros de Vida a través de la “Estampilla para el Bienestar del Adulto Mayor” - Ordenanza 216 de 2014 autorizada por la Ley 687 de 2.001, modificada por la Ley 1276 de 2.009. | AY29: 109176.6397 | AZ29: 47060.76169 | BA29: 48086.12113 | BB29: 41149.76942
B30: 1.7. VICTIMAS DEL CONFLICTO ARMADO CON GARANTIA DE DERECHOS | C30: RESTITUIR EN EL MARCO DE LA EQUIDAD Y LA INCLUSIÓN SOCIAL, LOS DERECHOS Y MEJORAR LA CALIDAD DE VIDA DE LAS VÍCTIMAS DEL CONFLICTO ARMADO CON LIDERAZGO Y ARTICULACIÓN INSTITUCIONAL EN EL ÁMBITO NACIONAL, DEPARTAMENTAL Y MUNICIPAL. | D30: 269 | O30: SECRETARIA DE GOBIERNO | P30: INSTITUTO DE VIVIENDA | Q30: SECRETARIA DE AGRICULTURA | R30: SECRETARIA DE COMPETITIVIDAD | S30: SECRETARIA DE DESARROLLO SOCIAL | T30: SECRETARIA DE EDUCACION | U30: INSTITUTO DE ACCION COMUNAL | V30: SECRETARIA DE SALUD | W30: BENEFICENCIA | X30: EMPRESAS PUBLICAS DE CUNDINAMARCA | Y30: ICCU | Z30: INDEPORTES | AA30: INSTITUTO DE CULTURA Y TURISMO | AB30: 9.526 | AC30: 1.606221493 | AD30: 1.382615993 | AE30: 2.413275488 | AF30: 1.97839987 | AG30: 2.814644185 | AH30: 2.716212727 | AI30: 2.691858833 | AJ30: 2.021635861 | AK30: 8.921532833 | AN30: Se implementó rutas departamentales para atención integral y accesibilidad a proyectos dirigido a Víctimas del Conflicto Armado, en funcionamiento. | AO30: Herramienta VIVANTO de la Unidad para la Atención y Reparación Integral a las Víctimas en funcionamiento con el objeto de lograr la identificación de personas víctimas del conflicto armado – VCA en el marco de la Ley 1448/11. | AP30: Se inició la construcción del “Centro Regional de Atención y Reparación Integral a las Víctimas del Conflicto Armado” en el Municipio de Soacha, como resultado del esfuerzo del nivel nacional y territorial. | AQ30: Se implementó la ruta PAPSIVIC para la atención psicosocial de la población VCA a nivel individual y comunitario en 7 municipios. | AR30: 304 familias VCA se beneficiaron con la implementación de proyectos agropecuarios para la generación de ingresos (sistemas productivos establecidos, bovinos doble propósito, avicultura, porcicultura, apicultura, piscicultura, cultivo de piña entre otros), en los Municipios de Beltrán, Cabrera, Medina, El Peñón, Guayabal, Medina, Pulí, Sibaté, Silvania y Tibacuy. | AS30: 79 mujeres VCA y 12 familias de la población Kuankuama (Nilo) se beneficiaron con proyectos agropecuarios de los municipios de Beltrán, Tibacuy y San juan de Rioseco. | AT30: Garantizando las medidas en asistencia en salud, el departamento gestionó el acceso a la prestación de servicios de salud al 100% de la población pobre no asegurada que demande las atenciones en salud y afiliada al régimen subsidiado en lo no cubierto por subsidios a la demanda. | AU30: Se logró el fomento a la actividad física con inclusión de 1.682 adultos y personas mayores VCA en los municipios caracterizados como pos-conflicto del Departamento, mediante el desarrollo del programa “Hábitos y Estilos de Vida Saludable”, contribuyendo a la disminución de los índices de enfermedades crónicas degenerativas, con actividades determinadas por las preferencias y necesidades de los distintos ciclos de vida. | AV30: Se fomentó la recreación, con la inclusión de 4.468 personas víctimas del conflicto armado VCA en los municipios caracterizados como pos-conflicto del Departamento, como un proceso de acción participativa y dinámica, que facilita entender la vida como una vivencia de disfrute, creación y libertad, en el pleno desarrollo de las potencialidades del ser humano. | AW30: Se creó de Link en la página web de la Secretaria de Gobierno con el objeto abrir procesos de socialización y participación en la implementación de la Política Pública de Personas VCA. | AY30: 3653.244164 | AZ30: 5559.046721 | BA30: 9274.811538 | BB30: 5918.146027
B31: 1.8. FAMILIAS FORJADORAS DE SOCIEDAD | C31: CONTRIBUIR A UNA VIDA MÁS DIGNA E INCLUYENTE DE LAS FAMILIAS CON MEJORES CONDICIONES DE HABITABILIDAD, SUPERACIÓN DE LA POBREZA Y LA POBREZA EXTREMA, ACCESO A MEJORES SERVICIOS Y ESTADOS DE SALUD, CONSOLIDAR LA UNIDAD FAMILIAR, LA INCLUSIÓN Y LA ATENCIÓN PREFERENCIAL, Y DIFERENCIAL A GRUPOS ÉTNICOS, LGBTI Y POBLACIÓN EN SITUACIÓN ESPECIAL PSE ENTRE ELLOS REINTEGRADOS. | D31: 199 | E31: 200 | F31: 201 | G31: 202 | H31: 203 | O31: SECRETARIA DE DESARROLLO SOCIAL | P31: INSTITUTO DE CULTURA Y TURISMO | Q31: INDEPORTES | R31: INSTITUTO DE VIVIENDA | S31: BENEFICENCIA | T31: SECRETARIA DE EDUCACION | U31: SECRETARIA DE GOBIERNO | V31: SECRETARIA DE SALUD | AB31: 7.561 | AC31: 1.036848452 | AD31: 0.8584529781 | AE31: 1.977734065 | AF31: 1.753491353 | AG31: 2.517000818 | AH31: 2.235534304 | AI31: 2.029416665 | AJ31: 1.599544227 | AK31: 7.282633954 | AN31: Se vincularon 15.000 familias en actividades a través de la articulación intersectorialdurante el año 2014. | AO31: 7.270 familias de red unidos promovidas a través de acciones conjuntas de las entidades del departamento dirigidas al cumplimiento de los logros de la Estrategia UNIDOS del ANSPE. | AP31: 593 familias de Red Unidos cambian la condición de habitabilidad a través del mejoramiento de pisos y techos de viviendas rurales. | AQ31: Se mejoraron pisos y techos a 693 viviendas rurales de 11 municipios. | AR31: 4.970 familias de Red Unidos se atendieron en la dimensión de habitabilidad con la entrega de filtros purificadores con el apoyo de la Federación Departamental de Cafeteros. | AS31: 16 Bancos de Alimentos en funcionamiento operados por la Fundación Niebla y con acompañamiento en temas nutrición, perdón y reconciliación, dinámica familiar, salud sexual y reproductiva. | AT31: Atención a personas en situación de discapacidad a través del Centro Integral de Rehabilitación – CIREC con brigadas de rehabilitación, consulta especialidad de ortopedia, trabajo social, fisioterapia y servicios técnicos de prótesis y órtesis, suministro de ayudas técnicas de movilidad externa, prótesis y órtesis, entrega de 185 ayudas técnicas de alta gama. | AU31: Se entregaron 699 ayudas técnicos entre sillas de ruedas, caminadores, muletas y bastones de orientación y audífonos las cuales mejoraran la movilidad de las personas en situación de discapacidad, gracias a la donación de Iglesia de Jesucristo de los Ultimos Días, el Centro Integral de Rehabilitación CIREC y la Corporación OIR. | AV31: Se implemento en 10 municipios la estrategia de rehabilitación basada en comunidad como una herramienta de empoderamiento de las personas en condición de discapacidad, desarrollando jornadas de salud, jornadas deportivas, alternativas de generación de ingresos y formación de agentes de cambio como proceso de formación de formadores en derechos y deberes. | AW31: Se asignaron recursos para 4 proyectos de vivienda urbana que beneficiaran 481 familias y 2 proyectos para construcción de obras de urbanismo que beneficiaran a 345 familias. | AY31: 199311.9343 | AZ31: 179239.675 | BA31: 202927.3909 | BB31: 172815.7077
B32: 1.9. MUJERES LIDERES Y LIBRES DE VIOLENCIA | C32: CONTRIBUIR AL PLENO DESARROLLO DE POTENCIALIDADES, CAPACIDADES Y EMPODERAMIENTO DE LAS MUJERES EN CUNDINAMARCA, PARA EL GOCE EFECTIVO DE SUS DERECHOS, EN UNA RELACIÓN DE GÉNERO EQUITATIVA, JUSTA E INCLUYENTE. | D32: 247 | O32: SECRETARIA DE DESARROLLO SOCIAL | P32: INSTITUTO DE ACCION COMUNAL | AB32: 1.494 | AC32: 0.3992068966 | AD32: 0.2928103448 | AE32: 0.3436724138 | AF32: 0.3215624138 | AG32: 0.3353491379 | AH32: 0.2205091379 | AI32: 0.4157715517 | AJ32: 0.3951465517 | AK32: 1.494 | AN32: 59 Organizaciones de mujeres con emprendimientos participaron en la Feria de las colonias. | AO32: 1.066 mujeres formadas para el trabajo en manualidades y belleza. | AP32: 5.517 mujeres de 2.970 organizaciones participaron en encuentros, eventos y jornadas de capacitación, que promueven el liderazgo y la participación | AQ32: Se crearon 63 Consejos Consultivos de Mujer en el marco de la política de mujer. | AR32: Se institucionalizó la campaña “Ruta de Atención a niñas y mujeres Víctimas de violencia” en los 116 municipios mediante Acuerdo de Voluntades en el marco de cumplimiento de la Ley 1257 de 2008. No Violencia contra la Mujer. | AS32: Se conformó y puso en marcha del Comité Departamental de Seguimiento a la Ley 1257 .No violencia contra la mujer. | AY32: 719.0205 | AZ32: 691.8619 | BA32: 912.904744 | BB32: 265.92
B33: 1.10. EQUIPAMIENTO SOCIAL PARA EL DESARROLLO INTEGRAL | C33: DOTAR DE MÁS Y MEJOR INFRAESTRUCTURA FÍSICA DEL SECTOR SOCIAL PARA EL SERVICIO Y DISFRUTE DE LA POBLACIÓN CUNDINAMARQUESA, ACORDE A LAS EXIGENCIAS DE LOS USUARIOS Y LOS ESTÁNDARES DE CALIDAD. | D33: 257 | O33: ICCU | P33: INSTITUTO DE CULTURA Y TURISMO | AB33: 1.82548 | AC33: 0.287897619 | AD33: 0.1984071429 | AE33: 0.3812833333 | AF33: 0.289502381 | AG33: 0.3569261905 | AH33: 0.3040833333 | AI33: 0.7993728571 | AJ33: 0.4019155238 | AK33: 1.374638095 | AN33: Se construyeron 1.921 m2 de baterías de baños nuevas en instituciones educativas. | AO33: Se realizó mantenimiento a 2.700 m2 de aulas y baterías de baños de las instituciones educativas. | AP33: Se construyeron 9.077 m2 entre aulas nuevas, baterías de baños y restaurantes escolares en las instituciones educativas. | AQ33: Se intervinieron los centros de salud y hospitales con el objeto de optimizar la atención primaria o básica para atender las necesidades de la comunidad. | AR33: Se apoyaron 6 proyectos para la conservación y restauración del patrimonio cultural en Girardot, Tocaima, Gachancipá, Nocaima El Peñon, La Mesa. | AS33: Se realizó el Plan Especial de Manejo y Protección de la Plaza de Mercado de Girardot. | AY33: 31059.46244 | AZ33: 34919.33421 | BA33: 30958.34758 | BB33: 27903.28613
B34: 2.1. TERRITORIO SOPORTE PARA EL DESARROLLO | C34: ESTRUCTURAR Y CONSOLIDAR BAJO CRITERIOS DE EQUIDAD TERRITORIAL Y SOSTENIBILIDAD, UNA CUNDINAMARCA FUNCIONAL, ARTICULADA E INTEGRADA REGIONALMENTE. | D34: 327 | O34: SECRETARIA DE PLANEACION | P34: SECRETARIA DE INTEGRACION REGIONAL | AB34: 1.16 | AC34: 0.1353 | AD34: 0.1353 | AE34: 0.1547 | AF34: 0.1547 | AG34: 0.263 | AH34: 0.155 | AI34: 0.607 | AJ34: 0.343 | AK34: 0.838 | AN34: Se viene trabajando en la construcción y concertación de la visión del Departamento de Cundinamarca y en la agenda estratégica de planificación territorial e integración regional de largo plazo conjuntamente con el Centro de Naciones Unidas para el Desarrollo Regional – UNCRD, producto que se espera obtener en 2015 | AO34: se apoyó la elaboración de los estudios de amenaza, vulnerabilidad y riesgo por movimientos en masa, inundación, avenida torrencial e incendios forestales de 38 municipios | AP34: Cundinamarca dispone de la información cartográfica básica con una cobertura del 80% del total del Departamento a escala 1:10.000 | AQ34: se obtuvieron los productos de los procesos de revisión y ajuste de los esquemas de ordenamiento territorial con una visión regional de 8 municipios (7 provincia de Oriente + Utica) Así mismo, se financió y está en proceso de ejecución el de 11 municipios más. | AY34: 0 | AZ34: 2947.9405 | BA34: 3966.72104 | BB34: 3579.024488
B35: 2.2. BIENES Y SERVICIOS AMBIENTALES PATRIMONIO DE CUNDINAMARCA | C35: PROTEGER LA OFERTA DE BIENES Y SERVICIOS AMBIENTALES EN EL DEPARTAMENTO, RECONOCIENDO LAS CARACTERÍSTICAS DE LAS ECO – REGIONES, COMO MECANISMO DE SOSTENIBILIDAD DEL TERRITORIO MEDIANTE LA RECUPERACIÓN Y CONSERVACIÓN INTEGRAL DE LOS ECOSISTEMAS Y UNA GESTIÓN AMBIENTAL INTEGRAL EFECTIVA PARA ASEGURAR UNA CUNDINAMARCA NEUTRA CON CALIDAD DE VIDA DE LA POBLACIÓN. | D35: 334 | E35: 335 | O35: SECRETARIA DE AMBIENTE | AB35: 2.315 | AC35: 0.258675 | AD35: 0.2464875 | AE35: 0.7181956897 | AF35: 0.6450756897 | AG35: 0.7571206897 | AH35: 0.5889456897 | AI35: 0.5810086207 | AJ35: 0.4737586207 | AK35: 2.315 | AN35: Se ha posicionado la estrategia “Cundinamarca Neutra”, como una estrategia que busca concientizar e interiorizar en los cundinamarqueses la necesidad de emprender acciones de cálculo, reducción y compensación de la huella de carbono para mitigar efectos del cambio climático. | AO35: Protección de la oferta de bienes y servicios a través de estrategias de conservación del recurso hídrico representadas en las eco regiones mediante el incremento de hectáreas de ecosistemas estratégicos para la conservación del recurso garantizando el abastecimiento de agua potable a 2.500 familias cundinamarquesas, lo que representa el mejoramiento de la calidad de vida de aproximadamente 12.500 cundinamarqueses. | AP35: Contribuimos con la sostenibilidad y abastecimiento del recurso hídrico a los cundinamarqueses, logrando garantizar la preservación de la oferta ambiental de 33.552 hectáreas de predios de interés hídrico de cuyas fuentes se abastecen los acueductos regionales, municipales y veredales. | AQ35: Durante 2014, se adquirieron 2.092 hectáreas, agregando así en el cuatrienio 6,552 hectáreas en 31 municipios (Arbeláez, San Bernardo, Medina, Villapinzón, Une, Choachí, Gachalá, Pacho, Pasca, Venecia, Guatavita, Cabrera, Silvania, Caparrapí, Ubalá, Granada, Manta, Supatá, Tibacuy, Yacopí, Chaguaní, Junín, Chipaque, Sasaima, Bojacá, Yacopí, Tibacuy, Albán, Villagómez, Caparrapí y Guachetá). | AR35: Cundinamarca, se convirtió en el primer Departamento en implementar el mecanismo de Pago por servicios ambientales para promover en los propietarios particulares la conservación y recuperación de áreas de importancia estratégica para la preservación de los recursos hídricos, en el marco del Decreto 0953 de 2013. | AS35: Apoyo a los procesos de descontaminación en el área rural, mediante la construcción de unidades sanitarias y pozos sépticos para el manejo de aguas residuales. | AV35: Se avanzó en la protección y recuperación de ecosistemas lenticos en el departamento, los cuales por su capacidad de regulación hídrica se consideran estratégicos para el equilibrio ecológico de la región y determinantes en la capacidad de adaptación del territorio para enfrentar los impactos producidos por el fenómeno del cambio climático. | AY35: 8210.722648 | AZ35: 13226.3565 | BA35: 8634.50596 | BB35: 21738.30126
B36: 2.3. AGUA POTABLE Y SANEAMIENTO BASICO PARA LA SALUD DE LOS CUNDINAMARQUESES | C36: INCREMENTAR LA CALIDAD, CONTINUIDAD Y COBERTURA DE AGUA POTABLE Y SANEAMIENTO BÁSICO EN ZONAS URBANAS, CENTROS POBLADOS Y ZONAS RURALES, GARANTIZANDO CON PREFERENCIA EL ACCESO A LA POBLACIÓN EN CONDICIONES DE POBREZA Y VULNERABILIDAD. | D36: 347 | E36: 348 | O36: EMPRESAS PUBLICAS DE CUNDINAMARCA | P36: SECRETARIA DE AMBIENTE | AB36: 2.74 | AC36: 0.07606060606 | AD36: 0.05333333333 | AE36: 0.6009529167 | AF36: 0.5597029167 | AG36: 0.7728639045 | AH36: 0.4980169254 | AI36: 1.290122573 | AJ36: 0.6925483736 | AK36: 2.313991953 | AN36: 3.720 habitantes Víctimas del Conflicto Armado – VCA de los municipios de Facatativá, Topaipí, Madrid, Silvania y Viotá con suministro de agua potable durante el periodo 2014. | AO36: Incremento de cobertura en Acueducto de 54.443 nuevos habitantes del sector urbano y rural logrando superar la meta proyectada durante el periodo 2014, en 4.443 habitantes adicionales a los proyectados en 67 municipios. | AP36: Se Incrementó la cobertura en Alcantarillado a 29.679 nuevos habitantes del sector urbano en 11 municipios, Guayabetal, San Juan de Rioseco, Beltrán, Subachoque, Yacopí, Tocancipá y Pulí, La Calera, Madrid, Nimaima, Soacha, | AQ36: Beneficiar a 40.593 personas de las zonas rurales del Departamento con el servicio de agua potable. | AR36: aumentó la capacidad de almacenamiento de agua del municipio de Facatativá, a través de la terminación y puesta en marcha del Embalse Mancilla, beneficiando a una población de 142.320 habitantes con una inversión para este periodo de $2.166 millones. | AS36: Se mejoró la calidad de vida a más de 9.540 habitantes del área rural del departamento a través de la construcción de 1.908 unidades sanitarias, aportando así mismo mejoras a las condiciones ambientales en materia de aguas residuales de las cuencas hidrográficas en donde se encuentran asentados los pobladores beneficiados, por un valor de $12.380 millones. | AT36: En el marco del programa “Agua, Vida y Saber”, beneficiar 24.150 personas con el servicio de agua potable a través de la construcción de 54 Plantas de Tratamiento de Agua Potable en las escuelas rurales del Departamento en 45 municipios con los mayores índices de morbilidad y mortalidad infantil, de las provincias de Almeidas, Alto y Bajo Magdalena, Gualivá, Medina, Oriente, Rionegro, Sumapáz y Magdalena centro | AU36: con recursos de cooperación internacional gestionados con el Banco de Desarrollo de América Latina de la CAF se estructuró el banco de proyectos de agua potable y saneamiento básico por cerca de $1.317 millones, | AV36: En lo concerniente con las Plantas de Tratamiento de Agua Potable (PTAP), por un valor de $ 8.168 millones se adelanta la construcción de seis en La Peña, La Vega, Madrid, Pandi, San Juan de Rioseco y Subachoque en beneficio de 48.135 habitantes y, en lo concerniente a las Plantas de Tratamiento de Aguas Residuales (PTAR), se construyen en La Peña y La Vega proyectos que beneficiarán a 6.208 habitantes, por un valor de $2.590 millones. | AY36: 7501.40718 | AZ36: 6813.431934 | BA36: 10163.02338 | BB36: 15972.16653
B37: 2.4. DESARROLLO COMPETITIVO DEL SECTOR AGROPECUARIO | C37: IMPULSAR EL POTENCIAL PRODUCTIVO DEL TERRITORIO A TRAVÉS DE LA IDENTIFICACIÓN Y APROVECHAMIENTO EFECTIVO DEL SUELO, SU RIQUEZA, CON MAYOR CAPACIDAD ASOCIATIVA, DE TRANSFORMACIÓN Y DE COMERCIALIZACIÓN ORGANIZADA. | D37: 359 | E37: 360 | O37: SECRETARIA DE AGRICULTURA | AB37: 2.734 | AC37: 0.62975 | AD37: 0.62975 | AE37: 0.7345 | AF37: 0.6123425 | AG37: 0.70975 | AH37: 0.6124637992 | AI37: 0.66 | AJ37: 0.5766816 | AK37: 2.734 | AN37: Se ha avanzado con 5458 hectáreas renovadas en los sistemas de caucho, caña panelera, frutales, hortalizas, cacao, café y renovación de praderas (2.230 has en 2012 y 3228 en 2013), lo cual representa un 41.3% de lo propuesto para el cuatrienio, a la fecha aún no se tiene agregadas las cifras de 2014, las cuales se obtendrán en el primer trimestre de 2015, por lo cual no es posible establecer aun el aumento en la hectáreas cultivadas | AO37: se ha incrementado un 15.85% las toneladas anuales de la producción de alimentos, lo cual muestra un cumplimiento muy superior al trazado en esta meta, no obstante, a la fecha no se encuentra aun consolidados los datos de 2014, cuya fuente de información son las estadísticas agropecuarias de Cundinamarca. | AP37: Se impulsó el potencial productivo de las siete cadenas productivas priorizadas con ampliación y sostenimiento de áreas a través del fomento y programas de fertilización | AQ37: Se promovió el financiamiento agropecuario a través de los programas de Incentivo a la Capitalización Rural – ICR, con 838 entregados en el 2014, con garantías complementarias y subsidio a la taza, lo que permite a nuestros productores mejorar las condiciones de producción y comercialización de productos. | AR37: Así mimo, financiamiento agropecuario con gestión de recursos del Sistema General de Regalías SGR, por valor de $4.277.100.000 para fortalecimiento de cadenas (frutales, cacao y caucho), en capacitación, establecimiento de nuevas hectáreas, seguimiento y buenas prácticas agrícolas. | AS37: Dotación de 19 bancos de maquinaria del sector lácteo, papa y panela, entrega de maquinaria y equipos en los diferentes sectores agropecuarios. | AT37: Implementación de sistemas silvopastoriles y mejoramiento de praderas en 800 fincas de Municipios de sabana de Bogotá y valle de Ubaté. Estrategias de producción sostenible del eslabón primario de la cadena cárnica, caracterización sistemas productivos, Capacitación en Buenas Practicas Ganaderas - BPG, establecimiento de aislamientos, plantación de árboles, renovación de praderas. | AU37: En el sistema Porcícola se capacitaron 823 productores en temas de Buenas prácticas Porcícola, Inseminación artificial, asociatividad, montaje de 37 biodigestores y entrega de siete 7 neveras para almacenamiento y entrega de material Divulgativo. | AV37: Se reglamentó el Fondo de Emprendimiento Departamental para los 116 municipios, el cual busca poner a disposición de los emprendedores, empresarios, productores de las Regiones, personas naturales y jurídicas, recursos de capital semilla para el desarrollo de planes de negocio o planes de inversión. Así mismo, se llevó a cabo la implementación, dotación de maquinaria y equipo para proyectos productivos a 387 unidades productivas de los diferentes municipios de Departamento. | AW37: Avance en la instalación y puesta en marcha de un proyecto piloto a nivel nacional de agro industrialización de la papa en el municipio de Villapinzón proyecto que terminara su ejecución en el primer semestre del 2015. | AY37: 1886.750485 | AZ37: 2705.330699 | BA37: 3139.978802 | BB37: 3451.008648
B38: 2.5. DESARROLLO RURAL INTEGRAL | C38: MEJORAR LAS CONDICIONES ECONÓMICAS, SOCIALES, FÍSICAS Y ORGANIZACIONALES DE LA POBLACIÓN RURAL, CON ACCESO A FACTORES PRODUCTIVOS Y SEGURIDAD ALIMENTARIA Y NUTRICIONAL | D38: 375 | O38: SECRETARIA DE AGRICULTURA | AB38: 2.15 | AC38: 0.3043099647 | AD38: 0.3043099647 | AE38: 0.6117169312 | AF38: 0.5119169312 | AG38: 0.6433419312 | AH38: 0.5237347884 | AI38: 0.5906311728 | AJ38: 0.3167810406 | AK38: 2.15 | AN38: Contribuimos al mejoramiento de las condiciones nutricionales de la población rural con el fomento de la producción y disponibilidad de alimentos suficientes y permanentes de 1965 familias con establecimiento de parcelas agropecuarias para producir alimentos de autoconsumo y el montaje de 14 Hectáreas de Quinua | AO38: Montaje de cuatro granjas piloto demostrativas como estrategia para mejorar la seguridad alimentaria con producción limpia y sostenible, aumentando los ingresos de las familias. | AP38: Formalización y fortalecimiento de 10 asociaciones de mujeres en elaboración proyectos, actualización tributaria, registro ante cámara y comercio. | AQ38: Gestión de recursos por valor de $ 3.285.526.500 para apoyo de 10 alianzas productivas (sistemas productivos de frutales, leche y papa criolla). | AR38: 333,42 hectáreas adecuadas beneficiando a 398 familias, optimizando el manejo del recurso hídrico para el establecimiento y mejoramiento de los sistemas productivos | AS38: Apoyo al establecimiento de 90 proyectos productivos aprobados mediante convocatoria de acceso a tierras. | AT38: Fortalecimiento de las 116 UMATAS / EPSAS del departamento a través de dotación de maquinaria y equipos fortaleciendo programas de extensión | AY38: 83 | AZ38: 590.91558 | BA38: 679.57974 | BB38: 3285.064849
B39: 2.6. GESTION INTEGRAL DE RESIDUOS SOLIDOS | C39: IMPLEMENTAR ESTRATEGIAS DE GESTIÓN INTEGRAL DE RESIDUOS SÓLIDOS EN MUNICIPIOS DEL DEPARTAMENTO, PROMOVIENDO ALTERNATIVAS VIABLES DE MANEJO AMBIENTAL QUE PERMITAN EL MEJORAMIENTO DE LA CALIDAD DE VIDA DE LOS CUNDINAMARQUESES. | D39: 388 | O39: SECRETARIA DE AMBIENTE | AB39: 1.253 | AC39: 0.02225 | AD39: 0.02225 | AE39: 0.394673913 | AF39: 0.349173913 | AG39: 0.2573717391 | AH39: 0.2243717401 | AI39: 0.5787043478 | AJ39: 0.5089717391 | AK39: 1.158392392 | AN39: El número de toneladas diarias dispuestas en el relleno sanitario Nuevo Mondoñedo obedece a la disposición de un promedio de 79 municipios del departamento que disponen técnicamente sus residuos en este escenario. La tendencia, a pesar de los esfuerzos del departamento por promover la minimización, se ve altamente afectada por el aumento poblacional en los municipios de borde, condición que limita la pertinencia del indicador y no refleja el impacto real de las estrategias adoptadas a través de las metas de producto. | AO39: Apoyo al ajuste de los planes de gestión integral de residuos sólidos PGIRS de los municipios de Fusagasugá, Chocontá y Villapinzón, con la nueva metodología expedida por los Ministerios de Ambiente y de Vivienda, con recursos de la vigencia 2014. | AP39: Mediante la implementación de programas de capacitación en el uso técnicas y tecnologías de transformación de residuos sólidos y actividades de Educación y concientización para la separación en la fuente de Residuos sólidos a cerca de 54 municipios, se busca reducir los volúmenes de residuos que se disponen en los rellenos sanitarios, así como la reducción de los Gases Efecto invernadero. | AQ39: Se promovió la aplicación adecuada de la Política Nacional para el Manejo de Residuos Sólidos, mediante la expedición de la Ordenanza 0232 de 2014, por la cual se adoptan los lineamientos de política departamental de residuos sólidos para Cundinamarca y la creación mediante Decreto de la mesa Departamental de residuos Sólidos. | AR39: Como estrategia importante de manejo integral de residuos sólidos, se están implementando dos (2) proyectos de aprovechamiento regional de residuos sólidos en las provincias de Rionegro y Ubate, así como proyectos municipales de aprovechamiento en cerca de 18 municipios de las provincias de Oriente y Magdalena Centro. | AS39: Se garantizó en 2014, la disposición final adecuada de cerca de 440.000 toneladas de residuos sólidos urbanos en el relleno sanitario Nuevo Mondoñedo, pertenecientes a cerca de 79 municipios del Departamento. | AT39: beneficiaron 31.115 habitantes de los municipios de Cáqueza, Subachoque, El Colegio, Quebradanegra, Yacopí, La Palma y Sasaima, con la entrega de 7 vehículos compactadores, por un valor de $ 1.789 millones de pesos, los cuales permitirán mejorar la recolección, transporte y manejo de los residuos sólidos, mitigando la contaminación ambiental por lixiviados y la dispersión de residuos durante el transporte hasta el sitio de disposición final, junto con la disminución de gastos de combustible y mantenimiento, entre otros. Reduciendo la disposición de los desechos en sitios clandestinos y optimizando así el servicio. | AY39: 4106.050166 | AZ39: 8910.919968 | BA39: 10479.40616 | BB39: 13145.28834
B40: 2.7. GESTION DEL RIESGO Y ADAPTACION AL CAMBIO Y VARIABILIDAD CLIMATICA | C40: FORTALECER LA CAPACIDAD DE GESTIÓN DEL RIESGO CON LA IMPLEMENTACIÓN DE LOS PROCESOS DE CONOCIMIENTO, REDUCCIÓN Y SU MANEJO; AUMENTAR LA CAPACIDAD DE RESPUESTA DE LA POBLACIÓN Y DEL TERRITORIO FRENTE A LA OCURRENCIA DE FENÓMENOS NATURALES Y ANTRÓPICOS Y DE ADAPTACIÓN, MITIGACIÓN FRENTE AL CAMBIO Y VARIABILIDAD CLIMÁTICA. | D40: 397 | E40: 398 | O40: SECRETARIA DE GOBIERNO | P40: SECRETARIA DE INTEGRACION REGIONAL | Q40: SECRETARIA DE SALUD | R40: SECRETARIA DE AGRICULTURA | S40: UAEPRAE | AB40: 2.15 | AC40: 0.2418189655 | AD40: 0.2418189655 | AE40: 0.6103653941 | AF40: 0.5979903941 | AG40: 0.6676711823 | AH40: 0.5987918719 | AI40: 0.6301444581 | AJ40: 0.4335311576 | AK40: 2.132125001 | AN40: Se ha cumplido con esta meta por cuanto la totalidad de municipios de 10 de las 15 provincias del departamento han cumplido con los instrumentos de planificación establecidos en la ley 1523 de 2012, mediante la elaboración del plan municipal de gestión del riesgo, documento en el cual se plasman los procesos de conocimiento, reducción y manejo de desastres, identificando los principales escenarios de riesgo de cada municipio y planteando alternativas y proyectos para su adecuado manejo. | AO40: Cundinamarca se ha destacado por la implementación de diversas acciones en cada uno de los procesos, en busca de aumentar la capacidad de respuesta de la población y del territorio frente a la ocurrencia de fenómenos naturales y antrópicos y de adaptación, mitigación frente al cambio y variabilidad climática, al punto que se ha hecho merecedor de reconocimientos | AP40: Recuperación de redes de comunicaciones en las 15 provincias con puntos focales de comunicaciones bajo la red VHF (alta frecuencia). | AQ40: Implementación de la plataforma tecnológica con Numero Único Sistema de Emergencias (NUSE - 123) en coordinación con las Fuerzas Militares y la Policía Nacional. Con una cobertura mayor al 70% del departamento lo cual permite, ampliar sus canales de comunicación para que los ciudadanos cuenten con los medios que les permita tener contacto con los sistemas de emergencias y manejo de riesgo, dando inicio así a la consolidación de un sistema integrado de información para brindar acceso a funcionarios y ciudadanía en general, a información conforme a un protocolo de acceso regulado. | AR40: Adquisición por parte del Departamento, de 18 camionetas doble tracción de doble cabina, dotadas con equipos contra incendio de ultra presión, luces y alarmas de emergencia, capacidad de carga de 100 galones de agua y 10 galones de espuma con carretel de 60 metros de rápida acción para ataque de incendios y atención de emergencias. | AS40: Se fortaleció la capacidad de la Red Pública Hospitalaria Departamental para responder a las emergencias con la adquisición de 44 ambulancias de Transporte Básico, para aumentar la capacidad de respuesta en transporte terrestre de la red pública hospitalaria del departamento. | AT40: Durante el año 2014 se atendieron 90 emergencias por desabastecimiento de agua o interrupción de los sistemas de acueducto y alcantarillado, con las cuales se beneficiaron los municipios | AY40: 1350 | AZ40: 1187 | BA40: 1667 | BB40: 1215.630892
B41: 2.8. CUNDINAMARCA VERDE: CALIDAD DE VIDA | C41: INCORPORAR EL SECTOR FORESTAL AL DESARROLLO SOCIOECONÓMICO DEL DEPARTAMENTO A TRAVÉS DEL FOMENTO DEL ESTABLECIMIENTO DE PLANTACIONES FORESTALES CON FINES COMERCIALES FORTALECIENDO EL PRIMER ESLABÓN DE LA CADENA FORESTAL PRODUCTIVA DE LA REGIÓN BOGOTÁ - CUNDINAMARCA. | D41: 411 | O41: SECRETARIA DE AMBIENTE | AB41: 2.07 | AC41: 0.1414285714 | AD41: 0.09678571429 | AE41: 0.6050714286 | AF41: 0.5720714286 | AG41: 0.7215 | AH41: 0.5302142857 | AI41: 0.602 | AJ41: 0.3927142857 | AK41: 2.017142857 | AN41: En 2014 el área forestal comercial del departamento, aumento en 1.022 hectáreas establecidas principalmente en la zona occidente (eco regiones Magdalena y Centro Andina) beneficiando a 564 familias con el establecimiento de sistemas forestales y agroforestales con especies maderables y 850 familias con la instauración de árboles frutales diversificando las unidades agrícolas | AO41: Establecimiento de 1.352,5 hectáreas bajo sistemas productivos forestales, agroforestales y silvopastoriles con 497.450 árboles de especies maderables y frutales; bajo un enfoque ecosistémicos, aprovechando los múltiples beneficios que genera la siembra de un árbol en un espacio; brindando recuperación de la dimensión natural del territorio y a la vez diversificando la unidad agropecuaria de las familias cundinamarquesas | AP41: Establecimiento de 92,1 hectáreas en zonas de interés para la conservación del recurso hídrico con la especie de guadua con el fin de proteger las áreas de recarga hídrica que abastecen acueductos veredales importantes para los municipios del departamento; además de zonas procesos de perdida de cuerpos de agua. | AQ41: Instalación y puesta en marcha del centro de propagación vegetal ubicado en el municipio de Caparrapí; su operación permitirá la producción de 100.000 plántulas anuales. Sumado a los centros de propagación ubicados en los municipios de Nocaima y Sibaté, con estos 3 viveros tiene la capacidad de producir 240.000 plántulas anuales; cada uno especializado en la producción de plantas en su gran mayoría nativas que se adaptan a los pisos térmicos del departamento. | AR41: Diversificación de productos de la unidad agrícola beneficiando a más de 850 familias en 17 municipios con la siembra de 30.000 árboles frutales de dos variedades de aguacate. | AS41: Aumento en los servicios ambientales de zonas donde se restableció la cobertura boscosa, 134 hectáreas para la recuperación de zonas de interés de los municipios del departamento enmarcadas en zonas de importancia ambiental y ecológica | AY41: 2920.622076 | AZ41: 2869.96745 | BA41: 1928.908007 | BB41: 1000.659945
B42: 3.1. CUNDINAMARCA COMPETITIVA, EMPRENDEDORA Y EMPRESARIAL | C42: HACER DE CUNDINAMARCA UN TERRITORIO COMPETITIVO, CON ESPECIALIZACIÓN Y TRANSFORMACIÓN PRODUCTIVA A PARTIR DE LA PROMOCIÓN Y APOYO A LA CULTURA EMPRENDEDORA, EL DESARROLLO EMPRESARIAL Y EL FORTALECIMIENTO DE LAS DEMÁS CONDICIONES Y FACTORES ESTRUCTURALES QUE CONSOLIDEN EL CRECIMIENTO ECONÓMICO CON IGUALDAD DE OPORTUNIDADES | D42: 422 | O42: SECRETARIA DE COMPETITIVIDAD | AB42: 2.325 | AC42: 0.6301428571 | AD42: 0.4286028571 | AE42: 0.624997619 | AF42: 0.5669390476 | AG42: 0.5904619048 | AH42: 0.4570733333 | AI42: 0.479397619 | AJ42: 0.469497619 | AK42: 2.190448571 | AN42: Los Centros Regionales de Emprendimiento y Asistencia Empresarial (Cundinamarca CREA), están en funcionamiento al servicio del Departamento para convertirse en una herramienta que ayuda a la población cundinamarquesa a consolidar el negocio (empresa, microempresa, famiempresa, o unidad productiva) en cada una de las regiones. Cumpliendo con el cronograma establecido en la vigencia 2014, se mantuvieron en funcionamiento los CREA de ZIPAQUIRA, PACHO, UBATE, y entraron en funcionamiento CAQUEZA, FACATATIVA, MADRID y SAN JUAN DE RIO SECO y se esperan dos (2) más para cumplir con el proyecto financiado con recursos de regalías. | AO42: Se ha apoyado y promovido el financiamiento agropecuario a través de los programas de ICR (incentivo a la capitalización Rural) logrando la entrega de 838 en el 2014, Garantías complementarias y subsidio a la taza, lo que permite a nuestros productores mejorar las condiciones de producción comercialización de productos. | AP42: se implementaron y mantuvieron Tres (3) Observatorios, dos de alcance departamental y uno de cobertura subregional (Tequendama y Alto Magdalena), con lo cual se facilita información relevante para la toma de decisiones y formulación de política pública. La estructuración de una Alianza Estratégica para formar parte de la Red Nacional de Observatorios de Mercado de Trabajo - RED ORMET - y la firma del Acuerdo de Voluntades para la puesta en marcha del ORMET Cundinamarca. Se cuenta con una fuerte institucionalidad cooperante que vincula al Ministerio del trabajo, PNUD, Academia, delegados de sector público/privado, Sindicatos y Cámaras de Comercio. | AQ42: Se llevó a cabo la implementación, dotación de maquinaria y equipo para proyectos productivos a 387 unidades productivas de los diferentes municipios de Departamento. Igualmente, se priorizo la dotación de maquinaria, elementos y equipo a 22 unidades productivas Victimas del Conflicto Armado y se ha mejorado la calidad de vida en 15 municipios del departamento mediante la generación de ingresos de la población. | AR42: Se reglamentó el Fondo de Emprendimiento Departamental para los 116 municipios, el cual busca poner a disposición de los emprendedores, empresarios, productores de las Regiones, personas naturales y jurídicas, recursos de capital semilla para el desarrollo de planes de negocio o planes de inversión. | AY42: 43.35524 | AZ42: 522.177266 | BA42: 534.799659 | BB42: 841.741426
B43: 3.2. CUNDINAMARCA DINAMICA ATRACTIVA E INTERNACIONAL | C43: POSICIONAR A CUNDINAMARCA A NIVEL NACIONAL E INTERNACIONAL A PARTIR DE UN TERRITORIO ATRACTIVO POR SU DINÁMICA CULTURAL EMPRENDEDORA, PRODUCTIVA Y COMERCIAL | D43: 434 | O43: SECRETARIA DE COMPETITIVIDAD | AB43: 1.245 | AC43: 0.2847777778 | AD43: 0.2171277778 | AE43: 0.3708055556 | AF43: 0.3048055556 | AG43: 0.2905833333 | AH43: 0.2135777778 | AI43: 0.2988333333 | AJ43: 0.2988333333 | AK43: 1.245 | AN43: el Departamento realizó una alianza estratégica con el Bureau de Bogotá, teniendo en cuenta que este tiene socios y/o afiliados estratégicos como la Cámara de Comercio de Bogotá, Alcaldía Mayor de Bogotá, PROEXPORT y más de 170 afiliados entre restaurantes, cadenas hoteleras, aerolíneas, agencias de viajes, organizadores profesionales de eventos y agencias BTL, entre otros actores, lo cual permite que este sea un espacio de promoción que conlleve al fortalecimiento del Turismo como desarrollo económico del Departamento. | AO43: en el 2014 logró que doce (12) Cundinamarqueses se beneficiaran de becas-cursos especializados en China, Corea del Sur, España, Japón, Tailandia y Uruguay. Así mismo, se gestionaron hermanamientos con otros países como: Ecuador “Provincia de Pichincha” y Costa Rica a efecto de concretar mecanismos de cooperación recíproca. | AP43: se realizaron Intercambios académicos en áreas como: proceso de exportación a EEUU, caracterización de la demanda de productos al Estado de Florida (Miami); en MEXICO visita al Eco-parque de LEON GUANAJUATO que propone “la transformación limpia y ambientalmente responsable de las pieles” y en Italia la capacitación en “introducción al mercado artesanal italiano“ e igualmente un curso introductorio al idioma italiano. | AQ43: Finalmente, con el fortalecimiento de la Cooperación sur-sur y descentralizada mediante el intercambio de conocimiento técnico entre Seis (6) Alcaldes del Comité Red Departamental de Cooperación autoridades de los gobiernos locales del Estado de México. | AY43: 54647.13516 | AZ43: 56072.27191 | BA43: 48080.36007 | BB43: 29654.39064
B44: 3.3. MINERIA Y ENERGIA RESPONSABLE PARA CUNDINAMARCA | C44: DESARROLLAR INTEGRALMENTE EL SECTOR MINERO Y LOS SERVICIOS DE GAS Y ENERGÍA EN EL DEPARTAMENTO. | D44: 440 | E44: 441 | F44: 442 | O44: SECRETARIA DE MINAS | AB44: 0.995 | AC44: 0.112375 | AD44: 0.0605 | AE44: 0.241375 | AF44: 0.241375 | AG44: 0.275 | AH44: 0.275 | AI44: 0.36625 | AJ44: 0.265 | AK44: 0.9112625 | AN44: Se avanza importantemente en el número de familias beneficiadas con electrificación, a la fecha están recibidas a satisfacción 197, no obstante, en el proceso de ejecución se avanzara ampliamente, con lo cual se vislumbra la superación de la meta propuesta. | AO44: Se ha beneficiado 29.248 usuarios de 30 municipios con el servicio de gas natural domiciliario, a los cuales se les redujo el costo mensual del combustible en un 30%., No obstante, está en ejecución con lo cual se superará los 52.000 usuarios al finalizar el periodo 2015. | AP44: 454 mineros con buenas prácticas de seguridad, normatividad, gestión ambiental social responsable y sostenibilidad del negocio minero, formados en Universidad Nueva Granada y Javeriana, Sena y CAR. Con los procesos de capacitación e implementación de las Unidades Básicas de Atención Minera –UBAM, así como, el acompañamiento a los mineros del departamento, se ha logrado contribuir a reducir la informalidad en el sector | AY44: 2489.624479 | AZ44: 3669.408043 | BA44: 3818.455356 | BB44: 5814.53319
B45: 3.4. INFRAESTRUCTURA Y SERVICIOS PARA LA COMPETITIVIDAD Y LA MOVILIDAD | C45: CONTRIBUIR A LA COMPETITIVIDAD DEL DEPARTAMENTO CON LA CONECTIVIDAD DEL TERRITORIO, MODERNIZACIÓN DE LA MALLA VIAL, SISTEMAS DE TRANSPORTE, MOVILIDAD SEGURA, ORGANIZADA, AMABLE, INCLUYENTE, ASÍ COMO DE LA INFRAESTRUCTURA LOGÍSTICA COMPLEMENTARIA. | D45: 449 | E45: 450 | O45: ICCU | P45: SECRETARIA DE MOVILIDAD | AB45: 4.37664 | AC45: 0.6900551099 | AD45: 0.5410598894 | AE45: 1.156699252 | AF45: 1.056995847 | AG45: 1.164740063 | AH45: 0.7016779037 | AI45: 1.365145575 | AJ45: 1.175923994 | AK45: 4.280626486 | AN45: se propuso mejorar el 50% de toda la estructura vial que tiene Cundinamarca. Con múltiples esfuerzos de gestión, se considera que para el 2014 se lleva un avance acumulado de un 43% de la red vial departamental en óptimas condiciones de transitabilidad. | AO45: Gracias a la Gestión del Departamento la Nación a través de la ANI, adjudicó dos proyectos de concesión de Cuarta Generación, de gran importancia para el fortalecimiento de la infraestructura vial de Cundinamarca y para el desarrollo regional y la economía nacional. Los proyectos corresponden a la vía Girardot – Cambao – Puerto Bogotá – Honda – Puerto Salgar, con un costo del orden de $1.7 Billones y la Perimetral de Oriente, que compromete las vías Cáqueza – Ubaque – Choachí – La Calera - Guasca, Salitre – Sopo, Cuatro Esquinas – Guatavita – Sesquilé – La Playa, con una inversión del orden de $1.07 Billones. | AP45: Proyecto de Banco de Maquinaria Con inversión de $ 41.091 millones, el Gobierno Departamental ha adquirido hasta el momento un total de 196 máquinas las que han beneficiado a 110 municipios. | AQ45: Construcción de Puentes Interdepartamentales. El departamento financió totalmente la construcción de dos puentes Interdepartamentales y de larga espera, uno de ellos es el Puente Guatimbol, sobre el río Sumapáz, cuyas especificaciones técnicas corresponden a 51 metros de luz; que conecta a los municipios de Venecia, (Cundinamarca) con Icononzo (Tolima) cuya inversión ascendió a $725 millones. construcción del Puente Interdepartamental La Playa, ubicado en la vía Ubalá-La Playa-Chivor (Boyacá) con una inversión de $700 millones. | AR45: Se realizó la consultoría para el estudio de prefactibilidad priorizando los caminos reales de la provincia del Tequendama, Bojacá, Zipacón y Tocaima; como primer insumo para la recuperación y adecuación de estos. Con la rehabilitación de los caminos históricos se aportara al mejoramiento de la movilidad de peatones, turistas, deportistas y ciclistas. | AS45: Se fortaleció el Punto de Información Turística (PIT’s) del municipio de Sopo y se implementaron 3 PIT’s en los municipios de Nocaima, La Vega y Nimaima, con esto se aporta a los turistas y nativos y así entregar información de primera mano relacionada con el municipio, la provincia y el Departamento de tal manera que se pueda ubicar centros artesanales, parques temáticos, centros comerciales y diferentes atractivos turísticos con los que cuenta el municipio; lo cual ha conllevado a posicionar a Cundinamarca como destino turístico y cultural. | AT45: Fueron señalizados 218.34 km en vías urbanas, rurales y departamentales así: a) 162,82 km en vías Municipales. b) 47,52 km en vías Departamentales, c) Señalización y demarcación de 8 KM en zonas escolares. | AU45: Habilitación, funcionamiento, mantenimiento y operación de los corredores férreos y sus anexidades a cargo del Departamento de Cundinamarca. A partir de convenio de cooperación suscrito con INVIAS, en virtud del cual se hizo entrega al Departamento de algunos corredores férreos, se han realizado las siguientes acciones: 1º. Rehabilitación de 50 Km del corredor férreo Facatativá – La Esperanza. 2º. Limpieza y cerramiento del corredor férreo Soacha calle 22 hasta el salto del Tequendama vereda el salto km 5+763 sector paso urbano del municipio de Soacha - Cundinamarca 3º. Firma en el mes de diciembre para la rehabilitación y mantenimiento corredor férreo tramo Girardot – Pubenza. | AY45: 134439.4756 | AZ45: 163335.5509 | BA45: 164733.2643 | BB45: 146585.8181
B46: 3.5. CUNDINAMARCA INNOVADORA CON CIENCIA Y TECNOLOGIA | C46: APROPIAR Y GENERAR INNOVACIÓN SOCIAL, PRODUCTIVA, RURAL E INSTITUCIONAL A PARTIR DE LA CIENCIA, TECNOLOGÍA Y LOS CONOCIMIENTOS TRADICIONALES, PARA MEJORAR LA EQUIDAD Y COMPETITIVIDAD DE CUNDINAMARCA | D46: 468 | O46: SECRETARIA DE CIENCIA Y TECNOLOGÍA | P46: SECRETARIA DE SALUD | AB46: 3.74 | AC46: 0.26175 | AD46: 0.22875 | AE46: 1.318916667 | AF46: 1.153916667 | AG46: 1.190166667 | AH46: 1.013166666 | AI46: 0.9691666667 | AJ46: 0.7049166667 | AK46: 3.560999999 | AN46: Cundinamarca mejoro la posición del indice departamental de competitividad al puesto 7 en 2014, lo cual se soporta principalmente en el aumento en la inversión en ACTI, como resultado del acceso a los recursos provenientes del Sistema General de Regalías - SGR, Fondo de Ciencia Tecnología e Innovación, lo cual ha permitido que Cundinamarca a la fecha, cuente con 15 proyectos aprobados por este fondo, cuya inversión asciende a: $ 113.737.183.886 | AO46: El proyecto CeiBa para formación de alto nivel cerró 2014 con tres convocatorias en las que fueron becados 22 estudiantes (2 doctorados, 16 maestrías, 4 jóvenes talento) que podrán cursar estudios de posgrado en universidades como la Javeriana, Nacional, Los Andes y el Rosario. | AP46: más de 500 líderes cundinamarqueses se graduaron del diplomado Liderazgo en Innovación para la Transformación de Cundinamarca, que busca fomentar la creatividad, innovación y formulación de proyectos para ejercer liderazgo a través de la gestión del conocimiento en sus comunidades, y los 105 estudiantes más destacados del curso participaron en una salida de campo a la ciudad de Medellín donde conocieron de cerca los procesos y desarrollo de la “ciudad más innovadora del mundo”, según el concurso City of theYear. | AQ46: se conformaron tres Consejos Regionales de CTeI en las Provincias de Sabana Occidente y Centro, los cuales incluyen los corredores viales de la Autopista Norte, la Calle 80 y la Calle 13 con el objetivo de aumentar la investigación y fomentar el liderazgo de los municipios en materia de CTeI | AR46: Semana de la Innovación y Competitividad durante octubre, noviembre y parte de diciembre de 2014 Cundinamarca fue escenario de actividades de interacción, inspiración y co-creación de conocimientos enfocados en despertar el interés científico, tecnológico e innovador de los cundinamarqueses. Esta versión de la Semana de la Ciencia tuvo como principal temática la marca Cundinamarca El Dorado - La Leyenda Viva y el valor agregado que puede aportar la innovación y la tecnología | AS46: En las provincias de Gualivá, Guavio, Sabana Occidente, Tequendama y Rionegro se aplicaron metodologías que contribuyeron a la divulgación de conocimiento e interacción de actores (estudiantes universitarios, investigadores, científicos, grupos de investigación, emprendedores, empresarios y asociaciones empresariales), y que dieron a conocer la importancia de la marca Cundinamarca como un “sentimiento de proyección de comunidad que afectará positivamente la percepción externa de la región en base a sus atractivos (culturales, gastronómicos, productivos y turísticos), que impulsara el espíritu de empresa, la unidad regional y la identidad del departamento de Cundinamarca”, | AY46: 2620 | AZ46: 4581.919724 | BA46: 6111.643556 | BB46: 4264.848438
B47: 3.6. TURISMO REGIONAL | C47: CONSOLIDAR A CUNDINAMARCA COMO UN DESTINO TURÍSTICO COMPETITIVO SOSTENIBLE REGIONAL, NACIONAL E INTERNACIONAL. | D47: 486 | O47: INSTITUTO DE CULTURA Y TURISMO | AB47: 1.82 | AC47: 0.1167692308 | AD47: 0.1167692308 | AE47: 0.5165346154 | AF47: 0.4505346154 | AG47: 0.6727769231 | AH47: 0.5084619231 | AI47: 0.5139192308 | AJ47: 0.3647546154 | AK47: 1.71275 | AN47: se han posicionado 2 destinos turísticos Ruta de la Sal (Nemocón- Zipaquirá) y Ruta de Aventura (Nimaima-Tobia). | AO47: Se beneficiaron 265 personas entre prestadores de servicios, personeros, comisarías de familia y estudiantes con capacitaciones en prevención de la Explotación Sexual con niños, niñas y adolescentes (ESCNNA) y trata de personas en dos corredores turísticos (Bogotá- Fusagasugá-Girardot y La Mesa) y (Bogotá- Puerto Salgar). | AP47: Con la puesta en funcionamiento e implementación de 3 puntos de información PIT’s de Nocaima, La Vega y Nimaima se ha permitido atender de primera mano a los turistas y visitantes, dándoles a conocer los atractivos turísticos, los eventos culturales y demás programación de los municipios, lo cual ha conllevado a posicionar a Cundinamarca como destino turístico y cultural. | AQ47: Se beneficiaron 73 prestadores de servicios turísticos, ya que se generaron dos formas asociativas turísticas comunitarias La Asociación del Alto y La Asociación del Bajo Guavio, permitiendo un trabajo articulado entre los prestadores y las provincias. Lo anterior ha llevado a un desarrollo eficiente del sector turístico de los municipios que las conforman. | AR47: se logró dar a conocer un nuevo producto turístico como lo es el turismo de salud, aprovechando la riqueza del Departamento en recursos termales a nivel nacional, contando con 56 nacimientos de aguas termales de los 510 que tiene Colombia. | AS47: A través de la realización del II Encuentro Departamental de Autoridades de turismo se logró reunir 60 municipios de los cuales asistieron 95 personas entre Alcaldes y Directores de Turismo. | AY47: 800 | AZ47: 2550 | BA47: 2602.6 | BB47: 1312.825238
B48: 3.7. INTEGRACION REGIONAL | C48: FORTALECER EL DESARROLLO DE CUNDINAMARCA PARA POSICIONARLO EN EL ESCENARIO NACIONAL E INTERNACIONAL COMO UN TERRITORIO LÍDER Y ATRACTIVO, A PARTIR DEL RECONOCIMIENTO Y APROVECHAMIENTO DE LAS DINÁMICAS INTEGRADORAS DE ÍNDOLE SUPRA REGIONAL, REGIONAL Y SUB REGIONAL. | D48: 497 | O48: SECRETARIA DE INTEGRACION REGIONAL | AB48: 0.665 | AC48: 0.1576923077 | AD48: 0.1576923077 | AE48: 0.2154423077 | AF48: 0.2154423077 | AG48: 0.1596730769 | AH48: 0.1596730769 | AI48: 0.1321923077 | AJ48: 0.1321923077 | AK48: 0.665 | AN48: Se constituyó la Región Administrativa y de Planeación Especial – RAPE – entre Bogotá Distrito Capital y los departamentos de Cundinamarca, Boyacá, Meta y Tolima. | AO48: se Promovio el desarrollo Económico regional a través de la participación de 18 empresas y 12 destinos turísticos del departamento de Cundinamarca en la Feria Colombia Trade Expo Miami, y a través de un Convenio por valor de $150 millones de Pesos con la Secretaría de Integración Regional; el IDECUT y la Secretaría de Competitividad y Desarrollo Económico; que permitió expandir y crear oportunidades internacionales de negocios. | AP48: A través de los convenios de Asociación suscritos con Fenalco Bogotá – Cundinamarca se logró apoyo técnicos, administrativos, institucional, logísticos y financieros para impulsar productivamente a los microempresarios de los municipios de Cabrera, Fusagasugá, Soacha, Cota y Chocontá Fenalco Bogotá - Cundinamarca. De igual forma, se logró el apoyo para la Implementación de una estrategia subregional de desarrollo local, innovador y social, mediante la identificación y desarrollo del potencial competitivo de un núcleo de productores de un sector – cadena productiva – en 14 municipios del Departamento. | AQ48: Una vez puesta en funcionamiento la Fase 1 de la Troncal NQS del Sistema Transmilenio del municipio de Soacha; el Departamento gestionó los recursos con los que se avanza en la actualización y formulación de los estudios y diseños de las fases II y III del proyecto | AR48: el departamento participa en el proceso de elaboración del CONPES el cual busca garantizar los recursos para la financiación de la construcción de la Troncal Norte- Quito- Sur del Sistema Transmilenio a Soacha, fase II y III, y el Metro Ligero Regional Urbano, cuyo objeto es implementar un sistema de transporte masivo férreo en el departamento de Cundinamarca y Bogotá, proyecto en etapa de factibilidad que plantea 2 corredores (Occidente: Faca-Madrid-Mosquera-Funza; Corredor sur: Soacha y Bogotá) | AS48: Rehabilitación de 50 Kms de corredor férreo línea Facatativá – La Esperanza, y mantenimiento y cerramiento del corredor férreo Soacha – hasta el salto de Tequendama | AY48: 1299.912508 | AZ48: 3507.072105 | BA48: 5571.851125 | BB48: 8681.529834
B49: 4.1. SEGURIDAD Y CONVIVENCIA CON DERECHOS HUMANOS | C49: FOMENTAR LA CONVIVENCIA, LA SEGURIDAD CIUDADANA Y PROTEGER LA VIDA Y LOS BIENES DE LA CIUDADANÍA RURAL Y URBANA, QUE PERMITA LA CONSOLIDACIÓN DE UN DEPARTAMENTO SEGURO, PRÓSPERO Y CONFIABLE, QUE GARANTICE EL CUMPLIMIENTO DE LOS DERECHOS HUMANOS, EL DERECHO INTERNACIONAL HUMANITARIO, Y EL GOCE EFECTIVO DEL ESPACIO PÚBLICO Y DE ACCESO AL TERRITORIO POR LOS CUNDINAMARQUESES. | D49: 611 | O49: SECRETARIA DE GOBIERNO | AB49: 2.501 | AC49: 0.3592 | AD49: 0.1942 | AE49: 0.6836844828 | AF49: 0.496502122 | AG49: 0.5949456897 | AH49: 0.5743206897 | AI49: 0.8631698276 | AJ49: 0.750087931 | AK49: 2.445525862 | AN49: Cundinamarca redujo de 16.6 en 2011 a 16 en 2014 la tasa de homicidio por cada 100.000 habitantes. | AO49: En Cundinamarca el 55% de los Municipios (64) no registraron homicidios en lo transcurrido de 2014. Así mismo se registró 129 días sin hechos violentos en todo el Departamento | AP49: Se redujo en un 26% el total de delitos entre los años 2011 y 2014. | AQ49: Se construyó y dotó las Estaciones de Policía de: Del Municipio de Cota, San Juan de Rioseco, Soacha, Quipile (Inspección La Sierra). | AR49: se fortalecio el pie de fuerza con la incorporación de 550 auxuliares regulares en 41 municipios, esto gracias a recursos del departamento, los Municipios y la Policía Nacional. | AS49: La fuerza pública y las organizaciones comunitarias cuentan con mejores elementos de comunicación, tecnología, movilidad y logística: Se conformó un centro de atención e información con 25 patrulleros con disponibilidad las 24 horas para la vigencia 2014. Se adquirieron 154 Motocicletas de alto cilindraje, 55 patrullas, 35 vehículos para los alcaldes | AT49: Se fortaleció el Observatorio del Delito en el Departamento, permitiendo estructurar la red de seguimiento a la seguridad con la articulación de la Policía Nacional, Fiscalía Nacional, ICBF, Defensoría del Pueblo, Veedurías Ciudadanas, Medicina Legal y demás instituciones Nacionales, Departamentales y Municipales. Se logró su articulación con el observatorio del delito Bogotá | AU49: hubo Mano dura al Microtrafico en 2014: se reactivaron 25 Comités de Lucha contra la Comercialización de drogas psicoactivas en el Departamento de Cundinamarca. (Fosca, Ubaque, la Vega, Tabio, Cajicá, Puerto Salgar, Facatativá, Pandi, Caquezá, Chipaque, Puli, Guayabetal, Madrid, Cogua, Quebradanegra, Une, Cachipay, Anolaima, Zipaquirá, Granada , La Mesa, Paratebueno, Silvania, Fusagasuga , Vergara) | AV49: Se adelantó convenio Tripartita Ministerio del Interior, Secretaria de Gobierno y Municipio de Viotá con el fin de Construir el Centro de Convivencia Ciudadana y de Justicia para la provincia del Tequendama. | AY49: 7785.635404 | AZ49: 18085.70046 | BA49: 16197.80118 | BB49: 15268.13964
B50: 4.2. MODERNIZACION DE LA GESTION | C50: FORTALECER LA INSTITUCIONALIDAD PARA GARANTIZAR CON EFICIENCIA Y EFICACIA EN LA GESTIÓN PÚBLICA, BIENES Y SERVICIOS DE CALIDAD, GENERANDO LA CONFIANZA DE LOS CIUDADANOS A TRAVÉS DEL CUMPLIMIENTO DE SUS EXPECTATIVAS Y MEJOR CALIDAD DE VIDA. | D50: 521 | E50: 612 | F50: 613 | G50: 614 | H50: 615 | O50: SECRETARIA DE FUNCION PUBLICA | P50: SECRETARIA DE COOPERACION | Q50: CORSOCUN / SERVICIOS CORPORATIVOS | R50: SECRETARIA DE GENERAL | S50: SECRETARIA DE HACIENDA | T50: SECRETARIA DE PLANEACION | U50: SECRETARIA DE PRENSA | V50: SECRETARIA DE SALUD | AB50: 3.73564 | AC50: 0.6959465737 | AD50: 0.6601891358 | AE50: 1.064818612 | AF50: 1.006633945 | AG50: 1.031783275 | AH50: 0.9687112155 | AI50: 0.9430915386 | AJ50: 0.8364300478 | AK50: 3.581236443 | AN50: Cundinamarca líder en modernización normativa y tecnológica es el único departamento del país en contar con los estatutos de rentas y orgánico de presupuesto actualizados y modernizados. | AO50: En el marco del Sistema de Gestión de Calidad del Departamento la Secretaría de Educación aportó al proceso Promoción del Desarrollo Educativo, al proceso misional de atención al ciudadano y a los procesos de apoyo de gestión contractual, gestión documental, gestión jurídica y gestión financiera, la Gobernación de Cundinamarca se certificó en la NTCGP 1000:2009 e ISO 9001:2008, en el 2014. Con esta certificación se alcanza la meta propuesta de cinco procesos certificados en el cuatrienio ya que en los años anteriores la secretaría se certificó en los 4 procesos establecidos por el Ministerio de Educación: calidad educativa, cobertura, talento humano y atención al ciudadano. | AP50: Se apoyo financieramente a 52 E.S.E.s del Departamento por la valor de $ 80.471 millones, para atender: el Mejoramiento de garantía de la calidad, Gestión Documental, adquisición de ambulancias, con énfasis especialmente en apoyo al Programa de Saneamiento Fiscal y Financiero a la Red Hospitalaria del Departamento, por la condición de haber sido categorizadas en alto y mediano riesgo financiero. | AQ50: La Secretaría de la Función Pública actualizó el 100% de las historias laborales de los funcionarios activos, conforme a los lineamientos establecidos en la Ley 594 de 2000 y la Circular 04 de 2003 del Archivo General de la Nación. (1.548 historias laborales). | AR50: La corporación Social de Cundinamarca contribuyo a mejorar la calidad de vida de los Cundinamarqueses mediante: la aprobación de 2.572 créditos que generaron desembolsos por $ 64.137 millones de pesos y la ampliación de la cobertura de sus programas de bienestar social hacia sus afiliados | AS50: 83% de Cumplimiento del Sistema Obligatorio de Garantía de la Calidad en las Empresas Sociales del Estado. Lo anterior debido a que las instituciones han tenido que ajustar sus procesos y realizar las autoevaluaciones relacionadas con la normatividad vigente. (Resolución 1441 de 2013 y resolución 2003 de 2014) | AT50: se Presta un mejor servicio a la comunidad con el Mantenimiento y adecuación de 3 predios Noveno piso torre central (apto Despacho Sr. Gobernador), Asamblea Departamental y CERCUN, Construcción y Remodelación: 5 predios los pisos 5 - 4 - 3 - 2 y 1 de la torre central. Compra de 5 Predios: Municipios de Caparrapí, Viotá, Villapinzon (2) y Gacheta. | AU50: La implementación del sistema de georeferenciación se realizó en la web del Departamento, siguiendo las metodologías establecidas por el IGAC, para el manejo de la información espacial requerido en el Documento CONPES 3585. | AV50: Apoyo en la gestión de recursos de cooperación nacional e internacional, que se estima en $1.771 millones pesos, con base en la información remitida por las Agencias de Cooperación, Organismos Internacionales y Gobiernos Extranjeros acreditados en Colombia (fuente: Secretaría de Cooperación y Enlace Institucional). | AW50: Se implementó del procedimiento de PQRS en la ruta de atención al ciudadano del Sistema de Gestión Documental (mercurio), permitiendo seguimiento y trazabilidad. Se actualizo el formato de encuesta de satisfacción de los usuarios y se aplicó en el mes de noviembre subiendo el grado de satisfacción al 70%. | AY50: 287928.4757 | AZ50: 293728.2194 | BA50: 291440.666 | BB50: 197039.2739
B51: 4.3. EMPODERAMIENTO LOCAL PARA LA EQUIDAD Y LA UNIDAD TERRITORIAL | C51: AUMENTAR LA CAPACIDAD INSTITUCIONAL Y DE DESEMPEÑO, CONTRIBUYENDO A LA EQUIDAD TERRITORIAL DE LOS MUNICIPIOS DE CUNDINAMARCA; HACIENDO UN ESPECIAL ÉNFASIS EN LOS 35 MUNICIPIOS CON NBI MÁS ALTO DEL DEPARTAMENTO. | D51: 616 | E51: 617 | F51: 618 | O51: SECRETARIA DE PLANEACION | P51: SECRETARIA DE GOBIERNO | AB51: 1.673 | AC51: 0.3186666667 | AD51: 0.2774166667 | AE51: 0.4041333333 | AF51: 0.3003833333 | AG51: 0.5390166667 | AH51: 0.4319833333 | AI51: 0.4111833333 | AJ51: 0.1866 | AK51: 1.50805 | AN51: Mayor trasparencia, accesibilidad y receptividad de la información de las entidades territoriales, es así como el 100% de nuestros municipios en el año 2014 mejoraron su indicador de gobierno abierto IGA, con respecto al año 2011, solo 8 municipios no superaron el puntaje de 60 puntos. (Cabrera, Caparrapí, Gachalá, Granada, Caqueza, La Palma, Quetame y Viotá). | AO51: El 97.41% de los municipios de Cundinamarca es decir 113, superaron la calificación del 60% en el índice de desempeño municipal para el año 2013, 7 más que el año inmediatamente anterior. Solo 3 municipios no lograron superar este promedio ellos fueron Topaipi, Nariño y Quipile. Esta calificación es calculada por la Dirección de Desarrollo Terrritorial del DNP. | AP51: En el rango de clasificación del índice de desempeño integral, los municipios de Cundinamarca obtuvieron un promedio de 80,10 % siendo el único departamento del país ubicado en el rango “Sobresaliente”. | AQ51: Para el año 2013, el promedio general del índice de desempeño de los municipios del departamento fue de 80,10%, aumentando en un 6,84% en relación con el año anterior que fue del 73,26%, para el año 2011 se obtuvo un promedio de 76,22%; para el 2010 de 77,63%, 2009 de 75,78% y en el 2008 de 73,63%. | AR51: Según el rango de clasificación dado por el DNP en Cundinamarca 72 municipios fueron sobresalientes. 37 satisfactorios, 4 en nivel medio y solo 3 fueron catalogados como bajos. | AS51: Entrega de inmobiliario a 9 Casas de Gobierno de los municipios de Albán, Cajicá, Fosca, Fúquene, Jerusalén, Sasaima, Supatá,Ubaque y Villagomez, como apoyo en la gestión administrativa. | AY51: 1186.34777 | AZ51: 2300.27567 | BA51: 5565.82319 | BB51: 3032.166705
B52: 4.4. CUNDINAMARCA CON ESPACIOS DE PARTICIPACION REAL | C52: LA PARTICIPACIÓN CIUDADANA INCLUYENTE, FORTALECIDA, PROPOSITIVA Y EMPODERADA, INCIDE EN EL DESARROLLO LOCAL Y EN LA EFICACIA Y EFICIENCIA DE LAS DECISIONES DE LA POLÍTICA PÚBLICA; MATERIALIZANDO LA CORRESPONSABILIDAD DE LA SOCIEDAD CIVIL EN EL DESARROLLO DEL TERRITORIO | D52: 619 | O52: INSTITUTO DE ACCION COMUNAL | P52: SECRETARIA DE DESARROLLO SOCIAL | Q52: SECRETARIA DE GOBIERNO | R52: SECRETARIA DE PLANEACION | S52: SECRETARIA DE SALUD | AB52: 2.159 | AC52: 0.2318144389 | AD52: 0.2193144389 | AE52: 0.8578388215 | AF52: 0.6624221548 | AG52: 0.6245583268 | AH52: 0.4324791189 | AI52: 0.4447884128 | AJ52: 0.3048303292 | AK52: 1.941722772 | AN52: Se construyeron 87 nuevas obras con participación de igual número de organizaciones comunales en 53 municipios del Departamento entre placa huellas, polideportivos, salones comunales y mejoramiento de espacios y acueductos comunitarios, de esta manera se asegura que con los mismos recursos se alcancen mejores resultados en el desarrollo de entornos más amables para las comunidades. | AO52: En 2014 se embellecieron 17 cabeceras municipales con la implementación del programa “ruta de colores”, con una inversión de $ 1.143 Millones. Ahora se cuenta con 70 cabeceras más amables con su entorno. | AP52: Se dotaron a 290 JAC de 97 municipios, mediante entrega de equipos de oficina | AQ52: El 61% del total de las formas de participación social en salud se encuentran activas y funcionando y a la fecha se viene realizando el acompañamiento seguimiento a las tareas o planes de mejora. | AR52: Se han activado y fortalecido el 86% las formas de participación social | AS52: Se organizó el X Congreso departamental de Planeación, actividad que busco empoderar a los consejeros territoriales del rol de control social y de la importancia de su gestión en el mejoramiento de la calidad de vida de los ciudadanos a través del papel que desempeñan en los procesos de planeación de mediano y largo plazo a saber: Plan de desarrollo y planes de ordenamientos territorial. | AT52: Se desarrolló el programa “Vive y crece en Acción comunal” en 80 municipios, dirigido a niños, adolescentes y jóvenes buscando promover la participación y vinculación de estos grupos etarios a las organizaciones comunitarias | AU52: Se entregaron kit de mantenimiento y conservación de obras, en 14 municipios para que las comunidades realicen directamente el mantenimiento de la obra ejecutada | AY52: 5101.606919 | AZ52: 9300.681134 | BA52: 8782.66149 | BB52: 2290.029538
B53: 4.5. CULTURA E IDENTIDAD CUNDINAMARQUESA | C53: APROPIAR LA IDENTIDAD CUNDINAMARQUESA, RECONOCIENDO SU PATRIMONIO Y LA DIVERSIDAD TERRITORIAL, MULTICULTURAL Y PLURIÉTNICA Y DE LAS ECO – REGIONES DEL DEPARTAMENTO PARA LOGRAR SU INTEGRACIÓN, PROMOCIÓN Y DESARROLLO. | D53: 620 | O53: INSTITUTO DE CULTURA Y TURISMO | AB53: 0.584 | AC53: 0.03875 | AD53: 0.03875 | AE53: 0.19 | AF53: 0.19 | AG53: 0.19825 | AH53: 0.19825 | AI53: 0.157 | AJ53: 0.11575 | AK53: 0.584 | AN53: Se ha conformado en un 85% la Red de Memoria Histórica Cultural y gestión patrimonial de Cundinamarca | AO53: Se realizó el montaje y puesta en escena de la obra teatral y musical “Un Collar de Oro por un Collar de Mitos”, la que se presentó en el teatro Julio Mario Santo Domingo, el municipio de Guatavita y la Sede Administrativa de la Gobernación, y se espera seguir la gira por toda Cundinamarca en el 2015. | AP53: Se contrataron los estudios y diseños para la recuperación del antiguo Templo Doctrinero María Magdalena del municipio de Tausa, los cuales se realizaron en el 2014, la que se requiere continuar en el 2015 con la fase de recuperación para así recuperar los bienes de interés cultural del Departamento. | AQ53: Posicionamiento del proyecto cultural y artístico denominado Cundinamarca “El Dorado”, La Leyenda Viva cuyo objetivo es posicionar a Cundinamarca a Nivel Nacional e Internacional aprovechando su riqueza y diversidad cultural, artística de flora y fauna; haciendo énfasis en su potencial turístico y competitivo. | AY53: 384.094232 | AZ53: 427 | BA53: 1174.480632 | BB53: 823.748533
B54: 4.6. TIC EN CUNDINAMARCA | C54: MEJORAR LA CALIDAD DE VIDA DE LOS CUNDINAMARQUESES A TRAVÉS DEL DESARROLLO, USO Y APROPIACIÓN DE LAS TIC POR PARTE DE LA COMUNIDAD, PROPICIANDO EL ACCESO; PARTICIPACIÓN VIRTUAL EN LOS PROGRAMAS, PROYECTOS Y SERVICIOS; Y DINÁMICAS DE DESARROLLO Y EQUIDAD EN EL DEPARTAMENTO Y SUS ECO – REGIONES. | D54: 574 | E54: 621 | O54: SECRETARIA DE LAS TICS | P54: SECRETARIA DE HACIENDA | Q54: SECRETARIA DE EDUCACION | R54: SECRETARIA DE SALUD | AB54: 5.799 | AC54: 0.6282201069 | AD54: 0.5609201069 | AE54: 1.853229742 | AF54: 1.305859894 | AG54: 1.622470631 | AH54: 1.096043646 | AI54: 1.69507952 | AJ54: 0.9664847586 | AK54: 5.418404113 | AN54: El índice de estudiantes por computador se ubicó en 6 alumnos por equipo de cómputo, es decir que el indicador logró disminuir en 6 estudiantes por equipo de cómputo con respecto a la vigencia 2013. | AO54: Desde el 2011, se ha avanzado en 4.18 puntos porcentuales en el índice de penetración de internet de los Departamentos del país, siendo el décimo departamento con más progreso en el presente periodo de gobierno, después de Quindío, Casanare, Valle, Santander, Bogotá, Risaralda, Atlántico, Tolima y Norte de Santander. Y avanzando del puesto 12 al 11 en el ranking | AP54: Implementación de sistemas de información para la gestión administrativa y financiera en 9 Municipios, que permite obtener información en tiempo real y facilita la rendición de cuentas y los informes a los entes de control. | AQ54: Se atendieron 43.653 eventos bajo la modalidad de telemedicina superando los 3000 eventos programados a atender durante el año 2014. | AR54: 53 ESEs de la Red Pública Hospitalaria del Departamento cuentan con el Sistema de Información Integrado en Salud -SIIS- que permite la generación de la Historia Clínica Electrónica. | AS54: Se implementaron los servicios bajo la modalidad de Telemedicina bajo las siguientes modalidades:- Teleconsulta: Se implementó en 54 ESEs.- Telediagnostico: Se implementó en 116 municipios.- Teleradiologia: Se implementó en 39 IPS Publicas | AT54: La Secretaría de Hacienda avanzó en la modernización del recaudo de los impuestos y el uso de las tecnologías de la información TIC, que fortalecieron el Sistema de Gestión Financiera Territorial SGFT en todas las áreas (tesorería, presupuesto, rentas, contabilidad, análisis financiero y juzgado de ejecuciones fiscales) | AU54: Durante el 2014 se realizó la entrega de 909 computadores portátiles, los cuales fueron asignados a los estudiantes de los grados de sexto a noveno de las sedes educativas de los municipios: Zipacón, Pulí, Albán, Beltrán. Apulo, Quipile, Tena y San Antonio del Tequendama | AV54: Con el proyecto nacional de fibra óptica el 100% de las cabeceras tienen conexión a internet. | AW54: Se implementaron 22 Centros Interactivos y puntos vive digital en: Chaguaní, Albán, Yacopí, Topaipí, El Peñón, Granada, Paime, Tena, Jerusalén, Agua de Dios, Cabrera, Gachetá, Tibirita, Cáqueza, Chipaque, Nilo, Tenjo, Viotá, Guachetá, Nemocón, Tibacuy y Vianí106 zonas wi-fi implementadas en 88 municipios | AY54: 6017.767669 | AZ54: 22395.75923 | BA54: 40945.71727 | BB54: 17661.18153
B55: 4.7. CUNDINAMARCA GOBIERNO INTELIGENTE CON DECISIONES INFORMADAS | C55: FACILITAR LA TOMA DE DECISIONES ACERTADAS SOPORTADA SOBRE PLATAFORMAS INFORMÁTICAS CORPORATIVAS QUE PERMITAN LA CONSULTA DE INFORMACIÓN OPORTUNA, CONFIABLE Y SEGURA | D55: 622 | O55: SECRETARIA DE PLANEACION | P55: SECRETARIA DE SALUD | Q55: SECRETARIA DE EDUCACION | AB55: 0.825 | AC55: 0.20515 | AD55: 0.16225 | AE55: 0.22825 | AF55: 0.22825 | AG55: 0.15675 | AH55: 0.15675 | AI55: 0.23485 | AJ55: 0.23485 | AK55: 0.825 | AN55: Se publicaron y actualizaron los mapas dinámicos: Vial, Centros Poblados, Veredal, Provincias, Municipios, código postal, Cobertura Vegetal, Sitios de interés e información catastral, estos pueden ser consultados en el sitio web "Mapas de Cundinamarca". | AO55: Publicación análoga y digital de "Estadísticas de Cundinamarca 2011-2013", en la cual se compilo y analizo la información estadística de trece (13) temáticas del Departamento. | AP55: El Departamento cuentan un Sistema de Información Integrado en Salud -SIIS- en cada una de las 37 ESEs centralizadas y 15 descentralizadas de la Red Hospitalaria Pública del Departamento, generando la Historia Clínica Electrónica y habilitados para ser articulados a través del Sistema de Información Unificado en Salud -SIUS-, con el fin de generar la Historia Clínica Electrónica Unificada. | AQ55: a través del proyecto de Historia Clínica Unificada se consolidó la primera versión de la bodega de datos con información del sector salud para el Departamento de Cundinamarca | AR55: El fortalecimiento del sistemas de información Geográfico Regional con información cartográfica a escala 1:10.000, permite a los municipios contar con información para la actualización de los POT, y la planificación y desarrollo de su territorio. | AS55: Se dispone del sistema CUNDINAMARCAINFO en versión 7, para consulta vía web de 288 indicadores, incluye información general de Cundinamarca y los 116 municipios, así como información de infancia, niñez y adolescencia. | AY55: 224.807368 | AZ55: 204.776033 | BA55: 545.533954 | BB55: 566.896032
B56: 4.8. SEGUIMIENTO Y EVALUACION PARA MEJOR DESEMPEÑO | C56: MEJORAR DESEMPEÑO Y DECISIONES OPORTUNAS DE LA GESTIÓN PARA RESULTADOS DEL DESARROLLO CON EL FOMENTO DE CAPACIDADES, CULTURA Y COMPROMISO DE SEGUIMIENTO, MONITOREO, CONTROL, EVALUACIÓN Y RENDICIÓN DE CUENTAS. | D56: 623 | O56: SECRETARIA DE PLANEACION | P56: SECRETARIA DE DESARROLLO SOCIAL | AB56: 1.485 | AC56: 0.1816178571 | AD56: 0.1167964286 | AE56: 0.3558107143 | AF56: 0.2733107143 | AG56: 0.4284107143 | AH56: 0.3232232143 | AI56: 0.5191607143 | AJ56: 0.42075 | AK56: 1.374214286 | AN56: el 100% de las entidades mejoraran sus capacidades gerenciales respecto a enfoque en resultados, trabajo en equipo, uso más adecuado de insumos, acciones e instrumentos y en la responsabilidad como servidores públicos de cumplir con lo propuesto. | AO56: Trimestralmente se conoce el avance en la ejecución del Plan Departamental de Desarrollo, el cual se publica en la página web de la gobernación de Cundinamarca | AP56: Se diseñaron herramientas informáticas como instrumento facilitador para realizar el seguimiento, monitoreo y evaluación, al Plan de desarrollo Departamental. | AQ56: Se incentivó la cultura oportuna de la remisión de información a partir de formatos metodológicos como fuente de análisis y consolidación de información, elaborando informes los cuales son socializados con la alta gerencia, para toma de decisiones. | AR56: La ruta metodológica para la rendición de cuentas es reconocida por el DNP y la OCDE. | AS56: El uso de la página web para hacer la publicación de los procesos y avances del Plan de desarrollo en el marco de la gestión pública. | AY56: 613.623159 | AZ56: 318.52 | BA56: 825.444735 | BB56: 1751.29195
B57: Total general | AB57: 100.0048 | AC57: 15.08014382 | AD57: 12.80955878 | AE57: 27.60695056 | AF57: 24.2382731 | AG57: 28.4038426 | AH57: 23.87522234 | AI57: 28.91386302 | AJ57: 21.85595198 | AK57: 94.27228684 | AY57: =SUM(AY35:AY56) -> 531640.4138 | AZ57: =SUM(AZ35:AZ56) -> 617303.254 | BA57: =SUM(BA35:BA56) -> 633623.5046 | BB57: =SUM(BB35:BB56) -> 495396.5351
B65: ARREGLOS
B69: TODOS | C69: 1-DESARROLLO INTEGRAL DEL SER HUMANO | D69: 2-SOSTENIBILIDAD Y RURALIDAD | E69: 3-COMPETITIVIDAD, INNOVACION, MOVILIDAD Y REGION | F69: 4-FORTALECIMIENTO INSTITUCIONAL PARA GENERAR VALOR DE LO PUBLICO
B70: 1.1. INICIO PAREJO DE LA VIDA | C70: 1.1. INICIO PAREJO DE LA VIDA | D70: 2.1. TERRITORIO SOPORTE PARA EL DESARROLLO | E70: 3.1. CUNDINAMARCA COMPETITIVA, EMPRENDEDORA Y EMPRESARIAL | F70: 4.1. SEGURIDAD Y CONVIVENCIA CON DERECHOS HUMANOS
B71: 1.2. ALIANZA POR LA INFANCIA | C71: 1.2. ALIANZA POR LA INFANCIA | D71: 2.2. BIENES Y SERVICIOS AMBIENTALES PATRIMONIO DE CUNDINAMARCA | E71: 3.2. CUNDINAMARCA DINAMICA ATRACTIVA E INTERNACIONAL | F71: 4.2. MODERNIZACION DE LA GESTION
B72: 1.3. VIVE Y CRECE ADOLESCENCIA | C72: 1.3. VIVE Y CRECE ADOLESCENCIA | D72: 2.3. AGUA POTABLE Y SANEAMIENTO BASICO PARA LA SALUD DE LOS CUNDINAMARQUESES | E72: 3.3. MINERIA Y ENERGIA RESPONSABLE PARA CUNDINAMARCA | F72: 4.3. EMPODERAMIENTO LOCAL PARA LA EQUIDAD Y LA UNIDAD TERRITORIAL
B73: 1.4. JOVENES CONSTRUCTORES DE PAZ | C73: 1.4. JOVENES CONSTRUCTORES DE PAZ | D73: 2.4. DESARROLLO COMPETITIVO DEL SECTOR AGROPECUARIO | E73: 3.4. INFRAESTRUCTURA Y SERVICIOS PARA LA COMPETITIVIDAD Y LA MOVILIDAD | F73: 4.4. CUNDINAMARCA CON ESPACIOS DE PARTICIPACION REAL
B74: 1.5. ADULTAS Y ADULTOS CON EQUIDAD | C74: 1.5. ADULTAS Y ADULTOS CON EQUIDAD | D74: 2.5. DESARROLLO RURAL INTEGRAL | E74: 3.5. CUNDINAMARCA INNOVADORA CON CIENCIA Y TECNOLOGIA | F74: 4.5. CULTURA E IDENTIDAD CUNDINAMARQUESA
B75: 1.6. VEJEZ DIVINO TESORO | C75: 1.6. VEJEZ DIVINO TESORO | D75: 2.6. GESTION INTEGRAL DE RESIDUOS SOLIDOS | E75: 3.6. TURISMO REGIONAL | F75: 4.6. TIC EN CUNDINAMARCA
B76: 1.7. VICTIMAS DEL CONFLICTO ARMADO CON GARANTIA DE DERECHOS | C76: 1.7. VICTIMAS DEL CONFLICTO ARMADO CON GARANTIA DE DERECHOS | D76: 2.7. GESTION DEL RIESGO Y ADAPTACION AL CAMBIO Y VARIABILIDAD CLIMATICA | E76: 3.7. INTEGRACION REGIONAL | F76: 4.7. CUNDINAMARCA GOBIERNO INTELIGENTE CON DECISIONES INFORMADAS
B77: 1.8. FAMILIAS FORJADORAS DE SOCIEDAD | C77: 1.8. FAMILIAS FORJADORAS DE SOCIEDAD | D77: 2.8. CUNDINAMARCA VERDE: CALIDAD DE VIDA | F77: 4.8. SEGUIMIENTO Y EVALUACION PARA MEJOR DESEMPEÑO
B78: 1.9. MUJERES LIDERES Y LIBRES DE VIOLENCIA | C78: 1.9. MUJERES LIDERES Y LIBRES DE VIOLENCIA
B79: 1.10. EQUIPAMIENTO SOCIAL PARA EL DESARROLLO INTEGRAL | C79: 1.10. EQUIPAMIENTO SOCIAL PARA EL DESARROLLO INTEGRAL
B80: 2.1. TERRITORIO SOPORTE PARA EL DESARROLLO
B81: 2.2. BIENES Y SERVICIOS AMBIENTALES PATRIMONIO DE CUNDINAMARCA | C81: OBJ_1 | D81: OBJ_2 | E81: OBJ_3 | F81: OBJ_4
B82: 2.4. DESARROLLO COMPETITIVO DEL SECTOR AGROPECUARIO | C82: 1.1. INICIO PAREJO DE LA VIDA | D82: 2.1. TERRITORIO SOPORTE PARA EL DESARROLLO | E82: 3.1. CUNDINAMARCA COMPETITIVA, EMPRENDEDORA Y EMPRESARIAL | F82: 4.1. SEGURIDAD Y CONVIVENCIA CON DERECHOS HUMANOS
B83: 2.5. DESARROLLO RURAL INTEGRAL | C83: 1.2. ALIANZA POR LA INFANCIA | D83: 2.2. BIENES Y SERVICIOS AMBIENTALES PATRIMONIO DE CUNDINAMARCA | E83: 3.2. CUNDINAMARCA DINAMICA ATRACTIVA E INTERNACIONAL | F83: 4.2. MODERNIZACION DE LA GESTION
B84: 2.6. GESTION INTEGRAL DE RESIDUOS SOLIDOS | C84: 1.3. VIVE Y CRECE ADOLESCENCIA | D84: 2.3. AGUA POTABLE Y SANEAMIENTO BASICO PARA LA SALUD DE LOS CUNDINAMARQUESES | E84: 3.3. MINERIA Y ENERGIA RESPONSABLE PARA CUNDINAMARCA | F84: 4.3. EMPODERAMIENTO LOCAL PARA LA EQUIDAD Y LA UNIDAD TERRITORIAL
B85: 2.7. GESTION DEL RIESGO Y ADAPTACION AL CAMBIO Y VARIABILIDAD CLIMATICA | C85: 1.4. JOVENES CONSTRUCTORES DE PAZ | D85: 2.4. DESARROLLO COMPETITIVO DEL SECTOR AGROPECUARIO | E85: 3.4. INFRAESTRUCTURA Y SERVICIOS PARA LA COMPETITIVIDAD Y LA MOVILIDAD | F85: 4.4. CUNDINAMARCA CON ESPACIOS DE PARTICIPACION REAL
B86: 2.8. CUNDINAMARCA VERDE: CALIDAD DE VIDA | C86: 1.5. ADULTAS Y ADULTOS CON EQUIDAD | D86: 2.5. DESARROLLO RURAL INTEGRAL | E86: 3.5. CUNDINAMARCA INNOVADORA CON CIENCIA Y TECNOLOGIA | F86: 4.5. CULTURA E IDENTIDAD CUNDINAMARQUESA
B87: 3.1. CUNDINAMARCA COMPETITIVA, EMPRENDEDORA Y EMPRESARIAL | C87: 1.6. VEJEZ DIVINO TESORO | D87: 2.6. GESTION INTEGRAL DE RESIDUOS SOLIDOS | E87: 3.6. TURISMO REGIONAL | F87: 4.6. TIC EN CUNDINAMARCA
B88: 3.2. CUNDINAMARCA DINAMICA ATRACTIVA E INTERNACIONAL | C88: 1.7. VICTIMAS DEL CONFLICTO ARMADO CON GARANTIA DE DERECHOS | D88: 2.7. GESTION DEL RIESGO Y ADAPTACION AL CAMBIO Y VARIABILIDAD CLIMATICA | E88: 3.7. INTEGRACION REGIONAL | F88: 4.7. CUNDINAMARCA GOBIERNO INTELIGENTE CON DECISIONES INFORMADAS
B89: 3.3. AGUA POTABLE Y SANEAMIENTO BASICO PARA LA SALUD DE LOS CUNDINAMARQUESES | C89: 1.8. FAMILIAS FORJADORAS DE SOCIEDAD | D89: 2.8. CUNDINAMARCA VERDE: CALIDAD DE VIDA | F89: 4.8. SEGUIMIENTO Y EVALUACION PARA MEJOR DESEMPEÑO
B90: 3.3. MINERIA Y ENERGIA RESPONSABLE PARA CUNDINAMARCA | C90: 1.9. MUJERES LIDERES Y LIBRES DE VIOLENCIA
B91: 3.4. INFRAESTRUCTURA Y SERVICIOS PARA LA COMPETITIVIDAD Y LA MOVILIDAD | C91: 1.10. EQUIPAMIENTO SOCIAL PARA EL DESARROLLO INTEGRAL
B92: 3.5. CUNDINAMARCA INNOVADORA CON CIENCIA Y TECNOLOGIA
B93: 3.6. TURISMO REGIONAL
B94: 3.7. INTEGRACION REGIONAL
B95: 4.1. SEGURIDAD Y CONVIVENCIA CON DERECHOS HUMANOS
B96: 4.2. MODERNIZACION DE LA GESTION
B97: 4.3. EMPODERAMIENTO LOCAL PARA LA EQUIDAD Y LA UNIDAD TERRITORIAL
B98: 4.4. CUNDINAMARCA CON ESPACIOS DE PARTICIPACION REAL
B99: 4.5. CULTURA E IDENTIDAD CUNDINAMARQUESA
B100: 4.6. TIC EN CUNDINAMARCA
B101: 4.7. CUNDINAMARCA GOBIERNO INTELIGENTE CON DECISIONES INFORMADAS
B102: 4.8. SEGUIMIENTO Y EVALUACION PARA MEJOR DESEMPEÑO
B114: ENTIDADES
B116: 1 | C116: 2 | D116: 3 | E116: 4 | F116: 5 | G116: 6 | H116: 7 | I116: 8 | J116: 9 | K116: 10 | L116: 11 | M116: 12
B117: NOMBRE ENTIDAD | C117: PONDERADOR META DE PRODUCTO CUATRIENIO (%) | D117: PONDERADOR META DE PRODUCTO 2012 (%) | E117: AVANCE PONDERADO 2012 | F117: PONDERADOR META DE PRODUCTO 2013 (%) | G117: AVANCE PONDERADO 2013 | H117: PONDERADOR META DE PRODUCTO 2014 (%) | I117: AVANCE PONDERADO 2014 | J117: PONDERADOR META DE PRODUCTO 2015 (%) | K117: AVANCE PONDERADO 2015 | L117: AVANCE PONDERADO DEL CUATRENIO | M117: ALIAS
B118: BENEFICENCIA DE CUNDINAMARCA | C118: 0.825 | D118: 0.20625 | E118: 0.20466875 | F118: 0.20625 | G118: 0.1994575 | H118: 0.20625 | I118: 0.189674375 | J118: 0.20625 | K118: 0.2002 | L118: 0.811490625 | M118: BENEFICENCIA.
B119: CORPORACION SOCIAL DE CUNDINAMARCA | C119: 0.33 | D119: 0.08304197594 | E119: 0.07886453801 | F119: 0.07647491682 | G119: 0.07146603852 | H119: 0.08524155362 | I119: 0.06946486275 | J119: 0.08524155362 | K119: 0.07363570195 | L119: 0.2934311412 | M119: CORSOCUN.
B120: EMPRESAS PÚBLICAS DE CUNDINAMARCA | C120: 2.99 | D120: 0.07606060606 | E120: 0.05333333333 | F120: 0.6509529167 | G120: 0.5600029167 | H120: 0.8728639045 | I120: 0.5980169254 | J120: 1.390122573 | K120: 0.7925483736 | L120: 2.563991953 | M120: EPC.
B121: INSTITUTO DE INFRAESTUCTURA Y CONCESIONES DE CUNDINAMARCA | C121: 5.37212 | D121: 0.7952044181 | E121: 0.6209062215 | F121: 1.316705897 | G121: 1.219235289 | H121: 1.249652064 | I121: 0.7506389397 | J121: 2.010557621 | K121: 1.371392221 | L121: 4.832178095 | M121: ICCU.
B122: INSTITUTO DEPARTAMENTAL DE CULTURA Y TURISMO | C122: 6.9022 | D122: 0.8934192308 | E122: 0.8934192308 | F122: 1.975349615 | G122: 1.834891282 | H122: 2.138076923 | I122: 1.973761923 | J122: 1.895354231 | K122: 1.538827115 | L122: 6.62995 | M122: IDECUT.
B123: INSTITUTO DE DEPORTES | C123: 5.877 | D123: 1.158336223 | E123: 1.158336223 | F123: 1.617110578 | G123: 1.57343093 | H123: 1.507895279 | I123: 1.494657016 | J123: 1.59365792 | K123: 1.205010713 | L123: 5.6822068 | M123: INDEPORTES.
B124: INSTITUTO DE ACCION COMUNAL | C124: 2.32 | D124: 0.2941337533 | E124: 0.2816337533 | F124: 0.9523322281 | G124: 0.6435055615 | H124: 0.7007201592 | I124: 0.5487116976 | J124: 0.3728138594 | K124: 0.3728138594 | L124: 2.155 | M124: IDACO.
B125: INSTITUTO DE VIVIENDA | C125: 2.08 | D125: 0.2175661616 | E125: 0.1225644375 | F125: 0.4818661616 | G125: 0.3570105582 | H125: 0.7269757576 | I125: 0.5361368687 | J125: 0.6535919192 | K125: 0.3104949495 | L125: 1.851758329 | M125: VIVIENDA.
B126: SECRETARIA DE AGRICULTURA | C126: 5.544 | D126: 1.071559965 | E126: 1.038559965 | F126: 1.473816931 | G126: 1.163859431 | H126: 1.494716931 | I126: 1.277823588 | J126: 1.503906173 | K126: 1.072157641 | L126: 5.5308 | M126: AGRICULTURA.
B127: SECRETARIA DE AMBIENTE | C127: 5.888 | D127: 0.4223535714 | E127: 0.3655232143 | F127: 1.792941031 | G127: 1.641321031 | H127: 1.810992429 | I127: 1.418531715 | J127: 1.861712969 | K127: 1.475444646 | L127: 5.740535249 | M127: AMBIENTE.
B128: SECRETARIA DE CIENCIA Y TECNOLOGÍA | C128: 3.49 | D128: 0.26175 | E128: 0.22875 | F128: 1.193916667 | G128: 1.028916667 | H128: 1.065166667 | I128: 1.013166666 | J128: 0.9691666667 | K128: 0.7049166667 | L128: 3.435999999 | M128: CIENCIA_Y_TECNOLOGIA.
B129: SECRETARIA DE COMPETITIVIDAD | C129: 3.65 | D129: 0.9118928571 | E129: 0.6189098571 | F129: 1.039247619 | G129: 0.9138690476 | H129: 0.8967119048 | I129: 0.7064643334 | J129: 0.802147619 | K129: 0.714697619 | L129: 3.415656571 | M129: COMPETITIVIDAD.
B130: SECRETARIA DE COOPERACION Y ENLACE INSTITUCIONAL | C130: 0.165 | D130: 0.0103125 | E130: 0.0103125 | F130: 0.0928125 | G130: 0.0928125 | H130: 0.04125 | I130: 0.04125 | J130: 0.020625 | K130: 0.020625 | L130: 0.165 | M130: COOPERACION.
B131: SECRETARIA DE DESARROLLO SOCIAL | C131: 13.11984 | D131: 2.374662413 | E131: 1.796911485 | F131: 2.887306434 | G131: 2.553145184 | H131: 3.845640989 | I131: 3.217247347 | J131: 4.012230163 | K131: 3.279665326 | L131: 11.83007267 | M131: DESARROLLO_SOCIAL.
B132: SECRETARIA DE EDUCACION | C132: 9.21764 | D132: 1.623155946 | E132: 1.427579616 | F132: 3.028883925 | G132: 2.878927258 | H132: 2.393244223 | I132: 2.082977422 | J132: 2.172355906 | K132: 1.774242811 | L132: 9.191076154 | M132: EDUCACION.
B133: SECRETARIA DE FUNCION PUBLICA | C133: 1.244 | D133: 0.3400178571 | E133: 0.3400178571 | F133: 0.3317678571 | G133: 0.3317678571 | H133: 0.3204678571 | I133: 0.3204678571 | J133: 0.2517464286 | K133: 0.2428464286 | L133: 1.2351 | M133: FUNCION_PUBLICA.
B134: SECRETARIA DE GENERAL | C134: 0.356 | D134: 0.005085714286 | E134: 0.005085714286 | F134: 0.09281428571 | G134: 0.09281428571 | H134: 0.08391428571 | I134: 0.04769128587 | J134: 0.1741857143 | K134: 0.1462142857 | L134: 0.348117143 | M134: GENERAL.
B135: SECRETARIA DE GOBIERNO | C135: 7.236 | D135: 1.067220619 | E135: 0.7039706186 | F135: 2.067860162 | G135: 1.656573734 | H135: 2.069621369 | I135: 1.986917161 | J135: 2.031297851 | K135: 1.482189993 | L135: 6.739076221 | M135: GOBIERNO.
B136: SECRETARIA DE HACIENDA | C136: 0.33 | D136: 0.06966666667 | E136: 0.06966666667 | F136: 0.0935 | G136: 0.0935 | H136: 0.07883333333 | I136: 0.07883333333 | J136: 0.088 | K136: 0.08433333333 | L136: 0.33 | M136: HACIENDA.
B137: SECRETARIA DE INTEGRACION REGIONAL | C137: 1.245 | D137: 0.1576923077 | E137: 0.1576923077 | F137: 0.3811923077 | G137: 0.3811923077 | H137: 0.4416730769 | I137: 0.3666730769 | J137: 0.2644423077 | K137: 0.2314423077 | L137: 1.203500001 | M137: INTEGRACION_REGIONAL.
B138: SECRETARIA DE LAS TICS | C138: 4.724 | D138: 0.5029071429 | E138: 0.4356071429 | F138: 1.469451355 | G138: 0.9483591727 | H138: 1.276665312 | I138: 0.8396619805 | J138: 1.47497619 | K138: 0.7651338095 | L138: 4.326904113 | M138: TIC.
B139: SECRETARIA DE MINAS Y ENERGÍA | C139: 1.245 | D139: 0.1401527778 | E139: 0.08827777778 | F139: 0.2969305556 | G139: 0.2969305556 | H139: 0.3583333333 | I139: 0.3027777778 | J139: 0.4495833333 | K139: 0.3483333333 | L139: 1.1612625 | M139: MINAS.
B140: SECRETARIA DE MOVILIDAD | C140: 0.83 | D140: 0.1579983108 | E140: 0.07731081081 | F140: 0.2295266892 | G140: 0.1355129392 | H140: 0.2307641892 | I140: 0.2138722973 | J140: 0.2117108108 | K140: 0.1981972973 | L140: 0.8164864865 | M140: MOVILIDAD.
B141: SECRETARIA DE PLANEACION | C141: 4.563 | D141: 0.9000845238 | E141: 0.7527630952 | F141: 1.086344048 | G141: 0.8867440476 | H141: 1.088577381 | I141: 0.8433565476 | J141: 1.487994048 | K141: 0.87625 | L141: 3.952164286 | M141: PLANEACION.
B142: SECRETARIA DE PRENSA | C142: 0.089 | D142: 0.02225 | E142: 0.02225 | F142: 0.02225 | G142: 0.02225 | H142: 0.02225 | I142: 0.02225 | J142: 0.02225 | K142: 0.02225 | L142: 0.089 | M142: PRENSA.
B143: SECRETARIA DE SALUD | C143: 9.212 | D143: 1.182799309 | E143: 1.122074697 | F143: 2.394455483 | G143: 2.305886611 | H143: 3.029422499 | I143: 2.635155475 | J143: 2.605322708 | K143: 2.407582393 | L143: 8.781528504 | M143: SALUD.
B144: UAEGRDC | C144: 1.16 | D144: 0.1345689655 | E144: 0.1345689655 | F144: 0.3548903941 | G144: 0.3548903941 | H144: 0.3679211823 | I144: 0.2990418719 | J144: 0.3026194581 | K144: 0.1445061576 | L144: 1.16 | M144: UAEPRAE.
B145: PDD | C145: 100.0048 | D145: 15.08014382 | E145: 12.80955878 | F145: 27.60695056 | G145: 24.2382731 | H145: 28.4038426 | I145: 23.87522234 | J145: 28.91386302 | K145: 21.85595198 | L145: 94.27228684

Sheet calculo_ESP (hidden)
A2: OBJETIVOS
A3: 1 | B3: 2 | C3: 3 | D3: 4 | E3: 5 | F3: 6 | G3: 7 | H3: 8 | I3: 9 | J3: 10 | K3: 11
B4: Valores
A5: OBJETIVOS | B5: Suma de PONDERADOR META DE PRODUCTO CUATRIENIO (%) | C5: Suma de PONDERADOR META DE PRODUCTO 2012 (%) | D5: Suma de AVANCE PONDERADO 2012 | E5: Suma de PONDERADOR META DE PRODUCTO 2013 (%) | F5: Suma de AVANCE PONDERADO 2013 | G5: Suma de PONDERADOR META DE PRODUCTO 2014 (%) | H5: Suma de AVANCE PONDERADO 2014 | I5: Suma de PONDERADOR META DE PRODUCTO 2015 (%) | J5: Suma de AVANCE PONDERADO 2015 | K5: Suma de AVANCE PONDERADO DEL CUATRENIO
A6: 1-DESARROLLO INTEGRAL DEL SER HUMANO | B6: 49.50452 | C6: 8.357622781 | D6: 7.099184461 | E6: 13.09423756 | F6: 11.78192812 | G6: 14.07163588 | H6: 12.63329135 | I6: 13.98102377 | J6: 10.89106356 | K6: 46.36939361
A7: 2-SOSTENIBILIDAD Y RURALIDAD | B7: 16.572 | C7: 1.809593108 | D7: 1.730035478 | E7: 4.430176273 | F7: 4.002973773 | G7: 4.792619447 | H7: 3.7315391 | I7: 5.539611172 | J7: 3.737986817 | K7: 15.6586522
A8: 3-COMPETITIVIDAD, INNOVACION, MOVILIDAD Y REGION | B8: 15.16664 | C8: 2.253562283 | D8: 1.750502063 | E8: 4.444771017 | F8: 3.99000904 | G8: 4.343401967 | H8: 3.32863068 | I8: 4.124904732 | J8: 3.411118536 | K8: 14.56608756
A9: 4-FORTALECIMIENTO INSTITUCIONAL PARA GENERAR VALOR DE LO PUBLICO | B9: 18.76164 | C9: 2.659365643 | D9: 2.229836777 | E9: 5.637765706 | F9: 4.463362163 | G9: 5.196185304 | H9: 4.181761217 | I9: 5.268323347 | J9: 3.815783067 | K9: 17.67815348
A10: Total general | B10: 100.0048 | C10: 15.08014382 | D10: 12.80955878 | E10: 27.60695056 | F10: 24.2382731 | G10: 28.4038426 | H10: 23.87522234 | I10: 28.91386302 | J10: 21.85595198 | K10: 94.27228684
A15: PROGRAMAS
B18: Valores
A19: PROGRAMAS | B19: Suma de PONDERADOR META DE PRODUCTO CUATRIENIO (%) | C19: Suma de PONDERADOR META DE PRODUCTO 2012 (%) | D19: Suma de AVANCE PONDERADO 2012 | E19: Suma de PONDERADOR META DE PRODUCTO 2013 (%) | F19: Suma de AVANCE PONDERADO 2013 | G19: Suma de PONDERADOR META DE PRODUCTO 2014 (%) | H19: Suma de AVANCE PONDERADO 2014 | I19: Suma de PONDERADOR META DE PRODUCTO 2015 (%) | J19: Suma de AVANCE PONDERADO 2015 | K19: Suma de AVANCE PONDERADO DEL CUATRENIO
A20: 1.1. INICIO PAREJO DE LA VIDA | B20: 3.394 | C20: 0.5620211111 | D20: 0.4682088506 | E20: 1.040910347 | F20: 0.9347992125 | G20: 0.9181344794 | H20: 0.6558669794 | I20: 0.8729340627 | J20: 0.5832733127 | K20: 2.829571835
A21: 1.2. ALIANZA POR LA INFANCIA | B21: 5.661 | C21: 1.167653452 | D21: 0.9806649609 | E21: 1.423609076 | F21: 1.294810369 | G21: 1.476216694 | H21: 1.396204408 | I21: 1.593520778 | J21: 1.471105599 | K21: 5.389366464
A22: 1.3. VIVE Y CRECE ADOLESCENCIA | B22: 7.22 | C22: 1.400876966 | D22: 1.187860913 | E22: 2.322736975 | F22: 2.143481975 | G22: 1.787357419 | H22: 1.605709114 | I22: 1.709028641 | J22: 1.29392775 | K22: 6.997623561
A23: 1.4. JOVENES CONSTRUCTORES DE PAZ | B23: 6.7004 | C23: 0.9469171182 | D23: 0.8475219664 | E23: 1.637712995 | F23: 1.54465435 | G23: 2.119118939 | H23: 1.893342432 | I23: 1.996650947 | J23: 1.515236494 | K23: 6.314997464
A24: 1.5. ADULTAS Y ADULTOS CON EQUIDAD | B24: 2.832 | C24: 0.4649391795 | D24: 0.4388508174 | E24: 0.8986477695 | F24: 0.8763977695 | G24: 0.7452720041 | H24: 0.6734820674 | I24: 0.7231410468 | J24: 0.5585078866 | K24: 2.655391556
A25: 1.6. VEJEZ DIVINO TESORO | B25: 3.29064 | C25: 0.4850404937 | D25: 0.4437904937 | E25: 0.6546550985 | F25: 0.6448284318 | G25: 1.001616018 | H25: 0.9323468417 | I25: 1.14932839 | J25: 1.050770354 | K25: 3.109637845
A26: 1.7. VICTIMAS DEL CONFLICTO ARMADO CON GARANTIA DE DERECHOS | B26: 9.526 | C26: 1.606221493 | D26: 1.382615993 | E26: 2.413275488 | F26: 1.97839987 | G26: 2.814644185 | H26: 2.716212727 | I26: 2.691858833 | J26: 2.021635861 | K26: 8.921532833
A27: 1.8. FAMILIAS FORJADORAS DE SOCIEDAD | B27: 7.561 | C27: 1.036848452 | D27: 0.8584529781 | E27: 1.977734065 | F27: 1.753491353 | G27: 2.517000818 | H27: 2.235534304 | I27: 2.029416665 | J27: 1.599544227 | K27: 7.282633954
A28: 1.9. MUJERES LIDERES Y LIBRES DE VIOLENCIA | B28: 1.494 | C28: 0.3992068966 | D28: 0.2928103448 | E28: 0.3436724138 | F28: 0.3215624138 | G28: 0.3353491379 | H28: 0.2205091379 | I28: 0.4157715517 | J28: 0.3951465517 | K28: 1.494
A29: 1.10. EQUIPAMIENTO SOCIAL PARA EL DESARROLLO INTEGRAL | B29: 1.82548 | C29: 0.287897619 | D29: 0.1984071429 | E29: 0.3812833333 | F29: 0.289502381 | G29: 0.3569261905 | H29: 0.3040833333 | I29: 0.7993728571 | J29: 0.4019155238 | K29: 1.374638095
A30: 2.1. TERRITORIO SOPORTE PARA EL DESARROLLO | B30: 1.16 | C30: 0.1353 | D30: 0.1353 | E30: 0.1547 | F30: 0.1547 | G30: 0.263 | H30: 0.155 | I30: 0.607 | J30: 0.343 | K30: 0.838
A31: 2.2. BIENES Y SERVICIOS AMBIENTALES PATRIMONIO DE CUNDINAMARCA | B31: 2.315 | C31: 0.258675 | D31: 0.2464875 | E31: 0.7181956897 | F31: 0.6450756897 | G31: 0.7571206897 | H31: 0.5889456897 | I31: 0.5810086207 | J31: 0.4737586207 | K31: 2.315
A32: 2.3. AGUA POTABLE Y SANEAMIENTO BASICO PARA LA SALUD DE LOS CUNDINAMARQUESES | B32: 2.74 | C32: 0.07606060606 | D32: 0.05333333333 | E32: 0.6009529167 | F32: 0.5597029167 | G32: 0.7728639045 | H32: 0.4980169254 | I32: 1.290122573 | J32: 0.6925483736 | K32: 2.313991953
A33: 2.4. DESARROLLO COMPETITIVO DEL SECTOR AGROPECUARIO | B33: 2.734 | C33: 0.62975 | D33: 0.62975 | E33: 0.7345 | F33: 0.6123425 | G33: 0.70975 | H33: 0.6124637992 | I33: 0.66 | J33: 0.5766816 | K33: 2.734
A34: 2.5. DESARROLLO RURAL INTEGRAL | B34: 2.15 | C34: 0.3043099647 | D34: 0.3043099647 | E34: 0.6117169312 | F34: 0.5119169312 | G34: 0.6433419312 | H34: 0.5237347884 | I34: 0.5906311728 | J34: 0.3167810406 | K34: 2.15
A35: 2.6. GESTION INTEGRAL DE RESIDUOS SOLIDOS | B35: 1.253 | C35: 0.02225 | D35: 0.02225 | E35: 0.394673913 | F35: 0.349173913 | G35: 0.2573717391 | H35: 0.2243717401 | I35: 0.5787043478 | J35: 0.5089717391 | K35: 1.158392392
A36: 2.7. GESTION DEL RIESGO Y ADAPTACION AL CAMBIO Y VARIABILIDAD CLIMATICA | B36: 2.15 | C36: 0.2418189655 | D36: 0.2418189655 | E36: 0.6103653941 | F36: 0.5979903941 | G36: 0.6676711823 | H36: 0.5987918719 | I36: 0.6301444581 | J36: 0.4335311576 | K36: 2.132125001
A37: 2.8. CUNDINAMARCA VERDE: CALIDAD DE VIDA | B37: 2.07 | C37: 0.1414285714 | D37: 0.09678571429 | E37: 0.6050714286 | F37: 0.5720714286 | G37: 0.7215 | H37: 0.5302142857 | I37: 0.602 | J37: 0.3927142857 | K37: 2.017142857
A38: 3.1. CUNDINAMARCA COMPETITIVA, EMPRENDEDORA Y EMPRESARIAL | B38: 2.325 | C38: 0.6301428571 | D38: 0.4286028571 | E38: 0.624997619 | F38: 0.5669390476 | G38: 0.5904619048 | H38: 0.4570733333 | I38: 0.479397619 | J38: 0.469497619 | K38: 2.190448571
A39: 3.2. CUNDINAMARCA DINAMICA ATRACTIVA E INTERNACIONAL | B39: 1.245 | C39: 0.2847777778 | D39: 0.2171277778 | E39: 0.3708055556 | F39: 0.3048055556 | G39: 0.2905833333 | H39: 0.2135777778 | I39: 0.2988333333 | J39: 0.2988333333 | K39: 1.245
A40: 3.3. MINERIA Y ENERGIA RESPONSABLE PARA CUNDINAMARCA | B40: 0.995 | C40: 0.112375 | D40: 0.0605 | E40: 0.241375 | F40: 0.241375 | G40: 0.275 | H40: 0.275 | I40: 0.36625 | J40: 0.265 | K40: 0.9112625
A41: 3.4. INFRAESTRUCTURA Y SERVICIOS PARA LA COMPETITIVIDAD Y LA MOVILIDAD | B41: 4.37664 | C41: 0.6900551099 | D41: 0.5410598894 | E41: 1.156699252 | F41: 1.056995847 | G41: 1.164740063 | H41: 0.7016779037 | I41: 1.365145575 | J41: 1.175923994 | K41: 4.280626486
A42: 3.5. CUNDINAMARCA INNOVADORA CON CIENCIA Y TECNOLOGIA | B42: 3.74 | C42: 0.26175 | D42: 0.22875 | E42: 1.318916667 | F42: 1.153916667 | G42: 1.190166667 | H42: 1.013166666 | I42: 0.9691666667 | J42: 0.7049166667 | K42: 3.560999999
A43: 3.6. TURISMO REGIONAL | B43: 1.82 | C43: 0.1167692308 | D43: 0.1167692308 | E43: 0.5165346154 | F43: 0.4505346154 | G43: 0.6727769231 | H43: 0.5084619231 | I43: 0.5139192308 | J43: 0.3647546154 | K43: 1.71275
A44: 3.7. INTEGRACION REGIONAL | B44: 0.665 | C44: 0.1576923077 | D44: 0.1576923077 | E44: 0.2154423077 | F44: 0.2154423077 | G44: 0.1596730769 | H44: 0.1596730769 | I44: 0.1321923077 | J44: 0.1321923077 | K44: 0.665
A45: 4.1. SEGURIDAD Y CONVIVENCIA CON DERECHOS HUMANOS | B45: 2.501 | C45: 0.3592 | D45: 0.1942 | E45: 0.6836844828 | F45: 0.496502122 | G45: 0.5949456897 | H45: 0.5743206897 | I45: 0.8631698276 | J45: 0.750087931 | K45: 2.445525862
A46: 4.2. MODERNIZACION DE LA GESTION | B46: 3.73564 | C46: 0.6959465737 | D46: 0.6601891358 | E46: 1.064818612 | F46: 1.006633945 | G46: 1.031783275 | H46: 0.9687112155 | I46: 0.9430915386 | J46: 0.8364300478 | K46: 3.581236443
A47: 4.3. EMPODERAMIENTO LOCAL PARA LA EQUIDAD Y LA UNIDAD TERRITORIAL | B47: 1.673 | C47: 0.3186666667 | D47: 0.2774166667 | E47: 0.4041333333 | F47: 0.3003833333 | G47: 0.5390166667 | H47: 0.4319833333 | I47: 0.4111833333 | J47: 0.1866 | K47: 1.50805
A48: 4.4. CUNDINAMARCA CON ESPACIOS DE PARTICIPACION REAL | B48: 2.159 | C48: 0.2318144389 | D48: 0.2193144389 | E48: 0.8578388215 | F48: 0.6624221548 | G48: 0.6245583268 | H48: 0.4324791189 | I48: 0.4447884128 | J48: 0.3048303292 | K48: 1.941722772
A49: 4.5. CULTURA E IDENTIDAD CUNDINAMARQUESA | B49: 0.584 | C49: 0.03875 | D49: 0.03875 | E49: 0.19 | F49: 0.19 | G49: 0.19825 | H49: 0.19825 | I49: 0.157 | J49: 0.11575 | K49: 0.584
A50: 4.6. TIC EN CUNDINAMARCA | B50: 5.799 | C50: 0.6282201069 | D50: 0.5609201069 | E50: 1.853229742 | F50: 1.305859894 | G50: 1.622470631 | H50: 1.096043646 | I50: 1.69507952 | J50: 0.9664847586 | K50: 5.418404113
A51: 4.7. CUNDINAMARCA GOBIERNO INTELIGENTE CON DECISIONES INFORMADAS | B51: 0.825 | C51: 0.20515 | D51: 0.16225 | E51: 0.22825 | F51: 0.22825 | G51: 0.15675 | H51: 0.15675 | I51: 0.23485 | J51: 0.23485 | K51: 0.825
A52: 4.8. SEGUIMIENTO Y EVALUACION PARA MEJOR DESEMPEÑO | B52: 1.485 | C52: 0.1816178571 | D52: 0.1167964286 | E52: 0.3558107143 | F52: 0.2733107143 | G52: 0.4284107143 | H52: 0.3232232143 | I52: 0.5191607143 | J52: 0.42075 | K52: 1.374214286
A53: Total general | B53: 100.0048 | C53: 15.08014382 | D53: 12.80955878 | E53: 27.60695056 | F53: 24.2382731 | G53: 28.4038426 | H53: 23.87522234 | I53: 28.91386302 | J53: 21.85595198 | K53: 94.27228684
A62: ENTIDADES
B65: Valores
A66: ENTIDADES | B66: Suma de PONDERADOR META DE PRODUCTO CUATRIENIO (%) | C66: Suma de PONDERADOR META DE PRODUCTO 2012 (%) | D66: Suma de AVANCE PONDERADO 2012 | E66: Suma de PONDERADOR META DE PRODUCTO 2013 (%) | F66: Suma de AVANCE PONDERADO 2013 | G66: Suma de PONDERADOR META DE PRODUCTO 2014 (%) | H66: Suma de AVANCE PONDERADO 2014 | I66: Suma de PONDERADOR META DE PRODUCTO 2015 (%) | J66: Suma de AVANCE PONDERADO 2015 | K66: Suma de AVANCE PONDERADO DEL CUATRENIO
A67: BENEFICENCIA | B67: 0.825 | C67: 0.20625 | D67: 0.20466875 | E67: 0.20625 | F67: 0.1994575 | G67: 0.20625 | H67: 0.189674375 | I67: 0.20625 | J67: 0.2002 | K67: 0.811490625
A68: CORSOCUN / SERVICIOS CORPORATIVOS | B68: 0.33 | C68: 0.08304197594 | D68: 0.07886453801 | E68: 0.07647491682 | F68: 0.07146603852 | G68: 0.08524155362 | H68: 0.06946486275 | I68: 0.08524155362 | J68: 0.07363570195 | K68: 0.2934311412
A69: EPC | B69: 2.99 | C69: 0.07606060606 | D69: 0.05333333333 | E69: 0.6509529167 | F69: 0.5600029167 | G69: 0.8728639045 | H69: 0.5980169254 | I69: 1.390122573 | J69: 0.7925483736 | K69: 2.563991953
A70: ICCU | B70: 5.37212 | C70: 0.7952044181 | D70: 0.6209062215 | E70: 1.316705897 | F70: 1.219235289 | G70: 1.249652064 | H70: 0.7506389397 | I70: 2.010557621 | J70: 1.371392221 | K70: 4.832178095
A71: IDECUT | B71: 6.9022 | C71: 0.8934192308 | D71: 0.8934192308 | E71: 1.975349615 | F71: 1.834891282 | G71: 2.138076923 | H71: 1.973761923 | I71: 1.895354231 | J71: 1.538827115 | K71: 6.62995
A72: INDEPORTES | B72: 5.877 | C72: 1.158336223 | D72: 1.158336223 | E72: 1.617110578 | F72: 1.57343093 | G72: 1.507895279 | H72: 1.494657016 | I72: 1.59365792 | J72: 1.205010713 | K72: 5.6822068
A73: INSTITUTO DE ACCION COMUNAL | B73: 2.32 | C73: 0.2941337533 | D73: 0.2816337533 | E73: 0.9523322281 | F73: 0.6435055615 | G73: 0.7007201592 | H73: 0.5487116976 | I73: 0.3728138594 | J73: 0.3728138594 | K73: 2.155
A74: INSTITUTO DE VIVIENDA | B74: 2.08 | C74: 0.2175661616 | D74: 0.1225644375 | E74: 0.4818661616 | F74: 0.3570105582 | G74: 0.7269757576 | H74: 0.5361368687 | I74: 0.6535919192 | J74: 0.3104949495 | K74: 1.851758329
A75: SECRETARIA DE AGRICULTURA | B75: 5.544 | C75: 1.071559965 | D75: 1.038559965 | E75: 1.473816931 | F75: 1.163859431 | G75: 1.494716931 | H75: 1.277823588 | I75: 1.503906173 | J75: 1.072157641 | K75: 5.5308
A76: SECRETARIA DE AMBIENTE | B76: 5.888 | C76: 0.4223535714 | D76: 0.3655232143 | E76: 1.792941031 | F76: 1.641321031 | G76: 1.810992429 | H76: 1.418531715 | I76: 1.861712969 | J76: 1.475444646 | K76: 5.740535249
A77: SECRETARIA DE CIENCIA Y TECNOLOGÍA | B77: 3.49 | C77: 0.26175 | D77: 0.22875 | E77: 1.193916667 | F77: 1.028916667 | G77: 1.065166667 | H77: 1.013166666 | I77: 0.9691666667 | J77: 0.7049166667 | K77: 3.435999999
A78: SECRETARIA DE COMPETITIVIDAD | B78: 3.65 | C78: 0.9118928571 | D78: 0.6189098571 | E78: 1.039247619 | F78: 0.9138690476 | G78: 0.8967119048 | H78: 0.7064643334 | I78: 0.802147619 | J78: 0.714697619 | K78: 3.415656571
A79: SECRETARIA DE COOPERACION | B79: 0.165 | C79: 0.0103125 | D79: 0.0103125 | E79: 0.0928125 | F79: 0.0928125 | G79: 0.04125 | H79: 0.04125 | I79: 0.020625 | J79: 0.020625 | K79: 0.165
A80: SECRETARIA DE DESARROLLO SOCIAL | B80: 13.11984 | C80: 2.374662413 | D80: 1.796911485 | E80: 2.887306434 | F80: 2.553145184 | G80: 3.845640989 | H80: 3.217247347 | I80: 4.012230163 | J80: 3.279665326 | K80: 11.83007267
A81: SECRETARIA DE EDUCACION | B81: 9.21764 | C81: 1.623155946 | D81: 1.427579616 | E81: 3.028883925 | F81: 2.878927258 | G81: 2.393244223 | H81: 2.082977422 | I81: 2.172355906 | J81: 1.774242811 | K81: 9.191076154
A82: SECRETARIA DE FUNCION PUBLICA | B82: 1.244 | C82: 0.3400178571 | D82: 0.3400178571 | E82: 0.3317678571 | F82: 0.3317678571 | G82: 0.3204678571 | H82: 0.3204678571 | I82: 0.2517464286 | J82: 0.2428464286 | K82: 1.2351
A83: SECRETARIA DE GENERAL | B83: 0.356 | C83: 0.005085714286 | D83: 0.005085714286 | E83: 0.09281428571 | F83: 0.09281428571 | G83: 0.08391428571 | H83: 0.04769128587 | I83: 0.1741857143 | J83: 0.1462142857 | K83: 0.348117143
A84: SECRETARIA DE GOBIERNO | B84: 7.236 | C84: 1.067220619 | D84: 0.7039706186 | E84: 2.067860162 | F84: 1.656573734 | G84: 2.069621369 | H84: 1.986917161 | I84: 2.031297851 | J84: 1.482189993 | K84: 6.739076221
A85: SECRETARIA DE HACIENDA | B85: 0.33 | C85: 0.06966666667 | D85: 0.06966666667 | E85: 0.0935 | F85: 0.0935 | G85: 0.07883333333 | H85: 0.07883333333 | I85: 0.088 | J85: 0.08433333333 | K85: 0.33
A86: SECRETARIA DE INTEGRACION REGIONAL | B86: 1.245 | C86: 0.1576923077 | D86: 0.1576923077 | E86: 0.3811923077 | F86: 0.3811923077 | G86: 0.4416730769 | H86: 0.3666730769 | I86: 0.2644423077 | J86: 0.2314423077 | K86: 1.203500001
A87: SECRETARIA DE LAS TICS | B87: 4.724 | C87: 0.5029071429 | D87: 0.4356071429 | E87: 1.469451355 | F87: 0.9483591727 | G87: 1.276665312 | H87: 0.8396619805 | I87: 1.47497619 | J87: 0.7651338095 | K87: 4.326904113
A88: SECRETARIA DE MINAS | B88: 1.245 | C88: 0.1401527778 | D88: 0.08827777778 | E88: 0.2969305556 | F88: 0.2969305556 | G88: 0.3583333333 | H88: 0.3027777778 | I88: 0.4495833333 | J88: 0.3483333333 | K88: 1.1612625
A89: SECRETARIA DE MOVILIDAD | B89: 0.83 | C89: 0.1579983108 | D89: 0.07731081081 | E89: 0.2295266892 | F89: 0.1355129392 | G89: 0.2307641892 | H89: 0.2138722973 | I89: 0.2117108108 | J89: 0.1981972973 | K89: 0.8164864865
A90: SECRETARIA DE PLANEACION | B90: 4.563 | C90: 0.9000845238 | D90: 0.7527630952 | E90: 1.086344048 | F90: 0.8867440476 | G90: 1.088577381 | H90: 0.8433565476 | I90: 1.487994048 | J90: 0.87625 | K90: 3.952164286
A91: SECRETARIA DE PRENSA | B91: 0.089 | C91: 0.02225 | D91: 0.02225 | E91: 0.02225 | F91: 0.02225 | G91: 0.02225 | H91: 0.02225 | I91: 0.02225 | J91: 0.02225 | K91: 0.089
A92: SECRETARIA DE SALUD | B92: 9.212 | C92: 1.182799309 | D92: 1.122074697 | E92: 2.394455483 | F92: 2.305886611 | G92: 3.029422499 | H92: 2.635155475 | I92: 2.605322708 | J92: 2.407582393 | K92: 8.781528504
A93: UAEGRDC | B93: 1.16 | C93: 0.1345689655 | D93: 0.1345689655 | E93: 0.3548903941 | F93: 0.3548903941 | G93: 0.3679211823 | H93: 0.2990418719 | I93: 0.3026194581 | J93: 0.1445061576 | K93: 1.16
A94: Total general | B94: 100.0048 | C94: 15.08014382 | D94: 12.80955878 | E94: 27.60695056 | F94: 24.2382731 | G94: 28.4038426 | H94: 23.87522234 | I94: 28.91386302 | J94: 21.85595198 | K94: 94.27228684

Sheet Meta de Producto
B1: SECRETARIA DE PLANEACIÓN DE CUNDINAMARCA
B2: Dirección de Seguiemiento y Evaluación
D3: SELECCIONE LA ENTIDAD | M3: TODAS. | R3: =+T4 -> 1
M4: BUSCAR META | O4: 405 | T4: =IF(K26/G25<100,K26/G25,100%)*100 -> 1
B6: ENTIDAD RESPONSABLE: | D6: =VLOOKUP($O$4,Datos_Producto!$E$4:$EE$541,3,FALSE) -> SECRETARIA DE SALUD
B8: 1. DENOMINACIÓN DE ORÍGEN | R8: Volver
B9: No. META | C9: =VLOOKUP($O$4,Datos_Producto!$E$4:$EE$541,1,FALSE) -> 405 | D9: =VLOOKUP($O$4,Datos_Producto!$E$4:$EE$541,6,FALSE) -> AUMENTAR EN LAS 40 ENTIDADES PRESTADORAS DE SERVICIOS DE SALUD DE CARÁCTER PÚBLICO DEPARTAMENTAL, EN EL PERIODO DE GOBIERNO, LA CAPACIDAD DE RESPUESTA ANTE EMERGENCIAS Y DESASTRES, MEDIANTE LA IMPLEMENTACIÓN DE LOS PLANES DE EMERGENCIA Y CONTINGENCIA. | O9: Ponderador | P9: =VLOOKUP($O$4,Datos_Producto!$E$4:$EE$541,13,FALSE) -> 0.165
B10: OBJETIVO: | C10: =VLOOKUP($O$4,Datos_Producto!$E$4:$EE$541,2,FALSE) -> 2-SOSTENIBILIDAD Y RURALIDAD | J10: PROGRAMA: | L10: =VLOOKUP($O$4,Datos_Producto!$E$4:$EE$541,4,FALSE) -> 2.7. GESTION DEL RIESGO Y ADAPTACION AL CAMBIO Y VARIABILIDAD CLIMATICA
B11: SUBPROGRAMA: | C11: =VLOOKUP($O$4,Datos_Producto!$E$4:$EE$541,5,FALSE) -> GESTIÓN INTEGRAL DEL RIESGO
B13: META DE RESULTADO ASOCIADA | D13: =VLOOKUP($O$4,Datos_Producto!$E$4:$EE$541,120,FALSE) -> 397 | E13: =VLOOKUP($O$4,Datos_Producto!$E$4:$EE$541,121,FALSE) -> 7 PROVINCIAS CON MANEJO EN LA GESTIÓN INTEGRAL DEL RIESGO | J13: =VLOOKUP($O$4,Datos_Producto!$E$4:$EE$541,122,FALSE) -> 0 | K13: =VLOOKUP($O$4,Datos_Producto!$E$4:$EE$541,123,FALSE) -> 
B15: 2. CARACTERIZACION DEL INDICADOR
B16: Nombre del indicador: | D16: =VLOOKUP($O$4,Datos_Producto!$E$4:$EE$541,7,FALSE) -> NO DE ENTIDADES PRESTADORES DE SALUD PÚBLICA CON PLANES DE EMERGENCIA Y CONTINGENCIA IMPLEMENTADOS | M16: Tipo | N16: =+IF(R16="I","INCREMENTO",IF(R16="M","MANTENIMIENTO","REDUCCIÓN")) -> INCREMENTO | O16: =+IF(F16="I",(+N16),IF(F16="M",(+N16)/4,)) -> 0 | P16: =+IF(G16="I",(+O16),IF(G16="M",(+O16)/4,)) -> 0 | R16: =VLOOKUP($O$4,Datos_Producto!$E$4:$EE$541,9,FALSE) -> I
B17: Indicador Base | C17: =VLOOKUP($O$4,Datos_Producto!$E$4:$EE$541,10,FALSE) -> 12 | D17: Meta Cuatrienio | F17: =VLOOKUP($O$4,Datos_Producto!$E$4:$EE$541,12,FALSE) -> 40 | G17: Indicador Cuatrenio | I17: =VLOOKUP($O$4,Datos_Producto!$E$4:$EE$541,11,FALSE) -> 52 | J17: Indicador Alcanzado | L17: =IF($N$16="MANTENIMIENTO",C17,IF($N$16="REDUCCIÓN",J25,C17+J25)) -> 57 | M17: Unidad Medida | N17: =VLOOKUP($O$4,Datos_Producto!$E$4:$EE$541,8,FALSE) -> IPS
B19: 3. COMPORTAMIENTO DE LA META
B20: PROGRAMACIÓN | H20: EJECUCIÓN FÍSICA | M20: EJECUCIÓN FINANCIERA En Millones ($)
B21: Año | C21: Programado | D21: Prog. Acumulado | F21: % | G21: % Acumulado | H21: Ejecutado | I21: % Ejec | J21: Ejec. Acumulada | L21: % Ejec_ Cuatrienio | M21: Inversión Programada P.I | N21: Inversión Ejecutada | O21: Inversión Acumulada
B22: 2012 | C22: =VLOOKUP($O$4,Datos_Producto!$E$4:$EE$541,15,FALSE) -> 4 | D22: =+C22 -> 4 | F22: =VLOOKUP($O$4,Datos_Producto!$E$4:$EE$541,16,FALSE)*100 -> 10 | G22: =+F22 -> 10 | H22: =VLOOKUP($O$4,Datos_Producto!$E$4:$EE$541,17,FALSE) -> 4 | I22: =VLOOKUP($O$4,Datos_Producto!$E$4:$EE$541,22,FALSE) -> 100 | J22: =IF($N$16="MANTENIMIENTO",H22,H22) -> 4 | K22: =+IF($N$16="INCREMENTO",(J22),IF($N$16="MANTENIMIENTO",(J22),$C$17-J22 ))*100/$F$17 -> 10 | L22: =+IF(K22<100,K22,100) -> 10 | M22: =VLOOKUP($O$4,Datos_Producto!$E$4:$EE$541,23,FALSE)/1000000 -> 40 | N22: =VLOOKUP($O$4,Datos_Producto!$E$4:$EE$541,31,FALSE)/1000000 -> 37 | O22: =+N22 -> 37
B23: 2013 | C23: =VLOOKUP($O$4,Datos_Producto!$E$4:$EE$541,43,FALSE) -> 10 | D23: =IF($N$16="MANTENIMIENTO",C23,IF($N$16="REDUCCIÓN",C23,D22+C23)) -> 14 | F23: =VLOOKUP($O$4,Datos_Producto!$E$4:$EE$541,44,FALSE)*100 -> 25 | G23: =+G22+F23 -> 35 | H23: =VLOOKUP($O$4,Datos_Producto!$E$4:$EE$541,45,FALSE) -> 7 | I23: =VLOOKUP($O$4,Datos_Producto!$E$4:$EE$541,50,FALSE) -> 70 | J23: =IF($N$16="MANTENIMIENTO",H23,IF($N$16="REDUCCIÓN",H23,H22+H23)) -> 11 | K23: =+IF($N$16="INCREMENTO",(J23),IF($N$16="MANTENIMIENTO",(J23),$C$17-J23 ))*100/$F$17 -> 27.5 | L23: =+IF(K23<100,K23,100) -> 27.5 | M23: =VLOOKUP($O$4,Datos_Producto!$E$4:$EE$541,51,FALSE)/1000000 -> 14 | N23: =VLOOKUP($O$4,Datos_Producto!$E$4:$EE$541,59,FALSE)/1000000 -> 0 | O23: =+O22+N23 -> 37
B24: 2014 | C24: =VLOOKUP($O$4,Datos_Producto!$E$4:$EE$541,71,FALSE) -> 11 | D24: =IF($N$16="MANTENIMIENTO",C24,IF($N$16="REDUCCIÓN",C24,D23+C24)) -> 25 | F24: =VLOOKUP($O$4,Datos_Producto!$E$4:$EE$541,72,FALSE)*100 -> 27.5 | G24: =+G23+F24 -> 62.5 | H24: =VLOOKUP($O$4,Datos_Producto!$E$4:$EE$541,75,FALSE) -> 13 | I24: =VLOOKUP($O$4,Datos_Producto!$E$4:$EE$541,80,FALSE) -> 100 | J24: =IF($N$16="MANTENIMIENTO",H24,IF($N$16="REDUCCIÓN",H24,H22+H23+H24)) -> 24 | K24: =+IF($N$16="INCREMENTO",(J24),IF($N$16="MANTENIMIENTO",(J24),$C$17-J24 ))*100/$F$17 -> 60 | L24: =+IF(K24<100,K24,100) -> 60 | M24: =VLOOKUP($O$4,Datos_Producto!$E$4:$EE$541,129,FALSE)/1000000 -> 0 | N24: =VLOOKUP($O$4,Datos_Producto!$E$4:$EE$541,130,FALSE)/1000000 -> 0 | O24: =+O23+N24 -> 37
B25: 2015 | C25: =VLOOKUP($O$4,Datos_Producto!$E$4:$EE$541,83,FALSE) -> 15 | D25: =IF($N$16="MANTENIMIENTO",C25,IF($N$16="REDUCCIÓN",C25,D24+C25)) -> 40 | F25: =VLOOKUP($O$4,Datos_Producto!$E$4:$EE$541,84,FALSE)*100 -> 37.5 | G25: =+G24+F25 -> 100 | H25: =VLOOKUP($O$4,Datos_Producto!$E$4:$EE$541,85,FALSE) -> 21 | I25: =VLOOKUP($O$4,Datos_Producto!$E$4:$EE$541,89,FALSE) -> 100 | J25: =IF($N$16="MANTENIMIENTO",H25,IF($N$16="REDUCCIÓN",H25,H22+H23+H24+H25)) -> 45 | K25: =+IF($N$16="INCREMENTO",(J25),IF($N$16="MANTENIMIENTO",(J25),$C$17-J25 ))*100/$F$17 -> 112.5 | L25: =+IF(K25<100,K25,100) -> 100 | M25: =VLOOKUP($O$4,Datos_Producto!$E$4:$EE$541,92,FALSE)/1000000 -> 31 | N25: =VLOOKUP($O$4,Datos_Producto!$E$4:$EE$541,100,FALSE)/1000000 -> 0 | O25: =+O24+N25 -> 37
B26: ACUMULADO CUATRIENIO | K26: =+VLOOKUP($O$4,Datos_Producto!$E$4:$EE$541,114,FALSE)/100 -> 1
B27: Principales Actividades Ejecutadas / Avance (Lo más relevante) | H27: Ejecución Física | M27: Ejecución Financiera
B28: =VLOOKUP($O$4,Datos_Producto!$E$4:$EE$541,128,FALSE) -> SE HAN APROBADO TREINTA Y UN (31) PLANES HOSPITALARIOS DE EMERGENCIAS Y CONTINGENCIAS CORRESPONDIENTES A LAS SIGUIENTES ESES: SAN ANTONIO DE ARBELÁEZ, SAN RAFAEL DE FUSAGASUGÁ, NUESTRA SEÑORA DEL PILAR DE MEDINA, MARÍA AUXILIADORA DE MOSQUERA, UNIDAD MÉDICA DE PACHO, DIVINO SALVADOR DE SOPÓ, TIMOTEO RIVEROS CUBILLOS DE UNE, PROFESOR JORGE CAVELIER DE CAJICÁ, SAN RAFAEL DE CÁQUEZA, NUESTRA SEÑORA DEL CARMEN DE EL COLEGIO, SAN ANTONIO DE LA VEGA, SANTA MATILDE DE MADRID, SAN VICENTE DE PAUL DE NEMOCÓN, SAN RAFAEL DE PACHO, CENTRO DE SALUD DE RICAURTE, CENTRO DE SALUD DE TAUSA, SANTA ROSA DE TENJO, SANTA BÁRBARA DE VERGARA, SALAZAR DE VILLETA HOSPITAL UNIVERSITARIO LA SAMARITANA DE BOGOTÁ, HABACUC CALDERÓN DE CARMEN DE CARUPA, CAYETANO MARÍA DE ROJAS DE EL PEÑÓN, SAN RAFAEL DE FACATATIVÁ, SAN VICENTE DE PAUL DE FÓMEQUE, SAN FRANCISCO DE GACHETÁ, SAN JOSÉ DE GUACHETÁ, PEDRO LEÓN ALVAREZ DE LA MESA, HILARIO LUGO DE SASAIMA, NUESTRA SEÑORA DEL CARMEN DE TABIO, Y MERCEDES TÉLLEZ PRADILLA DE VIANÍ.
H41: Fecha de actualización: 30 de Agosto de 2015 | M41: Fecha de actualización: 31 de Diciembre de 2014.

Sheet Datos_Producto
E3: 1 | F3: 2 | G3: 3 | H3: 4 | I3: 5 | J3: 6 | K3: 7 | L3: 8 | M3: 9 | N3: 10 | O3: 11 | P3: 12 | Q3: 13 | R3: 14 | S3: 15 | T3: 16 | U3: 17 | V3: 18 | W3: 19 | X3: 20 | Y3: 21 | Z3: 22 | AA3: 23 | AB3: 24 | AC3: 25 | AD3: 26 | AE3: 27 | AF3: 28 | AG3: 29 | AH3: 30 | AI3: 31 | AJ3: 32 | AK3: 33 | AL3: 34 | AM3: 35 | AN3: 36 | AO3: 37 | AP3: 38 | AQ3: 39 | AR3: 40 | AS3: 41 | AT3: 42 | AU3: 43 | AV3: 44 | AW3: 45 | AX3: 46 | AY3: 47 | AZ3: 48 | BA3: 49 | BB3: 50 | BC3: 51 | BD3: 52 | BE3: 53 | BF3: 54 | BG3: 55 | BH3: 56 | BI3: 57 | BJ3: 58 | BK3: 59 | BL3: 60 | BM3: 61 | BN3: 62 | BO3: 63 | BP3: 64 | BQ3: 65 | BR3: 66 | BS3: 67 | BT3: 68 | BU3: 69 | BV3: 70 | BW3: 71 | BX3: 72 | BY3: 73 | BZ3: 74 | CA3: 75 | CB3: 76 | CC3: 77 | CD3: 78 | CE3: 79 | CF3: 80 | CG3: 81 | CH3: 82 | CI3: 83 | CJ3: 84 | CK3: 85 | CL3: 86 | CM3: 87 | CN3: 88 | CO3: 89 | CP3: 90 | CQ3: 91 | CR3: 92 | CS3: 93 | CT3: 94 | CU3: 95 | CV3: 96 | CW3: 97 | CX3: 98 | CY3: 99 | CZ3: 100 | DA3: 101 | DB3: 102 | DC3: 103 | DD3: 104 | DE3: 105 | DF3: 106 | DG3: 107 | DH3: 108 | DI3: 109 | DJ3: 110 | DK3: 111 | DL3: 112 | DM3: 113 | DN3: 114 | DO3: 115 | DP3: 116 | DQ3: 117 | DR3: 118 | DS3: 119 | DT3: 120 | DU3: 121 | DV3: 122 | DW3: 123 | DX3: 124 | DY3: 125 | DZ3: 126 | EA3: 127 | EB3: 128 | EC3: 129 | ED3: 130 | EE3: 131 | EF3: 132
D4: 1 | E4: No M.P. | F4: OBJETIVO | G4: ENTIDAD | H4: PROGRAMA | I4: SUBPROGRAMA | J4: DESCRIPCION META DE PRODUCTO | K4: NOMBRE DEL INDICADOR META DE PRODUCTO | L4: UNIDAD DE MEDIDA | M4: TIPO DE META | N4: LINEA BASE INDICADOR PRODUCTO DIC. 2011 | O4: INDICADOR PRODUCTO 2015 | P4: VALOR ESPERADO DEL INDICADOR PRODUCTO CUATRIENIO | Q4: PONDERADOR META DE PRODUCTO CUATRIENIO (%) | R4: PONDERADOR META DE PRODUCTO 2012 (%) | S4: PROGRAMADO META PRODUCTO 2012 | T4: % PROGRAMADO 2012 | U4: EJECUTADO META PRODUCTO 2012 | V4: AVANCE META_2012 | W4: PORCENTAJE DE AVANCE 2012 | X4: AJUSTE AL 100% | Y4: AVANCE PONDERADO 2012 | Z4: % AVANCE REAL 2012 | AA4: RECURSOS PROGRAMADOS 2012 | AB4: RECURSO PROPIO | AC4: SGP | AD4: APORTES TRANSFERENCIAS COFINANCIACION NACION | AE4: APORTES TRANSFERENCIAS COFINANCIACION MUNICIPIOS | AF4: SGR | AG4: CREDITO | AH4: OTROS INGRESOS | AI4: RECURSOS EJECUTADOS 2012 | AJ4: RECURSO PROPIO | AK4: SGP | AL4: APORTES TRANSFERENCIAS COFINANCIACION NACION | AM4: APORTES TRANSFERENCIAS COFINANCIACION MUNICIPIOS | AN4: SGR | AO4: CREDITO | AP4: OTROS INGRESOS | AQ4: RECURSOS DE FUNCIONAMIENTO | AR4: RECURSOS GESTIONADOS | AS4: FUENTE RECURSOS GESTIONADOS | AT4: PONDERADOR META DE PRODUCTO 2013 (%) | AU4: PROGRAMADO META PRODUCTO 2013 | AV4: % PROGRAMADO o 2013 | AW4: EJECUTADO META DE PRODUCTO 2013 - 31 DE DICIEMBRE | AX4: AVANCE DE LA META A 2013 | AY4: PORCENTAJE DE AVANCE DE LA META EN 2013 | AZ4: AJUSTADO AL 100% | BA4: AVANCE PONDERADO 2013 | BB4: % AVANCE REAL 2013 | BC4: RECURSOS PROGRAMADOS 2013 | BD4: RECURSO PROPIO | BE4: SGP | BF4: APORTES TRANSFERENCIAS COFINANCIACION NACION | BG4: APORTES TRANSFERENCIAS COFINANCIACION MUNICIPIOS | BH4: SGR | BI4: CREDITO | BJ4: OTROS INGRESOS | BK4: RECURSOS EJECUTADOS 2013 | BL4: RECURSO PROPIO | BM4: SGP | BN4: APORTES TRANSFERENCIAS COFINANCIACION NACION | BO4: APORTES TRANSFERENCIAS COFINANCIACION MUNICIPIOS | BP4: SGR | BQ4: CREDITO | BR4: OTROS INGRESOS | BS4: RECURSOS DE FUNCIONAMIENTO | BT4: RECURSOS GESTIONADOS | BU4: FUENTE RECURSOS GESTIONADOS | BV4: PONDERADOR META DE PRODUCTO 2014 (%) | BW4: PROGRAMADO META PRODUCTO 2014 | BX4: % PROGRAMADO 2014 | BY4: EJECUTADO META PRODUCTO 2014 - 30 DE agosto | BZ4: EJECUTADO_2014_30 DE SEPTIEMBRE | CA4: EJECUTADO_2014_31 DE DIC | CB4: AVANCE DE LA META 2014 | CC4: PORCENTAJE DE AVANCE DE LA META EN 2014 | CD4: AJUSTADO AL 100% | CE4: AVANCE PONDERADO 2014 | CF4: %AVANCE REAL | CG4: AVANCE REAL 2014 | CH4: PONDERADOR META DE PRODUCTO 2015 (%) | CI4: PROGRAMADO META PRODUCTO 2015 | CJ4: % PROGRAMADO 2015 | CK4: EJEC. META PRODUCTO 2015_ SEPTIEMBRE 30 | CL4: FALTA | CM4: AVANCE DE LA META 2015 | CN4: PORCENTAJE DE AVANCE DE LA META EN 2015 | CO4: AJUSTADO AL 100% | CP4: AVANCE PONDERADO 2015 | CQ4: AVANCE REAL 2015 | CR4: RECURSOS PROGRAMADOS 2015 | CS4: RECURSO PROPIO | CT4: SGP | CU4: APORTES TRANSFERENCIAS COFINANCIACION NACION | CV4: APORTES TRANSFERENCIAS COFINANCIACION MUNICIPIO | CW4: SGR | CX4: CREDITO | CY4: OTROS INGRESOS | CZ4: RECURSOS EJECUTADOS 2015 | DA4: RECURSO PROPIO | DB4: SGP | DC4: APORTES TRANSFERENCIAS COFINANCIACION NACION | DD4: APORTES TRANSFERENCIAS COFINANCIACION MUNICIPIO | DE4: SGR | DF4: CREDITO | DG4: OTROS INGRESOS | DH4: RECURSOS DE FUNCIONAMIENTO | DI4: RECURSOS GESTIONADOS | DJ4: FUENTE DE LOS RECURSOS GESTIONADOS | DK4: ACUMULADO DE LA META 2012 - 2015 | DL4: ACUMULADO PONDERADOR 2012 Y 2015 | DM4: PORCENTAJE DE AVANCE ACUMULADO | DN4: AJUSTE AL 100% | DO4: AVANCE PONDERADO DEL CUATRENIO | DP4: AVANCE REAL DEL CUATRENIO | DQ4: AVANCE_CONTROLADO 2012 - 2015 | DR4: CONTROL PROGRAMACION | DS4: CONTROL PONDERADOR | DT4: META_RESULTADO1 | DU4: Nombre MetaR1 | DV4: META_RESULTADO2 | DW4: Nombre MetaR2 | DX4: META_RESULTADO3 | DY4: META_RESULTADO4 | DZ4: META_RESULTADO5 | EA4: META_RESULTADO6 | EB4: LOGRO ACUMULADRO CUATRIENIO | EC4: RECURSOS PROGRAMADOS_META 2014 | ED4: RECURSOS EJECUTADOS_META 2014 | EE4: PROGRAMACION POAI_ 2016 | EF4: % EJECUTADO
D5: 2 | E5: 11 | F5: 1-DESARROLLO INTEGRAL DEL SER HUMANO | G5: SECRETARIA DE SALUD | H5: 1.1. INICIO PAREJO DE LA VIDA | I5: EXISTENCIA | J5: VACUNAR EN EL CUATRIENIO A 24.000 NIÑAS Y NIÑOS DE UN AÑO DE EDAD CON ESQUEMA DE VACUNACIÓN PAI PLUS (HEPATITIS A Y VARICELA). | K5: NO. DE NIÑOS DE 1 AÑO DE EDAD VACUNADOS CON PAI PLUS | L5: NIÑOS | M5: I | N5: 8000 | O5: =+N5+P5 -> 32000 | P5: 24000 | Q5: 0.165 | R5: =+Q5*T5 -> 0 | S5: 0 | T5: =IF($M5="M",0.25,(IF($P5>0,S5/$P5," "))) -> 0 | U5: 4521 | V5: =+IF(M5="I",(+U5),IF(M5="M",(+U5)/4,)) -> 4521 | W5: =IF(S5=0,0,+U5*100/S5) -> 0 | X5: =+IF(W5<100,W5,100) -> 0 | Y5: =+(X5*R5)/100 -> 0 | Z5: =+IF(U5>S5,100,X5) -> 100 | AA5: 0 | AB5: 0 | AC5: 0 | AD5: 0 | AE5: 0 | AF5: 0 | AG5: 0 | AH5: 0 | AI5: 1200000000 | AJ5: 1200000000 | AK5: 0 | AL5: 0 | AM5: 0 | AN5: 0 | AO5: 0 | AP5: 0 | AQ5: 0 | AR5: 0 | AS5: - | AT5: =+Q5*AV5 -> 0.055 | AU5: 8000 | AV5: =IF($M5="M",0.25,(IF($P5>0,AU5/$P5," "))) -> 0.3333333333 | AW5: 12515 | AX5: =+IF(M5="I",(+AW5),IF(M5="M",(+AW5)/4,)) -> 12515 | AY5: =IF(AU5=0,0,+AW5*100/AU5) -> 156.4375 | AZ5: =+IF(AY5<100,AY5,100) -> 100 | BA5: =+(AZ5*AT5)/100 -> 0.055 | BB5: =+IF(AW5>AU5,100,AZ5) -> 100 | BC5: 992000000 | BD5: 0 | BE5: 992000000 | BF5: 0 | BG5: 0 | BH5: 0 | BI5: 0 | BJ5: 0 | BK5: 1330000000 | BL5: 1300000000 | BM5: 30000000 | BN5: 0 | BO5: 0 | BP5: 0 | BQ5: 0 | BR5: 0 | BS5: 0 | BT5: 0 | BU5: 0 | BV5: =+Q5*BX5 -> 0.055 | BW5: 8000 | BX5: =IF($M5="M",0.25,(IF($P5>0,BW5/$P5," "))) -> 0.3333333333 | BY5: 7511 | BZ5: 7511 | CA5: 8000 | CB5: =+IF(M5="I",(+CA5),IF(M5="M",(+CA5)/4,)) -> 8000 | CC5: =IF(BW5=0,0,+CA5*100/BW5) -> 100 | CD5: =+IF(CC5<100,CC5,100) -> 100 | CE5: =+(CD5*BV5)/100 -> 0.055 | CF5: =+IF(BZ5>BW5,100,CD5) -> 100 | CG5: =(CC5*BV5)/100 -> 0.055 | CH5: =+Q5*CJ5 -> 0.055 | CI5: 8000 | CJ5: =IF($M5="M",0.25,(IF($P5>0,CI5/$P5," "))) -> 0.3333333333 | CK5: 0 | CL5: =+CI5-CK5 -> 8000 | CM5: =+IF(M5="I",(+CK5),IF(M5="M",(+CK5)/4,)) -> 0 | CN5: =IF(CI5=0,0,+CK5*100/CI5) -> 0 | CO5: =+IF(CN5<100,CN5,100) -> 0 | CP5: =+(CO5*CH5)/100 -> 0 | CQ5: =+(CN5*CH5)/100 -> 0 | CR5: 960000000 | CS5: 960000000 | CT5: 0 | CU5: 0 | CV5: 0 | CW5: 0 | CX5: 0 | CY5: 0 | CZ5: 0 | DA5: 0 | DB5: 0 | DC5: 0 | DD5: 0 | DE5: 0 | DF5: 0 | DG5: 0 | DH5: 0 | DI5: 0 | DJ5: 0 | DK5: =+IF(M5="I",(+U5+AW5+CA5+CK5),IF(M5="M",(+U5+AW5+CA5+CK5)/4,)) -> 25036 | DL5: =+R5+AT5+BV5+CH5 -> 0.165 | DM5: =+DK5*100/P5 -> 104.3166667 | DN5: =+IF(DM5<100,DM5,100) -> 100 | DO5: =+(DN5*Q5)/100 -> 0.165 | DP5: =+IF(((DN5*Q5)/100)<Q5, ((DN5*Q5)/100),Q5) -> 0.165 | DQ5: =+IF(DL5<DP5,DL5,DP5) -> 0.165 | DR5: =+T5+AV5+BX5+CJ5 -> 1 | DS5: =+Q5-R5-AT5-BV5-CH5 -> 0 | DT5: 3 | DU5: REDUCIR EN EL CUATRIENIO LA TASA DE MORTALIDAD INFANTIL (0 - 1 AÑO) A 11 POR 1.000 NACIDOS VIVOS | EB5: ESTE BIOLOGICO SE INCLUYO EN ESQUEMA NACIONAL DE VACUNACION. SIEMBARGO EL LOGRO ALCANZADO ES QUE SE SUPERO LA META ANTES DE TERMINAR EL CUATRIENIO. | EC5: 0 | EE5: 0
D6: 3 | E6: 12 | F6: 1-DESARROLLO INTEGRAL DEL SER HUMANO | G6: SECRETARIA DE SALUD | H6: 1.1. INICIO PAREJO DE LA VIDA | I6: EXISTENCIA | J6: ATENDER CON LA ESTRATEGIA DE ATENCIÓN INTEGRAL PARA EL INICIO PAREJO DE LA VIDA EN EL 100% DE LOS HOSPITALES DE LA RED PÚBLICA A LOS NIÑOS Y NIÑAS DE 0 A 5 AÑOS. | K6: % DE HOSPITALES CON IMPLEMENTACIÓN DE LA ESTRATEGIA DE ATENCIÓN INTEGRAL PARA EL INICIO PAREJO DE LA VIDA | L6: % DE HOSPITALES | M6: I | N6: 0 | O6: =+N6+P6 -> 100 | P6: 100 | Q6: 0.165 | R6: 0.0165 | S6: 10 | T6: 0.1 | U6: 10 | V6: 10 | W6: 100 | X6: 100 | Y6: 0.0165 | Z6: 100 | AA6: 1241000000 | AB6: 0 | AC6: 1241000000 | AD6: 0 | AE6: 0 | AF6: 0 | AG6: 0 | AH6: 0 | AI6: 1042693000 | AJ6: 554101000 | AK6: 454192000 | AL6: 0 | AM6: 0 | AN6: 0 | AO6: 0 | AP6: 34400000 | AQ6: 0 | AR6: 0 | AS6: - | AT6: 0.045045 | AU6: 27.3 | AV6: 0.273 | AW6: 27.3 | AX6: 27.3 | AY6: 100 | AZ6: 100 | BA6: 0.045045 | BB6: 100 | BC6: 1609000000 | BD6: 1379000000 | BE6: 230000000 | BF6: 0 | BG6: 0 | BH6: 0 | BI6: 0 | BJ6: 0 | BK6: 1004465000 | BL6: 404465000 | BM6: 600000000 | BN6: 0 | BO6: 0 | BP6: 0 | BQ6: 0 | BR6: 0 | BS6: 0 | BT6: 0 | BU6: 0 | BV6: 0.053955 | BW6: 32.7 | BX6: 0.327 | BY6: 25 | BZ6: 25 | CA6: 30 | CB6: 30 | CC6: 91.74311927 | CD6: 91.74311927 | CE6: 0.0495 | CF6: 91.74311927 | CG6: 0.0495 | CH6: 0.0495 | CI6: 30 | CJ6: 0.3 | CK6: 30 | CL6: 0 | CM6: 30 | CN6: 100 | CO6: 100 | CP6: 0.0495 | CQ6: 0.0495 | CR6: 1379000000 | CS6: 0 | CT6: 1379000000 | CU6: 0 | CV6: 0 | CW6: 0 | CX6: 0 | CY6: 0 | CZ6: 0 | DA6: 0 | DB6: 0 | DC6: 0 | DD6: 0 | DE6: 0 | DF6: 0 | DG6: 0 | DH6: 0 | DI6: 0 | DJ6: 0 | DK6: 97.3 | DL6: 0.165 | DM6: 97.3 | DN6: 97.3 | DO6: 0.160545 | DP6: =+IF(((DN6*Q6)/100)<Q6, ((DN6*Q6)/100),Q6) -> 0.160545 | DQ6: 0.160545 | DR6: 1 | DS6: 0 | DT6: 4 | DU6: REDUCIR EN EL CUATRIENIO A 40 POR 100.000 NACIDOS VIVOS LA RAZÓN DE MORTALIDAD MATERNA | DV6: 6 | DW6: REDUCIR EN EL CUATRIENIO LA TASA DE MORTALIDAD DE NIÑOS Y NIÑAS DE 0 A 5 AÑOS A 14 POR MIL NACIDOS VIVOS | EB6: SE LOGRA BRINDAR UNA ATENCION INTEGRAL A LA GESTANTE, NIÑO Y NIÑAS DE CERO (0) A CINCO (5) AÑOS. | EC6: 485000000 | EE6: 100
D7: 4 | E7: 13 | F7: 1-DESARROLLO INTEGRAL DEL SER HUMANO | G7: SECRETARIA DE SALUD | H7: 1.1. INICIO PAREJO DE LA VIDA | I7: EXISTENCIA | J7: LOGRAR ANUALMENTE COBERTURA ÚTIL DE VACUNACIÓN (95%) EN NIÑOS Y NIÑAS MENORES DE UN AÑO CON ESQUEMA COMPLETO SEGÚN NACIDOS VIVOS | K7: COBERTURA ANUAL DE VACUNACIÓN EN MENORES DE UN AÑO | L7: COBERTURA DE VACUNACION | M7: M | N7: 76 | O7: =+P7 -> 95 | P7: 95 | Q7: 0.165 | R7: 0.04125 | S7: 95 | T7: 0.25 | U7: 97 | V7: 24.25 | W7: 102.1052632 | X7: 100 | Y7: 0.04125 | Z7: 100 | AA7: 442000000 | AB7: 0 | AC7: 442000000 | AD7: 0 | AE7: 0 | AF7: 0 | AG7: 0 | AH7: 0 | AI7: 362765000 | AJ7: 0 | AK7: 362765000 | AL7: 0 | AM7: 0 | AN7: 0 | AO7: 0 | AP7: 0 | AQ7: 0 | AR7: 0 | AS7: - | AT7: 0.04125 | AU7: 95 | AV7: 0.25 | AW7: 100 | AX7: 25 | AY7: 105.2631579 | AZ7: 100 | BA7: 0.04125 | BB7: 100 | BC7: 491000000 | BD7: 491000000 | BE7: 0 | BF7: 0 | BG7: 0 | BH7: 0 | BI7: 0 | BJ7: 0 | BK7: 856811981 | BL7: 0 | BM7: 811548867 | BN7: 45263114 | BO7: 0 | BP7: 0 | BQ7: 0 | BR7: 0 | BS7: 0 | BT7: 0 | BU7: 0 | BV7: 0.04125 | BW7: 95 | BX7: 0.25 | BY7: 95 | BZ7: 95 | CA7: 96 | CB7: 24 | CC7: 101.0526316 | CD7: 100 | CE7: 0.04125 | CF7: 100 | CG7: 0.04168421053 | CH7: 0.04125 | CI7: 95 | CJ7: 0.25 | CK7: 95 | CL7: 0 | CM7: 23.75 | CN7: 100 | CO7: 100 | CP7: 0.04125 | CQ7: 0.04125 | CR7: 491000000 | CS7: 0 | CT7: 491000000 | CU7: 0 | CV7: 0 | CW7: 0 | CX7: 0 | CY7: 0 | CZ7: 0 | DA7: 0 | DB7: 0 | DC7: 0 | DD7: 0 | DE7: 0 | DF7: 0 | DG7: 0 | DH7: 0 | DI7: 0 | DJ7: 0 | DK7: 97 | DL7: 0.165 | DM7: 102.1052632 | DN7: 100 | DO7: 0.165 | DP7: =+IF(M7="M",DO7,0) -> 0.165 | DQ7: 0.165 | DR7: 1 | DS7: 0 | DT7: 3 | DU7: REDUCIR EN EL CUATRIENIO LA TASA DE MORTALIDAD INFANTIL (0 - 1 AÑO) A 11 POR 1.000 NACIDOS VIVOS | EB7: SEGÚN EL COMPORTAMIENTO DE VACUNACION DEL AÑO 2015 Y TENIENDO EN CUENTA LA PROYECCION A 31 DE DICIEMBRE DE 2015 SE OBTENDRAN COBERTURAS UTILES POR ENCIAMA DEL 95% EN LOS TRAZADORES QUE EVALUAN EL PROGRAMA: - MENOR DE UN AÑO EL - DE UN (1) AÑO Y DE 5 AÑOS | EC7: 3116000000 | EE7: 0
D8: 5 | E8: 14 | F8: 1-DESARROLLO INTEGRAL DEL SER HUMANO | G8: SECRETARIA DE SALUD | H8: 1.1. INICIO PAREJO DE LA VIDA | I8: EXISTENCIA | J8: AUMENTAR EN EL CUATRIENIO LA MEDIANA DE LACTANCIA MATERNA EXCLUSIVA POR ENCIMA DE LOS 4.6 MESES. | K8: MEDIANA DE LACTANCIA MATERNA EXCLUSIVA | L8: MESES | M8: I | N8: 3.6 | O8: =+N8+P8 -> 4.6 | P8: 1 | Q8: 0.165 | R8: 0 | S8: 0 | T8: 0 | U8: 0 | V8: 0 | W8: 0 | X8: 0 | Y8: 0 | Z8: 0 | AA8: 448000000 | AB8: 0 | AC8: 448000000 | AD8: 0 | AE8: 0 | AF8: 0 | AG8: 0 | AH8: 0 | AI8: 2553000 | AJ8: 2399000 | AK8: 154000 | AL8: 0 | AM8: 0 | AN8: 0 | AO8: 0 | AP8: 0 | AQ8: 0 | AR8: 0 | AS8: - | AT8: 0.033 | AU8: 0.2 | AV8: 0.2 | AW8: 0.2 | AX8: 0.2 | AY8: 100 | AZ8: 100 | BA8: 0.033 | BB8: 100 | BC8: 893000000 | BD8: 498000000 | BE8: 395000000 | BF8: 0 | BG8: 0 | BH8: 0 | BI8: 0 | BJ8: 0 | BK8: 661251874 | BL8: 422551874 | BM8: 238700000 | BN8: 0 | BO8: 0 | BP8: 0 | BQ8: 0 | BR8: 0 | BS8: 0 | BT8: 0 | BU8: 0 | BV8: 0.066 | BW8: 0.4 | BX8: 0.4 | BY8: 4 | BZ8: 0.3 | CA8: -0.8 | CB8: -0.8 | CC8: -200 | CD8: -200 | CE8: -0.132 | CF8: -200 | CG8: -0.132 | CH8: 0.066 | CI8: 0.4 | CJ8: 0.4 | CK8: 0.1 | CL8: 0.3 | CM8: 0.1 | CN8: 25 | CO8: 25 | CP8: 0.0165 | CQ8: 0.0165 | CR8: 804000000 | CS8: 306000000 | CT8: 498000000 | CU8: 0 | CV8: 0 | CW8: 0 | CX8: 0 | CY8: 0 | CZ8: 0 | DA8: 0 | DB8: 0 | DC8: 0 | DD8: 0 | DE8: 0 | DF8: 0 | DG8: 0 | DH8: 0 | DI8: 0 | DJ8: 0 | DK8: -0.5 | DL8: 0.165 | DM8: -50 | DN8: -50 | DO8: -0.0825 | DP8: =+IF(((DN8*Q8)/100)<Q8, ((DN8*Q8)/100),Q8) -> -0.0825 | DQ8: -0.0825 | DR8: 1 | DS8: 0 | DT8: 3 | DU8: REDUCIR EN EL CUATRIENIO LA TASA DE MORTALIDAD INFANTIL (0 - 1 AÑO) A 11 POR 1.000 NACIDOS VIVOS | EB8: SI BIEN CIERTO LA META PROPUESTA DESDE EL AÑO 2012 FUE AUMENTAR EN UN PUNTO LA MEDIANA DE LACTANCIA MATERNA EXCLUSIVA TENIENDO COMO LINEA BASE 3,6 MESES, DURANTE ESTE CUATRIENIO SE HAN REALIZADO ACCIONES DESDE LA DIMENSION SAN Y GESTIONES TRASECTORIALES LAS CUALES NO FUERON SUFICIENTES PARA IMPACTAR POSITIVAMENTE EN LA DECISION DE LAS FAMILIAS DE LACTAR EXCLUSIVAMENTE DURANTE LOS PRIMEROS SEIS MESES DE VIDA. POR LO TANTO SE FIJO COMO META EN PLAN DECENAL DE SALUD PUBLICA A 2021 INCREMENTAR A 4 MESES LA LACTANCIA EXCLUSIVA Y CON UNA LINEA BASE 3 MESES A 2015. | EC8: 0 | EE8: 0
D9: 6 | E9: 15 | F9: 1-DESARROLLO INTEGRAL DEL SER HUMANO | G9: SECRETARIA DE DESARROLLO SOCIAL | H9: 1.1. INICIO PAREJO DE LA VIDA | I9: EXISTENCIA | J9: MEJORAR LA CONDICIÓN NUTRICIONAL DE 4.000 NIÑOS Y NIÑAS DE PRIMERA INFANCIA, CADA AÑO, CON COMPLEMENTO ALIMENTARIO, CON PRIORIDAD EN LA POBLACIÓN DE POBREZA EXTREMA | K9: NO. DE NIÑOS DE PRIMERA INFANCIA ATENDIDOS ANUALMENTE CON COMPLEMENTO ALIMENTARIO | L9: NIÑOS | M9: M | N9: 3936 | O9: =+P9 -> 4000 | P9: 4000 | Q9: 0.165 | R9: 0.04125 | S9: 4000 | T9: 0.25 | U9: 7871 | V9: 1967.75 | W9: 196.775 | X9: 100 | Y9: 0.04125 | Z9: 100 | AA9: 1427000000 | AB9: 1427000000 | AC9: 0 | AD9: 0 | AE9: 0 | AF9: 0 | AG9: 0 | AH9: 0 | AI9: 373817000 | AJ9: 163117000 | AK9: 0 | AL9: 0 | AM9: 0 | AN9: 210700000 | AO9: 0 | AP9: 0 | AQ9: 0 | AR9: 134611000 | AS9: FUNDASET Y COMITÉ DE CAFETEROS DE CUNDINAMARCA | AT9: 0.04125 | AU9: 4000 | AV9: 0.25 | AW9: 3200 | AX9: 800 | AY9: 80 | AZ9: 80 | BA9: 0.033 | BB9: 80 | BC9: 1031000000 | BD9: 0 | BE9: 1031000000 | BF9: 0 | BG9: 0 | BH9: 0 | BI9: 0 | BJ9: 0 | BK9: 2740962756 | BL9: 812957816 | BM9: 0 | BN9: 0 | BO9: 0 | BP9: 1928004940 | BQ9: 0 | BR9: 0 | BS9: 0 | BT9: 0 | BU9: 0 | BV9: 0.04125 | BW9: 4000 | BX9: 0.25 | BY9: 6500 | BZ9: 6500 | CA9: 6500 | CB9: 1625 | CC9: 162.5 | CD9: 100 | CE9: 0.04125 | CF9: 100 | CG9: 0.06703125 | CH9: 0.04125 | CI9: 4000 | CJ9: 0.25 | CK9: 8696 | CL9: -4696 | CM9: 2174 | CN9: 217.4 | CO9: 100 | CP9: 0.04125 | CQ9: 0.0896775 | CR9: 2379000000 | CS9: 2379000000 | CT9: 0 | CU9: 0 | CV9: 0 | CW9: 0 | CX9: 0 | CY9: 0 | CZ9: 0 | DA9: 0 | DB9: 0 | DC9: 0 | DD9: 0 | DE9: 0 | DF9: 0 | DG9: 0 | DH9: 0 | DI9: 0 | DJ9: 0 | DK9: 6566.75 | DL9: 0.165 | DM9: 164.16875 | DN9: 100 | DO9: 0.165 | DP9: =+IF(M9="M",DO9,0) -> 0.165 | DQ9: 0.165 | DR9: 1 | DS9: 0 | DT9: 7 | DU9: REDUCIR LA PREVALENCIA DE DESNUTRICIÓN GLOBAL EN NIÑOS Y NIÑAS MENORES DE 6 AÑOS A 3.5% EN EL CUATRIENIO | DV9: 8 | DW9: REDUCIR LA PREVALENCIA DE DESNUTRICIÓN CRÓNICA EN NIÑOS Y NIÑAS MENORES DE 6 AÑOS A 9,5% EN EL CUATRIENIO | EB9: CONTRIBUCIÓN A LA REDUCCIÓN DE LA PREVALENCIA DE DESNUTRICIÓN GLOBAL EN MENORES DE 6 AÑOS EN 1.4 PUNTOS PORCENTUALES EN LO CORRIDO DEL CUATRIENIO, A TRAVÉS DE ENTREGA MENSUAL DE COMPLEMENTOS NUTRICIONALES A MÁS DE 19.000 NIÑOS Y NIÑAS MENORES DE CINCO (5) AÑOS EN 116 MUNICIPIOS DEL DEPARTAMENTO (PROGRAMA NUTRIR). 89 MUNICIPIOS PRESENTARON REDUCCIONES SIGNIFICATIVAS EN LA TASA DE DESNUTRICIÓN INFANTIL FRENTE A 2012. LAS FAMILIAS BENEFICIARIAS RECIBEN CAPACITACIÓN EN TEMAS DE NUTRICIÓN Y ALIMENTACIÓN SALUDABLE, Y SE REALIZA PROCESO DE RECICLAJE DE MATERIAL INCLUIDO EN LOS PAQUETES ALIMENTARIOS. EN 2014, SE REALIZARON APOYOS A PROYECTOS PRODUCTIVOS PARA EL PROCESAMIENTO Y SIEMBRA DE QUINUA EN 5 MUNICIPIOS PRIORIZADOS. | EC9: 150000000 | EE9: 80
D10: 7 | E10: 16 | F10: 1-DESARROLLO INTEGRAL DEL SER HUMANO | G10: SECRETARIA DE DESARROLLO SOCIAL | H10: 1.1. INICIO PAREJO DE LA VIDA | I10: EXISTENCIA | J10: MEJORAR LA CONDICIÓN NUTRICIONAL DE LOS NIÑOS, ATENDIENDO ANUALMENTE A 2.000 MADRES GESTANTES Y LACTANTES CON COMPLEMENTO ALIMENTARIO, CON PRIORIDAD EN LA POBLACIÓN DE POBREZA EXTREMA | K10: NO. DE MADRES GESTANTES Y LACTANTES ATENDIDAS ANUALMENTE CON COMPLEMENTO ALIMENTARIO | L10: NIÑOS | M10: M | N10: 1532 | O10: =+P10 -> 2000 | P10: 2000 | Q10: 0.165 | R10: 0.04125 | S10: 2000 | T10: 0.25 | U10: 3064 | V10: 766 | W10: 153.2 | X10: 100 | Y10: 0.04125 | Z10: 100 | AA10: 666000000 | AB10: 666000000 | AC10: 0 | AD10: 0 | AE10: 0 | AF10: 0 | AG10: 0 | AH10: 0 | AI10: 373817000 | AJ10: 163117000 | AK10: 0 | AL10: 0 | AM10: 0 | AN10: 210700000 | AO10: 0 | AP10: 0 | AQ10: 0 | AR10: 134611000 | AS10: FUNDASET | AT10: 0.04125 | AU10: 2000 | AV10: 0.25 | AW10: 1210 | AX10: 302.5 | AY10: 60.5 | AZ10: 60.5 | BA10: 0.02495625 | BB10: 60.5 | BC10: 481000000 | BD10: 0 | BE10: 481000000 | BF10: 0 | BG10: 0 | BH10: 0 | BI10: 0 | BJ10: 0 | BK10: 1806739740 | BL10: 735544680 | BM10: 0 | BN10: 0 | BO10: 0 | BP10: 1071195060 | BQ10: 0 | BR10: 0 | BS10: 0 | BT10: 0 | BU10: 0 | BV10: 0.04125 | BW10: 2000 | BX10: 0.25 | BY10: 3000 | BZ10: 3000 | CA10: 2600 | CB10: 650 | CC10: 130 | CD10: 100 | CE10: 0.04125 | CF10: 100 | CG10: 0.053625 | CH10: 0.04125 | CI10: 2000 | CJ10: 0.25 | CK10: 4000 | CL10: -2000 | CM10: 1000 | CN10: 200 | CO10: 100 | CP10: 0.04125 | CQ10: 0.0825 | CR10: 1110000000 | CS10: 1110000000 | CT10: 0 | CU10: 0 | CV10: 0 | CW10: 0 | CX10: 0 | CY10: 0 | CZ10: 0 | DA10: 0 | DB10: 0 | DC10: 0 | DD10: 0 | DE10: 0 | DF10: 0 | DG10: 0 | DH10: 0 | DI10: 0 | DJ10: 0 | DK10: 2718.5 | DL10: 0.165 | DM10: 135.925 | DN10: 100 | DO10: 0.165 | DP10: =+IF(M10="M",DO10,0) -> 0.165 | DQ10: 0.165 | DR10: 1 | DS10: 0 | DT10: 7 | DU10: REDUCIR LA PREVALENCIA DE DESNUTRICIÓN GLOBAL EN NIÑOS Y NIÑAS MENORES DE 6 AÑOS A 3.5% EN EL CUATRIENIO | DV10: 8 | DW10: REDUCIR LA PREVALENCIA DE DESNUTRICIÓN CRÓNICA EN NIÑOS Y NIÑAS MENORES DE 6 AÑOS A 9,5% EN EL CUATRIENIO | EB10: CONTRIBUCIÓN A LA REDUCCIÓN DE LA PREVALENCIA DE BAJO PESO EN MADRES GESTANTES EN 3.2 PUNTOS PORCENTUALES EN LO CORRIDO DEL CUATRIENIO, A TRAVÉS DE ENTREGA MENSUAL DE COMPLEMENTOS NUTRICIONALES A MÁS DE 7.000 MADRES GESTANTES Y LACTANTES, EN 116 MUNICIPIOS DEL DEPARTAMENTO (PROGRAMA NUTRIR). CON LA FUNDACIÓN EXITO SE BRINDÓ APOYO EN 2014, A 400 ADOLESCENTES GESTANTES CON BAJO PESO. | EC10: 110000000 | EE10: 100
D11: 8 | E11: 17 | F11: 1-DESARROLLO INTEGRAL DEL SER HUMANO | G11: SECRETARIA DE GOBIERNO | H11: 1.1. INICIO PAREJO DE LA VIDA | I11: EXISTENCIA | J11: RED DE ACTORES INSTITUCIONALES CON PROTOCOLO INTERVIENEN EN LOS 116 MUNICIPIOS PARA LA PROTECCIÓN DE LA VIDA Y LA INTEGRIDAD FÍSICA DE LOS NIÑOS Y NIÑAS DE 0 A 5 AÑOS | K11: NO. DE MUNICIPIOS CON PROTOCOLO DE INTERVENCIÓN PARA PROTECCIÓN DE LA VIDA Y LA INTEGRIDAD FÍSICA DE LO MENORES DE 5 AÑOS | L11: MUNICIPIOS | M11: M | N11: 0 | O11: =+P11 -> 116 | P11: 116 | Q11: 0.165 | R11: 0.04125 | S11: 116 | T11: 0.25 | U11: 0 | V11: 0 | W11: 0 | X11: 0 | Y11: 0 | Z11: 0 | AA11: 0 | AB11: 0 | AC11: 0 | AD11: 0 | AE11: 0 | AF11: 0 | AG11: 0 | AH11: 0 | AI11: 0 | AJ11: 0 | AK11: 0 | AL11: 0 | AM11: 0 | AN11: 0 | AO11: 0 | AP11: 0 | AQ11: 0 | AR11: 0 | AS11: - | AT11: 0.04125 | AU11: 116 | AV11: 0.25 | AW11: 80 | AX11: 20 | AY11: 68.96551724 | AZ11: 68.96551724 | BA11: 0.02844827586 | BB11: 68.96551724 | BC11: 50000000 | BD11: 0 | BE11: 50000000 | BF11: 0 | BG11: 0 | BH11: 0 | BI11: 0 | BJ11: 0 | BK11: 0 | BL11: 0 | BM11: 0 | BN11: 0 | BO11: 0 | BP11: 0 | BQ11: 0 | BR11: 0 | BS11: 0 | BT11: 0 | BU11: 0 | BV11: 0.04125 | BW11: 116 | BX11: 0.25 | BY11: 116 | BZ11: 116 | CA11: 116 | CB11: 29 | CC11: 100 | CD11: 100 | CE11: 0.04125 | CF11: 100 | CG11: 0.04125 | CH11: 0.04125 | CI11: 0 | CJ11: 0.25 | CK11: 100 | CL11: -100 | CM11: 25 | CN11: 0 | CO11: 0 | CP11: 0 | CQ11: 0 | CR11: 0 | CS11: 0 | CT11: 0 | CU11: 0 | CV11: 0 | CW11: 0 | CX11: 0 | CY11: 0 | CZ11: 0 | DA11: 0 | DB11: 0 | DC11: 0 | DD11: 0 | DE11: 0 | DF11: 0 | DG11: 0 | DH11: 0 | DI11: 0 | DJ11: 0 | DK11: 74 | DL11: 0.165 | DM11: 63.79310345 | DN11: 63.79310345 | DO11: 0.1052586207 | DP11: =+IF(M11="M",DO11,0) -> 0.1052586207 | DQ11: 0.1052586207 | DR11: 1 | DS11: 0 | DT11: 1 | DU11: REDUCIR EN EL CUATRIENIO EN 50% LAS MUERTES POR HOMICIDIO EN NIÑOS Y NIÑAS DE 0 A 5 AÑOS | EB11: ARTICULACION PERMANENTE ENTRE LA SECRETARIA DE GOBIERNO, ICBF, COMISIARIAS DE FAMILIA CONJUNTAMENTE CON POLICIA DE INFANCIA Y ADOLESCENCIA CON EL FIN DE PROTEGER LA VIDA INTEGRIDAD DE LOS MENORES DE 0A 5 AÑOS | EC11: 0 | EE11: 4
D12: 9 | E12: 18 | F12: 1-DESARROLLO INTEGRAL DEL SER HUMANO | G12: SECRETARIA DE EDUCACION | H12: 1.1. INICIO PAREJO DE LA VIDA | I12: DESARROLLO | J12: GARANTIZAR, EN EL CUATRIENIO 8.000 CUPOS PARA LA ATENCIÓN EN EDUCACIÓN INICIAL A NIÑOS Y NIÑAS MENORES DE 5 AÑOS, PRIORIZANDO LA POBLACIÓN EN POBREZA EXTREMA QUE LO DEMANDE. | K12: NO. DE CUPOS GENERADOS PARA LA ATENCIÓN EN EDUCACIÓN INICIAL EN EL CUATRIENIO | L12: NIÑOS | M12: I | N12: 7646 | O12: =+N12+P12 -> 15646 | P12: 8000 | Q12: 0.25 | R12: 0.0625 | S12: 2000 | T12: 0.25 | U12: 2004 | V12: 2004 | W12: 100.2 | X12: 100 | Y12: 0.0625 | Z12: 100 | AA12: 3024000000 | AB12: 2000000000 | AC12: 0 | AD12: 0 | AE12: 0 | AF12: 0 | AG12: 0 | AH12: 1024000000 | AI12: 2364000000 | AJ12: 2000000000 | AK12: 0 | AL12: 364000000 | AM12: 0 | AN12: 0 | AO12: 0 | AP12: 0 | AQ12: 0 | AR12: 304420000 | AS12: ICBF | AT12: 0.0625 | AU12: 2000 | AV12: 0.25 | AW12: 2100 | AX12: 2100 | AY12: 105 | AZ12: 100 | BA12: 0.0625 | BB12: 100 | BC12: 1405000000 | BD12: 0 | BE12: 1405000000 | BF12: 0 | BG12: 0 | BH12: 0 | BI12: 0 | BJ12: 0 | BK12: 702500000 | BL12: 702500000 | BM12: 0 | BN12: 0 | BO12: 0 | BP12: 0 | BQ12: 0 | BR12: 0 | BS12: 0 | BT12: 567893472 | BU12: Colsubsidio | BV12: 0.0625 | BW12: 2000 | BX12: 0.25 | BY12: 2160 | BZ12: 2160 | CA12: 2160 | CB12: 2160 | CC12: 108 | CD12: 100 | CE12: 0.0625 | CF12: 100 | CG12: 0.0675 | CH12: 0.0625 | CI12: 2000 | CJ12: 0.25 | CK12: 1268 | CL12: 732 | CM12: 1268 | CN12: 63.4 | CO12: 63.4 | CP12: 0.039625 | CQ12: 0.039625 | CR12: 3242000000 | CS12: 3242000000 | CT12: 0 | CU12: 0 | CV12: 0 | CW12: 0 | CX12: 0 | CY12: 0 | CZ12: 0 | DA12: 0 | DB12: 0 | DC12: 0 | DD12: 0 | DE12: 0 | DF12: 0 | DG12: 0 | DH12: 0 | DI12: 0 | DJ12: 0 | DK12: 7532 | DL12: 0.25 | DM12: 94.15 | DN12: 94.15 | DO12: 0.235375 | DP12: =+IF(((DN12*Q12)/100)<Q12, ((DN12*Q12)/100),Q12) -> 0.235375 | DQ12: 0.235375 | DR12: 1 | DS12: 0 | DT12: 35 | DU12: ALCANZAR EN EL CUATRIENIO UNA COBERTURA BRUTA EN TRANSICIÓN DE 86.95%, PRIORIZANDO LA POBLACIÓN EN POBREZA EXTREMA QUE LO DEMANDE | DV12: 77 | DW12: MEJORAR EN EL CUATRIENIO LOS PROCESOS EDUCATIVOS, FORMATIVOS, PEDAGÓGICOS E INSTITUCIONALES DEL 100% DE LAS INSTITUCIONES EDUCATIVAS DE LOS MUNICIPIOS NO CERTIFICADOS | EB12: PARA CUMPLIR CON LA META DE 8.000 CUPOS DE ATENCIÓN INTEGRAL A LOS MENORES DE 5 AÑOS, SE HIZO NECESARIO CONSTITUIR ALIANZAS PARA SUBSIDIAR LA ATENCIÓN INTEGRAL EN CUIDADO, NUTRICIÓN Y EDUCACIÓN INICIAL A ESTE RANGO POBLACIONAL, HASTA SU INGRESO AL GRADO OBLIGATORIO DE TRANSICIÓN. EN EL CUATRIENIO A CORTE DE AGOSTO DE 2015, SE HAN ATENDIDO 7.374 NIÑOS Y NIÑAS MENORES DE 5 AÑOS A TRAVÉS DE SUSCRIPCIÓN DE CONVENIOS DE COOPERACIÓN, ENTRE LA SECRETARÍA DE EDUCACIÓN Y COLSUBSIDIO, DONDE COLSUBSIDIO COOPERÓ CON LA SUMA DE $ 4.221.182.325 Y LA GOBERNACIÓN DE CUNDINAMARCA- SECRETARÍA DE EDUCACIÓN APORTÓ LA SUMA DE $ 10.368.182.325. ADEMÁS EN CONVENIO CON EL MEN SE ATENDIERON 444 NIÑOS Y NIÑAS EN EL AÑO 2012. ASÍ LAS COSAS EN EL CUATRIENIO A LA FECHA SE HAN ATENDIDO 7. 374 MENORES DE 5 AÑOS. | EC12: 100000000 | EE12: 116
D13: 10 | E13: 19 | F13: 1-DESARROLLO INTEGRAL DEL SER HUMANO | G13: SECRETARIA DE EDUCACION | H13: 1.1. INICIO PAREJO DE LA VIDA | I13: DESARROLLO | J13: FORMAR, EN EL CUATRIENIO A 1.800 AGENTES EDUCATIVOS EN LOS PROCESOS PEDAGÓGICOS DE LA PRIMERA INFANCIA. | K13: NO. DE AGENTES EDUCATIVOS FORMADOS EN LOS PROCESOS PEDAGÓGICOS DE LA PRIMERA INFANCIA | L13: PERSONAS | M13: I | N13: 0 | O13: 1800 | P13: 1800 | Q13: 0.25 | R13: 0.1111111111 | S13: 800 | T13: 0.4444444444 | U13: 780 | V13: 780 | W13: 97.5 | X13: 97.5 | Y13: 0.1083333333 | Z13: 97.5 | AA13: 0 | AB13: 0 | AC13: 0 | AD13: 0 | AE13: 0 | AF13: 0 | AG13: 0 | AH13: 0 | AI13: 0 | AJ13: 0 | AK13: 0 | AL13: 0 | AM13: 0 | AN13: 0 | AO13: 0 | AP13: 0 | AQ13: 0 | AR13: 0 | AS13: 0 | AT13: 0.08333333333 | AU13: 600 | AV13: 0.3333333333 | AW13: 625 | AX13: 625 | AY13: 104.1666667 | AZ13: 100 | BA13: 0.08333333333 | BB13: 100 | BC13: 180000000 | BD13: 0 | BE13: 0 | BF13: 0 | BG13: 0 | BH13: 0 | BI13: 0 | BJ13: 180000000 | BK13: 150000000 | BL13: 150000000 | BM13: 0 | BN13: 0 | BO13: 0 | BP13: 0 | BQ13: 0 | BR13: 0 | BS13: 0 | BT13: 1359799996 | BU13: Ministerio de Educación Nacional | BV13: 0.04861111111 | BW13: 350 | BX13: 0.1944444444 | BY13: 91 | BZ13: 91 | CA13: 462 | CB13: 462 | CC13: 132 | CD13: 100 | CE13: 0.04861111111 | CF13: 100 | CG13: 0.06416666667 | CH13: 0.006944444444 | CI13: 50 | CJ13: 0.02777777778 | CK13: 148 | CL13: -98 | CM13: 148 | CN13: 296 | CO13: 100 | CP13: 0.006944444444 | CQ13: 0.02055555556 | CR13: 0 | CS13: 0 | CT13: 0 | CU13: 0 | CV13: 0 | CW13: 0 | CX13: 0 | CY13: 0 | CZ13: 0 | DA13: 0 | DB13: 0 | DC13: 0 | DD13: 0 | DE13: 0 | DF13: 0 | DG13: 0 | DH13: 0 | DI13: 0 | DJ13: 0 | DK13: 2015 | DL13: 0.25 | DM13: 111.9444444 | DN13: 100 | DO13: 0.25 | DP13: 0.25 | DQ13: 0.25 | DR13: 1 | DS13: 1.040834086e-17 | DT13: 35 | DU13: ALCANZAR EN EL CUATRIENIO UNA COBERTURA BRUTA EN TRANSICIÓN DE 86.95%, PRIORIZANDO LA POBLACIÓN EN POBREZA EXTREMA QUE LO DEMANDE | DV13: 77 | DW13: MEJORAR EN EL CUATRIENIO LOS PROCESOS EDUCATIVOS, FORMATIVOS, PEDAGÓGICOS E INSTITUCIONALES DEL 100% DE LAS INSTITUCIONES EDUCATIVAS DE LOS MUNICIPIOS NO CERTIFICADOS | EB13: UNA DE LAS COMPETENCIAS DE LA SECRETARIA DE EDUCACIÓN ES LA FORMACIÓN DE AGENTES EDUCATIVOS EN PROCESOS PEDAGÓGICOS PARA LA PRIMERA INFANCIA. EN EL CUATRIENIO LA META ES FORMAR A 1.800 AGENTES EDUCATIVOS. PARA LOGRAR ESTE PROPÓSITO SE AUNARON ESFUERZOS ADMINISTRATIVOS, TÉCNICOS Y FINANCIEROS, CON EL MINISTERIO DE EDUCACIÓN, CORPOEDUCACIÓN, FUNDACIÓN UNIVERSIDAD DEL NORTE, SALDARRIAGA CONCHA Y UNIVERSIDAD NACIONAL. ES ASÍ QUE ENTRE TODAS ESTAS ENTIDADES SE LOGRÓ A CORTE DE AGOSTO DE 2015, LA COOPERACIÓN PARA FORMAR UN TOTAL DE 1.921 AGENTES EDUCATIVOS. ES DE RESALTAR QUE LOS APORTES ECONÓMICOS DE LAS DIFERENTES ENTIDADES ASCENDIERON A LA SUMA DE $ 3.366.799.996,16, DONDE LA SECRETARÍA DE EDUCACIÓN DE CUNDINAMARCA PARTICIPÓ CON $200.000.000. EN ESTE PROCESO DE FORMACIÓN ESTÁN VINCULADOS LOS 116 MUNICIPIOS DE CUNDINAMARCA. | EC13: 0 | EE13: 1
D14: 11 | E14: 20 | F14: 1-DESARROLLO INTEGRAL DEL SER HUMANO | G14: SECRETARIA DE DESARROLLO SOCIAL | H14: 1.1. INICIO PAREJO DE LA VIDA | I14: DESARROLLO | J14: CONTRIBUIR AL DESARROLLO SICOMOTRIZ Y SOCIAL DE LOS NIÑOS FORTALECIENDO EN EL CUATRIENIO LA OPERACIÓN DE 160 LUDOTECAS CON AMBIENTE E IMPLEMENTOS ADECUADOS PARA LAS Y LOS NIÑOS DE 0 A 5 AÑOS | K14: NO DE LUDOTECAS CON SERVICIO ADECUADO PARA PRIMERA INFANCIA | L14: LUDOTECAS | M14: I | N14: 132 | O14: 292 | P14: 160 | Q14: 0.165 | R14: 0 | S14: 0 | T14: 0 | U14: 0 | V14: 0 | W14: 0 | X14: 0 | Y14: 0 | Z14: 0 | AA14: 189000000 | AB14: 89000000 | AC14: 0 | AD14: 0 | AE14: 0 | AF14: 0 | AG14: 0 | AH14: 100000000 | AI14: 18000000 | AJ14: 18000000 | AK14: 0 | AL14: 0 | AM14: 0 | AN14: 0 | AO14: 0 | AP14: 0 | AQ14: 0 | AR14: 0 | AS14: 0 | AT14: 0.05259375 | AU14: 51 | AV14: 0.31875 | AW14: 70 | AX14: 70 | AY14: 137.254902 | AZ14: 100 | BA14: 0.05259375 | BB14: 100 | BC14: 328000000 | BD14: 0 | BE14: 208000000 | BF14: 0 | BG14: 0 | BH14: 0 | BI14: 0 | BJ14: 120000000 | BK14: 40000000 | BL14: 40000000 | BM14: 0 | BN14: 0 | BO14: 0 | BP14: 0 | BQ14: 0 | BR14: 0 | BS14: 0 | BT14: 0 | BU14: 0 | BV14: 0.0598125 | BW14: 58 | BX14: 0.3625 | BY14: 0 | BZ14: 0 | CA14: 0 | CB14: 0 | CC14: 0 | CD14: 0 | CE14: 0 | CF14: 0 | CG14: 0 | CH14: 0.05259375 | CI14: 51 | CJ14: 0.31875 | CK14: 0 | CL14: 51 | CM14: 0 | CN14: 0 | CO14: 0 | CP14: 0 | CQ14: 0 | CR14: 600000000 | CS14: 480000000 | CT14: 0 | CU14: 0 | CV14: 0 | CW14: 0 | CX14: 0 | CY14: 120000000 | CZ14: 0 | DA14: 0 | DB14: 0 | DC14: 0 | DD14: 0 | DE14: 0 | DF14: 0 | DG14: 0 | DH14: 0 | DI14: 0 | DJ14: 0 | DK14: 70 | DL14: 0.165 | DM14: 43.75 | DN14: 43.75 | DO14: 0.0721875 | DP14: 0.0721875 | DQ14: 0.0721875 | DR14: 1 | DS14: 0 | DT14: 9 | DU14: FOMENTAR HABILIDADES Y DESTREZAS CON ACTIVIDADES LÚDICAS Y CULTURALES EN EL 15% DE LOS NIÑOS Y NIÑAS DE PRIMERA INFANCIA CADA AÑO | EB14: FORTALECIMIENTO DE ESPACIOS DE PARTICIPACIÓN Y APRENDIZAJE CON DOTACIÓN A 70 LUDOTECAS EN EL MARCO DEL PROGRAMA RED DE LUDOTECAS EN 67 MUNICIPIOS, DE LAS CUALES 19 SE ENCUENTRAN A CARGO DE COLSUBSIDIO EN EL MARCO DEL CONVENIO DE COOPERACIÓN SUSCRITO. SE HAN CAPACITADO APROXIMADAMENTE 100 LUDOEDUCADORES EN TEMAS DE: JUEGO, LUDOTECAS Y EDUCACIÓN; LUDOTECAS Y JUEGO EN EL DESAROLLO LOCAL; POLITICAS PÚBLICAS DE LUDOTECAS Y ESPACIOS DE JUEGO. ENTRE 2014 Y PRIMER SEMESTRE DE 2015, SE HA BRINDADO ATENCIÓN A MÁS DE 100 MIL NIÑOS Y NIÑAS MENORES DE 6 AÑOS. | EC14: 80000000 | EE14: 100
D15: 12 | E15: 21 | F15: 1-DESARROLLO INTEGRAL DEL SER HUMANO | G15: INDEPORTES | H15: 1.1. INICIO PAREJO DE LA VIDA | I15: DESARROLLO | J15: PROMOVER EN 35.000 NIÑAS Y NIÑOS EN EL CUATRIENIO EL JUEGO Y LA ACTIVIDAD FÍSICA A TRAVÉS DE LA MATROGIMNASIA | K15: NO. NIÑAS Y NIÑOS DESARROLLANDO HABILIDADES POR MEDIO DE LA MATROGIMNASIA EN EL CUATRIENIO | L15: PERSONAS | M15: I | N15: 0 | O15: 35000 | P15: 35000 | Q15: 0.165 | R15: 0 | S15: 0 | T15: 0 | U15: 0 | V15: 0 | W15: 0 | X15: 0 | Y15: 0 | Z15: 0 | AA15: 0 | AB15: 0 | AC15: 0 | AD15: 0 | AE15: 0 | AF15: 0 | AG15: 0 | AH15: 0 | AI15: 0 | AJ15: 0 | AK15: 0 | AL15: 0 | AM15: 0 | AN15: 0 | AO15: 0 | AP15: 0 | AQ15: 0 | AR15: 0 | AS15: 0 | AT15: 0.05499685714 | AU15: 11666 | AV15: 0.3333142857 | AW15: 10144 | AX15: 10144 | AY15: 86.9535402 | AZ15: 86.9535402 | BA15: 0.04782171429 | BB15: 86.9535402 | BC15: 152000000 | BD15: 0 | BE15: 152000000 | BF15: 0 | BG15: 0 | BH15: 0 | BI15: 0 | BJ15: 0 | BK15: 250090688 | BL15: 250090688 | BM15: 0 | BN15: 0 | BO15: 0 | BP15: 0 | BQ15: 0 | BR15: 0 | BS15: 0 | BT15: 0 | BU15: 0 | BV15: 0.05500157143 | BW15: 11667 | BX15: 0.3333428571 | BY15: 6301 | BZ15: 6301 | CA15: 11762 | CB15: 11762 | CC15: 100.8142624 | CD15: 100 | CE15: 0.05500157143 | CF15: 100 | CG15: 0.05544942857 | CH15: 0.05500157143 | CI15: 11667 | CJ15: 0.3333428571 | CK15: 1209 | CL15: 10458 | CM15: 1209 | CN15: 10.36256107 | CO15: 10.36256107 | CP15: 0.005699571429 | CQ15: 0.005699571429 | CR15: 152000000 | CS15: 152000000 | CT15: 0 | CU15: 0 | CV15: 0 | CW15: 0 | CX15: 0 | CY15: 0 | CZ15: 0 | DA15: 0 | DB15: 0 | DC15: 0 | DD15: 0 | DE15: 0 | DF15: 0 | DG15: 0 | DH15: 0 | DI15: 0 | DJ15: 0 | DK15: 23115 | DL15: 0.165 | DM15: 66.04285714 | DN15: 66.04285714 | DO15: 0.1089707143 | DP15: 0.1089707143 | DQ15: 0.1089707143 | DR15: 1 | DS15: 0 | DT15: 9 | DU15: FOMENTAR HABILIDADES Y DESTREZAS CON ACTIVIDADES LÚDICAS Y CULTURALES EN EL 15% DE LOS NIÑOS Y NIÑAS DE PRIMERA INFANCIA CADA AÑO | EB15: SE IMPLEMENTÓ EL PROGRAMA DE MATROGIMNASIA COMO ESTRATEGIA DE ATENCIÓN Y DESARROLLO MOTRIZ A LA PRIMERA INFANCIA DEL DEPARTAMENTO, CON UNA INVERSIÓN SIGNIFICATIVA QUE LOGRÓ LA DOTACIÓN DE CENTROS PARA LA INSTALACIÓN DE GIMNASIOS DE DESARROLLO MOTRIZ DIRIGIDOS A LA PRIMERA INFANCIA E INFANCIA, EN 64 MUNICIPIOS QUE GARANTIZA LA PERMANENCIA DEL PROGRAMA EN EL TERRITORIO. | EC15: 751000000 | EE15: 29
D16: 13 | E16: 22 | F16: 1-DESARROLLO INTEGRAL DEL SER HUMANO | G16: INDEPORTES | H16: 1.1. INICIO PAREJO DE LA VIDA | I16: DESARROLLO | J16: INVOLUCRAR A LAS NIÑAS Y LOS NIÑOS DE PRIMERA INFANCIA EN ACTIVIDADES LÚDICAS Y RECREATIVAS CON LA DOTACIÓN EN EL CUATRIENIO DE 250 PARQUES INFANTILES | K16: NO. DE PARQUES INFANTILES PARA LA PRIMERA INFANCIA DOTADOS EN EL CUATRIENIO | L16: PARQUES | M16: I | N16: 37 | O16: 287 | P16: 250 | Q16: 0.165 | R16: 0.00066 | S16: 1 | T16: 0.004 | U16: 1 | V16: 1 | W16: 100 | X16: 100 | Y16: 0.00066 | Z16: 100 | AA16: 166000000 | AB16: 166000000 | AC16: 0 | AD16: 0 | AE16: 0 | AF16: 0 | AG16: 0 | AH16: 0 | AI16: 90161000 | AJ16: 90161000 | AK16: 0 | AL16: 0 | AM16: 0 | AN16: 0 | AO16: 0 | AP16: 0 | AQ16: 0 | AR16: 0 | AS16: 0 | AT16: 0.1287 | AU16: 195 | AV16: 0.78 | AW16: 195 | AX16: 195 | AY16: 100 | AZ16: 100 | BA16: 0.1287 | BB16: 100 | BC16: 229000000 | BD16: 0 | BE16: 229000000 | BF16: 0 | BG16: 0 | BH16: 0 | BI16: 0 | BJ16: 0 | BK16: 494750000 | BL16: 494750000 | BM16: 0 | BN16: 0 | BO16: 0 | BP16: 0 | BQ16: 0 | BR16: 0 | BS16: 0 | BT16: 0 | BU16: 0 | BV16: 0 | BW16: 0 | BX16: 0 | BY16: 0 | BZ16: 0 | CA16: 0 | CB16: 0 | CC16: 0 | CD16: 0 | CE16: 0 | CF16: 0 | CG16: 0 | CH16: 0.03564 | CI16: 54 | CJ16: 0.216 | CK16: 25 | CL16: 29 | CM16: 25 | CN16: 46.2962963 | CO16: 46.2962963 | CP16: 0.0165 | CQ16: 0.0165 | CR16: 229000000 | CS16: 229000000 | CT16: 0 | CU16: 0 | CV16: 0 | CW16: 0 | CX16: 0 | CY16: 0 | CZ16: 0 | DA16: 0 | DB16: 0 | DC16: 0 | DD16: 0 | DE16: 0 | DF16: 0 | DG16: 0 | DH16: 0 | DI16: 0 | DJ16: 0 | DK16: 221 | DL16: 0.165 | DM16: 88.4 | DN16: 88.4 | DO16: 0.14586 | DP16: 0.14586 | DQ16: 0.14586 | DR16: 1 | DS16: 0 | DT16: 9 | DU16: FOMENTAR HABILIDADES Y DESTREZAS CON ACTIVIDADES LÚDICAS Y CULTURALES EN EL 15% DE LOS NIÑOS Y NIÑAS DE PRIMERA INFANCIA CADA AÑO | EB16: CON UNA SIGNIFICATIVA INVERSIÓN SE LOGRÓ LA DOTACIÓN DE 250 PARQUES INFANTILES EN 34 MUNICIPIOS EN LAS ÁREAS RURAL Y URBANA, FOMENTANDO LA CREACIÓN DE ESPACIOS PARA LOS NIÑOS Y NIÑAS QUE FACILITEN LA ACTIVIDAD FÍSICA, EL DEPORTE Y LA RECREACIÓN COMO HÁBITO DE SALUD Y MEJORAMIENTO DE LA CALIDAD DE VIDA Y EL BIENESTAR SOCIAL, ESPECIALMENTE EN LOS SECTORES SOCIALES MÁS NECESITADOS. | EC16: 6450000000 | EE16: 1100
D17: 14 | E17: 23 | F17: 1-DESARROLLO INTEGRAL DEL SER HUMANO | G17: INDEPORTES | H17: 1.1. INICIO PAREJO DE LA VIDA | I17: DESARROLLO | J17: PROMOVER LA PARTICIPACIÓN ACTIVA DE 12.800 NIÑOS Y NIÑAS MENORES DE 6 AÑOS EN EVENTOS RECREATIVOS CON LA FAMILIA | K17: NO. DE NIÑOS PARTICIPANTES EN EVENTOS RECREATIVOS CON LA FAMILIA | L17: PERSONAS | M17: I | N17: 0 | O17: 12800 | P17: 12800 | Q17: 0.165 | R17: 0 | S17: 0 | T17: 0 | U17: 0 | V17: 0 | W17: 0 | X17: 0 | Y17: 0 | Z17: 0 | AA17: 0 | AB17: 0 | AC17: 0 | AD17: 0 | AE17: 0 | AF17: 0 | AG17: 0 | AH17: 0 | AI17: 0 | AJ17: 0 | AK17: 0 | AL17: 0 | AM17: 0 | AN17: 0 | AO17: 0 | AP17: 0 | AQ17: 0 | AR17: 0 | AS17: 0 | AT17: 0.05499140625 | AU17: 4266 | AV17: 0.33328125 | AW17: 4513 | AX17: 4513 | AY17: 105.7899672 | AZ17: 100 | BA17: 0.05499140625 | BB17: 100 | BC17: 122000000 | BD17: 0 | BE17: 122000000 | BF17: 0 | BG17: 0 | BH17: 0 | BI17: 0 | BJ17: 0 | BK17: 47091248 | BL17: 47091248 | BM17: 0 | BN17: 0 | BO17: 0 | BP17: 0 | BQ17: 0 | BR17: 0 | BS17: 0 | BT17: 0 | BU17: 0 | BV17: 0.05500429688 | BW17: 4267 | BX17: 0.333359375 | BY17: 7640 | BZ17: 7640 | CA17: 7640 | CB17: 7640 | CC17: 179.0485118 | CD17: 100 | CE17: 0.05500429688 | CF17: 100 | CG17: 0.098484375 | CH17: 0.05500429688 | CI17: 4267 | CJ17: 0.333359375 | CK17: 4592 | CL17: -325 | CM17: 4592 | CN17: 107.6165925 | CO17: 100 | CP17: 0.05500429688 | CQ17: 0.05919375 | CR17: 122000000 | CS17: 122000000 | CT17: 0 | CU17: 0 | CV17: 0 | CW17: 0 | CX17: 0 | CY17: 0 | CZ17: 0 | DA17: 0 | DB17: 0 | DC17: 0 | DD17: 0 | DE17: 0 | DF17: 0 | DG17: 0 | DH17: 0 | DI17: 0 | DJ17: 0 | DK17: 16745 | DL17: 0.165 | DM17: 130.8203125 | DN17: 100 | DO17: 0.165 | DP17: 0.165 | DQ17: 0.165 | DR17: 1 | DS17: 0 | DT17: 9 | DU17: FOMENTAR HABILIDADES Y DESTREZAS CON ACTIVIDADES LÚDICAS Y CULTURALES EN EL 15% DE LOS NIÑOS Y NIÑAS DE PRIMERA INFANCIA CADA AÑO | EB17: CONSOLIDACIÓN DEL GRUPO DE PROMOTORES DE LA RECREACIÓN EN EL DEPARTAMENTO, GARANTIZANDO LA ORGANIZACIÓN Y DESARROLLO DE EVENTOS RECREATIVOS EN EL 50% DE MUNICIPIOS DEL DEPARTAMENTO, BAJO PROCESOS DE ACCIÓN PARTICIPATIVA Y DINÁMICA, QUE FACILITAN EL ENTENDER LA VIDA COMO UNA VIVENCIA DE DISFRUTE, CREACIÓN Y LIBERTAD, EN EL PLENO DESARROLLO DE LAS POTENCIALIDADES DEL SER HUMANO PARA SU REALIZACIÓN Y MEJORAMIENTO DE LA CALIDAD DE VIDA INDIVIDUAL Y SOCIAL, MEDIANTE LA PRÁCTICA DE ACTIVIDADES FÍSICAS O INTELECTUALES DE ESPARCIMIENTO. | EC17: 180000000 | EE17: 4
D18: 15 | E18: 24 | F18: 1-DESARROLLO INTEGRAL DEL SER HUMANO | G18: IDECUT | H18: 1.1. INICIO PAREJO DE LA VIDA | I18: DESARROLLO | J18: APOYAR EL DESARROLLO INTEGRAL A TRAVÉS DE PROCESOS DE FORMACIÓN ARTÍSTICA Y CULTURAL DE NIÑAS Y NIÑOS DE 0 A 5 AÑOS EN 12 MUNICIPIOS ANUALMENTE | K18: NO. DE MUNICIPIOS APOYADOS ANUALMENTE CON PROCESOS DE FORMACIÓN ARTÍSTICA Y CULTURAL PARA LA PRIMERA INFANCIA | L18: MUNICIPIOS | M18: M | N18: 0 | O18: =+P18 -> 12 | P18: 12 | Q18: 0.165 | R18: 0.04125 | S18: 12 | T18: 0.25 | U18: 20 | V18: 5 | W18: 166.6666667 | X18: 100 | Y18: =+(X18*R18)/100 -> 0.04125 | Z18: 100 | AA18: 120000000 | AB18: 120000000 | AC18: 0 | AD18: 0 | AE18: 0 | AF18: 0 | AG18: 0 | AH18: 0 | AI18: 116279000 | AJ18: 116279000 | AK18: 0 | AL18: 0 | AM18: 0 | AN18: 0 | AO18: 0 | AP18: 0 | AQ18: 0 | AR18: 0 | AS18: 0 | AT18: 0.04125 | AU18: 12 | AV18: 0.25 | AW18: 40 | AX18: 10 | AY18: 333.3333333 | AZ18: 100 | BA18: 0.04125 | BB18: 100 | BC18: 372000000 | BD18: 0 | BE18: 72000000 | BF18: 0 | BG18: 0 | BH18: 0 | BI18: 0 | BJ18: 300000000 | BK18: 149900000 | BL18: 149900000 | BM18: 0 | BN18: 0 | BO18: 0 | BP18: 0 | BQ18: 0 | BR18: 0 | BS18: 0 | BT18: 0 | BU18: 0 | BV18: 0.04125 | BW18: 12 | BX18: 0.25 | BY18: 7 | BZ18: 7 | CA18: 12 | CB18: 3 | CC18: 100 | CD18: 100 | CE18: 0.04125 | CF18: 100 | CG18: 0.04125 | CH18: 0.04125 | CI18: 12 | CJ18: 0.25 | CK18: 22 | CL18: -10 | CM18: 5.5 | CN18: 183.3333333 | CO18: 100 | CP18: 0.04125 | CQ18: 0.075625 | CR18: 420000000 | CS18: 120000000 | CT18: 0 | CU18: 0 | CV18: 0 | CW18: 0 | CX18: 0 | CY18: 300000000 | CZ18: 0 | DA18: 0 | DB18: 0 | DC18: 0 | DD18: 0 | DE18: 0 | DF18: 0 | DG18: 0 | DH18: 0 | DI18: 0 | DJ18: 0 | DK18: 23.5 | DL18: 0.165 | DM18: 195.8333333 | DN18: 100 | DO18: 0.165 | DP18: =+IF(M18="M",DO18,0) -> 0.165 | DQ18: 0.165 | DR18: 1 | DS18: 0 | DT18: 9 | DU18: FOMENTAR HABILIDADES Y DESTREZAS CON ACTIVIDADES LÚDICAS Y CULTURALES EN EL 15% DE LOS NIÑOS Y NIÑAS DE PRIMERA INFANCIA CADA AÑO | EB18: EL IDECUT A TRAVÉS DE ACTIIVIDADES DE CAPACITACIÓN HA LOGRADO BENEFICIAR A 61 MUNICIPIOS DEL DEPARTAMENTO, CON LO CUAL PROMUEVE EL BUEN USO DE LAS DOTACIONES DE INSTRUMENTOS ORFF LAS CUALES DURANTE EL 2014 LOGRARON FAVORECER A 40 MUNICIPIOS. CON LO ANTERIOR SE HAN CONSOLIDADO LOS PROCESOS DE FORMACIÓN EN INICIACIÓN MUSICAL, LO QUE PERMITE EL DESARROLLO DE INTELIGENCIAS MÚLTIPLES DE LOS NIÑOS Y NIÑAS DE 0 A 5 AÑOS. | EC18: 6000000 | EE18: 0
D19: 16 | E19: 25 | F19: 1-DESARROLLO INTEGRAL DEL SER HUMANO | G19: IDECUT | H19: 1.1. INICIO PAREJO DE LA VIDA | I19: DESARROLLO | J19: APOYAR EL PROCESO FORMATIVO DE LOS NIÑOS Y NIÑAS DE 0 A 5 AÑOS CON EL FORTALECIMIENTO DE 80 BIBLIOTECAS PÚBLICAS MUNICIPALES EN EL CUATRIENIO | K19: NO. DE BIBLIOTECAS EN EL CUATRIENIO QUE PROMUEVEN LA LECTURA EN LA PRIMERA INFANCIA | L19: BIBLIOTECAS | M19: M | N19: 0 | O19: =+N19+P19 -> 80 | P19: 80 | Q19: 0.165 | R19: 0.04125 | S19: 20 | T19: 0.25 | U19: 131 | V19: 32.75 | W19: 655 | X19: 100 | Y19: 0.04125 | Z19: 100 | AA19: 107000000 | AB19: 19000000 | AC19: 0 | AD19: 88000000 | AE19: 0 | AF19: 0 | AG19: 0 | AH19: 0 | AI19: 0 | AJ19: 0 | AK19: 0 | AL19: 0 | AM19: 0 | AN19: 0 | AO19: 0 | AP19: 0 | AQ19: 0 | AR19: 88073000 | AS19: MINISTERIO DE CULTURA | AT19: 0.04125 | AU19: 20 | AV19: 0.25 | AW19: 134 | AX19: 33.5 | AY19: 670 | AZ19: 100 | BA19: 0.04125 | BB19: 100 | BC19: 280000000 | BD19: 0 | BE19: 80000000 | BF19: 0 | BG19: 0 | BH19: 0 | BI19: 0 | BJ19: 200000000 | BK19: 61800000 | BL19: 61800000 | BM19: 0 | BN19: 0 | BO19: 0 | BP19: 0 | BQ19: 0 | BR19: 0 | BS19: 0 | BT19: 0 | BU19: 0 | BV19: 0.04125 | BW19: 20 | BX19: 0.25 | BY19: 100 | BZ19: 100 | CA19: 134 | CB19: 33.5 | CC19: 670 | CD19: 100 | CE19: 0.04125 | CF19: 100 | CG19: 0.276375 | CH19: 0.04125 | CI19: 20 | CJ19: 0.25 | CK19: 143 | CL19: -123 | CM19: 35.75 | CN19: 715 | CO19: 100 | CP19: 0.04125 | CQ19: 0.2949375 | CR19: 280000000 | CS19: 80000000 | CT19: 0 | CU19: 0 | CV19: 0 | CW19: 0 | CX19: 0 | CY19: 200000000 | CZ19: 0 | DA19: 0 | DB19: 0 | DC19: 0 | DD19: 0 | DE19: 0 | DF19: 0 | DG19: 0 | DH19: 0 | DI19: 0 | DJ19: 0 | DK19: 135.5 | DL19: 0.165 | DM19: 169.375 | DN19: 100 | DO19: 0.165 | DP19: =+IF(((DN19*Q19)/100)<Q19, ((DN19*Q19)/100),Q19) -> 0.165 | DQ19: 0.165 | DR19: 1 | DS19: 0 | DT19: 9 | DU19: FOMENTAR HABILIDADES Y DESTREZAS CON ACTIVIDADES LÚDICAS Y CULTURALES EN EL 15% DE LOS NIÑOS Y NIÑAS DE PRIMERA INFANCIA CADA AÑO | EB19: A TRAVÉS DE GESTIÓN POR PARTE DEL IDECUT CON EL MINISTERIO DE CULTURA Y CON FINANCIACIÓN DE RECURSOS DEL INSTITUTO SE HA LOGRADO LLEGAR AL 100% DE LAS BIBLIOTECAS PÚBLICAS MUNICIPALES, CON DOTACIÓN DE MATERIAL BIBLIOGRAFICO DE COLECCIONES EPECIALIZADAS, SE HAN BENFICIADO CON DOTACIÓN DE CONECTIVIDAD 38 BIBLIOTECAS PÚBLICAS DE 38 MUNICIPIOS, 140 BIBLIOTECAS CON DOTACIÓN DE UN KIT CONFORMADO POR UN VIDEO PROYECTOR, UN TELÓN DE TRIPODE Y UNA IMPRESORA PARA LA ELABORACIÓN DE LOS CARNETS DE LOS USUARIOS, IMPLEMENTACIÓN DEL SISTEMA LLAVE DEL SABER PARA 111 MUNICIPIOS. ADICIONALMENTE, DURANTE EL 2015 SE HA PUESTO EN MARCHA LA ESTRATEGIA DE PROMOTORES REGIONALES CUYA MISIÓN HA SIDO ACOMPAÑAR Y BRINDAR ASISTENCIA TÉCNICA INSITU INSCRITOS A LA RED DE BIBLIOTECAS PÚBLICAS. | EC19: 15000000 | EE19: 35
D20: 17 | E20: 26 | F20: 1-DESARROLLO INTEGRAL DEL SER HUMANO | G20: IDECUT | H20: 1.1. INICIO PAREJO DE LA VIDA | I20: DESARROLLO | J20: DESARROLLAR INTELIGENCIAS MÚLTIPLES APOYANDO LA CONFORMACIÓN DE 12 AGRUPACIONES MUSICALES DE NIÑOS Y NIÑAS DE 0 A 5 AÑOS EN EL CUATRIENIO | K20: NO. DE AGRUPACIONES MUSICALES DE PRIMERA INFANCIA | L20: AGRUPACIONES | M20: I | N20: 0 | O20: =+N20+P20 -> 12 | P20: 12 | Q20: 0.165 | R20: 0 | S20: 0 | T20: 0 | U20: 0 | V20: 0 | W20: 0 | X20: 0 | Y20: 0 | Z20: 0 | AA20: 0 | AB20: 0 | AC20: 0 | AD20: 0 | AE20: 0 | AF20: 0 | AG20: 0 | AH20: 0 | AI20: 0 | AJ20: 0 | AK20: 0 | AL20: 0 | AM20: 0 | AN20: 0 | AO20: 0 | AP20: 0 | AQ20: 0 | AR20: 0 | AS20: - | AT20: 0.055 | AU20: 4 | AV20: 0.3333333333 | AW20: 9 | AX20: 9 | AY20: 225 | AZ20: 100 | BA20: 0.055 | BB20: 100 | BC20: 360000000 | BD20: 0 | BE20: 40000000 | BF20: 0 | BG20: 0 | BH20: 0 | BI20: 0 | BJ20: 320000000 | BK20: 81000000 | BL20: 81000000 | BM20: 0 | BN20: 0 | BO20: 0 | BP20: 0 | BQ20: 0 | BR20: 0 | BS20: 0 | BT20: 0 | BU20: 0 | BV20: 0.06875 | BW20: 5 | BX20: 0.4166666667 | BY20: 0 | BZ20: 0 | CA20: 7 | CB20: 7 | CC20: 140 | CD20: 100 | CE20: 0.06875 | CF20: 100 | CG20: 0.09625 | CH20: 0.04125 | CI20: 3 | CJ20: 0.25 | CK20: 22 | CL20: -19 | CM20: 22 | CN20: 733.3333333 | CO20: 100 | CP20: 0.04125 | CQ20: 0.3025 | CR20: 330000000 | CS20: 90000000 | CT20: 0 | CU20: 0 | CV20: 0 | CW20: 0 | CX20: 0 | CY20: 240000000 | CZ20: 0 | DA20: 0 | DB20: 0 | DC20: 0 | DD20: 0 | DE20: 0 | DF20: 0 | DG20: 0 | DH20: 0 | DI20: 0 | DJ20: 0 | DK20: 38 | DL20: 0.165 | DM20: 316.6666667 | DN20: 100 | DO20: 0.165 | DP20: =+IF(((DN20*Q20)/100)<Q20, ((DN20*Q20)/100),Q20) -> 0.165 | DQ20: 0.165 | DR20: 1 | DS20: 0 | DT20: 9 | DU20: FOMENTAR HABILIDADES Y DESTREZAS CON ACTIVIDADES LÚDICAS Y CULTURALES EN EL 15% DE LOS NIÑOS Y NIÑAS DE PRIMERA INFANCIA CADA AÑO | EB20: SE HAN APOYADO 16 AGRUPACIONES DE PRIMERA INFANCIA CON EL FIN DE DIFUNDIR, PROMOCIONAR Y HACER SEGUIMIENTO DE LOS PROCESOS MUSICALES DE LOS MUNICIPIOS. | EC20: 0 | EE20: 0
D21: 18 | E21: 27 | F21: 1-DESARROLLO INTEGRAL DEL SER HUMANO | G21: SECRETARIA DE EDUCACION | H21: 1.1. INICIO PAREJO DE LA VIDA | I21: DESARROLLO | J21: DESARROLLAR UNA CAMPAÑA EN EL CUATRIENIO PARA FOMENTAR QUE LAS NIÑAS Y NIÑOS INGRESEN AL SISTEMA EDUCATIVO AL GRADO TRANSICIÓN AL CUMPLIR 5 AÑOS | K21: CAMPAÑA DEPARTAMENTAL DE PROMOCIÓN DE INGRESO AL GRADO TRANSICIÓN | L21: CAMPAÑA | M21: I | N21: 0 | O21: =+N21+P21 -> 1 | P21: 1 | Q21: 0.089 | R21: 0 | S21: 0 | T21: 0 | U21: 0 | V21: 0 | W21: 0 | X21: 0 | Y21: 0 | Z21: 0 | AA21: 0 | AB21: 0 | AC21: 0 | AD21: 0 | AE21: 0 | AF21: 0 | AG21: 0 | AH21: 0 | AI21: 0 | AJ21: 0 | AK21: 0 | AL21: 0 | AM21: 0 | AN21: 0 | AO21: 0 | AP21: 0 | AQ21: 0 | AR21: 0 | AS21: - | AT21: 0.0445 | AU21: 0.5 | AV21: 0.5 | AW21: 0.5 | AX21: 0.5 | AY21: 100 | AZ21: 100 | BA21: 0.0445 | BB21: 100 | BC21: 0 | BD21: 0 | BE21: 0 | BF21: 0 | BG21: 0 | BH21: 0 | BI21: 0 | BJ21: 0 | BK21: 0 | BL21: 0 | BM21: 0 | BN21: 0 | BO21: 0 | BP21: 0 | BQ21: 0 | BR21: 0 | BS21: 0 | BT21: 0 | BU21: 0 | BV21: 0.02225 | BW21: 0.25 | BX21: 0.25 | BY21: 1 | BZ21: 0.5 | CA21: 0.25 | CB21: 0.25 | CC21: 100 | CD21: 100 | CE21: 0.02225 | CF21: 100 | CG21: 0.02225 | CH21: 0.02225 | CI21: 0.25 | CJ21: 0.25 | CK21: 0.25 | CL21: 0 | CM21: 0.25 | CN21: 100 | CO21: 100 | CP21: 0.02225 | CQ21: 0.02225 | CR21: 0 | CS21: 0 | CT21: 0 | CU21: 0 | CV21: 0 | CW21: 0 | CX21: 0 | CY21: 0 | CZ21: 0 | DA21: 0 | DB21: 0 | DC21: 0 | DD21: 0 | DE21: 0 | DF21: 0 | DG21: 0 | DH21: 0 | DI21: 0 | DJ21: 0 | DK21: 1 | DL21: 0.089 | DM21: 100 | DN21: 100 | DO21: 0.089 | DP21: =+IF(((DN21*Q21)/100)<Q21, ((DN21*Q21)/100),Q21) -> 0.089 | DQ21: 0.089 | DR21: 1 | DS21: 0 | DT21: 9 | DU21: FOMENTAR HABILIDADES Y DESTREZAS CON ACTIVIDADES LÚDICAS Y CULTURALES EN EL 15% DE LOS NIÑOS Y NIÑAS DE PRIMERA INFANCIA CADA AÑO | EB21: EN EL 2013 DISEÑÓ LA CAMPAÑA PARA FOMENTAR QUE LAS NIÑAS Y LOS NIÑOS INGRESEN AL SISTEMA EDUCATICO AL GRADO TRNASICIÓN AL CUMPLIR 5 AÑOS, ESTA CAMPAÑA SE HA REPLICADO TODO LOS AÑOS CON EL MISMO FIN. | EC21: 0 | EE21: 116
D22: 19 | E22: 28 | F22: 1-DESARROLLO INTEGRAL DEL SER HUMANO | G22: SECRETARIA DE DESARROLLO SOCIAL | H22: 1.1. INICIO PAREJO DE LA VIDA | I22: CIUDADANIA | J22: PROMOVER Y DIVULGAR LA DEFENSA DE LOS DERECHOS DE LOS NIÑOS Y NIÑAS EN LOS 116 MUNICIPIOS CON ESTRATEGIAS IEC (INFORMACIÓN, EDUCACIÓN, COMUNICACIÓN) | K22: NO DE MUNICIPIOS CON ESTRATEGIAS IEC PARA LA DEFENSA DE LOS DERECHOS DE LOS NIÑOS | L22: MUNICIPIOS | M22: M | N22: 0 | O22: =+P22 -> 116 | P22: 116 | Q22: 0.165 | R22: 0.04125 | S22: 116 | T22: 0.25 | U22: 92 | V22: 23 | W22: 79.31034483 | X22: 79.31034483 | Y22: 0.03271551724 | Z22: 79.31034483 | AA22: 11000000 | AB22: 11000000 | AC22: 0 | AD22: 0 | AE22: 0 | AF22: 0 | AG22: 0 | AH22: 0 | AI22: 23000000 | AJ22: 23000000 | AK22: 0 | AL22: 0 | AM22: 0 | AN22: 0 | AO22: 0 | AP22: 0 | AQ22: 0 | AR22: 0 | AS22: - | AT22: 0.04125 | AU22: 116 | AV22: 0.25 | AW22: 53 | AX22: 13.25 | AY22: 45.68965517 | AZ22: 45.68965517 | BA22: 0.01884698276 | BB22: 45.68965517 | BC22: 8000000 | BD22: 0 | BE22: 8000000 | BF22: 0 | BG22: 0 | BH22: 0 | BI22: 0 | BJ22: 0 | BK22: 28000000 | BL22: 28000000 | BM22: 0 | BN22: 0 | BO22: 0 | BP22: 0 | BQ22: 0 | BR22: 0 | BS22: 0 | BT22: 0 | BU22: 0 | BV22: 0.04125 | BW22: 116 | BX22: 0.25 | BY22: 0 | BZ22: 116 | CA22: 116 | CB22: 29 | CC22: 100 | CD22: 100 | CE22: 0.04125 | CF22: 100 | CG22: 0.04125 | CH22: 0.04125 | CI22: 116 | CJ22: 0.25 | CK22: 116 | CL22: 0 | CM22: 29 | CN22: 100 | CO22: 100 | CP22: 0.04125 | CQ22: 0.04125 | CR22: 18000000 | CS22: 18000000 | CT22: 0 | CU22: 0 | CV22: 0 | CW22: 0 | CX22: 0 | CY22: 0 | CZ22: 0 | DA22: 0 | DB22: 0 | DC22: 0 | DD22: 0 | DE22: 0 | DF22: 0 | DG22: 0 | DH22: 0 | DI22: 0 | DJ22: 0 | DK22: 94.25 | DL22: 0.165 | DM22: 81.25 | DN22: 81.25 | DO22: 0.1340625 | DP22: =+IF(M22="M",DO22,0) -> 0.1340625 | DQ22: 0.1340625 | DR22: 1 | DS22: 0 | DT22: 9 | DU22: FOMENTAR HABILIDADES Y DESTREZAS CON ACTIVIDADES LÚDICAS Y CULTURALES EN EL 15% DE LOS NIÑOS Y NIÑAS DE PRIMERA INFANCIA CADA AÑO | DV22: 10 | DW22: LOGRAR QUE LOS NIÑOS Y NIÑAS MENORES DE 6 AÑOS INFLUYAN EN LAS DECISIONES DEL CONSEJO DE POLÍTICA SOCIAL DEPARTAMENTAL COMO VOCEROS DE LOS NIÑOS ORGANIZADOS, ASISTIENDO AL 100% DE LAS REUNIONES | DX22: 39 | DY22: 40 | EB22: IMPLEMENTACIÓN DE ESTRATEGIAS PARA LA PREVENCIÓN DEL MALTRATO Y LA VIOLENCIA INFANTIL, LA PROTECCIÓN DE LOS DERECHOS DE LOS NIÑOS Y NIÑAS, ENTRE ELLAS LA ESTRATEGIA "YO CIUDADANO" EN LOS 116 MUNICIPIOS DEL DEPARTAMENTO. | EC22: 60000000 | EE22: 100
D23: 20 | E23: 31 | F23: 1-DESARROLLO INTEGRAL DEL SER HUMANO | G23: SECRETARIA DE DESARROLLO SOCIAL | H23: 1.1. INICIO PAREJO DE LA VIDA | I23: PROTECCION | J23: CUNDINAMARQUESES UNIDOS EN CAMPAÑA DEPARTAMENTAL POR AÑO PARA LA PREVENCIÓN DEL MALTRATO Y/O ABUSO SEXUAL EN NIÑOS Y NIÑAS MENORES DE 6 AÑOS | K23: NO. DE CAMPAÑAS DEPARTAMENTALES PARA LA PREVENCIÓN DEL MALTRATO EN NIÑOS DE PRIMERA INFANCIA | L23: CAMPAÑA | M23: I | N23: 0 | O23: =+N23+P23 -> 4 | P23: 4 | Q23: 0.165 | R23: 0.04125 | S23: 1 | T23: 0.25 | U23: 0 | V23: 0 | W23: 0 | X23: 0 | Y23: 0 | Z23: 0 | AA23: 27000000 | AB23: 27000000 | AC23: 0 | AD23: 0 | AE23: 0 | AF23: 0 | AG23: 0 | AH23: 0 | AI23: 0 | AJ23: 0 | AK23: 0 | AL23: 0 | AM23: 0 | AN23: 0 | AO23: 0 | AP23: 0 | AQ23: 0 | AR23: 0 | AS23: - | AT23: 0.04125 | AU23: 1 | AV23: 0.25 | AW23: 2 | AX23: 2 | AY23: 200 | AZ23: 100 | BA23: 0.04125 | BB23: 100 | BC23: 20000000 | BD23: 0 | BE23: 20000000 | BF23: 0 | BG23: 0 | BH23: 0 | BI23: 0 | BJ23: 0 | BK23: 30000000 | BL23: 30000000 | BM23: 0 | BN23: 0 | BO23: 0 | BP23: 0 | BQ23: 0 | BR23: 0 | BS23: 0 | BT23: 0 | BU23: 0 | BV23: 0.04125 | BW23: 1 | BX23: 0.25 | BY23: 0 | BZ23: 1 | CA23: 1 | CB23: 1 | CC23: 100 | CD23: 100 | CE23: 0.04125 | CF23: 100 | CG23: 0.04125 | CH23: 0.04125 | CI23: 1 | CJ23: 0.25 | CK23: 1 | CL23: 0 | CM23: 1 | CN23: 100 | CO23: 100 | CP23: 0.04125 | CQ23: 0.04125 | CR23: 45000000 | CS23: 45000000 | CT23: 0 | CU23: 0 | CV23: 0 | CW23: 0 | CX23: 0 | CY23: 0 | CZ23: 0 | DA23: 0 | DB23: 0 | DC23: 0 | DD23: 0 | DE23: 0 | DF23: 0 | DG23: 0 | DH23: 0 | DI23: 0 | DJ23: 0 | DK23: 4 | DL23: 0.165 | DM23: 100 | DN23: 100 | DO23: 0.165 | DP23: =+IF(((DN23*Q23)/100)<Q23, ((DN23*Q23)/100),Q23) -> 0.165 | DQ23: 0.165 | DR23: 1 | DS23: 0 | DT23: 1 | DU23: REDUCIR EN EL CUATRIENIO EN 50% LAS MUERTES POR HOMICIDIO EN NIÑOS Y NIÑAS DE 0 A 5 AÑOS | EB23: ESTRATEGIA PARA LA PREVENCIÓN CONTRA TODO TIPO DE VIOLENCIA Y LA PROTECCIÓN DE LOS DERECHOS DE LOS NNA. PARTICIPACIÓN DE 9.941 PERSONAS EN 9 MUNICIPIOS EN 2014. | EC23: 24000000 | EE23: 100
D24: 21 | E24: 32 | F24: 1-DESARROLLO INTEGRAL DEL SER HUMANO | G24: SECRETARIA DE GOBIERNO | H24: 1.1. INICIO PAREJO DE LA VIDA | I24: PROTECCION | J24: GARANTIZAR LA ATENCIÓN INTEGRAL AL 100% DE LAS VÍCTIMAS Y POSIBLES VÍCTIMAS DE TRATA DE PERSONAS QUE LO DEMANDEN | K24: % DE NIÑOS Y NIÑAS DE 0 A 5 AÑOS LIBRE DE TRATA DE PERSONAS | L24: PORCENTAJE DE PERSONAS | M24: M | N24: 100 | O24: =+P24 -> 100 | P24: 100 | Q24: 0.165 | R24: 0.04125 | S24: 100 | T24: 0.25 | U24: 100 | V24: 25 | W24: 100 | X24: 100 | Y24: 0.04125 | Z24: 100 | AA24: 0 | AB24: 0 | AC24: 0 | AD24: 0 | AE24: 0 | AF24: 0 | AG24: 0 | AH24: 0 | AI24: 0 | AJ24: 0 | AK24: 0 | AL24: 0 | AM24: 0 | AN24: 0 | AO24: 0 | AP24: 0 | AQ24: 0 | AR24: 0 | AS24: - | AT24: 0.04125 | AU24: 100 | AV24: 0.25 | AW24: 5 | AX24: 1.25 | AY24: 5 | AZ24: 5 | BA24: 0.0020625 | BB24: 5 | BC24: 20000000 | BD24: 0 | BE24: 20000000 | BF24: 0 | BG24: 0 | BH24: 0 | BI24: 0 | BJ24: 0 | BK24: 20000000 | BL24: 20000000 | BM24: 0 | BN24: 0 | BO24: 0 | BP24: 0 | BQ24: 0 | BR24: 0 | BS24: 0 | BT24: 0 | BU24: 0 | BV24: 0.04125 | BW24: 100 | BX24: 0.25 | BY24: 100 | BZ24: 100 | CA24: 100 | CB24: 25 | CC24: 100 | CD24: 100 | CE24: 0.04125 | CF24: 100 | CG24: 0.04125 | CH24: 0.04125 | CI24: 100 | CJ24: 0.25 | CK24: 100 | CL24: 0 | CM24: 25 | CN24: 100 | CO24: 100 | CP24: 0.04125 | CQ24: 0.04125 | CR24: 0 | CS24: 0 | CT24: 0 | CU24: 0 | CV24: 0 | CW24: 0 | CX24: 0 | CY24: 0 | CZ24: 0 | DA24: 0 | DB24: 0 | DC24: 0 | DD24: 0 | DE24: 0 | DF24: 0 | DG24: 0 | DH24: 0 | DI24: 0 | DJ24: 0 | DK24: 76.25 | DL24: 0.165 | DM24: 76.25 | DN24: 76.25 | DO24: 0.1258125 | DP24: =+IF(M24="M",DO24,0) -> 0.1258125 | DQ24: 0.1258125 | DR24: 1 | DS24: 0 | DT24: 1 | DU24: REDUCIR EN EL CUATRIENIO EN 50% LAS MUERTES POR HOMICIDIO EN NIÑOS Y NIÑAS DE 0 A 5 AÑOS | EB24: EN EL MES DE JULIO SE DISEÑO LA RUTA DE ATENCION Y PROTECCION DE CUNDINAMARCA A VICTIMAS Y POSIBLE VICTIMAS DE LA TRATA DE PERSONAS INCLUYENDO DE MANERA ESPECIFICA A LOS NIÑOS Y NIÑAS DE 0 A 5 AÑOS. EN ESTE PROCESO SE REALIZARON TALLERES PARA QUE LAS AUTORIDADES CONOCIERAN DE FONDO COMO GARANTIZAR LA ATENCION INTEGRAL AL 100% DE LAS VICTIMAS Y POSIBLES VICTIMAS | EC24: 0 | EE24: 1
D25: 22 | E25: 41 | F25: 1-DESARROLLO INTEGRAL DEL SER HUMANO | G25: SECRETARIA DE SALUD | H25: 1.2. ALIANZA POR LA INFANCIA | I25: EXISTENCIA | J25: LOGRAR NIÑOS Y NIÑAS DE 6 A 11 AÑOS MAS SALUDABLES CON LA IMPLEMENTACIÓN EN EL CUATRIENIO DE UN PROGRAMA INTEGRAL DE ESTILOS DE VIDA SALUDABLE A NIVEL COMUNITARIO EN EL 64% DE LOS MUNICIPIOS. | K25: % DE MUNICIPIOS QUE IMPLEMENTARON EL PROGRAM INTEGRAL DE SSTILOS DE VIDA SALUDABLE | L25: % DE MUNICIPIOS | M25: I | N25: 0 | O25: =+N25+P25 -> 64 | P25: 64 | Q25: 0.25 | R25: 0.05078125 | S25: 13 | T25: 0.203125 | U25: 13 | V25: 13 | W25: 100 | X25: 100 | Y25: 0.05078125 | Z25: 100 | AA25: 837000000 | AB25: 180000000 | AC25: 657000000 | AD25: 0 | AE25: 0 | AF25: 0 | AG25: 0 | AH25: 0 | AI25: 611954000 | AJ25: 186634000 | AK25: 300620000 | AL25: 0 | AM25: 0 | AN25: 0 | AO25: 0 | AP25: 124700000 | AQ25: 0 | AR25: 0 | AS25: - | AT25: 0.05078125 | AU25: 13 | AV25: 0.203125 | AW25: 13 | AX25: 13 | AY25: 100 | AZ25: 100 | BA25: 0.05078125 | BB25: 100 | BC25: 860000000 | BD25: 730000000 | BE25: 130000000 | BF25: 0 | BG25: 0 | BH25: 0 | BI25: 0 | BJ25: 0 | BK25: 700000000 | BL25: 300000000 | BM25: 400000000 | BN25: 0 | BO25: 0 | BP25: 0 | BQ25: 0 | BR25: 0 | BS25: 0 | BT25: 0 | BU25: 0 | BV25: 0.07421875 | BW25: 19 | BX25: 0.296875 | BY25: 63 | BZ25: 63 | CA25: 19 | CB25: 19 | CC25: 100 | CD25: 100 | CE25: 0.07421875 | CF25: 100 | CG25: 0.07421875 | CH25: 0.07421875 | CI25: 19 | CJ25: 0.296875 | CK25: 19 | CL25: 0 | CM25: 19 | CN25: 100 | CO25: 100 | CP25: 0.07421875 | CQ25: 0.07421875 | CR25: 1030000000 | CS25: 300000000 | CT25: 730000000 | CU25: 0 | CV25: 0 | CW25: 0 | CX25: 0 | CY25: 0 | CZ25: 0 | DA25: 0 | DB25: 0 | DC25: 0 | DD25: 0 | DE25: 0 | DF25: 0 | DG25: 0 | DH25: 0 | DI25: 0 | DJ25: 0 | DK25: 64 | DL25: 0.25 | DM25: 100 | DN25: 100 | DO25: 0.25 | DP25: =+IF(((DN25*Q25)/100)<Q25, ((DN25*Q25)/100),Q25) -> 0.25 | DQ25: 0.25 | DR25: 1 | DS25: 0 | DT25: 39 | DU25: FOMENTAR HABILIDADES Y DESTREZAS CON ACTIVIDADES LÚDICAS, CULTURALES Y DEPORTIVAS EN EL 35% DE LOS NIÑOS Y NIÑAS DE 6 A 11 AÑOS | EB25: SE DESARROLLARON ACCIONES DE MANERA INTEGREDA EN TEMAS RELACIONADOS CON: EL COMPONENTE DE ENFERMEDADES INMUNOPREVENIBLES LLEGANDO A CORTE DEL MES DE AGOSTO UN CUMPLIMIENTO DEL 75,7% EN VPH; IEC DISEÑO, PRODUJO Y DISTRIBUYO MATERIAL EDUCATIVO EN TEMAS RELACIONADOS CON SALUD PUBLICA PARA TODOS LOS 116 MUNICIPIOS; SALUD ORAL DESARROLLO ENCUENTROS PROVINSIALES SOBLRE HABITOS HIGIENICOS EN SALUD ORAL PARA UNA COBERTURA DE 19,333 NIÑOS Y SE REALIZARON 79 TALLERES LUDICOS PEDAGOGICOS DIRIGIDO A FAMILIARES Y CUIDADORES DE POBLACION EN CONDICION DE DISCAPACIDAD | EC25: 441000000 | EE25: 400
D26: 23 | E26: 42 | F26: 1-DESARROLLO INTEGRAL DEL SER HUMANO | G26: SECRETARIA DE SALUD | H26: 1.2. ALIANZA POR LA INFANCIA | I26: EXISTENCIA | J26: IMPLEMENTAR EN 116 SEDES DE INSTITUCIONES EDUCATIVAS PÚBLICAS DURANTE EL CUATRIENIO LA ESTRATEGIA DE "ESCUELAS DE CALIDAD DE VIDA" EN EL MARCO DE LA TRANSECTORIALIDAD. | K26: NO. DE SEDES DE IE PÚBLICAS CON CUMPLIMIENTO DE TODOS LOS COMPONENTES DE LA ESTRATEGIA "ESCUELAS DE CALIDAD DE VIDA" | L26: INSTITUCIONES | M26: I | N26: 0 | O26: =+N26+P26 -> 116 | P26: 116 | Q26: 0.25 | R26: 0.04310344828 | S26: 20 | T26: 0.1724137931 | U26: 57 | V26: 57 | W26: 285 | X26: 100 | Y26: 0.04310344828 | Z26: 100 | AA26: 833000000 | AB26: 401000000 | AC26: 432000000 | AD26: 0 | AE26: 0 | AF26: 0 | AG26: 0 | AH26: 0 | AI26: 133486000 | AJ26: 0 | AK26: 8786000 | AL26: 0 | AM26: 0 | AN26: 0 | AO26: 0 | AP26: 124700000 | AQ26: 0 | AR26: 0 | AS26: - | AT26: 0.0625 | AU26: 29 | AV26: 0.25 | AW26: 36 | AX26: 36 | AY26: 124.137931 | AZ26: 100 | BA26: 0.0625 | BB26: 100 | BC26: 770000000 | BD26: 480000000 | BE26: 290000000 | BF26: 0 | BG26: 0 | BH26: 0 | BI26: 0 | BJ26: 0 | BK26: 1128093979 | BL26: 624028648 | BM26: 504065331 | BN26: 0 | BO26: 0 | BP26: 0 | BQ26: 0 | BR26: 0 | BS26: 0 | BT26: 0 | BU26: 0 | BV26: 0.0775862069 | BW26: 36 | BX26: 0.3103448276 | BY26: 27 | BZ26: 27 | CA26: 36 | CB26: 36 | CC26: 100 | CD26: 100 | CE26: 0.0775862069 | CF26: 100 | CG26: 0.0775862069 | CH26: 0.06681034483 | CI26: 31 | CJ26: 0.2672413793 | CK26: 48 | CL26: -17 | CM26: 48 | CN26: 154.8387097 | CO26: 100 | CP26: 0.06681034483 | CQ26: 0.1034482759 | CR26: 1149000000 | CS26: 669000000 | CT26: 480000000 | CU26: 0 | CV26: 0 | CW26: 0 | CX26: 0 | CY26: 0 | CZ26: 0 | DA26: 0 | DB26: 0 | DC26: 0 | DD26: 0 | DE26: 0 | DF26: 0 | DG26: 0 | DH26: 0 | DI26: 0 | DJ26: 0 | DK26: 177 | DL26: 0.25 | DM26: 152.5862069 | DN26: 100 | DO26: 0.25 | DP26: =+IF(((DN26*Q26)/100)<Q26, ((DN26*Q26)/100),Q26) -> 0.25 | DQ26: 0.25 | DR26: 1 | DS26: 0 | DT26: 39 | DU26: FOMENTAR HABILIDADES Y DESTREZAS CON ACTIVIDADES LÚDICAS, CULTURALES Y DEPORTIVAS EN EL 35% DE LOS NIÑOS Y NIÑAS DE 6 A 11 AÑOS | EB26: A CORTE DE JUNIO DE 2015 LO PLANEADO PARA EL CUATRIENIO SE SUPERO, Y LA META SE AUMENTO LLEGANDO A 325 INSTITUCIONES EDUCATIVAS DE BASICA PRIMARIA. | EC26: 0 | EE26: 400
D27: 24 | E27: 43 | F27: 1-DESARROLLO INTEGRAL DEL SER HUMANO | G27: SECRETARIA DE EDUCACION | H27: 1.2. ALIANZA POR LA INFANCIA | I27: EXISTENCIA | J27: CONTRIBUIR, EN EL CUATRIENIO CON LA PERMANENCIA DE 40.874 NIÑAS Y NIÑOS EN EL SISTEMA EDUCATIVO OFICIAL, MEDIANTE EL SUMINISTRO DE COMPLEMENTOS NUTRICIONALES. | K27: NO. DE INFANTES CON SUMINISTRO DE COMPLEMENTO NUTRICIONAL EN EL CUATRIENIO | L27: ALUMNOS | M27: I | N27: 9181 | O27: =+N27+P27 -> 50055 | P27: 40874 | Q27: 0.165 | R27: 0 | S27: 0 | T27: 0 | U27: 0 | V27: 0 | W27: 0 | X27: 0 | Y27: 0 | Z27: 0 | AA27: 628000000 | AB27: 628000000 | AC27: 0 | AD27: 0 | AE27: 0 | AF27: 0 | AG27: 0 | AH27: 0 | AI27: 433625000 | AJ27: 299916000 | AK27: 133709000 | AL27: 0 | AM27: 0 | AN27: 0 | AO27: 0 | AP27: 0 | AQ27: 0 | AR27: 0 | AS27: - | AT27: 0.05170732006 | AU27: 12809 | AV27: 0.3133776973 | AW27: 12809 | AX27: 12809 | AY27: 100 | AZ27: 100 | BA27: 0.05170732006 | BB27: 100 | BC27: 454000000 | BD27: 0 | BE27: 454000000 | BF27: 0 | BG27: 0 | BH27: 0 | BI27: 0 | BJ27: 0 | BK27: 3009889561 | BL27: 939535135 | BM27: 2070354426 | BN27: 0 | BO27: 0 | BP27: 0 | BQ27: 0 | BR27: 0 | BS27: 0 | BT27: 0 | BU27: 0 | BV27: 0.09545004159 | BW27: 23645 | BX27: 0.5784851006 | BY27: 10162 | BZ27: 10162 | CA27: 25576 | CB27: 25576 | CC27: 108.1666314 | CD27: 100 | CE27: 0.09545004159 | CF27: 100 | CG27: 0.1032450947 | CH27: 0.01784263835 | CI27: 4420 | CJ27: 0.1081372021 | CK27: 9495 | CL27: -5075 | CM27: 9495 | CN27: 214.8190045 | CO27: 100 | CP27: 0.01784263835 | CQ27: 0.03832937809 | CR27: 1047000000 | CS27: 1047000000 | CT27: 0 | CU27: 0 | CV27: 0 | CW27: 0 | CX27: 0 | CY27: 0 | CZ27: 0 | DA27: 0 | DB27: 0 | DC27: 0 | DD27: 0 | DE27: 0 | DF27: 0 | DG27: 0 | DH27: 0 | DI27: 0 | DJ27: 0 | DK27: 47880 | DL27: 0.165 | DM27: 117.1404805 | DN27: 100 | DO27: 0.165 | DP27: =+IF(((DN27*Q27)/100)<Q27, ((DN27*Q27)/100),Q27) -> 0.165 | DQ27: 0.165 | DR27: 1 | DS27: 0 | DT27: 35 | DU27: ALCANZAR EN EL CUATRIENIO UNA COBERTURA BRUTA EN TRANSICIÓN DE 86.95%, PRIORIZANDO LA POBLACIÓN EN POBREZA EXTREMA QUE LO DEMANDE | DV27: 36 | DW27: MANTENER CADA AÑO EN 100% LA COBERTURA BRUTA EN BÁSICA PRIMARIA, PRIORIZANDO LA POBLACIÓN EN POBREZA EXTREMA QUE DEMANDE EL SERVICIO | DX27: 37 | EB27: SE BENEFICIARON 45.272 ESTUDIANTES CON LA ESTRATEGIA DE COMPLEMENTO NUTRICIONAL, MEDIANTE CONVENIOS CON LOS MUNICIPIOS Y CONTRATACIÓN DE ALIMENTACIÓN PARA LOS ESTUDIANTES DE JORNADAS COMPLEMENTARIAS Y MEDIA TÉCNICA, ADEMÁS, SE DOTÓ CON MENAJE A INSTITUCIONES EDUCATIVAS DE LOS MUNICIPIOS NO CERTIFICADOS DEL DEPARTAMENTO. | EC27: 257000000 | EE27: 0
D28: 25 | E28: 44 | F28: 1-DESARROLLO INTEGRAL DEL SER HUMANO | G28: SECRETARIA DE GOBIERNO | H28: 1.2. ALIANZA POR LA INFANCIA | I28: EXISTENCIA | J28: RED DE ACTORES INSTITUCIONALES CON PROTOCOLO INTERVIENEN EN LOS 116 MUNICIPIOS PARA LA PROTECCIÓN DE LA VIDA Y LA INTEGRIDAD FÍSICA DE LOS NIÑOS Y NIÑAS DE 6 A 11 AÑOS | K28: NO. DE MUNICIPIOS CON PROTOCOLO DE INTERVENCIÓN PARA PROTECCIÓN DE LA VIDA Y LA INTEGRIDAD FÍSICA DE LOS INFANTES | L28: MUNICIPIOS | M28: M | N28: 0 | O28: =+P28 -> 116 | P28: 116 | Q28: 0.165 | R28: 0.04125 | S28: 116 | T28: 0.25 | U28: 0 | V28: 0 | W28: 0 | X28: 0 | Y28: 0 | Z28: 0 | AA28: 0 | AB28: 0 | AC28: 0 | AD28: 0 | AE28: 0 | AF28: 0 | AG28: 0 | AH28: 0 | AI28: 0 | AJ28: 0 | AK28: 0 | AL28: 0 | AM28: 0 | AN28: 0 | AO28: 0 | AP28: 0 | AQ28: 0 | AR28: 0 | AS28: - | AT28: 0.04125 | AU28: 116 | AV28: 0.25 | AW28: 80 | AX28: 20 | AY28: 68.96551724 | AZ28: 68.96551724 | BA28: 0.02844827586 | BB28: 68.96551724 | BC28: 30000000 | BD28: 0 | BE28: 30000000 | BF28: 0 | BG28: 0 | BH28: 0 | BI28: 0 | BJ28: 0 | BK28: 0 | BL28: 0 | BM28: 0 | BN28: 0 | BO28: 0 | BP28: 0 | BQ28: 0 | BR28: 0 | BS28: 0 | BT28: 0 | BU28: 0 | BV28: 0.04125 | BW28: 116 | BX28: 0.25 | BY28: 116 | BZ28: 116 | CA28: 116 | CB28: 29 | CC28: 100 | CD28: 100 | CE28: 0.04125 | CF28: 100 | CG28: 0.04125 | CH28: 0.04125 | CI28: 0 | CJ28: 0.25 | CK28: 100 | CL28: -100 | CM28: 25 | CN28: 0 | CO28: 0 | CP28: 0 | CQ28: 0 | CR28: 0 | CS28: 0 | CT28: 0 | CU28: 0 | CV28: 0 | CW28: 0 | CX28: 0 | CY28: 0 | CZ28: 0 | DA28: 0 | DB28: 0 | DC28: 0 | DD28: 0 | DE28: 0 | DF28: 0 | DG28: 0 | DH28: 0 | DI28: 0 | DJ28: 0 | DK28: 74 | DL28: 0.165 | DM28: 63.79310345 | DN28: 63.79310345 | DO28: 0.1052586207 | DP28: =+IF(M28="M",DO28,0) -> 0.1052586207 | DQ28: 0.1052586207 | DR28: 1 | DS28: 0 | DT28: 33 | DU28: REDUCIR EN EL CUATRIENIO EN 20% LAS MUERTES POR HOMICIDIO EN NIÑOS Y NIÑAS DE 6 A 11 AÑOS | EB28: ARTICULACION PERMANENTE ENTRE LA SECRETARIA DE GOBIERNO, ICBF, COMISIARIAS DE FAMILIA CONJUNTAMENTE CON POLICIA DE INFANCIA Y ADOLESCENCIA CON EL FIN DE PROTEGER LA VIDA INTEGRIDAD DE LOS NIÑOS Y NIÑAS DE 6 A 11 AÑOS | EC28: 0 | EE28: 1
D29: 26 | E29: 45 | F29: 1-DESARROLLO INTEGRAL DEL SER HUMANO | G29: SECRETARIA DE EDUCACION | H29: 1.2. ALIANZA POR LA INFANCIA | I29: DESARROLLO | J29: IMPLEMENTAR DURANTE EL CUATRIENIO EN 35 MUNICIPIOS LA JORNADA COMPLEMENTARIA | K29: NO. DE MUNICIPIOS CON JORNADA COMPLEMENTARIA EN EL CUATRIENIO | L29: MUNICIPIOS | M29: I | N29: 0 | O29: =+N29+P29 -> 35 | P29: 35 | Q29: 0.165 | R29: 0.01885714286 | S29: 4 | T29: 0.1142857143 | U29: 4 | V29: 4 | W29: 100 | X29: 100 | Y29: 0.01885714286 | Z29: 100 | AA29: 41000000 | AB29: 41000000 | AC29: 0 | AD29: 0 | AE29: 0 | AF29: 0 | AG29: 0 | AH29: 0 | AI29: 0 | AJ29: 0 | AK29: 0 | AL29: 0 | AM29: 0 | AN29: 0 | AO29: 0 | AP29: 0 | AQ29: 0 | AR29: 0 | AS29: - | AT29: 0.05657142857 | AU29: 12 | AV29: 0.3428571429 | AW29: 12 | AX29: 12 | AY29: 100 | AZ29: 100 | BA29: 0.05657142857 | BB29: 100 | BC29: 29000000 | BD29: 0 | BE29: 29000000 | BF29: 0 | BG29: 0 | BH29: 0 | BI29: 0 | BJ29: 0 | BK29: 29000000 | BL29: 29000000 | BM29: 0 | BN29: 0 | BO29: 0 | BP29: 0 | BQ29: 0 | BR29: 0 | BS29: 0 | BT29: 0 | BU29: 0 | BV29: 0.05185714286 | BW29: 11 | BX29: 0.3142857143 | BY29: 0 | BZ29: 21 | CA29: 19 | CB29: 19 | CC29: 172.7272727 | CD29: 100 | CE29: 0.05185714286 | CF29: 100 | CG29: 0.08957142857 | CH29: 0.03771428571 | CI29: 8 | CJ29: 0.2285714286 | CK29: 38 | CL29: -30 | CM29: 38 | CN29: 475 | CO29: 100 | CP29: 0.03771428571 | CQ29: 0.1791428571 | CR29: 68000000 | CS29: 68000000 | CT29: 0 | CU29: 0 | CV29: 0 | CW29: 0 | CX29: 0 | CY29: 0 | CZ29: 0 | DA29: 0 | DB29: 0 | DC29: 0 | DD29: 0 | DE29: 0 | DF29: 0 | DG29: 0 | DH29: 0 | DI29: 0 | DJ29: 0 | DK29: 73 | DL29: 0.165 | DM29: 208.5714286 | DN29: 100 | DO29: 0.165 | DP29: =+IF(((DN29*Q29)/100)<Q29, ((DN29*Q29)/100),Q29) -> 0.165 | DQ29: 0.165 | DR29: 1 | DS29: 0 | DT29: 36 | DU29: MANTENER CADA AÑO EN 100% LA COBERTURA BRUTA EN BÁSICA PRIMARIA, PRIORIZANDO LA POBLACIÓN EN POBREZA EXTREMA QUE DEMANDE EL SERVICIO | DV29: 37 | DW29: REDUCIR EN EL CUATRIENIO LA TASA DE DESERCIÓN ESCOLAR AL 5.15% | DX29: 38 | DY29: 77 | EB29: LA IMPLEMENTACIÓN DE LA JORNADA ESCOLAR COMPLEMENTARIA SE HA DESARROLLADO EN EL DEPARTAMENTO DURANTE EL CUATRIENIO EN 37 MUNICIPIOS: CAJICÁ, CACHIPAY, CÁQUEZA, CÁRMEN DE CARUPA, COTA, CUCUNUBÁ, FUNZA, GACHALÁ, GUASCA, GUATAQUÍ, GUAYABETAL, GUADUAS, LA CALERA, LA MESA, LA PLAMA, LA VEGA, LENGUAZAQUE, MACHETÁ, PACHO, PUERTO SALGAR, RICAURTE, SAN JUAN DE RIOSECO, SIBATÉ, SOPÓ, SUBACHOQUE, SUESCA, TABIO, TENJO, TOCANCIPÁ, TOCAIMA, TENA, TIBIRITA, UBALÁ, UBATÉ, VERGARA Y YACOPÍ. EN ESTOS MUNICIPIOS CONTAMOS CON UN TOTAL DE 52 INSTITUCIONES EDUCATIVAS EN LAS QUE SE HA IMPLEMENTADO LA ESTRATEGIA, BENEFICIANDO MÁS DE 20.200 ESTUDIANTES. LAS INSTITUCIONES EDUCATIVAS BUSCAN EL APOYO CONSTANTE DE LAS ENTIDADES DE CULTURA Y TURISMO DE CADA UNO DE LOS MUNICIPIOS. DESDE LA SECRETARÍA DE EDUCAIÓN SE HA APOYADO A LOS MUNICIPIOS CON EL APORTE DE LA ALIMENTACIÓN PARA LOS ESTUDIANTES , ADICIONALMENTE DURANTE LOS AÑOS 2014, 2015, SE HA FIRMADO CONVENIO CON LAS CAJAS DE COMPENSACIÓN COLSUBSIDIO Y COMPENSAR PARA DESARROLLAR ACTIVIDADES ESTRÁTEGICAS QUE FORTALECEN EL ADECUADO USO DEL TIEMPO LIBRE. DESDE EL AÑO 2014 A TRAVÉS DE UN CONTRATO SE ADQUIRIO LA PLATAFORMA OPERACIÓN ÉXITO, PARA LOS ESTUDIANTES QUE SE ENCUENTRAN INSCRITOS EN JORNADA ESCOLAR COMPLEMENTARIA, PERMITIENDOLES HACER USO DE UNA LICENCIA PARA EL INGRESO A LA PLATAFORMA PARA DESARROLLAR DIVERSAS ACTIVIDADES QUE FORTALECEN SU CONOCIMIENTO Y EL USO DEL TIEMPO LIBRE A TRAVÉS DE UNA HERRAMIENTA TECNOLÓGICA. | EC29: 250000000 | EE29: 100
D30: 27 | E30: 46 | F30: 1-DESARROLLO INTEGRAL DEL SER HUMANO | G30: SECRETARIA DE EDUCACION | H30: 1.2. ALIANZA POR LA INFANCIA | I30: DESARROLLO | J30: LOGRAR, EN EL CUATRIENIO, LA PERMANENCIA DE 34.560 NIÑAS Y NIÑOS MEDIANTE SUBSIDIO AL TRANSPORTE ESCOLAR INCREMENTANDO DE 62 A 90 DIAS LA COFINANCIACIÓN | K30: NO. DE NIÑOS ATENDIDOS EN EL CUATRIENIO CON SUBSIDIO DE TRANSPORTE ESCOLAR/ NO. DE DIAS SUBSIDIADOS | L30: ALUMNOS | M30: I | N30: 36362 | O30: 70922 | P30: 34560 | Q30: 0.25 | R30: 0.06148726852 | S30: 8500 | T30: 0.2459490741 | U30: 10113 | V30: 10113 | W30: 118.9764706 | X30: 100 | Y30: 0.06148726852 | Z30: 100 | AA30: 4631000000 | AB30: 1800000000 | AC30: 0 | AD30: 0 | AE30: 0 | AF30: 0 | AG30: 0 | AH30: 2831000000 | AI30: 800000000 | AJ30: 800000000 | AK30: 0 | AL30: 0 | AM30: 0 | AN30: 0 | AO30: 0 | AP30: 0 | AQ30: 0 | AR30: 0 | AS30: - | AT30: 0.06228298611 | AU30: 8610 | AV30: 0.2491319444 | AW30: 13605 | AX30: 13605 | AY30: 158.0139373 | AZ30: 100 | BA30: 0.06228298611 | BB30: 100 | BC30: 4131000000 | BD30: 0 | BE30: 1300000000 | BF30: 0 | BG30: 0 | BH30: 0 | BI30: 0 | BJ30: 2831000000 | BK30: 4301381744 | BL30: 2249956920 | BM30: 0 | BN30: 0 | BO30: 0 | BP30: 2051424824 | BQ30: 0 | BR30: 0 | BS30: 0 | BT30: 0 | BU30: 0 | BV30: 0.06293402778 | BW30: 8700 | BX30: 0.2517361111 | BY30: 10724 | BZ30: 10724 | CA30: 10724 | CB30: 10724 | CC30: 123.2643678 | CD30: 100 | CE30: 0.06293402778 | CF30: 100 | CG30: 0.07757523148 | CH30: 0.06329571759 | CI30: 8750 | CJ30: 0.2531828704 | CK30: 11882 | CL30: -3132 | CM30: 11882 | CN30: 135.7942857 | CO30: 100 | CP30: 0.06329571759 | CQ30: 0.08595196759 | CR30: 5831000000 | CS30: 3000000000 | CT30: 0 | CU30: 0 | CV30: 0 | CW30: 0 | CX30: 0 | CY30: 2831000000 | CZ30: 0 | DA30: 0 | DB30: 0 | DC30: 0 | DD30: 0 | DE30: 0 | DF30: 0 | DG30: 0 | DH30: 0 | DI30: 0 | DJ30: 0 | DK30: 46324 | DL30: 0.25 | DM30: 134.0393519 | DN30: 100 | DO30: 0.25 | DP30: 0.25 | DQ30: 0.25 | DR30: 1 | DS30: 0 | DT30: 35 | DU30: ALCANZAR EN EL CUATRIENIO UNA COBERTURA BRUTA EN TRANSICIÓN DE 86.95%, PRIORIZANDO LA POBLACIÓN EN POBREZA EXTREMA QUE LO DEMANDE | DV30: 36 | DW30: MANTENER CADA AÑO EN 100% LA COBERTURA BRUTA EN BÁSICA PRIMARIA, PRIORIZANDO LA POBLACIÓN EN POBREZA EXTREMA QUE DEMANDE EL SERVICIO | DX30: 37 | EB30: CON LA ATENCIÓN EN LA ESTRATEGÍA DE TRANSPORTE ESCOLAR, SE LOGRÓ EN EL CUATRENIO LA META PROYECTADA, ATENDIENDO 46.324 INFANTES, PASANDO DE 62 A 90 DÍAS DE ATENCIÓN; AUMENTANDO ASÍ LA PERMANENCIA Y LA COBERTURA DE LA POBLACIÓN ESTUDIANTIL Y DISMINUYENDO LA DESERCIÓN ESCOLAR. | EC30: 4499000000 | EE30: 100
D31: 28 | E31: 47 | F31: 1-DESARROLLO INTEGRAL DEL SER HUMANO | G31: SECRETARIA DE EDUCACION | H31: 1.2. ALIANZA POR LA INFANCIA | I31: DESARROLLO | J31: FORTALECER EN EL CUATRIENIO AL 70% DE LAS Y LOS DOCENTES Y DIRECTIVOS DOCENTES EN GESTIÓN, LIDERAZGO, PROCESOS ACADÉMICOS, INVESTIGATIVOS, FORMATIVOS, PEDAGÓGICOS, CON UN ENFOQUE DE INCLUSIÓN. | K31: % DE DOCENTES Y DIRECTIVOS DOCENTES FORMADOS EN EL CUATRIENIO | L31: PORCENTAJE DE DOCENTES | M31: I | N31: 64 | O31: 134 | P31: 70 | Q31: 0.25 | R31: 0.08928571429 | S31: 25 | T31: 0.3571428571 | U31: 25 | V31: 25 | W31: 100 | X31: 100 | Y31: 0.08928571429 | Z31: 100 | AA31: 624000000 | AB31: 624000000 | AC31: 0 | AD31: 0 | AE31: 0 | AF31: 0 | AG31: 0 | AH31: 0 | AI31: 89999000 | AJ31: 89999000 | AK31: 0 | AL31: 0 | AM31: 0 | AN31: 0 | AO31: 0 | AP31: 0 | AQ31: 0 | AR31: 0 | AS31: - | AT31: 0.1035714286 | AU31: 29 | AV31: 0.4142857143 | AW31: 29 | AX31: 29 | AY31: 100 | AZ31: 100 | BA31: 0.1035714286 | BB31: 100 | BC31: 450000000 | BD31: 0 | BE31: 450000000 | BF31: 0 | BG31: 0 | BH31: 0 | BI31: 0 | BJ31: 0 | BK31: 550000000 | BL31: 550000000 | BM31: 0 | BN31: 0 | BO31: 0 | BP31: 0 | BQ31: 0 | BR31: 0 | BS31: 0 | BT31: 672000000 | BU31: Fundación Empresarios por la Educación-Fundación EXE | BV31: 0.02857142857 | BW31: 8 | BX31: 0.1142857143 | BY31: 0 | BZ31: 0 | CA31: 32.99000168 | CB31: 32.99000168 | CC31: 412.375021 | CD31: 100 | CE31: 0.02857142857 | CF31: 100 | CG31: 0.1178214346 | CH31: 0.02857142857 | CI31: 8 | CJ31: 0.1142857143 | CK31: 0 | CL31: 8 | CM31: 0 | CN31: 0 | CO31: 0 | CP31: 0 | CQ31: 0 | CR31: 1039000000 | CS31: 1039000000 | CT31: 0 | CU31: 0 | CV31: 0 | CW31: 0 | CX31: 0 | CY31: 0 | CZ31: 0 | DA31: 0 | DB31: 0 | DC31: 0 | DD31: 0 | DE31: 0 | DF31: 0 | DG31: 0 | DH31: 0 | DI31: 0 | DJ31: 0 | DK31: 86.99000168 | DL31: 0.25 | DM31: 124.271431 | DN31: 100 | DO31: 0.25 | DP31: 0.25 | DQ31: 0.25 | DR31: 1 | DS31: 0 | DT31: 38 | DU31: MEJORAR EN EL CUATRIENIO EL PROMEDIO DE DESEMPEÑO EN LAS PRUEBAS SABER DEL GRADO 5° DE LAS INSTITUCIONES EDUCATIVAS OFICIALES EN DOS PUNTOS POR CADA ÁREA EVALUADA | DV31: 75 | DW31: MEJORAR EN EL CUATRIENIO, EL PROMEDIO DE DESEMPEÑO DE LAS PRUEBAS SABER DEL GRADO NOVENO DE LAS INSTITUCIONES EDUCATIVAS OFICIALES EN 2 PUNTOS EN CADA ÁREA EVALUADA | DX31: 76 | DY31: 77 | EB31: EN EL 2012 SE FORMARON 3.166 DOCENTES Y DIRECTIVOS DOCENTES EN DIFERENTES PROGRAMAS DE FORMACIÓN CONTÍNUA Y PERMANENTE ASÍ COMO POSGRADOS DESARROLLADOS CON INSTITUCIONES DE EDUCACIÓN SUPERIOR, CON EL OBJETIVO DE MEJORAR LAS PRÁCTICAS PEDAGÓGICAS DE AULA Y FORTALECER LA CUALIFICACIÓN DE LOS DOCENTES Y DIRECTIVOS DOCENTES EN LOS SIGUIENTES TEMAS: AMBIENTES EDUCATIVOS Y USO DE TICS EN LA IMPLEMENTACIÓN DE PROYECTOS PEDAGÓGICOS, FORMACIÓN DE DOCENTES EN APLICACIÓN DE PRUEBAS SABER, DOCENTES FORMADOS EN CONVIVENCIA Y REESTRUCTURACIÓN DE MANUALES DE CONVIVENCIA, CONVERSATORIO DOCENTES DE HISTORIA CATEDRA DE CUNDINAMARCA; DIRECTIVOS DOCENTES FORMADOS EN GESTIÓN DIRECTIVA, DIRECTIVOS DOCENTES FORMADOS EN SIGCE, DOCENTES DE INGLÉS FORMADOS BUNNY BONITA, DOCENTES TUTORES FORMADOS EN LECTURA Y ESCRITURA, DOCENTES FORMADOS EN FRANCÉS, TUTORES VIRTUALES EN BILINGUISMO, PLANES DE MEJORAMIENTO, MAESTRÍA EDUCACIÓN MATEMÁTICA. EN 2013, 2.236 DOCENTES Y DIRECTIVOS DOCENTES EN PROGRAMAS ACADÉMICOS DE FORMACIÓN QUE CONTRIBUYEN AL PERFECCIONAMIENTO DE LA LABOR DOCENTE E IMPACTO EL APRENDIZAJE DE LOS ESTUDIANTES, ASÍ: CAPACITACIÓN DE DOCENTES Y ESTUDIANTES EN PROCESOS DE SIMULACRO DE LAS PRUEBAS SABER, FORMACIÓN DE DOCENTES DE PRIMARIA, 9 Y 11 EN LENGUAJE, SOCIALES, MATEMÁTICAS CON EL FIN DE FORTALECER LAS PRÁCTICAS PEDAGÓGICAS EN EL MARCO DE LOS ESTÁNDARES BÁSICOS DE COMPETENCIAS, FORMACIÓN DE RECTORES LÍDERES TRANSFORMADORES DESDE LA INSTITUCIÓN EDUCATIVA-RLT (PROGRAMA EN EL CUAL TRABAJA EN EL CRECIMIENTO PERSONAL DE LOS RECTORES EN SU SER Y SU HACER, Y EN EL FORTALECIMIENTO DE LAS COMPETENCIAS COMO LÍDER PEDAGÓGICO, ADMINISTRATIVO Y COMUNITARIO, DE ACUERDO CON LOS RETOS Y COMPETENCIAS DE SU ROL COMO CABEZA DE LA INSTITUCIÓN EDUCATIVA. ASÍ MISMO, PROPONE UNA EXPERIENCIA DE APRENDIZAJE QUE FAVORECE EL DESARROLLO DE UN LÍDER COHERENTE, CÁLIDO, VALIENTE Y APASIONADO QUE LOGRA RESULTADOS POSITIVOS MEDIANTE UN TRABAJO INNOVADOR, CONTEXTUALIZADO Y COLABORATIVO EN TODAS LAS INSTANCIAS DE LA ORGANIZACIÓN)., DIPLOMADO "MODELO DE PREVENCIÓN DE SALUD MENTAL" PARA DOCENTES ORIENTADORES CON LA UNIVERSIDAD JAVERIANA, CONGRESO MUNDIAL DE PEDAGOGÍA, CONGRESO NACIONAL INNOVACIÓN Y USO DE TIC, ENCUENTRO DE MATEMÁTICAS GRADUADOS UNIVERSIDAD DE LOS ANDES, ENCUENTRO PARA EL APRENDIZAJE DE LA MATEMÁTICA CON RECONOCIDOS DIDÁCTAS DE LA MATEMATICA, FORMACIÓN DE DOCENTES EN INGLÉS, FORMACIÓN EN CASCADA, FORMACIÓN JUSTICIA SOCIAL, FORMACIÓN DE DOCENTES DE PREESCOLAR -PROGRAMA PISOTÓN DESARROLLO PSICOAFECTIVO, FORMACIÓN DE DOCENTES ORIENTADORES CON LA CORPORACIÓN DUNNA PARA EL MANEJO DE CONFLICTOS A TRAVÉS DE YOGA, FORMACIÓN DOCENTES COMPETENCIAS FINANCIERAS BBVA, ESPECIALIZACIÓN EN PEDAGOGÍA CON LA UNIVERSIDAD PEDAGÓGICA NACIONAL, FORMACIÓN DOCENTES ENS, TODOS A APRENDER, FORMACIÓN RECTORES MANEJO DE PLATAFORMA SIGCE, FORMACIÓN PLANES DE MEJORAMIENTO, FORMACIÓN EN CONVIVENCIA CON LA UNIVERSIDAD PEDAGÓGICA NACIONAL. ADICIONALMENTE, 1.621 DOCENTES SON FORMADOS EN INCORPORACIÓN DE LAS TIC EN EL AULA. EN 2014, 4.388 DOCENTES Y DIRECTIVOS EN: DIPLOMADO SISTEMA INSTITUCIONAL DE EVALUACIÓN, CON LA UNIVERSIDAD JAVERIANA PARA DOCENTES Y COORDINADORES DE TODAS LAS IED, MAESTRÍA EN EDUCACIÓN MATEMÁTICA CON LA UNIVERSIDAD DE LOS ANDES (7 DOCENTES), MAESTRÍA EN EDUCACIÓN CON LA UNIVERSIDAD EXTERNADO DE COLOMBIA (40 DOCENTES), ESPECIALIZACIÓN EN EVALUACIÓN EDUCATIVA CON LA UNIVERSIDAD SANTO TOMAS (23 DOCENTES), FORMACIÓN RECTORES LÍDERES TRANSFORMADORES COHORTE 2014 PARA 32 RECTORES (ESTÁ EN PROCESO PRECONTRACTUAL), FORMACIÓN DE DOCENTES EN INGLÉS CON PEARSON, FORMACIÓN DE DOCENTES EN RESIGNIFICACIÓN DE MANUALES DE CONVIVENCIA CON ENFOQUE DE DERECHOS E INCLUSIÓN, FORMACIÓN DE DOCENTES PENSAMIENTO LÓGICO MATEMÁTICO- PRODUCCIÓN Y COMPRENSIÓN DE TEXTOS CON LA FUNDACIÓN ENDESA. EN 2015, 3.639 DOCENTES Y DIRECTIVOS SE HAN FORMADO O ESTÁN ADELANTANDO POSGRADOS EN EDUCACIÓN, ESPECIALIZACIÓN EN EVALUACIÓN EDUCATIVA, ESPECIALIZACIÓN EN EDUCACIÓN AMBIENTAL, FORMACIÓN Y ACOMPAÑAMIENTO DE RECTORES LÍDERES TRANSFORMADORES, PROYECTOS DE MEJORAMIENTO DE LA CALIDAD EDUCATIVA, RESOLUCIÓN DE CONFLICTOS A TRAVÉS DE YOGA, CAFE CONVERSACIÓN PARA MEJORAR LA CONVIVENCIA ESCOLAR, FORMACIÓN PRUEBAS SABER, REDES DE APRENDIZAJE E INCORPORACIÓN DE LAS TIC EN LOS PROCESOS PEDAGÓGICOS, ENTRE OTROS PROGRAMAS. | EC31: 127000000 | EE31: 100
D32: 29 | E32: 48 | F32: 1-DESARROLLO INTEGRAL DEL SER HUMANO | G32: SECRETARIA DE EDUCACION | H32: 1.2. ALIANZA POR LA INFANCIA | I32: DESARROLLO | J32: INCENTIVAR EN EL CUATRIENIO A 200 DOCENTES Y/O PERSONAL DE APOYO QUE PARTICIPEN EN JORNADAS COMPLEMENTARIAS O QUE PRESENTEN PROYECTOS DE INVESTIGACIÓN | K32: NO. DE INCENTIVOS ENTREGADOS EN EL CUATRIENIO A DOCENTES Y/O PERSONAL DE APOYO | L32: DOCENTES | M32: I | N32: 0 | O32: 200 | P32: 200 | Q32: 0.165 | R32: 0 | S32: 0 | T32: 0 | U32: 0 | V32: 0 | W32: 0 | X32: 0 | Y32: 0 | Z32: 0 | AA32: 0 | AB32: 0 | AC32: 0 | AD32: 0 | AE32: 0 | AF32: 0 | AG32: 0 | AH32: 0 | AI32: 0 | AJ32: 0 | AK32: 0 | AL32: 0 | AM32: 0 | AN32: 0 | AO32: 0 | AP32: 0 | AQ32: 0 | AR32: 0 | AS32: - | AT32: 0.04125 | AU32: 50 | AV32: 0.25 | AW32: 41 | AX32: 41 | AY32: 82 | AZ32: 82 | BA32: 0.033825 | BB32: 82 | BC32: 300000000 | BD32: 0 | BE32: 300000000 | BF32: 0 | BG32: 0 | BH32: 0 | BI32: 0 | BJ32: 0 | BK32: 127332000 | BL32: 127332000 | BM32: 0 | BN32: 0 | BO32: 0 | BP32: 0 | BQ32: 0 | BR32: 0 | BS32: 0 | BT32: 0 | BU32: 0 | BV32: 0.0825 | BW32: 100 | BX32: 0.5 | BY32: 0 | BZ32: 0 | CA32: 131 | CB32: 131 | CC32: 131 | CD32: 100 | CE32: 0.0825 | CF32: 100 | CG32: 0.108075 | CH32: 0.04125 | CI32: 50 | CJ32: 0.25 | CK32: 128 | CL32: -78 | CM32: 128 | CN32: 256 | CO32: 100 | CP32: 0.04125 | CQ32: 0.1056 | CR32: 350000000 | CS32: 350000000 | CT32: 0 | CU32: 0 | CV32: 0 | CW32: 0 | CX32: 0 | CY32: 0 | CZ32: 0 | DA32: 0 | DB32: 0 | DC32: 0 | DD32: 0 | DE32: 0 | DF32: 0 | DG32: 0 | DH32: 0 | DI32: 0 | DJ32: 0 | DK32: 300 | DL32: 0.165 | DM32: 150 | DN32: 100 | DO32: 0.165 | DP32: 0.165 | DQ32: 0.165 | DR32: 1 | DS32: 0 | DT32: 36 | DU32: MANTENER CADA AÑO EN 100% LA COBERTURA BRUTA EN BÁSICA PRIMARIA, PRIORIZANDO LA POBLACIÓN EN POBREZA EXTREMA QUE DEMANDE EL SERVICIO | EB32: SE HAN ADELANTANDO POSGRADOS EN PEDAGOGÍA, MAESTRÍA EN EDUCACIÓN, EDUCACIÓN AMBIENTAL, EVALUACIÓN EDUCATIVA, MATEMÁTICAS, ENTRE OTROS PROGRAMAS. SE HAN FORMADO DESDE 2012, 220 DOCENTES EN POSGRADO. | EC32: 4320000000 | EE32: 600
D33: 30 | E33: 49 | F33: 1-DESARROLLO INTEGRAL DEL SER HUMANO | G33: SECRETARIA DE EDUCACION | H33: 1.2. ALIANZA POR LA INFANCIA | I33: DESARROLLO | J33: MEJORAR EN EL CUATRIENIO EL FUNCIONAMIENTO DE LOS MODELOS FLEXIBLES DE APRENDIZAJE PARA PRIMARIA EN 76 SEDES EDUCATIVAS RURALES (ESCUELA NUEVA Y ACELERACIÓN DEL APRENDIZAJE) | K33: NO. DE SEDES EDUCATIVAS RURALES CON MODELOS FLEXIBLES DE APRENDIZAJE MEJORADOS EN EL CUATRIENIO | L33: SEDES | M33: I | N33: 76 | O33: 152 | P33: 76 | Q33: 0.165 | R33: 0.04125 | S33: 19 | T33: 0.25 | U33: 0 | V33: 0 | W33: 0 | X33: 0 | Y33: 0 | Z33: 0 | AA33: 126000000 | AB33: 126000000 | AC33: 0 | AD33: 0 | AE33: 0 | AF33: 0 | AG33: 0 | AH33: 0 | AI33: 195744000 | AJ33: 195744000 | AK33: 0 | AL33: 0 | AM33: 0 | AN33: 0 | AO33: 0 | AP33: 0 | AQ33: 0 | AR33: 0 | AS33: - | AT33: 0.04125 | AU33: 19 | AV33: 0.25 | AW33: 38 | AX33: 38 | AY33: 200 | AZ33: 100 | BA33: 0.04125 | BB33: 100 | BC33: 91000000 | BD33: 0 | BE33: 91000000 | BF33: 0 | BG33: 0 | BH33: 0 | BI33: 0 | BJ33: 0 | BK33: 231786291 | BL33: 231786291 | BM33: 0 | BN33: 0 | BO33: 0 | BP33: 0 | BQ33: 0 | BR33: 0 | BS33: 0 | BT33: 0 | BU33: 0 | BV33: 0.04125 | BW33: 19 | BX33: 0.25 | BY33: 14 | BZ33: 14 | CA33: 19 | CB33: 19 | CC33: 100 | CD33: 100 | CE33: 0.04125 | CF33: 100 | CG33: 0.04125 | CH33: 0.04125 | CI33: 19 | CJ33: 0.25 | CK33: 88 | CL33: -69 | CM33: 88 | CN33: 463.1578947 | CO33: 100 | CP33: 0.04125 | CQ33: 0.1910526316 | CR33: 210000000 | CS33: 210000000 | CT33: 0 | CU33: 0 | CV33: 0 | CW33: 0 | CX33: 0 | CY33: 0 | CZ33: 0 | DA33: 0 | DB33: 0 | DC33: 0 | DD33: 0 | DE33: 0 | DF33: 0 | DG33: 0 | DH33: 0 | DI33: 0 | DJ33: 0 | DK33: 145 | DL33: 0.165 | DM33: 190.7894737 | DN33: 100 | DO33: 0.165 | DP33: 0.165 | DQ33: 0.165 | DR33: 1 | DS33: 0 | DT33: 37 | DU33: REDUCIR EN EL CUATRIENIO LA TASA DE DESERCIÓN ESCOLAR AL 5.15% | DV33: 77 | DW33: MEJORAR EN EL CUATRIENIO LOS PROCESOS EDUCATIVOS, FORMATIVOS, PEDAGÓGICOS E INSTITUCIONALES DEL 100% DE LAS INSTITUCIONES EDUCATIVAS DE LOS MUNICIPIOS NO CERTIFICADOS | DX33: 78 | EB33: SE CAPACITARON 522 DOCENTES, SE ENTREGARON 4.915 JUEGOS DE GUÍAS DE APRENDIZAJE Y 57 CANASTAS EN EL MODELO ESCUELA NUEVA, LLEGANDO A 37.727 ESTUDIANTES DE 1.683 SEDES EN 84 MUNICIPIOS. CAPACITACIÓN DE 16 DOCENTES EN EL MODELO DE ACELERECIÓN DEL APRENDIZAJE. SE ENTREGARON 21 TABLEROS DIGITALES PORTÁTILES EN IGUAL NÚMEROS DE SEDES RURALES. | EC33: 400000000 | EE33: 0
D34: 31 | E34: 50 | F34: 1-DESARROLLO INTEGRAL DEL SER HUMANO | G34: SECRETARIA DE EDUCACION | H34: 1.2. ALIANZA POR LA INFANCIA | I34: DESARROLLO | J34: IMPLEMENTAR DURANTE EL CUATRIENIO LA EDUCACIÓN INCLUSIVA PARA LA INFANCIA EN 100 INSTITUCIONES EDUCATIVAS DE LOS MUNICIPIOS NO CERTIFICADOS | K34: NO. DE IE CON EDUCACIÓN INCLUSIVA PARA LA INFANCIA | L34: INSTITUCIONES | M34: I | N34: 33 | O34: 133 | P34: 100 | Q34: 0.165 | R34: 0 | S34: 0 | T34: 0 | U34: 0 | V34: 0 | W34: 0 | X34: 0 | Y34: 0 | Z34: 0 | AA34: 311000000 | AB34: 311000000 | AC34: 0 | AD34: 0 | AE34: 0 | AF34: 0 | AG34: 0 | AH34: 0 | AI34: 0 | AJ34: 0 | AK34: 0 | AL34: 0 | AM34: 0 | AN34: 0 | AO34: 0 | AP34: 0 | AQ34: 0 | AR34: 0 | AS34: - | AT34: 0.04125 | AU34: 25 | AV34: 0.25 | AW34: 25 | AX34: 25 | AY34: 100 | AZ34: 100 | BA34: 0.04125 | BB34: 100 | BC34: 225000000 | BD34: 0 | BE34: 225000000 | BF34: 0 | BG34: 0 | BH34: 0 | BI34: 0 | BJ34: 0 | BK34: 240667040 | BL34: 240667040 | BM34: 0 | BN34: 0 | BO34: 0 | BP34: 0 | BQ34: 0 | BR34: 0 | BS34: 0 | BT34: 220900000 | BU34: Fundación Saldarriaga Concha | BV34: 0.0627 | BW34: 38 | BX34: 0.38 | BY34: 14 | BZ34: 14 | CA34: 49 | CB34: 49 | CC34: 128.9473684 | CD34: 100 | CE34: 0.0627 | CF34: 100 | CG34: 0.08085 | CH34: 0.06105 | CI34: 37 | CJ34: 0.37 | CK34: 55 | CL34: -18 | CM34: 55 | CN34: 148.6486486 | CO34: 100 | CP34: 0.06105 | CQ34: 0.09075 | CR34: 519000000 | CS34: 519000000 | CT34: 0 | CU34: 0 | CV34: 0 | CW34: 0 | CX34: 0 | CY34: 0 | CZ34: 0 | DA34: 0 | DB34: 0 | DC34: 0 | DD34: 0 | DE34: 0 | DF34: 0 | DG34: 0 | DH34: 0 | DI34: 0 | DJ34: 0 | DK34: 129 | DL34: 0.165 | DM34: 129 | DN34: 100 | DO34: 0.165 | DP34: 0.165 | DQ34: 0.165 | DR34: 1 | DS34: 0 | DT34: 37 | DU34: REDUCIR EN EL CUATRIENIO LA TASA DE DESERCIÓN ESCOLAR AL 5.15% | DV34: 38 | DW34: MEJORAR EN EL CUATRIENIO EL PROMEDIO DE DESEMPEÑO EN LAS PRUEBAS SABER DEL GRADO 5° DE LAS INSTITUCIONES EDUCATIVAS OFICIALES EN DOS PUNTOS POR CADA ÁREA EVALUADA | DX34: 77 | EB34: SE HA LOGRADO EN EL CUATRIENIO TENER 128 INSTITUCIONES EDUCATIVAS CON EDUCACIÓNINCLUSIVA MEDIANTE 5 CONVENIOS DE COOPERACIÓN CON LA FUNDACIÓN SALDARRIAGA CONCHA PARA LA ATENCIÓN DE LOS ESTUDIANTES CON DISCAPACIDAD - 2 CONVENIOS DE COOPERACIÓN CON EL INSTITUTO NACIONAL PARA CIEGOS INSOR PARA REORGANIZAR Y FORTALECER LA OFERTA EDUCATIVA PARA ESTUDIANTES SORDOS. - 2 CONTRATOS INTERADMINISTRATIVOS DE COMPRAVENTA CON EL INSTITUTO NACIONAL PARA CIEGOS INCI PARA ADQUIRIR MATERIAL PERTINENTE PARA ESTUDIANTES CIEGOS - 1 CONVENIO DE COOPERACIÓN CON LA FUNDACIÓN ALBERTO MERANI PARA APOYAR A LAS IED EN LA CARACTERIZACIÓN DE LOS ESTUDIANTES CON TALENTOS Y CON DISCAPACIDAD COGNITIVA. | EC34: 1799000000 | EE34: 0
D35: 32 | E35: 51 | F35: 1-DESARROLLO INTEGRAL DEL SER HUMANO | G35: SECRETARIA DE EDUCACION | H35: 1.2. ALIANZA POR LA INFANCIA | I35: DESARROLLO | J35: ACOMPAÑAR DURANTE EL CUATRIENIO AL 100% DE LAS INSTITUCIONES EDUCATIVAS PÚBLICAS DE LOS MUNICIPIOS NO CERTIFICADOS EN LA REVISIÓN Y REELABORACIÓN DE SUS PEI, ARTICULACIÓN CON EL PLAN DE ESTUDIOS, MANUALES DE CONVIVENCIA CON ENFOQUE DE DERECHOS Y SISTEMAS | K35: % DE IE ACOMPAÑADAS PARA REVISIÓN Y REELABORACIÓN DE PEI | L35: % DE INSTITUCIONES | M35: M | N35: 0 | O35: =+P35 -> 100 | P35: 100 | Q35: 0.25 | R35: 0.0625 | S35: 100 | T35: 0.25 | U35: 100 | V35: 25 | W35: 100 | X35: 100 | Y35: 0.0625 | Z35: 100 | AA35: 75000000 | AB35: 75000000 | AC35: 0 | AD35: 0 | AE35: 0 | AF35: 0 | AG35: 0 | AH35: 0 | AI35: 620000000 | AJ35: 620000000 | AK35: 0 | AL35: 0 | AM35: 0 | AN35: 0 | AO35: 0 | AP35: 0 | AQ35: 0 | AR35: 0 | AS35: - | AT35: 0.0625 | AU35: 100 | AV35: 0.25 | AW35: 100 | AX35: 25 | AY35: 100 | AZ35: 100 | BA35: 0.0625 | BB35: 100 | BC35: 54000000 | BD35: 0 | BE35: 54000000 | BF35: 0 | BG35: 0 | BH35: 0 | BI35: 0 | BJ35: 0 | BK35: 235000000 | BL35: 235000000 | BM35: 0 | BN35: 0 | BO35: 0 | BP35: 0 | BQ35: 0 | BR35: 0 | BS35: 0 | BT35: 0 | BU35: 0 | BV35: 0.0625 | BW35: 100 | BX35: 0.25 | BY35: 100 | BZ35: 100 | CA35: 100 | CB35: 25 | CC35: 100 | CD35: 100 | CE35: 0.0625 | CF35: 100 | CG35: 0.0625 | CH35: 0.0625 | CI35: 100 | CJ35: 0.25 | CK35: 100 | CL35: 0 | CM35: 25 | CN35: 100 | CO35: 100 | CP35: 0.0625 | CQ35: 0.0625 | CR35: 125000000 | CS35: 125000000 | CT35: 0 | CU35: 0 | CV35: 0 | CW35: 0 | CX35: 0 | CY35: 0 | CZ35: 0 | DA35: 0 | DB35: 0 | DC35: 0 | DD35: 0 | DE35: 0 | DF35: 0 | DG35: 0 | DH35: 0 | DI35: 0 | DJ35: 0 | DK35: 100 | DL35: 0.25 | DM35: 100 | DN35: 100 | DO35: 0.25 | DP35: =+IF(M35="M",DO35,0) -> 0.25 | DQ35: 0.25 | DR35: 1 | DS35: 0 | DT35: 77 | DU35: MEJORAR EN EL CUATRIENIO LOS PROCESOS EDUCATIVOS, FORMATIVOS, PEDAGÓGICOS E INSTITUCIONALES DEL 100% DE LAS INSTITUCIONES EDUCATIVAS DE LOS MUNICIPIOS NO CERTIFICADOS | EB35: EN EL 2013 SE SUSCRIBIÓ UN CONTRATO DE PRESTACIÓN DE SERVICIOS, CON LA UNIVERSIDAD PEDAGÓGICA NACIONAL CON EL PROPÓSITO DE ORIENTAR UN PROCESO FORMATIVO, DE ACOMPAÑAMIENTO Y ASESORÍA A LAS (9) ESCUELAS NORMALES OFICIALES DE LOS MUNICIPIOS NO CERTIFICADOS DE CUNDINAMARCA, CON EL OBJETO DE PROMOVER LA REFLEXIÓN-ACCIÓN SOBRE LAS RELACIONES ENTRE JUSTICIA SOCIAL Y DERECHO A LA EDUCACIÓN A PARTIR DE LA COTIDIANIDAD DE CADA INSTITUCIÓN. ESTE PROCESO CONTRIBUYE AL CUMPLIMIENTO DE LA META PROPUESTA EN EL CUATRIENIO “% DE INSTITUCIONES EDUCATIVAS ACOMPAÑADAS EN PROCESOS DE REVISIÓN Y REELABORACIÓN DEL PROYECTO EDUCATIVO INSTITUCIONAL – PEI.” SE DESARROLLARAN ESTRATEGIAS COMO: DEBATES CRÍTICOS, TALLERES, ANÁLISIS DE SITUACIONES EDUCATIVAS COTIDIANAS Y DE VIDEOS, CONVERSATORIOS, ENCUESTAS, DESARROLLO DE GUÍAS, GRUPOS DE TRABAJO COLABORATIVO. SE FORMARON 18 DOCENTES, QUE A SU VEZ TRANSMITEN LOS APRENDIZAJES A TODOS LOS DOCENTES Y ESTUDIANTES DE LA EDUCACIÓN COMPLEMENTARIA. EL VALOR TOTAL DEL CONTRATO INTERADMINISTRATIVO ES DE SESENTA MILLONES QUINIENTOS MIL PESOS MCTE ($60.500.000) EN EL 2014 LAS ESCUELAS NORMALES SUPERIORES TRABAJARON CON LA COMUNIDAD EDUCATIVA LOS PROYECTOS QUE FORMULARON, EN FORMA AUTÓNOMA. PARA EL 2015 SE SUSCRIBIÓ UN NUEVO CONTRATO INTERADMINISTRATIVO CON LA UNIVERSIDAD PEDAGÓGICA NACIONAL CON EL OBJETO DE: “FORTALECER LA FORMACIÓN DE MAESTROS Y MAESTRAS DE LAS ESCUELAS NORMALES DE CUNDINAMARCA ACERCA DE LA EDUCACIÓN CON JUSTICIA SOCIAL Y LA CONFIGURACIÓN DE SUJETOS DE DERECHOS A PARTIR DE DESARROLLO DE PROYECTOS PEDAGÓGICOS- INVESTIGATIVOS EN CADA INSTITUCIÓN, SUSTENTADOS EN LA REFLEXIÓN –ACCIÓN –TRANSFORMACIÓN.”. LOS BENEFICIARIOS DE LA FORMACIÓN SON 18 DOCENTES DE LAS 9 ESCUELAS NORMALES DEL DEPARTAMENTO, QUIENES HAN VENIDO SIENDO FORMADOS DESDE EL AÑO 2013, Y QUE FORMULARON PROYECTOS ENFOCADOS AL TEMA DE JUSTICIA SOCIAL, DOCENTES, DIRECTIVOS DOCENTES Y ESTUDIANTES QUE HACEN PARTE DE LA RED DE INVESTIGADORES EN EDUCACIÓN PARA LA JUSTICIA SOCIAL. SE REALIZARON CONVERSATORIOS MUNICIPALES PARA APORTAR AL DESARROLLO Y AL MEJORAMIENTO DE LA CONVIVENCIA A TRAVES DEL FOMENTO DE UNA CULTURA DEL DIALOGO, LA INTEGRACION DE LA FAMILIA EN LA ESCUELA, LA PARTICIPACION DE LOS GOBIERNOS ESCOLARES, EL APRECIO A LA INSTITUCION Y LOS PROFESORES. FORTALECIMIENTO DE LOS PROCESOS PARA LA SANA CONVIVENCIA ESCOLAR CON ENFOQUE DERECHOS INCLUSION | EC35: 21000000 | EE35: 116
D36: 33 | E36: 52 | F36: 1-DESARROLLO INTEGRAL DEL SER HUMANO | G36: BENEFICENCIA | H36: 1.2. ALIANZA POR LA INFANCIA | I36: DESARROLLO | J36: ATENDER INTEGRALMENTE A 600 NIÑAS Y NIÑOS DE ESCASOS RECURSOS, CADA AÑO, EN LOS CENTROS DE PROTECCIÓN DE LA BENEFICENCIA DE CUNDINAMARCA | K36: NO. DE NIÑAS Y NIÑOS ATENDIDOS CADA AÑO EN LOS CENTROS DE LA BENEFICENCIA | L36: PERSONAS | M36: M | N36: 587 | O36: =+P36 -> 600 | P36: 600 | Q36: 0.165 | R36: 0.04125 | S36: 600 | T36: 0.25 | U36: 590 | V36: 147.5 | W36: 98.33333333 | X36: 98.33333333 | Y36: 0.0405625 | Z36: 98.33333333 | AA36: 4899000000 | AB36: 4899000000 | AC36: 0 | AD36: 0 | AE36: 0 | AF36: 0 | AG36: 0 | AH36: 0 | AI36: 3963593000 | AJ36: 3963593000 | AK36: 0 | AL36: 0 | AM36: 0 | AN36: 0 | AO36: 0 | AP36: 0 | AQ36: 0 | AR36: 0 | AS36: - | AT36: 0.04125 | AU36: 600 | AV36: 0.25 | AW36: 524 | AX36: 131 | AY36: 87.33333333 | AZ36: 87.33333333 | BA36: 0.036025 | BB36: 87.33333333 | BC36: 4899000000 | BD36: 0 | BE36: 4899000000 | BF36: 0 | BG36: 0 | BH36: 0 | BI36: 0 | BJ36: 0 | BK36: 3428022790 | BL36: 3428022790 | BM36: 0 | BN36: 0 | BO36: 0 | BP36: 0 | BQ36: 0 | BR36: 0 | BS36: 0 | BT36: 0 | BU36: 0 | BV36: 0.04125 | BW36: 600 | BX36: 0.25 | BY36: 454 | BZ36: 454 | CA36: 474 | CB36: 118.5 | CC36: 79 | CD36: 79 | CE36: 0.0325875 | CF36: 79 | CG36: 0.0325875 | CH36: 0.04125 | CI36: 600 | CJ36: 0.25 | CK36: 762 | CL36: -162 | CM36: 190.5 | CN36: 127 | CO36: 100 | CP36: 0.04125 | CQ36: 0.0523875 | CR36: 4899000000 | CS36: 4899000000 | CT36: 0 | CU36: 0 | CV36: 0 | CW36: 0 | CX36: 0 | CY36: 0 | CZ36: 0 | DA36: 0 | DB36: 0 | DC36: 0 | DD36: 0 | DE36: 0 | DF36: 0 | DG36: 0 | DH36: 0 | DI36: 0 | DJ36: 0 | DK36: 587.5 | DL36: 0.165 | DM36: 97.91666667 | DN36: 97.91666667 | DO36: 0.1615625 | DP36: =+IF(M36="M",DO36,0) -> 0.1615625 | DQ36: 0.1615625 | DR36: 1 | DS36: 0 | DT36: 39 | DU36: FOMENTAR HABILIDADES Y DESTREZAS CON ACTIVIDADES LÚDICAS, CULTURALES Y DEPORTIVAS EN EL 35% DE LOS NIÑOS Y NIÑAS DE 6 A 11 AÑOS | EB36: PROTECCIÓN DE 241 NIÑAS Y 283 NIÑOS VÍCTIMAS DE LAS VIOLENCIAS, CON ALOJAMIENTO, ALIMENTACIÓN, INTERVENCION TERAPEUTICA PROFESIONAL E INTERDISCIPLINARIA PARA EL NIÑOS, NIÑAS Y SUS FAMILIAS EN TRABAJO SOCIAL, PSICOLOGÍA, EDUCACIÓN ESPECIAL (PARA NN CON DISCAPACIDAD), PSICOPEDAGOGIA, FONOAUDIOLOGÍA, TERAPIA OCUPACIONAL, PEDAGOGÍA REEDUCATIVA, NUTRICIÓN, EDUCACIÓN, FORMACIÓN PARA EL TRABAJO, RECREACIÓN, CULTURA, DEPORTE, BUEN USO DEL TIEMPO LIBRE, DESARROLLO DE PROYECTOS PRODUCTIVOS Y OCUPACIONALES. | EC36: 960000000 | EE36: 0
D37: 34 | E37: 53 | F37: 1-DESARROLLO INTEGRAL DEL SER HUMANO | G37: SECRETARIA DE DESARROLLO SOCIAL | H37: 1.2. ALIANZA POR LA INFANCIA | I37: DESARROLLO | J37: CONTRIBUIR AL DESARROLLO SICOMOTRIZ Y SOCIAL DE LOS NIÑOS FORTALECIENDO EN EL CUATRIENIO LA OPERACIÓN DE 160 LUDOTECAS CON AMBIENTE E IMPLEMENTOS ADECUADOS PARA LAS Y LOS NIÑOS DE 6 A 11 AÑOS | K37: NO. DE LUDOTECAS CON AMBIENTE Y DOTACIÓN ADECUADA PARA LOS INFANTES | L37: LUDOTECAS | M37: I | N37: 132 | O37: =+N37+P37 -> 292 | P37: 160 | Q37: 0.165 | R37: 0.00721875 | S37: 7 | T37: =IF($M37="M",0.25,(IF($P37>0,S37/$P37," "))) -> 0.04375 | U37: 0 | V37: =+IF(M37="I",(+U37),IF(M37="M",(+U37)/4,)) -> 0 | W37: =IF(S37=0,0,+U37*100/S37) -> 0 | X37: 0 | Y37: 0 | Z37: 0 | AA37: 636000000 | AB37: 121000000 | AC37: 0 | AD37: 0 | AE37: 0 | AF37: 0 | AG37: 0 | AH37: 515000000 | AI37: 0 | AJ37: 0 | AK37: 0 | AL37: 0 | AM37: 0 | AN37: 0 | AO37: 0 | AP37: 0 | AQ37: 0 | AR37: 0 | AS37: - | AT37: 0.05259375 | AU37: 51 | AV37: =IF($M37="M",0.25,(IF($P37>0,AU37/$P37," "))) -> 0.31875 | AW37: 70 | AX37: =+IF(M37="I",(+AW37),IF(M37="M",(+AW37)/4,)) -> 70 | AY37: =IF(AU37=0,0,+AW37*100/AU37) -> 137.254902 | AZ37: 100 | BA37: 0.05259375 | BB37: 100 | BC37: 603000000 | BD37: 0 | BE37: 88000000 | BF37: 0 | BG37: 0 | BH37: 0 | BI37: 0 | BJ37: 515000000 | BK37: 140000000 | BL37: 140000000 | BM37: 0 | BN37: 0 | BO37: 0 | BP37: 0 | BQ37: 0 | BR37: 0 | BS37: 0 | BT37: 0 | BU37: 0 | BV37: 0.05259375 | BW37: 51 | BX37: =IF($M37="M",0.25,(IF($P37>0,BW37/$P37," "))) -> 0.31875 | BY37: 0 | BZ37: 0 | CA37: 0 | CB37: =+IF(M37="I",(+CA37),IF(M37="M",(+CA37)/4,)) -> 0 | CC37: =IF(BW37=0,0,+CA37*100/BW37) -> 0 | CD37: 0 | CE37: 0 | CF37: 0 | CG37: 0 | CH37: 0.05259375 | CI37: 51 | CJ37: =IF($M37="M",0.25,(IF($P37>0,CI37/$P37," "))) -> 0.31875 | CK37: 0 | CL37: =+CI37-CK37 -> 51 | CM37: =+IF(M37="I",(+CK37),IF(M37="M",(+CK37)/4,)) -> 0 | CN37: =IF(CI37=0,0,+CK37*100/CI37) -> 0 | CO37: 0 | CP37: 0 | CQ37: 0 | CR37: 718000000 | CS37: 202000000 | CT37: 0 | CU37: 0 | CV37: 0 | CW37: 0 | CX37: 0 | CY37: 516000000 | CZ37: 0 | DA37: 0 | DB37: 0 | DC37: 0 | DD37: 0 | DE37: 0 | DF37: 0 | DG37: 0 | DH37: 0 | DI37: 0 | DJ37: 0 | DK37: =+IF(M37="I",(+U37+AW37+CA37+CK37),IF(M37="M",(+U37+AW37+CA37+CK37)/4,)) -> 70 | DL37: 0.165 | DM37: 43.75 | DN37: 43.75 | DO37: 0.0721875 | DP37: =+IF(((DN37*Q37)/100)<Q37, ((DN37*Q37)/100),Q37) -> 0.0721875 | DQ37: 0.0721875 | DR37: 1 | DS37: 0 | DT37: 39 | DU37: FOMENTAR HABILIDADES Y DESTREZAS CON ACTIVIDADES LÚDICAS, CULTURALES Y DEPORTIVAS EN EL 35% DE LOS NIÑOS Y NIÑAS DE 6 A 11 AÑOS | EB37: FORTALECIMIENTO DE ESPACIOS DE PARTICIPACIÓN Y APRENDIZAJE CON DOTACIÓN A 70 LUDOTECAS EN EL MARCO DEL PROGRAMA RED DE LUDOTECAS EN 67 MUNICIPIOS, DE LAS CUALES 19 SE ENCUENTRAN A CARGO DE COLSUBSIDIO EN EL MARCO DEL CONVENIO DE COOPERACIÓN SUSCRITO. ENTRE 2014 Y PRIMER SEMESTRE DE 2015, SE HA BRINDADO ATENCIÓN A MÁS DE 150 MIL NIÑOS Y NIÑAS MENORES ENTRE 6 Y 11 AÑOS. | EC37: 66250000 | EE37: 100
D38: 35 | E38: 54 | F38: 1-DESARROLLO INTEGRAL DEL SER HUMANO | G38: INDEPORTES | H38: 1.2. ALIANZA POR LA INFANCIA | I38: DESARROLLO | J38: OFRECER FORMACIÓN DEPORTIVA INICIAL A 33.228 NIÑAS Y NIÑOS ENTRE 6 Y 11 AÑOS EN EL CUATRIENIO A TRAVÉS DE ESCUELAS DE FORMACIÓN ESPECIALIZADAS | K38: NO. DE INFANTES BENEFICIADOS CON ESCUELAS DE FORMACIÓN DEPORTIVA | L38: PERSONAS | M38: I | N38: 29489 | O38: =+N38+P38 -> 62717 | P38: 33228 | Q38: 0.165 | R38: 0.04125 | S38: 8307 | T38: 0.25 | U38: 9968 | V38: 9968 | W38: 119.9951848 | X38: 100 | Y38: 0.04125 | Z38: 100 | AA38: 522000000 | AB38: 522000000 | AC38: 0 | AD38: 0 | AE38: 0 | AF38: 0 | AG38: 0 | AH38: 0 | AI38: 337120000 | AJ38: 337120000 | AK38: 0 | AL38: 0 | AM38: 0 | AN38: 0 | AO38: 0 | AP38: 0 | AQ38: 0 | AR38: 0 | AS38: - | AT38: 0.04125 | AU38: 8307 | AV38: 0.25 | AW38: 9537 | AX38: 9537 | AY38: 114.8067895 | AZ38: 100 | BA38: 0.04125 | BB38: 100 | BC38: 522000000 | BD38: 0 | BE38: 522000000 | BF38: 0 | BG38: 0 | BH38: 0 | BI38: 0 | BJ38: 0 | BK38: 659343287 | BL38: 659343287 | BM38: 0 | BN38: 0 | BO38: 0 | BP38: 0 | BQ38: 0 | BR38: 0 | BS38: 0 | BT38: 0 | BU38: 0 | BV38: 0.04125 | BW38: 8307 | BX38: 0.25 | BY38: 20106 | BZ38: 20106 | CA38: 20106 | CB38: 20106 | CC38: 242.0368364 | CD38: 100 | CE38: 0.04125 | CF38: 100 | CG38: 0.09984019502 | CH38: 0.04125 | CI38: 8307 | CJ38: 0.25 | CK38: 23991 | CL38: -15684 | CM38: 23991 | CN38: 288.8046226 | CO38: 100 | CP38: 0.04125 | CQ38: 0.1191319068 | CR38: 522000000 | CS38: 522000000 | CT38: 0 | CU38: 0 | CV38: 0 | CW38: 0 | CX38: 0 | CY38: 0 | CZ38: 0 | DA38: 0 | DB38: 0 | DC38: 0 | DD38: 0 | DE38: 0 | DF38: 0 | DG38: 0 | DH38: 0 | DI38: 0 | DJ38: 0 | DK38: 63602 | DL38: 0.165 | DM38: 191.4108583 | DN38: 100 | DO38: 0.165 | DP38: =+IF(((DN38*Q38)/100)<Q38, ((DN38*Q38)/100),Q38) -> 0.165 | DQ38: 0.165 | DR38: 1 | DS38: 0 | DT38: 39 | DU38: FOMENTAR HABILIDADES Y DESTREZAS CON ACTIVIDADES LÚDICAS, CULTURALES Y DEPORTIVAS EN EL 35% DE LOS NIÑOS Y NIÑAS DE 6 A 11 AÑOS | EB38: SE FORTALECIÓ EL PROGRAMA DE DEPORTE FORMATIVO, BRINDADNDO APOYO FINANCIERO A LAS ESCUELAS DE FORMACIÓN DEPORTIVA A 109 MUNICIPIOS DEL DEPARTAMENTO, CONTRIBUYENDO A LA FORMACIÓN INTEGRAL DE LOS NIÑOS Y NIÑAS, UTILIZANDO COMO MEDIO EL GUSTO Y LA INCLINACIÓN POR LA PRÁCTICA DEPORTIVA, CON EL PROPÓSITO DE ORIENTAR Y PROMOVER FUTUROS CIUDADANOS CON UNA MEJOR CALIDAD DE VIDA Y UN MEJOR PERFIL HACIA EL DEPORTE. ASÍ COMO BRINDAR LA LA ASISTENCIA TÉCNICA A ENTES TERRITORIALES EN LA ELABORACIÓN DE PLANES PEDAGÓGICOS POR DEPORTE Y RAMA Y LA ASESORÍA EN LA DOCUMENTACIÓN, DILIGENCIAMIENTO Y REQUISITOS PARA OBTENER EL AVAL DEPORTIVO PARA DE ESCUELAS DEPORTIVAS MUNICIPALES O ENTES PRIVADOS. | EC38: 660000000 | EE38: 4
D39: 36 | E39: 55 | F39: 1-DESARROLLO INTEGRAL DEL SER HUMANO | G39: INDEPORTES | H39: 1.2. ALIANZA POR LA INFANCIA | I39: DESARROLLO | J39: GARANTIZAR LA RESERVA DEPORTIVA CON LA IDENTIFICACIÓN Y SELECCIÓN EN EL CUATRIENIO DE 850 NUEVOS TALENTOS PARA DEPORTE CONVENCIONAL Y CON DISCAPACIDAD | K39: NO. DE NUEVOS TALENTOS IDENTIFICADOS | L39: PERSONAS | M39: I | N39: 0 | O39: =+N39+P39 -> 850 | P39: 850 | Q39: 0.165 | R39: 0.04076470588 | S39: 210 | T39: 0.2470588235 | U39: 231 | V39: 231 | W39: 110 | X39: 100 | Y39: 0.04076470588 | Z39: 100 | AA39: 135000000 | AB39: 135000000 | AC39: 0 | AD39: 0 | AE39: 0 | AF39: 0 | AG39: 0 | AH39: 0 | AI39: 63000000 | AJ39: 63000000 | AK39: 0 | AL39: 0 | AM39: 0 | AN39: 0 | AO39: 0 | AP39: 0 | AQ39: 0 | AR39: 0 | AS39: - | AT39: 0.04076470588 | AU39: 210 | AV39: 0.2470588235 | AW39: 244 | AX39: 244 | AY39: 116.1904762 | AZ39: 100 | BA39: 0.04076470588 | BB39: 100 | BC39: 135000000 | BD39: 0 | BE39: 135000000 | BF39: 0 | BG39: 0 | BH39: 0 | BI39: 0 | BJ39: 0 | BK39: 441513373 | BL39: 441513373 | BM39: 0 | BN39: 0 | BO39: 0 | BP39: 0 | BQ39: 0 | BR39: 0 | BS39: 0 | BT39: 0 | BU39: 0 | BV39: 0.04076470588 | BW39: 210 | BX39: 0.2470588235 | BY39: 250 | BZ39: 250 | CA39: 250 | CB39: 250 | CC39: 119.047619 | CD39: 100 | CE39: 0.04076470588 | CF39: 100 | CG39: 0.04852941176 | CH39: 0.04270588235 | CI39: 220 | CJ39: 0.2588235294 | CK39: 245 | CL39: -25 | CM39: 245 | CN39: 111.3636364 | CO39: 100 | CP39: 0.04270588235 | CQ39: 0.04755882353 | CR39: 135000000 | CS39: 135000000 | CT39: 0 | CU39: 0 | CV39: 0 | CW39: 0 | CX39: 0 | CY39: 0 | CZ39: 0 | DA39: 0 | DB39: 0 | DC39: 0 | DD39: 0 | DE39: 0 | DF39: 0 | DG39: 0 | DH39: 0 | DI39: 0 | DJ39: 0 | DK39: 970 | DL39: 0.165 | DM39: 114.1176471 | DN39: 100 | DO39: 0.165 | DP39: =+IF(((DN39*Q39)/100)<Q39, ((DN39*Q39)/100),Q39) -> 0.165 | DQ39: 0.165 | DR39: 1 | DS39: 0 | DT39: 39 | DU39: FOMENTAR HABILIDADES Y DESTREZAS CON ACTIVIDADES LÚDICAS, CULTURALES Y DEPORTIVAS EN EL 35% DE LOS NIÑOS Y NIÑAS DE 6 A 11 AÑOS | EB39: SE FORTALECIÓ EL PROGRAMA DE DETECCIÓN DE TALENTOS DEPORTIVOS, BAJO CRITERIOS DE APTITUD FÍSICA ESPECIAL Y SOBRESALIENTE DE LOS DEPORTISTAS, BUSCANDO PROYECTAR DEPORTISTAS DE ALTOS LOGROS DE ACUERDO CON LAS EXIGENCIAS DE CADA DISCIPLINA DEPORTIVA Y LOS POLOS DE DESARROLLO DEPORTIVO EN EL DEPARTAMENTO. LO QUE PERMITIÓ OPTIMIZAR SUS PROCESOS DE PREPARACIÓN, ENTRENAMIENTO Y COMPETENCIA CON MAYORES Y MEJORES RECURSOS. | EC39: 132000000 | EE39: 948
D40: 37 | E40: 56 | F40: 1-DESARROLLO INTEGRAL DEL SER HUMANO | G40: INDEPORTES | H40: 1.2. ALIANZA POR LA INFANCIA | I40: DESARROLLO | J40: PROMOVER LA PRÁCTICA DEL DEPORTE ESCOLAR EN LAS SEDES DE BÁSICA PRIMARIA DE LOS MUNICIPIOS CON LA PARTICIPACIÓN DE 24.000 NIÑOS Y NIÑAS CADA AÑO EN FESTIVALES ESCOLARES | K40: NO. DE NIÑOS PARTICIPANDO EN FESTIVALES ESCOLARES CADA AÑO | L40: PERSONAS | M40: M | N40: 0 | O40: =+P40 -> 24000 | P40: 24000 | Q40: 0.165 | R40: 0.04125 | S40: 24000 | T40: 0.25 | U40: 75330 | V40: 18832.5 | W40: 313.875 | X40: 100 | Y40: 0.04125 | Z40: 100 | AA40: 650000000 | AB40: 650000000 | AC40: 0 | AD40: 0 | AE40: 0 | AF40: 0 | AG40: 0 | AH40: 0 | AI40: 984002000 | AJ40: 984002000 | AK40: 0 | AL40: 0 | AM40: 0 | AN40: 0 | AO40: 0 | AP40: 0 | AQ40: 0 | AR40: 0 | AS40: - | AT40: 0.04125 | AU40: 24000 | AV40: 0.25 | AW40: 24554 | AX40: 6138.5 | AY40: 102.3083333 | AZ40: 100 | BA40: 0.04125 | BB40: 100 | BC40: 650000000 | BD40: 0 | BE40: 650000000 | BF40: 0 | BG40: 0 | BH40: 0 | BI40: 0 | BJ40: 0 | BK40: 834485654 | BL40: 515949134 | BM40: 0 | BN40: 318536520 | BO40: 0 | BP40: 0 | BQ40: 0 | BR40: 0 | BS40: 0 | BT40: 0 | BU40: 0 | BV40: 0.04125 | BW40: 24000 | BX40: 0.25 | BY40: 0 | BZ40: 0 | CA40: 24265 | CB40: 6066.25 | CC40: 101.1041667 | CD40: 100 | CE40: 0.04125 | CF40: 100 | CG40: 0.04170546875 | CH40: 0.04125 | CI40: 23080 | CJ40: 0.25 | CK40: 25415 | CL40: -2335 | CM40: 6353.75 | CN40: 110.1169844 | CO40: 100 | CP40: 0.04125 | CQ40: 0.04542325607 | CR40: 650000000 | CS40: 650000000 | CT40: 0 | CU40: 0 | CV40: 0 | CW40: 0 | CX40: 0 | CY40: 0 | CZ40: 0 | DA40: 0 | DB40: 0 | DC40: 0 | DD40: 0 | DE40: 0 | DF40: 0 | DG40: 0 | DH40: 0 | DI40: 0 | DJ40: 0 | DK40: 37391 | DL40: 0.165 | DM40: 155.7958333 | DN40: 100 | DO40: 0.165 | DP40: =+IF(M40="M",DO40,0) -> 0.165 | DQ40: 0.165 | DR40: 1 | DS40: 0 | DT40: 39 | DU40: FOMENTAR HABILIDADES Y DESTREZAS CON ACTIVIDADES LÚDICAS, CULTURALES Y DEPORTIVAS EN EL 35% DE LOS NIÑOS Y NIÑAS DE 6 A 11 AÑOS | EB40: SE REANUDARON LOS FESTIVALES ESCOLARES EN EL DEPARTAMENTO, LOGRANDO LA INTEGRACIÓN DE LOS 116 MUNICIPIOS DEL DEPARTAMENTO Y LA PARTICIPACIÓN DE 25.000 NIÑOS Y NIÑAS ESCOLARES EN EL DEPARTAMENTO. | EC40: 30000000 | EE40: 1000
D41: 38 | E41: 57 | F41: 1-DESARROLLO INTEGRAL DEL SER HUMANO | G41: INDEPORTES | H41: 1.2. ALIANZA POR LA INFANCIA | I41: DESARROLLO | J41: PROMOVER LA ACTIVIDAD FÍSICA EN LOS ESTABLECIMIENTOS EDUCATIVOS A 12,180 NIÑOS Y NIÑAS CON EL PROGRAMA "SUPERATE" | K41: NO. DE NIÑOS Y NIÑAS UE PARTICIPAN EN EL PROGRAMA "SUPERATE" EN EL CUATRIENIO | L41: PERSONAS | M41: I | N41: 0 | O41: =+N41+P41 -> 12180 | P41: 12180 | Q41: 0.165 | R41: 0.04125 | S41: 3045 | T41: 0.25 | U41: 4586 | V41: 4586 | W41: 150.6075534 | X41: 100 | Y41: 0.04125 | Z41: 100 | AA41: 320000000 | AB41: 0 | AC41: 0 | AD41: 0 | AE41: 0 | AF41: 0 | AG41: 0 | AH41: 320000000 | AI41: 357000000 | AJ41: 39000000 | AK41: 0 | AL41: 318000000 | AM41: 0 | AN41: 0 | AO41: 0 | AP41: 0 | AQ41: 0 | AR41: 0 | AS41: - | AT41: 0.04125 | AU41: 3045 | AV41: 0.25 | AW41: 3051 | AX41: 3051 | AY41: 100.1970443 | AZ41: 100 | BA41: 0.04125 | BB41: 100 | BC41: 608000000 | BD41: 0 | BE41: 0 | BF41: 0 | BG41: 0 | BH41: 0 | BI41: 0 | BJ41: 608000000 | BK41: 288937356 | BL41: 152421704 | BM41: 0 | BN41: 136515652 | BO41: 0 | BP41: 0 | BQ41: 0 | BR41: 0 | BS41: 0 | BT41: 0 | BU41: 0 | BV41: 0.04584236453 | BW41: 3384 | BX41: 0.2778325123 | BY41: 0 | BZ41: 0 | CA41: 3055 | CB41: 3055 | CC41: 90.27777778 | CD41: 90.27777778 | CE41: 0.04138546798 | CF41: 90.27777778 | CG41: 0.04138546798 | CH41: 0.03665763547 | CI41: 2706 | CJ41: 0.2221674877 | CK41: 3055 | CL41: -349 | CM41: 3055 | CN41: 112.8972653 | CO41: 100 | CP41: 0.03665763547 | CQ41: 0.04138546798 | CR41: 670000000 | CS41: 0 | CT41: 0 | CU41: 0 | CV41: 0 | CW41: 0 | CX41: 0 | CY41: 670000000 | CZ41: 0 | DA41: 0 | DB41: 0 | DC41: 0 | DD41: 0 | DE41: 0 | DF41: 0 | DG41: 0 | DH41: 0 | DI41: 0 | DJ41: 0 | DK41: 13747 | DL41: 0.165 | DM41: 112.865353 | DN41: 100 | DO41: 0.165 | DP41: =+IF(((DN41*Q41)/100)<Q41, ((DN41*Q41)/100),Q41) -> 0.165 | DQ41: 0.165 | DR41: 1 | DS41: 0 | DT41: 39 | DU41: FOMENTAR HABILIDADES Y DESTREZAS CON ACTIVIDADES LÚDICAS, CULTURALES Y DEPORTIVAS EN EL 35% DE LOS NIÑOS Y NIÑAS DE 6 A 11 AÑOS | EB41: PROGRAMA LIDERADO DESDE EL ORDEN NACIONAL, QUE UNIFICA EL DEPORTE EDUCATIVO EN EL PAÍS. SE IMPLEMENTÓ Y DESARROLLO EN LOS 116 MUNICIPIOS, CUMPLIENDO CON EL INDICADOR DEFINIDO PARA EL CUATRIENIO. | EC41: 183000000 | EE41: 58
D42: 39 | E42: 58 | F42: 1-DESARROLLO INTEGRAL DEL SER HUMANO | G42: IDECUT | H42: 1.2. ALIANZA POR LA INFANCIA | I42: DESARROLLO | J42: APOYAR EL DESARROLLO INTEGRAL DE NIÑAS Y NIÑOS DE 6 A 11 AÑOS A TRAVÉS DE PROCESOS DE FORMACIÓN ARTÍSTICA Y CULTURAL EN 35 MUNICIPIOS ANUALMENTE CON INTERVENCIÓN ARTICULADA CON LA JORNADA COMPLEMENTARIA | K42: NO. DE MUNICIPIOS APOYADOS ANUALMENTE CON PROCESOS DE FORMACIÓN ARTÍSTICA Y CULTURAL CON NIÑOS Y NIÑAS DE 6 A 11 AÑOS | L42: MUNICIPIOS | M42: M | N42: 35 | O42: =+P42 -> 35 | P42: 35 | Q42: 0.165 | R42: 0.04125 | S42: 35 | T42: 0.25 | U42: 78 | V42: 19.5 | W42: 222.8571429 | X42: 100 | Y42: 0.04125 | Z42: 100 | AA42: 975000000 | AB42: 350000000 | AC42: 0 | AD42: 0 | AE42: 0 | AF42: 0 | AG42: 0 | AH42: 625000000 | AI42: 272032000 | AJ42: 272032000 | AK42: 0 | AL42: 0 | AM42: 0 | AN42: 0 | AO42: 0 | AP42: 0 | AQ42: 0 | AR42: 91335000 | AS42: MUNICIPIOS | AT42: 0.04125 | AU42: 35 | AV42: 0.25 | AW42: 88 | AX42: 22 | AY42: 251.4285714 | AZ42: 100 | BA42: 0.04125 | BB42: 100 | BC42: 975000000 | BD42: 0 | BE42: 350000000 | BF42: 0 | BG42: 0 | BH42: 0 | BI42: 0 | BJ42: 625000000 | BK42: 458433333 | BL42: 458433333 | BM42: 0 | BN42: 0 | BO42: 0 | BP42: 0 | BQ42: 0 | BR42: 0 | BS42: 0 | BT42: 0 | BU42: 0 | BV42: 0.04125 | BW42: 35 | BX42: 0.25 | BY42: 46 | BZ42: 46 | CA42: 47 | CB42: 11.75 | CC42: 134.2857143 | CD42: 100 | CE42: 0.04125 | CF42: 100 | CG42: 0.05539285714 | CH42: 0.04125 | CI42: 35 | CJ42: 0.25 | CK42: 40 | CL42: -5 | CM42: 10 | CN42: 114.2857143 | CO42: 100 | CP42: 0.04125 | CQ42: 0.04714285714 | CR42: 975000000 | CS42: 350000000 | CT42: 0 | CU42: 0 | CV42: 0 | CW42: 0 | CX42: 0 | CY42: 625000000 | CZ42: 0 | DA42: 0 | DB42: 0 | DC42: 0 | DD42: 0 | DE42: 0 | DF42: 0 | DG42: 0 | DH42: 0 | DI42: 0 | DJ42: 0 | DK42: 63.25 | DL42: 0.165 | DM42: 180.7142857 | DN42: 100 | DO42: 0.165 | DP42: =+IF(M42="M",DO42,0) -> 0.165 | DQ42: 0.165 | DR42: 1 | DS42: 0 | DT42: 39 | DU42: FOMENTAR HABILIDADES Y DESTREZAS CON ACTIVIDADES LÚDICAS, CULTURALES Y DEPORTIVAS EN EL 35% DE LOS NIÑOS Y NIÑAS DE 6 A 11 AÑOS | EB42: EL IDECUT HA LOGRADO MANTENER EL APOYO CON EL 50% Y 100% DE LOS HONORARIOS DE DOS FORMADORES A 88 MUNICIPIOS DEL DEPARTAMENTO CON LOS PROCESOS DE FORMACIÓN ARTÍSTICA Y CULTURAL EN 2 DISCIPLINAS CADA UNO DENTRO DE LAS QUE SE ENCUENTRAN DANZAS, TEATRO, ARTES PLÁTICAS, MÚSICA, LITERATURA Y CINEMATOGRAFÍA, TRADUCIDOS EN 176 PROCESOS. A TRAVÉS DE ESTO, SE PROMUEVE EL APROVECHAMIENTO DEL TIEMPO LIBRE Y EL DESARROLLO DE DESTREZAS Y HABILIDADES ARTÍSTICAS DE ESTE GRUPO POBLACIONAL. | EC42: 0 | EE42: 44
D43: 40 | E43: 59 | F43: 1-DESARROLLO INTEGRAL DEL SER HUMANO | G43: IDECUT | H43: 1.2. ALIANZA POR LA INFANCIA | I43: DESARROLLO | J43: APOYAR EL PROCESO FORMATIVO DE HABILIDADES LECTORAS DE LOS NIÑOS Y NIÑAS DE 6 A 11 AÑOS CON EL FORTALECIMIENTO DE 92 BIBLIOTECAS PÚBLICAS MUNICIPALES EN EL CUATRIENIO | K43: NO. DE BIBLIOTECAS PÚBLICAS MUNICIPALES FORTALECIDAS QUE PROMUEVAN HABILIDADES LECTORAS DE NIÑOS Y NIÑAS DE 6 A 11 AÑOS | L43: BIBLIOTECAS | M43: I | N43: 92 | O43: =+N43+P43 -> 184 | P43: 92 | Q43: 0.165 | R43: 0.04125 | S43: 23 | T43: 0.25 | U43: 47 | V43: 47 | W43: 204.3478261 | X43: 100 | Y43: 0.04125 | Z43: 100 | AA43: 435000000 | AB43: 115000000 | AC43: 0 | AD43: 0 | AE43: 0 | AF43: 0 | AG43: 0 | AH43: 320000000 | AI43: 0 | AJ43: 0 | AK43: 0 | AL43: 0 | AM43: 0 | AN43: 0 | AO43: 0 | AP43: 0 | AQ43: 0 | AR43: 18182000 | AS43: MINISTERIO DE CULTURA | AT43: 0.04125 | AU43: 23 | AV43: 0.25 | AW43: 74 | AX43: 74 | AY43: 321.7391304 | AZ43: 100 | BA43: 0.04125 | BB43: 100 | BC43: 435000000 | BD43: 0 | BE43: 115000000 | BF43: 0 | BG43: 0 | BH43: 0 | BI43: 0 | BJ43: 320000000 | BK43: 119737498 | BL43: 119737498 | BM43: 0 | BN43: 0 | BO43: 0 | BP43: 0 | BQ43: 0 | BR43: 0 | BS43: 0 | BT43: 0 | BU43: 0 | BV43: 0.04125 | BW43: 23 | BX43: 0.25 | BY43: 100 | BZ43: 100 | CA43: 120 | CB43: 120 | CC43: 521.7391304 | CD43: 100 | CE43: 0.04125 | CF43: 100 | CG43: 0.2152173913 | CH43: 0.04125 | CI43: 23 | CJ43: 0.25 | CK43: 143 | CL43: -120 | CM43: 143 | CN43: 621.7391304 | CO43: 100 | CP43: 0.04125 | CQ43: 0.2564673913 | CR43: 435000000 | CS43: 115000000 | CT43: 0 | CU43: 0 | CV43: 0 | CW43: 0 | CX43: 0 | CY43: 320000000 | CZ43: 0 | DA43: 0 | DB43: 0 | DC43: 0 | DD43: 0 | DE43: 0 | DF43: 0 | DG43: 0 | DH43: 0 | DI43: 0 | DJ43: 0 | DK43: 384 | DL43: 0.165 | DM43: 417.3913043 | DN43: 100 | DO43: 0.165 | DP43: =+IF(((DN43*Q43)/100)<Q43, ((DN43*Q43)/100),Q43) -> 0.165 | DQ43: 0.165 | DR43: 1 | DS43: 0 | DT43: 39 | DU43: FOMENTAR HABILIDADES Y DESTREZAS CON ACTIVIDADES LÚDICAS, CULTURALES Y DEPORTIVAS EN EL 35% DE LOS NIÑOS Y NIÑAS DE 6 A 11 AÑOS | EB43: A TRAVÉS DE GESTIÓN POR PARTE DEL IDECUT CON EL MINISTERIO DE CULTURA Y CON FINANCIACIÓN DE RECURSOS DEL INSTITUTO SE HA LOGRADO LLEGAR AL 100% DE LAS BIBLIOTECAS PÚBLICAS MUNICIPALES, CON DOTACIÓN DE MATERIAL BIBLIOGRAFICO, SE HAN BENFICIADO CON DOTACIÓN DE CONECTIVIDAD 38 BIBLIOTECAS PÚBLICAS DE 38 MUNICIPIOS, 140 BIBLIOTECAS CON DOTACIÓN DE UN KIT CONFORMADO POR UN VIDEO PROYECTOR, UN TELÓN DE TRIPODE Y UNA IMPRESORA PARA LA ELABORACIÓN DE LOS CARNETS DE LOS USUARIOS, IMPLEMENTACIÓN DEL SISTEMA LLAVE DEL SABER PARA 111 MUNICIPIOS. ADICIONALMENTE, DURANTE EL 2015 SE HA PUESTO EN MARCHA LA ESTRATEGIA DE PROMOTORES REGIONALES CUYA MISIÓN HA SIDO ACOMPAÑAR Y BRINDAR ASISTENCIA TÉCNICA INSITU INSCRITOS A LA RED DE BIBLIOTECAS PÚBLICAS. | EC43: 35000000 | EE43: 116
